Workbook

Sheet invullijst
A1: 1 | B1: Sint Ambrosius Baardwijk | C1: Baardwijk | F1: Organisatie | H1: jaar | K1: nr
A2: 2 | B2: St. Crispinus & Crispinianus Besoijen | C2: Besoijen | H2: 2023 - 2024 | K2: 2
A3: 3 | B3: O.L.V. Schuts Elshout | C3: Elshout | F3: =IF(VLOOKUP($K2,invullijst!$A$1:$C$6,2,FALSE)="","",VLOOKUP($K2,invullijst!$A$1:$C$6,2,FALSE)) -> St. Crispinus & Crispinianus Besoijen
A4: 4 | B4: Sint Ambrosius Haarsteeg | C4: Haarsteeg | J4: versie 2020-1
A5: 5 | B5: Sint Jan Baptist Kaatsheuvel | C5: Kaatsheuvel
A8: NR | B8: NAAM | C8: PLAATS | D8: dis. | E8: € | F8: W 1 | G8: W 2 | H8: W 3 | I8: W 4 | J8: W 5 | K8: kampk
A9: 0 | B9: 0 | C9: 0 | D9: 0 | E9: 0 | F9: 0 | G9: 0 | H9: 0 | I9: 0 | J9: 0 | K9: 0
A10: 0 | B10: 0 | C10: 0 | D10: 0 | E10: 0.00 | F10: 0 | G10: 0 | H10: 0 | I10: 0 | J10: 0 | K10: 0
A11: 102 | B11: John de Jong | C11: Baardwijk | D11: vr | G11: 74 | H11: 61 | I11: 65 | J11: 77 | K11: 37
A12: 103 | B12: Norbert van Buul | C12: Baardwijk | D12: vr | G12: 64 | H12: 53
A13: 105 | B13: René Klijn | C13: Baardwijk | D13: vr | G13: 83 | H13: 81 | I13: 83 | J13: 84 | K13: 42
A14: 106 | B14: René Pullens | C14: Baardwijk | D14: vr | G14: 84 | H14: 84 | I14: 79 | J14: 88 | K14: 44
A15: 108 | B15: Bram Pullens | C15: Baardwijk | D15: vr | G15: 81 | H15: 87 | I15: 76 | J15: 75 | K15: 34
A16: 109 | B16: Gijs Pullens | C16: Baardwijk | D16: J | G16: 83 | H16: 92 | I16: 83 | J16: 78 | K16: 44
A17: 111 | B17: Frans van Buul | C17: Baardwijk | D17: 65+ | G17: 83 | H17: 81 | I17: 66 | J17: 78 | K17: 40
A18: 113 | B18: Kees Coppens | C18: Baardwijk | D18: 65+ | G18: 84 | H18: 88 | I18: 68 | J18: 85 | K18: 36
A19: 201 | B19: Sander Oome | C19: Besoijen | D19: vr | F19: 91 | G19: 92 | H19: 92 | I19: 92 | K19: 44
A20: 202 | B20: Arco van Kuijk | C20: Besoijen | D20: vr | F20: 74 | G20: 68 | H20: 69 | I20: 60 | K20: 37
A21: 203 | B21: Frank van den Houdt | C21: Besoijen | D21: vr | F21: 80 | G21: 82 | H21: 81 | I21: 85 | K21: 36
A22: 204 | B22: Harry de Louw | C22: Besoijen | D22: vr | F22: 80 | G22: 81 | H22: 85 | I22: 80 | K22: 35
A23: 205 | B23: Jos v/d Snepscheut | C23: Besoijen | D23: vr | F23: 79 | G23: 83 | H23: 79 | I23: 82 | K23: 40
A24: 206 | B24: Kees van Hulten | C24: Besoijen | D24: vr | F24: 86 | G24: 85 | H24: 78 | I24: 85 | K24: 38
A25: 208 | B25: Erin van Hulten | C25: Besoijen | D25: vr | F25: 78 | G25: 80 | H25: 79 | I25: 81 | K25: 39
A26: 209 | B26: René van Kuijk | C26: Besoijen | D26: vr | F26: 76 | G26: 80 | H26: 87 | I26: 82 | K26: 42
A27: 210 | B27: Nick de Vaan | C27: Besoijen | D27: vr | F27: 68 | G27: 63 | H27: 74 | I27: 75 | K27: 37
A28: 211 | B28: Ad van den houdt | C28: Besoijen | D28: 65+ | F28: 96 | G28: 88 | H28: 92 | I28: 90 | K28: 41
A29: 212 | B29: René Duquesnoy | C29: Besoijen | D29: 65+ | F29: 90 | G29: 87 | H29: 92 | I29: 87 | K29: 45
A30: 213 | B30: Roland van Delft | C30: Besoijen | D30: vr | F30: 69 | G30: 59 | H30: 77 | I30: 77 | K30: 35
A31: 214 | B31: André de Vaan | C31: Besoijen | D31: 65+ | F31: 87 | G31: 89 | H31: 91 | I31: 96 | K31: 45
A32: 215 | B32: Pieter Laghuwitz | C32: Besoijen | D32: vr | F32: 79 | G32: 74 | H32: 86 | I32: 83 | K32: 38
A33: 216 | B33: Hans Laghuwitz | C33: Besoijen | D33: vr | F33: 67 | G33: 74 | H33: 82 | I33: 81 | K33: 32
A34: 217 | B34: Jānis Jākobsons | C34: Besoijen | D34: vr | F34: 65 | G34: 72 | H34: 81 | I34: 79 | K34: 40
A35: 301 | B35: Arjen van Assem disp | C35: Elshout | D35: 65+ | E35: 2 | F35: 91 | H35: 93 | I35: 89 | J35: 89 | K35: 42
A36: 302 | B36: Freek de Jong | C36: Elshout | D36: vr | E36: 2 | F36: 89 | H36: 90 | I36: 88 | J36: 90 | K36: 45
A37: 304 | B37: Henk Bruurmijn | C37: Elshout | D37: vr | E37: 2 | F37: 71 | H37: 78 | I37: 68 | J37: 68 | K37: 40
A38: 305 | B38: Johan Klerx | C38: Elshout | D38: vr | E38: 2 | F38: 84 | H38: 89 | I38: 84 | J38: 82 | K38: 43
A39: 306 | B39: Ron Groot | C39: Elshout | D39: vr | E39: 2 | F39: 86 | H39: 91 | I39: 84 | J39: 85 | K39: 43
A40: 307 | B40: Bert van Engelen | C40: Elshout | D40: 65+ | E40: 2 | F40: 95 | H40: 93 | I40: 93 | J40: 96 | K40: 45
A41: 308 | B41: Jan van Esch | C41: Elshout | D41: vr | E41: 2 | F41: 60
A42: 309 | B42: René de Jong | C42: Elshout | D42: 65+ | E42: 2 | F42: 88 | H42: 94 | I42: 93 | J42: 84 | K42: 46
A43: 310 | B43: Tini Boom | C43: Elshout | D43: 65+ | E43: 2 | H43: 93 | I43: 94 | J43: 93 | K43: 43
A44: 311 | B44: Ton Kolmans | C44: Elshout | D44: vr | E44: 2 | H44: 80 | I44: 86 | J44: 83 | K44: 42
A45: 312 | B45: Floor de Jong | C45: Elshout | D45: J | E45: 0 | F45: 91 | H45: 91 | I45: 90 | J45: 92 | K45: 43
A46: 401 | B46: Frans van Beurden | C46: Haarsteeg | D46: 65+ | F46: 95 | G46: 97 | I46: 94 | J46: 94 | K46: 46
A47: 402 | B47: Daniëlle v/d Lee | C47: Haarsteeg | D47: vr | F47: 80 | G47: 79 | I47: 75 | J47: 83 | K47: 40
A48: 403 | B48: Dorien de Kort | C48: Haarsteeg | D48: 65+ | F48: 92 | I48: 94 | J48: 87 | K48: 46
A49: 404 | B49: Gerard van Beurden | C49: Haarsteeg | D49: 65+ | F49: 93 | G49: 97 | I49: 98 | J49: 94 | K49: 46
A50: 405 | B50: Jan de Vaan | C50: Haarsteeg | D50: vr | F50: 86 | G50: 85 | I50: 81 | J50: 83 | K50: 38
A51: 406 | B51: Jeroen van Oss | C51: Haarsteeg | D51: vr | F51: 82 | G51: 82 | I51: 83 | J51: 83 | K51: 40
A52: 407 | B52: Justin van Son | C52: Haarsteeg | D52: vr | F52: 84 | G52: 85 | I52: 79 | J52: 80 | K52: 39
A53: 408 | B53: Rudy van Falier | C53: Haarsteeg | D53: vr | F53: 86 | G53: 79 | I53: 80 | J53: 85 | K53: 43
A54: 410 | B54: Tonnie Koks | C54: Haarsteeg | D54: vr | F54: 85 | G54: 84 | I54: 82 | J54: 84 | K54: 43
A55: 412 | B55: Francien v/d Wiel | C55: Haarsteeg | D55: 65+ | F55: 96 | G55: 87 | I55: 92 | J55: 89 | K55: 47
A56: 413 | B56: Frans Mommersteeg | C56: Haarsteeg | D56: 65+ | F56: 96 | G56: 98 | I56: 95 | J56: 94 | K56: 48
A57: 415 | B57: Wim de Gouw | C57: Haarsteeg | D57: 65+ | F57: 95 | G57: 95 | I57: 95 | J57: 95 | K57: 48
A58: 501 | B58: Annette Vos | C58: Kaatsheuvel | D58: vr | F58: 80 | G58: 89 | H58: 83 | J58: 83 | K58: 40
A59: 502 | B59: Diny Vos | C59: Kaatsheuvel | D59: vr | F59: 67 | G59: 66 | H59: 81 | J59: 71 | K59: 34
A60: 504 | B60: Koen v/d Ven | C60: Kaatsheuvel | D60: vr | F60: 94 | G60: 90 | H60: 87 | J60: 89 | K60: 43
A61: 505 | B61: Leo Wagemakers | C61: Kaatsheuvel | D61: 65+ | F61: 58 | G61: 69 | H61: 58 | J61: 10 | K61: 36
A62: 506 | B62: Maikel Monden | C62: Kaatsheuvel | D62: vr | F62: 84 | G62: 85 | H62: 80 | J62: 71 | K62: 41
A63: 507 | B63: Michael Blaauwbroek | C63: Kaatsheuvel | D63: vr | F63: 70 | G63: 70 | H63: 77 | J63: 70 | K63: 42
A64: 508 | B64: Rowan Dobbelsteen | C64: Kaatsheuvel | D64: vr | F64: 80 | G64: 79 | H64: 83 | J64: 80 | K64: 39
A65: 509 | B65: Adwan de Pinth | C65: Kaatsheuvel | D65: 65+ | F65: 95 | G65: 96 | H65: 95 | J65: 92 | K65: 49
A67: 511 | B67: Ton Stans | C67: Kaatsheuvel | D67: 65+ | F67: 85 | G67: 83 | H67: 82 | J67: 84 | K67: 38
A68: 512 | B68: Hans Bergakker | C68: Kaatsheuvel | D68: vr | F68: 81 | G68: 71 | H68: 71 | J68: 69 | K68: 38
A69: 513 | B69: Mark van Delft | C69: Kaatsheuvel | D69: vr | F69: 65 | G69: 79
A70: 514 | B70: Toon Ophorst | C70: Kaatsheuvel | D70: 65+ | F70: 49 | G70: 67 | H70: 75 | J70: 63 | K70: 18
A71: 515 | B71: Ilona Bergakker disp | C71: Kaatsheuvel | D71: 65+ | F71: 92 | G71: 93 | H71: 89 | K71: 46
A72: 516 | B72: Henry Bergakker disp | C72: Kaatsheuvel | D72: 65+ | F72: 80 | G72: 88 | H72: 88 | J72: 93 | K72: 44
A73: 112 | B73: Toon van Buul | C73: Baardwijk | D73: 65+ | I73: 65 | K73: 27

Sheet Personeel
A1: PERSONEEL | G1: =invullijst!F1 -> Organisatie | K1: =invullijst!H2 -> 2023 - 2024
G2: =invullijst!F3 -> St. Crispinus & Crispinianus Besoijen
G3: wedstrijd | M3: KAMP-
A4: KL. | C4: schutter | E4: NAAM | F4: PLAATS | G4: 1 | H4: 2 | I4: 3 | J4: 4 | K4: 5 | L4: TOTAAL | M4: KAART
B5: 1 | C5: 201 | D5: =IF(VLOOKUP($C5,invullijst!$A$11:$M$177,4,FALSE)="","",VLOOKUP($C5,invullijst!$A$11:$M$177,4,FALSE)) -> vr | E5: =IF(VLOOKUP($C5,invullijst!$A$11:$M$177,2,FALSE)="","",VLOOKUP($C5,invullijst!$A$11:$M$177,2,FALSE)) -> Sander Oome | F5: =IF(VLOOKUP($C5,invullijst!$A$11:$M$177,3,FALSE)="","",VLOOKUP($C5,invullijst!$A$11:$M$177,3,FALSE)) -> Besoijen | G5: =IF(VLOOKUP(C5,invullijst!$A$11:$M$177,6,FALSE)="","",VLOOKUP(C5,invullijst!$A$11:$M$177,6,FALSE)) -> 91 | H5: =IF(VLOOKUP($C5,invullijst!$A$11:$M$177,7,FALSE)="","",VLOOKUP($C5,invullijst!$A$11:$M$177,7,FALSE)) -> 92 | I5: =IF(VLOOKUP($C5,invullijst!$A$11:$M$177,8,FALSE)="","",VLOOKUP($C5,invullijst!$A$11:$M$177,8,FALSE)) -> 92 | J5: =IF(VLOOKUP($C5,invullijst!$A$11:$M$177,9,FALSE)="","",VLOOKUP($C5,invullijst!$A$11:$M$177,9,FALSE)) -> 92 | K5: =IF(VLOOKUP($C5,invullijst!$A$11:$M$177,10,FALSE)="","",VLOOKUP($C5,invullijst!$A$11:$M$177,10,FALSE)) ->  | L5: =SUM(G5:K5) -> 367 | M5: =IF(VLOOKUP($C5,invullijst!$A$11:$M$177,11,FALSE)="","",VLOOKUP($C5,invullijst!$A$11:$M$177,11,FALSE)) -> 44
B6: 2 | C6: 504 | D6: =IF(VLOOKUP($C6,invullijst!$A$11:$M$177,4,FALSE)="","",VLOOKUP($C6,invullijst!$A$11:$M$177,4,FALSE)) -> vr | E6: =IF(VLOOKUP($C6,invullijst!$A$11:$M$177,2,FALSE)="","",VLOOKUP($C6,invullijst!$A$11:$M$177,2,FALSE)) -> Koen v/d Ven | F6: =IF(VLOOKUP($C6,invullijst!$A$11:$M$177,3,FALSE)="","",VLOOKUP($C6,invullijst!$A$11:$M$177,3,FALSE)) -> Kaatsheuvel | G6: =IF(VLOOKUP(C6,invullijst!$A$11:$M$177,6,FALSE)="","",VLOOKUP(C6,invullijst!$A$11:$M$177,6,FALSE)) -> 94 | H6: =IF(VLOOKUP($C6,invullijst!$A$11:$M$177,7,FALSE)="","",VLOOKUP($C6,invullijst!$A$11:$M$177,7,FALSE)) -> 90 | I6: =IF(VLOOKUP($C6,invullijst!$A$11:$M$177,8,FALSE)="","",VLOOKUP($C6,invullijst!$A$11:$M$177,8,FALSE)) -> 87 | J6: =IF(VLOOKUP($C6,invullijst!$A$11:$M$177,9,FALSE)="","",VLOOKUP($C6,invullijst!$A$11:$M$177,9,FALSE)) ->  | K6: =IF(VLOOKUP($C6,invullijst!$A$11:$M$177,10,FALSE)="","",VLOOKUP($C6,invullijst!$A$11:$M$177,10,FALSE)) -> 89 | L6: 360 | M6: =IF(VLOOKUP($C6,invullijst!$A$11:$M$177,11,FALSE)="","",VLOOKUP($C6,invullijst!$A$11:$M$177,11,FALSE)) -> 43
B7: 3 | C7: 302 | D7: =IF(VLOOKUP($C7,invullijst!$A$11:$M$177,4,FALSE)="","",VLOOKUP($C7,invullijst!$A$11:$M$177,4,FALSE)) -> vr | E7: =IF(VLOOKUP($C7,invullijst!$A$11:$M$177,2,FALSE)="","",VLOOKUP($C7,invullijst!$A$11:$M$177,2,FALSE)) -> Freek de Jong | F7: =IF(VLOOKUP($C7,invullijst!$A$11:$M$177,3,FALSE)="","",VLOOKUP($C7,invullijst!$A$11:$M$177,3,FALSE)) -> Elshout | G7: =IF(VLOOKUP(C7,invullijst!$A$11:$M$177,6,FALSE)="","",VLOOKUP(C7,invullijst!$A$11:$M$177,6,FALSE)) -> 89 | H7: =IF(VLOOKUP($C7,invullijst!$A$11:$M$177,7,FALSE)="","",VLOOKUP($C7,invullijst!$A$11:$M$177,7,FALSE)) ->  | I7: =IF(VLOOKUP($C7,invullijst!$A$11:$M$177,8,FALSE)="","",VLOOKUP($C7,invullijst!$A$11:$M$177,8,FALSE)) -> 90 | J7: =IF(VLOOKUP($C7,invullijst!$A$11:$M$177,9,FALSE)="","",VLOOKUP($C7,invullijst!$A$11:$M$177,9,FALSE)) -> 88 | K7: =IF(VLOOKUP($C7,invullijst!$A$11:$M$177,10,FALSE)="","",VLOOKUP($C7,invullijst!$A$11:$M$177,10,FALSE)) -> 90 | L7: 357 | M7: =IF(VLOOKUP($C7,invullijst!$A$11:$M$177,11,FALSE)="","",VLOOKUP($C7,invullijst!$A$11:$M$177,11,FALSE)) -> 45
B8: 4 | C8: 305 | D8: =IF(VLOOKUP($C8,invullijst!$A$11:$M$177,4,FALSE)="","",VLOOKUP($C8,invullijst!$A$11:$M$177,4,FALSE)) -> vr | E8: =IF(VLOOKUP($C8,invullijst!$A$11:$M$177,2,FALSE)="","",VLOOKUP($C8,invullijst!$A$11:$M$177,2,FALSE)) -> Johan Klerx | F8: =IF(VLOOKUP($C8,invullijst!$A$11:$M$177,3,FALSE)="","",VLOOKUP($C8,invullijst!$A$11:$M$177,3,FALSE)) -> Elshout | G8: =IF(VLOOKUP(C8,invullijst!$A$11:$M$177,6,FALSE)="","",VLOOKUP(C8,invullijst!$A$11:$M$177,6,FALSE)) -> 84 | H8: =IF(VLOOKUP($C8,invullijst!$A$11:$M$177,7,FALSE)="","",VLOOKUP($C8,invullijst!$A$11:$M$177,7,FALSE)) ->  | I8: =IF(VLOOKUP($C8,invullijst!$A$11:$M$177,8,FALSE)="","",VLOOKUP($C8,invullijst!$A$11:$M$177,8,FALSE)) -> 89 | J8: =IF(VLOOKUP($C8,invullijst!$A$11:$M$177,9,FALSE)="","",VLOOKUP($C8,invullijst!$A$11:$M$177,9,FALSE)) -> 84 | K8: =IF(VLOOKUP($C8,invullijst!$A$11:$M$177,10,FALSE)="","",VLOOKUP($C8,invullijst!$A$11:$M$177,10,FALSE)) -> 82 | L8: 339 | M8: =IF(VLOOKUP($C8,invullijst!$A$11:$M$177,11,FALSE)="","",VLOOKUP($C8,invullijst!$A$11:$M$177,11,FALSE)) -> 43
B9: 5 | C9: 106 | D9: =IF(VLOOKUP($C9,invullijst!$A$11:$M$177,4,FALSE)="","",VLOOKUP($C9,invullijst!$A$11:$M$177,4,FALSE)) -> vr | E9: =IF(VLOOKUP($C9,invullijst!$A$11:$M$177,2,FALSE)="","",VLOOKUP($C9,invullijst!$A$11:$M$177,2,FALSE)) -> René Pullens | F9: =IF(VLOOKUP($C9,invullijst!$A$11:$M$177,3,FALSE)="","",VLOOKUP($C9,invullijst!$A$11:$M$177,3,FALSE)) -> Baardwijk | G9: =IF(VLOOKUP(C9,invullijst!$A$11:$M$177,6,FALSE)="","",VLOOKUP(C9,invullijst!$A$11:$M$177,6,FALSE)) ->  | H9: =IF(VLOOKUP($C9,invullijst!$A$11:$M$177,7,FALSE)="","",VLOOKUP($C9,invullijst!$A$11:$M$177,7,FALSE)) -> 84 | I9: =IF(VLOOKUP($C9,invullijst!$A$11:$M$177,8,FALSE)="","",VLOOKUP($C9,invullijst!$A$11:$M$177,8,FALSE)) -> 84 | J9: =IF(VLOOKUP($C9,invullijst!$A$11:$M$177,9,FALSE)="","",VLOOKUP($C9,invullijst!$A$11:$M$177,9,FALSE)) -> 79 | K9: =IF(VLOOKUP($C9,invullijst!$A$11:$M$177,10,FALSE)="","",VLOOKUP($C9,invullijst!$A$11:$M$177,10,FALSE)) -> 88 | L9: 335 | M9: =IF(VLOOKUP($C9,invullijst!$A$11:$M$177,11,FALSE)="","",VLOOKUP($C9,invullijst!$A$11:$M$177,11,FALSE)) -> 44
B10: 6 | C10: 410 | D10: =IF(VLOOKUP($C10,invullijst!$A$11:$M$177,4,FALSE)="","",VLOOKUP($C10,invullijst!$A$11:$M$177,4,FALSE)) -> vr | E10: =IF(VLOOKUP($C10,invullijst!$A$11:$M$177,2,FALSE)="","",VLOOKUP($C10,invullijst!$A$11:$M$177,2,FALSE)) -> Tonnie Koks | F10: =IF(VLOOKUP($C10,invullijst!$A$11:$M$177,3,FALSE)="","",VLOOKUP($C10,invullijst!$A$11:$M$177,3,FALSE)) -> Haarsteeg | G10: =IF(VLOOKUP(C10,invullijst!$A$11:$M$177,6,FALSE)="","",VLOOKUP(C10,invullijst!$A$11:$M$177,6,FALSE)) -> 85 | H10: =IF(VLOOKUP($C10,invullijst!$A$11:$M$177,7,FALSE)="","",VLOOKUP($C10,invullijst!$A$11:$M$177,7,FALSE)) -> 84 | I10: =IF(VLOOKUP($C10,invullijst!$A$11:$M$177,8,FALSE)="","",VLOOKUP($C10,invullijst!$A$11:$M$177,8,FALSE)) ->  | J10: =IF(VLOOKUP($C10,invullijst!$A$11:$M$177,9,FALSE)="","",VLOOKUP($C10,invullijst!$A$11:$M$177,9,FALSE)) -> 82 | K10: =IF(VLOOKUP($C10,invullijst!$A$11:$M$177,10,FALSE)="","",VLOOKUP($C10,invullijst!$A$11:$M$177,10,FALSE)) -> 84 | L10: 335 | M10: =IF(VLOOKUP($C10,invullijst!$A$11:$M$177,11,FALSE)="","",VLOOKUP($C10,invullijst!$A$11:$M$177,11,FALSE)) -> 43
B11: 7 | C11: 501 | D11: =IF(VLOOKUP($C11,invullijst!$A$11:$M$177,4,FALSE)="","",VLOOKUP($C11,invullijst!$A$11:$M$177,4,FALSE)) -> vr | E11: =IF(VLOOKUP($C11,invullijst!$A$11:$M$177,2,FALSE)="","",VLOOKUP($C11,invullijst!$A$11:$M$177,2,FALSE)) -> Annette Vos | F11: =IF(VLOOKUP($C11,invullijst!$A$11:$M$177,3,FALSE)="","",VLOOKUP($C11,invullijst!$A$11:$M$177,3,FALSE)) -> Kaatsheuvel | G11: =IF(VLOOKUP(C11,invullijst!$A$11:$M$177,6,FALSE)="","",VLOOKUP(C11,invullijst!$A$11:$M$177,6,FALSE)) -> 80 | H11: =IF(VLOOKUP($C11,invullijst!$A$11:$M$177,7,FALSE)="","",VLOOKUP($C11,invullijst!$A$11:$M$177,7,FALSE)) -> 89 | I11: =IF(VLOOKUP($C11,invullijst!$A$11:$M$177,8,FALSE)="","",VLOOKUP($C11,invullijst!$A$11:$M$177,8,FALSE)) -> 83 | J11: =IF(VLOOKUP($C11,invullijst!$A$11:$M$177,9,FALSE)="","",VLOOKUP($C11,invullijst!$A$11:$M$177,9,FALSE)) ->  | K11: =IF(VLOOKUP($C11,invullijst!$A$11:$M$177,10,FALSE)="","",VLOOKUP($C11,invullijst!$A$11:$M$177,10,FALSE)) -> 83 | L11: 335 | M11: =IF(VLOOKUP($C11,invullijst!$A$11:$M$177,11,FALSE)="","",VLOOKUP($C11,invullijst!$A$11:$M$177,11,FALSE)) -> 40
B12: 8 | C12: 405 | D12: =IF(VLOOKUP($C12,invullijst!$A$11:$M$177,4,FALSE)="","",VLOOKUP($C12,invullijst!$A$11:$M$177,4,FALSE)) -> vr | E12: =IF(VLOOKUP($C12,invullijst!$A$11:$M$177,2,FALSE)="","",VLOOKUP($C12,invullijst!$A$11:$M$177,2,FALSE)) -> Jan de Vaan | F12: =IF(VLOOKUP($C12,invullijst!$A$11:$M$177,3,FALSE)="","",VLOOKUP($C12,invullijst!$A$11:$M$177,3,FALSE)) -> Haarsteeg | G12: =IF(VLOOKUP(C12,invullijst!$A$11:$M$177,6,FALSE)="","",VLOOKUP(C12,invullijst!$A$11:$M$177,6,FALSE)) -> 86 | H12: =IF(VLOOKUP($C12,invullijst!$A$11:$M$177,7,FALSE)="","",VLOOKUP($C12,invullijst!$A$11:$M$177,7,FALSE)) -> 85 | I12: =IF(VLOOKUP($C12,invullijst!$A$11:$M$177,8,FALSE)="","",VLOOKUP($C12,invullijst!$A$11:$M$177,8,FALSE)) ->  | J12: =IF(VLOOKUP($C12,invullijst!$A$11:$M$177,9,FALSE)="","",VLOOKUP($C12,invullijst!$A$11:$M$177,9,FALSE)) -> 81 | K12: =IF(VLOOKUP($C12,invullijst!$A$11:$M$177,10,FALSE)="","",VLOOKUP($C12,invullijst!$A$11:$M$177,10,FALSE)) -> 83 | L12: 335 | M12: =IF(VLOOKUP($C12,invullijst!$A$11:$M$177,11,FALSE)="","",VLOOKUP($C12,invullijst!$A$11:$M$177,11,FALSE)) -> 38
B13: 9 | C13: 206 | D13: =IF(VLOOKUP($C13,invullijst!$A$11:$M$177,4,FALSE)="","",VLOOKUP($C13,invullijst!$A$11:$M$177,4,FALSE)) -> vr | E13: =IF(VLOOKUP($C13,invullijst!$A$11:$M$177,2,FALSE)="","",VLOOKUP($C13,invullijst!$A$11:$M$177,2,FALSE)) -> Kees van Hulten | F13: =IF(VLOOKUP($C13,invullijst!$A$11:$M$177,3,FALSE)="","",VLOOKUP($C13,invullijst!$A$11:$M$177,3,FALSE)) -> Besoijen | G13: =IF(VLOOKUP(C13,invullijst!$A$11:$M$177,6,FALSE)="","",VLOOKUP(C13,invullijst!$A$11:$M$177,6,FALSE)) -> 86 | H13: =IF(VLOOKUP($C13,invullijst!$A$11:$M$177,7,FALSE)="","",VLOOKUP($C13,invullijst!$A$11:$M$177,7,FALSE)) -> 85 | I13: =IF(VLOOKUP($C13,invullijst!$A$11:$M$177,8,FALSE)="","",VLOOKUP($C13,invullijst!$A$11:$M$177,8,FALSE)) -> 78 | J13: =IF(VLOOKUP($C13,invullijst!$A$11:$M$177,9,FALSE)="","",VLOOKUP($C13,invullijst!$A$11:$M$177,9,FALSE)) -> 85 | K13: =IF(VLOOKUP($C13,invullijst!$A$11:$M$177,10,FALSE)="","",VLOOKUP($C13,invullijst!$A$11:$M$177,10,FALSE)) ->  | L13: 334 | M13: =IF(VLOOKUP($C13,invullijst!$A$11:$M$177,11,FALSE)="","",VLOOKUP($C13,invullijst!$A$11:$M$177,11,FALSE)) -> 38
B14: 10 | C14: 105 | D14: =IF(VLOOKUP($C14,invullijst!$A$11:$M$177,4,FALSE)="","",VLOOKUP($C14,invullijst!$A$11:$M$177,4,FALSE)) -> vr | E14: =IF(VLOOKUP($C14,invullijst!$A$11:$M$177,2,FALSE)="","",VLOOKUP($C14,invullijst!$A$11:$M$177,2,FALSE)) -> René Klijn | F14: =IF(VLOOKUP($C14,invullijst!$A$11:$M$177,3,FALSE)="","",VLOOKUP($C14,invullijst!$A$11:$M$177,3,FALSE)) -> Baardwijk | G14: =IF(VLOOKUP(C14,invullijst!$A$11:$M$177,6,FALSE)="","",VLOOKUP(C14,invullijst!$A$11:$M$177,6,FALSE)) ->  | H14: =IF(VLOOKUP($C14,invullijst!$A$11:$M$177,7,FALSE)="","",VLOOKUP($C14,invullijst!$A$11:$M$177,7,FALSE)) -> 83 | I14: =IF(VLOOKUP($C14,invullijst!$A$11:$M$177,8,FALSE)="","",VLOOKUP($C14,invullijst!$A$11:$M$177,8,FALSE)) -> 81 | J14: =IF(VLOOKUP($C14,invullijst!$A$11:$M$177,9,FALSE)="","",VLOOKUP($C14,invullijst!$A$11:$M$177,9,FALSE)) -> 83 | K14: =IF(VLOOKUP($C14,invullijst!$A$11:$M$177,10,FALSE)="","",VLOOKUP($C14,invullijst!$A$11:$M$177,10,FALSE)) -> 84 | L14: 331 | M14: =IF(VLOOKUP($C14,invullijst!$A$11:$M$177,11,FALSE)="","",VLOOKUP($C14,invullijst!$A$11:$M$177,11,FALSE)) -> 42
B15: 11 | C15: 408 | D15: =IF(VLOOKUP($C15,invullijst!$A$11:$M$177,4,FALSE)="","",VLOOKUP($C15,invullijst!$A$11:$M$177,4,FALSE)) -> vr | E15: =IF(VLOOKUP($C15,invullijst!$A$11:$M$177,2,FALSE)="","",VLOOKUP($C15,invullijst!$A$11:$M$177,2,FALSE)) -> Rudy van Falier | F15: =IF(VLOOKUP($C15,invullijst!$A$11:$M$177,3,FALSE)="","",VLOOKUP($C15,invullijst!$A$11:$M$177,3,FALSE)) -> Haarsteeg | G15: =IF(VLOOKUP(C15,invullijst!$A$11:$M$177,6,FALSE)="","",VLOOKUP(C15,invullijst!$A$11:$M$177,6,FALSE)) -> 86 | H15: =IF(VLOOKUP($C15,invullijst!$A$11:$M$177,7,FALSE)="","",VLOOKUP($C15,invullijst!$A$11:$M$177,7,FALSE)) -> 79 | I15: =IF(VLOOKUP($C15,invullijst!$A$11:$M$177,8,FALSE)="","",VLOOKUP($C15,invullijst!$A$11:$M$177,8,FALSE)) ->  | J15: =IF(VLOOKUP($C15,invullijst!$A$11:$M$177,9,FALSE)="","",VLOOKUP($C15,invullijst!$A$11:$M$177,9,FALSE)) -> 80 | K15: =IF(VLOOKUP($C15,invullijst!$A$11:$M$177,10,FALSE)="","",VLOOKUP($C15,invullijst!$A$11:$M$177,10,FALSE)) -> 85 | L15: 330 | M15: =IF(VLOOKUP($C15,invullijst!$A$11:$M$177,11,FALSE)="","",VLOOKUP($C15,invullijst!$A$11:$M$177,11,FALSE)) -> 43
B16: 12 | C16: 406 | D16: =IF(VLOOKUP($C16,invullijst!$A$11:$M$177,4,FALSE)="","",VLOOKUP($C16,invullijst!$A$11:$M$177,4,FALSE)) -> vr | E16: =IF(VLOOKUP($C16,invullijst!$A$11:$M$177,2,FALSE)="","",VLOOKUP($C16,invullijst!$A$11:$M$177,2,FALSE)) -> Jeroen van Oss | F16: =IF(VLOOKUP($C16,invullijst!$A$11:$M$177,3,FALSE)="","",VLOOKUP($C16,invullijst!$A$11:$M$177,3,FALSE)) -> Haarsteeg | G16: =IF(VLOOKUP(C16,invullijst!$A$11:$M$177,6,FALSE)="","",VLOOKUP(C16,invullijst!$A$11:$M$177,6,FALSE)) -> 82 | H16: =IF(VLOOKUP($C16,invullijst!$A$11:$M$177,7,FALSE)="","",VLOOKUP($C16,invullijst!$A$11:$M$177,7,FALSE)) -> 82 | I16: =IF(VLOOKUP($C16,invullijst!$A$11:$M$177,8,FALSE)="","",VLOOKUP($C16,invullijst!$A$11:$M$177,8,FALSE)) ->  | J16: =IF(VLOOKUP($C16,invullijst!$A$11:$M$177,9,FALSE)="","",VLOOKUP($C16,invullijst!$A$11:$M$177,9,FALSE)) -> 83 | K16: =IF(VLOOKUP($C16,invullijst!$A$11:$M$177,10,FALSE)="","",VLOOKUP($C16,invullijst!$A$11:$M$177,10,FALSE)) -> 83 | L16: 330 | M16: =IF(VLOOKUP($C16,invullijst!$A$11:$M$177,11,FALSE)="","",VLOOKUP($C16,invullijst!$A$11:$M$177,11,FALSE)) -> 40
B17: 13 | C17: 407 | D17: =IF(VLOOKUP($C17,invullijst!$A$11:$M$177,4,FALSE)="","",VLOOKUP($C17,invullijst!$A$11:$M$177,4,FALSE)) -> vr | E17: =IF(VLOOKUP($C17,invullijst!$A$11:$M$177,2,FALSE)="","",VLOOKUP($C17,invullijst!$A$11:$M$177,2,FALSE)) -> Justin van Son | F17: =IF(VLOOKUP($C17,invullijst!$A$11:$M$177,3,FALSE)="","",VLOOKUP($C17,invullijst!$A$11:$M$177,3,FALSE)) -> Haarsteeg | G17: =IF(VLOOKUP(C17,invullijst!$A$11:$M$177,6,FALSE)="","",VLOOKUP(C17,invullijst!$A$11:$M$177,6,FALSE)) -> 84 | H17: =IF(VLOOKUP($C17,invullijst!$A$11:$M$177,7,FALSE)="","",VLOOKUP($C17,invullijst!$A$11:$M$177,7,FALSE)) -> 85 | I17: =IF(VLOOKUP($C17,invullijst!$A$11:$M$177,8,FALSE)="","",VLOOKUP($C17,invullijst!$A$11:$M$177,8,FALSE)) ->  | J17: =IF(VLOOKUP($C17,invullijst!$A$11:$M$177,9,FALSE)="","",VLOOKUP($C17,invullijst!$A$11:$M$177,9,FALSE)) -> 79 | K17: =IF(VLOOKUP($C17,invullijst!$A$11:$M$177,10,FALSE)="","",VLOOKUP($C17,invullijst!$A$11:$M$177,10,FALSE)) -> 80 | L17: 328 | M17: =IF(VLOOKUP($C17,invullijst!$A$11:$M$177,11,FALSE)="","",VLOOKUP($C17,invullijst!$A$11:$M$177,11,FALSE)) -> 39
B18: 14 | C18: 203 | D18: =IF(VLOOKUP($C18,invullijst!$A$11:$M$177,4,FALSE)="","",VLOOKUP($C18,invullijst!$A$11:$M$177,4,FALSE)) -> vr | E18: =IF(VLOOKUP($C18,invullijst!$A$11:$M$177,2,FALSE)="","",VLOOKUP($C18,invullijst!$A$11:$M$177,2,FALSE)) -> Frank van den Houdt | F18: =IF(VLOOKUP($C18,invullijst!$A$11:$M$177,3,FALSE)="","",VLOOKUP($C18,invullijst!$A$11:$M$177,3,FALSE)) -> Besoijen | G18: =IF(VLOOKUP(C18,invullijst!$A$11:$M$177,6,FALSE)="","",VLOOKUP(C18,invullijst!$A$11:$M$177,6,FALSE)) -> 80 | H18: =IF(VLOOKUP($C18,invullijst!$A$11:$M$177,7,FALSE)="","",VLOOKUP($C18,invullijst!$A$11:$M$177,7,FALSE)) -> 82 | I18: =IF(VLOOKUP($C18,invullijst!$A$11:$M$177,8,FALSE)="","",VLOOKUP($C18,invullijst!$A$11:$M$177,8,FALSE)) -> 81 | J18: =IF(VLOOKUP($C18,invullijst!$A$11:$M$177,9,FALSE)="","",VLOOKUP($C18,invullijst!$A$11:$M$177,9,FALSE)) -> 85 | K18: =IF(VLOOKUP($C18,invullijst!$A$11:$M$177,10,FALSE)="","",VLOOKUP($C18,invullijst!$A$11:$M$177,10,FALSE)) ->  | L18: 328 | M18: =IF(VLOOKUP($C18,invullijst!$A$11:$M$177,11,FALSE)="","",VLOOKUP($C18,invullijst!$A$11:$M$177,11,FALSE)) -> 36
B19: 15 | C19: 204 | D19: =IF(VLOOKUP($C19,invullijst!$A$11:$M$177,4,FALSE)="","",VLOOKUP($C19,invullijst!$A$11:$M$177,4,FALSE)) -> vr | E19: =IF(VLOOKUP($C19,invullijst!$A$11:$M$177,2,FALSE)="","",VLOOKUP($C19,invullijst!$A$11:$M$177,2,FALSE)) -> Harry de Louw | F19: =IF(VLOOKUP($C19,invullijst!$A$11:$M$177,3,FALSE)="","",VLOOKUP($C19,invullijst!$A$11:$M$177,3,FALSE)) -> Besoijen | G19: =IF(VLOOKUP(C19,invullijst!$A$11:$M$177,6,FALSE)="","",VLOOKUP(C19,invullijst!$A$11:$M$177,6,FALSE)) -> 80 | H19: =IF(VLOOKUP($C19,invullijst!$A$11:$M$177,7,FALSE)="","",VLOOKUP($C19,invullijst!$A$11:$M$177,7,FALSE)) -> 81 | I19: =IF(VLOOKUP($C19,invullijst!$A$11:$M$177,8,FALSE)="","",VLOOKUP($C19,invullijst!$A$11:$M$177,8,FALSE)) -> 85 | J19: =IF(VLOOKUP($C19,invullijst!$A$11:$M$177,9,FALSE)="","",VLOOKUP($C19,invullijst!$A$11:$M$177,9,FALSE)) -> 80 | K19: =IF(VLOOKUP($C19,invullijst!$A$11:$M$177,10,FALSE)="","",VLOOKUP($C19,invullijst!$A$11:$M$177,10,FALSE)) ->  | L19: 326 | M19: =IF(VLOOKUP($C19,invullijst!$A$11:$M$177,11,FALSE)="","",VLOOKUP($C19,invullijst!$A$11:$M$177,11,FALSE)) -> 35
B20: 16 | C20: 209 | D20: =IF(VLOOKUP($C20,invullijst!$A$11:$M$177,4,FALSE)="","",VLOOKUP($C20,invullijst!$A$11:$M$177,4,FALSE)) -> vr | E20: =IF(VLOOKUP($C20,invullijst!$A$11:$M$177,2,FALSE)="","",VLOOKUP($C20,invullijst!$A$11:$M$177,2,FALSE)) -> René van Kuijk | F20: =IF(VLOOKUP($C20,invullijst!$A$11:$M$177,3,FALSE)="","",VLOOKUP($C20,invullijst!$A$11:$M$177,3,FALSE)) -> Besoijen | G20: =IF(VLOOKUP(C20,invullijst!$A$11:$M$177,6,FALSE)="","",VLOOKUP(C20,invullijst!$A$11:$M$177,6,FALSE)) -> 76 | H20: =IF(VLOOKUP($C20,invullijst!$A$11:$M$177,7,FALSE)="","",VLOOKUP($C20,invullijst!$A$11:$M$177,7,FALSE)) -> 80 | I20: =IF(VLOOKUP($C20,invullijst!$A$11:$M$177,8,FALSE)="","",VLOOKUP($C20,invullijst!$A$11:$M$177,8,FALSE)) -> 87 | J20: =IF(VLOOKUP($C20,invullijst!$A$11:$M$177,9,FALSE)="","",VLOOKUP($C20,invullijst!$A$11:$M$177,9,FALSE)) -> 82 | K20: =IF(VLOOKUP($C20,invullijst!$A$11:$M$177,10,FALSE)="","",VLOOKUP($C20,invullijst!$A$11:$M$177,10,FALSE)) ->  | L20: 325 | M20: =IF(VLOOKUP($C20,invullijst!$A$11:$M$177,11,FALSE)="","",VLOOKUP($C20,invullijst!$A$11:$M$177,11,FALSE)) -> 42
B21: 17 | C21: 205 | D21: =IF(VLOOKUP($C21,invullijst!$A$11:$M$177,4,FALSE)="","",VLOOKUP($C21,invullijst!$A$11:$M$177,4,FALSE)) -> vr | E21: =IF(VLOOKUP($C21,invullijst!$A$11:$M$177,2,FALSE)="","",VLOOKUP($C21,invullijst!$A$11:$M$177,2,FALSE)) -> Jos v/d Snepscheut | F21: =IF(VLOOKUP($C21,invullijst!$A$11:$M$177,3,FALSE)="","",VLOOKUP($C21,invullijst!$A$11:$M$177,3,FALSE)) -> Besoijen | G21: =IF(VLOOKUP(C21,invullijst!$A$11:$M$177,6,FALSE)="","",VLOOKUP(C21,invullijst!$A$11:$M$177,6,FALSE)) -> 79 | H21: =IF(VLOOKUP($C21,invullijst!$A$11:$M$177,7,FALSE)="","",VLOOKUP($C21,invullijst!$A$11:$M$177,7,FALSE)) -> 83 | I21: =IF(VLOOKUP($C21,invullijst!$A$11:$M$177,8,FALSE)="","",VLOOKUP($C21,invullijst!$A$11:$M$177,8,FALSE)) -> 79 | J21: =IF(VLOOKUP($C21,invullijst!$A$11:$M$177,9,FALSE)="","",VLOOKUP($C21,invullijst!$A$11:$M$177,9,FALSE)) -> 82 | K21: =IF(VLOOKUP($C21,invullijst!$A$11:$M$177,10,FALSE)="","",VLOOKUP($C21,invullijst!$A$11:$M$177,10,FALSE)) ->  | L21: 323 | M21: =IF(VLOOKUP($C21,invullijst!$A$11:$M$177,11,FALSE)="","",VLOOKUP($C21,invullijst!$A$11:$M$177,11,FALSE)) -> 40
B22: 18 | C22: 508 | D22: =IF(VLOOKUP($C22,invullijst!$A$11:$M$177,4,FALSE)="","",VLOOKUP($C22,invullijst!$A$11:$M$177,4,FALSE)) -> vr | E22: =IF(VLOOKUP($C22,invullijst!$A$11:$M$177,2,FALSE)="","",VLOOKUP($C22,invullijst!$A$11:$M$177,2,FALSE)) -> Rowan Dobbelsteen | F22: =IF(VLOOKUP($C22,invullijst!$A$11:$M$177,3,FALSE)="","",VLOOKUP($C22,invullijst!$A$11:$M$177,3,FALSE)) -> Kaatsheuvel | G22: =IF(VLOOKUP(C22,invullijst!$A$11:$M$177,6,FALSE)="","",VLOOKUP(C22,invullijst!$A$11:$M$177,6,FALSE)) -> 80 | H22: =IF(VLOOKUP($C22,invullijst!$A$11:$M$177,7,FALSE)="","",VLOOKUP($C22,invullijst!$A$11:$M$177,7,FALSE)) -> 79 | I22: =IF(VLOOKUP($C22,invullijst!$A$11:$M$177,8,FALSE)="","",VLOOKUP($C22,invullijst!$A$11:$M$177,8,FALSE)) -> 83 | J22: =IF(VLOOKUP($C22,invullijst!$A$11:$M$177,9,FALSE)="","",VLOOKUP($C22,invullijst!$A$11:$M$177,9,FALSE)) ->  | K22: =IF(VLOOKUP($C22,invullijst!$A$11:$M$177,10,FALSE)="","",VLOOKUP($C22,invullijst!$A$11:$M$177,10,FALSE)) -> 80 | L22: 322 | M22: =IF(VLOOKUP($C22,invullijst!$A$11:$M$177,11,FALSE)="","",VLOOKUP($C22,invullijst!$A$11:$M$177,11,FALSE)) -> 39
A23: B | B23: 1 | C23: 215 | D23: =IF(VLOOKUP($C23,invullijst!$A$11:$M$177,4,FALSE)="","",VLOOKUP($C23,invullijst!$A$11:$M$177,4,FALSE)) -> vr | E23: =IF(VLOOKUP($C23,invullijst!$A$11:$M$177,2,FALSE)="","",VLOOKUP($C23,invullijst!$A$11:$M$177,2,FALSE)) -> Pieter Laghuwitz | F23: =IF(VLOOKUP($C23,invullijst!$A$11:$M$177,3,FALSE)="","",VLOOKUP($C23,invullijst!$A$11:$M$177,3,FALSE)) -> Besoijen | G23: =IF(VLOOKUP(C23,invullijst!$A$11:$M$177,6,FALSE)="","",VLOOKUP(C23,invullijst!$A$11:$M$177,6,FALSE)) -> 79 | H23: =IF(VLOOKUP($C23,invullijst!$A$11:$M$177,7,FALSE)="","",VLOOKUP($C23,invullijst!$A$11:$M$177,7,FALSE)) -> 74 | I23: =IF(VLOOKUP($C23,invullijst!$A$11:$M$177,8,FALSE)="","",VLOOKUP($C23,invullijst!$A$11:$M$177,8,FALSE)) -> 86 | J23: =IF(VLOOKUP($C23,invullijst!$A$11:$M$177,9,FALSE)="","",VLOOKUP($C23,invullijst!$A$11:$M$177,9,FALSE)) -> 83 | K23: =IF(VLOOKUP($C23,invullijst!$A$11:$M$177,10,FALSE)="","",VLOOKUP($C23,invullijst!$A$11:$M$177,10,FALSE)) ->  | L23: 322 | M23: =IF(VLOOKUP($C23,invullijst!$A$11:$M$177,11,FALSE)="","",VLOOKUP($C23,invullijst!$A$11:$M$177,11,FALSE)) -> 38
B24: 2 | C24: 506 | D24: =IF(VLOOKUP($C24,invullijst!$A$11:$M$177,4,FALSE)="","",VLOOKUP($C24,invullijst!$A$11:$M$177,4,FALSE)) -> vr | E24: =IF(VLOOKUP($C24,invullijst!$A$11:$M$177,2,FALSE)="","",VLOOKUP($C24,invullijst!$A$11:$M$177,2,FALSE)) -> Maikel Monden | F24: =IF(VLOOKUP($C24,invullijst!$A$11:$M$177,3,FALSE)="","",VLOOKUP($C24,invullijst!$A$11:$M$177,3,FALSE)) -> Kaatsheuvel | G24: =IF(VLOOKUP(C24,invullijst!$A$11:$M$177,6,FALSE)="","",VLOOKUP(C24,invullijst!$A$11:$M$177,6,FALSE)) -> 84 | H24: =IF(VLOOKUP($C24,invullijst!$A$11:$M$177,7,FALSE)="","",VLOOKUP($C24,invullijst!$A$11:$M$177,7,FALSE)) -> 85 | I24: =IF(VLOOKUP($C24,invullijst!$A$11:$M$177,8,FALSE)="","",VLOOKUP($C24,invullijst!$A$11:$M$177,8,FALSE)) -> 80 | J24: =IF(VLOOKUP($C24,invullijst!$A$11:$M$177,9,FALSE)="","",VLOOKUP($C24,invullijst!$A$11:$M$177,9,FALSE)) ->  | K24: =IF(VLOOKUP($C24,invullijst!$A$11:$M$177,10,FALSE)="","",VLOOKUP($C24,invullijst!$A$11:$M$177,10,FALSE)) -> 71 | L24: 320 | M24: =IF(VLOOKUP($C24,invullijst!$A$11:$M$177,11,FALSE)="","",VLOOKUP($C24,invullijst!$A$11:$M$177,11,FALSE)) -> 41
B25: 3 | C25: 108 | D25: =IF(VLOOKUP($C25,invullijst!$A$11:$M$177,4,FALSE)="","",VLOOKUP($C25,invullijst!$A$11:$M$177,4,FALSE)) -> vr | E25: =IF(VLOOKUP($C25,invullijst!$A$11:$M$177,2,FALSE)="","",VLOOKUP($C25,invullijst!$A$11:$M$177,2,FALSE)) -> Bram Pullens | F25: =IF(VLOOKUP($C25,invullijst!$A$11:$M$177,3,FALSE)="","",VLOOKUP($C25,invullijst!$A$11:$M$177,3,FALSE)) -> Baardwijk | G25: =IF(VLOOKUP(C25,invullijst!$A$11:$M$177,6,FALSE)="","",VLOOKUP(C25,invullijst!$A$11:$M$177,6,FALSE)) ->  | H25: =IF(VLOOKUP($C25,invullijst!$A$11:$M$177,7,FALSE)="","",VLOOKUP($C25,invullijst!$A$11:$M$177,7,FALSE)) -> 81 | I25: =IF(VLOOKUP($C25,invullijst!$A$11:$M$177,8,FALSE)="","",VLOOKUP($C25,invullijst!$A$11:$M$177,8,FALSE)) -> 87 | J25: =IF(VLOOKUP($C25,invullijst!$A$11:$M$177,9,FALSE)="","",VLOOKUP($C25,invullijst!$A$11:$M$177,9,FALSE)) -> 76 | K25: =IF(VLOOKUP($C25,invullijst!$A$11:$M$177,10,FALSE)="","",VLOOKUP($C25,invullijst!$A$11:$M$177,10,FALSE)) -> 75 | L25: 319 | M25: =IF(VLOOKUP($C25,invullijst!$A$11:$M$177,11,FALSE)="","",VLOOKUP($C25,invullijst!$A$11:$M$177,11,FALSE)) -> 34
B26: 4 | C26: 208 | D26: =IF(VLOOKUP($C26,invullijst!$A$11:$M$177,4,FALSE)="","",VLOOKUP($C26,invullijst!$A$11:$M$177,4,FALSE)) -> vr | E26: =IF(VLOOKUP($C26,invullijst!$A$11:$M$177,2,FALSE)="","",VLOOKUP($C26,invullijst!$A$11:$M$177,2,FALSE)) -> Erin van Hulten | F26: =IF(VLOOKUP($C26,invullijst!$A$11:$M$177,3,FALSE)="","",VLOOKUP($C26,invullijst!$A$11:$M$177,3,FALSE)) -> Besoijen | G26: =IF(VLOOKUP(C26,invullijst!$A$11:$M$177,6,FALSE)="","",VLOOKUP(C26,invullijst!$A$11:$M$177,6,FALSE)) -> 78 | H26: =IF(VLOOKUP($C26,invullijst!$A$11:$M$177,7,FALSE)="","",VLOOKUP($C26,invullijst!$A$11:$M$177,7,FALSE)) -> 80 | I26: =IF(VLOOKUP($C26,invullijst!$A$11:$M$177,8,FALSE)="","",VLOOKUP($C26,invullijst!$A$11:$M$177,8,FALSE)) -> 79 | J26: =IF(VLOOKUP($C26,invullijst!$A$11:$M$177,9,FALSE)="","",VLOOKUP($C26,invullijst!$A$11:$M$177,9,FALSE)) -> 81 | K26: =IF(VLOOKUP($C26,invullijst!$A$11:$M$177,10,FALSE)="","",VLOOKUP($C26,invullijst!$A$11:$M$177,10,FALSE)) ->  | L26: 318 | M26: =IF(VLOOKUP($C26,invullijst!$A$11:$M$177,11,FALSE)="","",VLOOKUP($C26,invullijst!$A$11:$M$177,11,FALSE)) -> 39
B27: 5 | C27: 402 | D27: =IF(VLOOKUP($C27,invullijst!$A$11:$M$177,4,FALSE)="","",VLOOKUP($C27,invullijst!$A$11:$M$177,4,FALSE)) -> vr | E27: =IF(VLOOKUP($C27,invullijst!$A$11:$M$177,2,FALSE)="","",VLOOKUP($C27,invullijst!$A$11:$M$177,2,FALSE)) -> Daniëlle v/d Lee | F27: =IF(VLOOKUP($C27,invullijst!$A$11:$M$177,3,FALSE)="","",VLOOKUP($C27,invullijst!$A$11:$M$177,3,FALSE)) -> Haarsteeg | G27: =IF(VLOOKUP(C27,invullijst!$A$11:$M$177,6,FALSE)="","",VLOOKUP(C27,invullijst!$A$11:$M$177,6,FALSE)) -> 80 | H27: =IF(VLOOKUP($C27,invullijst!$A$11:$M$177,7,FALSE)="","",VLOOKUP($C27,invullijst!$A$11:$M$177,7,FALSE)) -> 79 | I27: =IF(VLOOKUP($C27,invullijst!$A$11:$M$177,8,FALSE)="","",VLOOKUP($C27,invullijst!$A$11:$M$177,8,FALSE)) ->  | J27: =IF(VLOOKUP($C27,invullijst!$A$11:$M$177,9,FALSE)="","",VLOOKUP($C27,invullijst!$A$11:$M$177,9,FALSE)) -> 75 | K27: =IF(VLOOKUP($C27,invullijst!$A$11:$M$177,10,FALSE)="","",VLOOKUP($C27,invullijst!$A$11:$M$177,10,FALSE)) -> 83 | L27: 317 | M27: =IF(VLOOKUP($C27,invullijst!$A$11:$M$177,11,FALSE)="","",VLOOKUP($C27,invullijst!$A$11:$M$177,11,FALSE)) -> 40
B28: 6 | C28: 216 | D28: =IF(VLOOKUP($C28,invullijst!$A$11:$M$177,4,FALSE)="","",VLOOKUP($C28,invullijst!$A$11:$M$177,4,FALSE)) -> vr | E28: =IF(VLOOKUP($C28,invullijst!$A$11:$M$177,2,FALSE)="","",VLOOKUP($C28,invullijst!$A$11:$M$177,2,FALSE)) -> Hans Laghuwitz | F28: =IF(VLOOKUP($C28,invullijst!$A$11:$M$177,3,FALSE)="","",VLOOKUP($C28,invullijst!$A$11:$M$177,3,FALSE)) -> Besoijen | G28: =IF(VLOOKUP(C28,invullijst!$A$11:$M$177,6,FALSE)="","",VLOOKUP(C28,invullijst!$A$11:$M$177,6,FALSE)) -> 67 | H28: =IF(VLOOKUP($C28,invullijst!$A$11:$M$177,7,FALSE)="","",VLOOKUP($C28,invullijst!$A$11:$M$177,7,FALSE)) -> 74 | I28: =IF(VLOOKUP($C28,invullijst!$A$11:$M$177,8,FALSE)="","",VLOOKUP($C28,invullijst!$A$11:$M$177,8,FALSE)) -> 82 | J28: =IF(VLOOKUP($C28,invullijst!$A$11:$M$177,9,FALSE)="","",VLOOKUP($C28,invullijst!$A$11:$M$177,9,FALSE)) -> 81 | K28: =IF(VLOOKUP($C28,invullijst!$A$11:$M$177,10,FALSE)="","",VLOOKUP($C28,invullijst!$A$11:$M$177,10,FALSE)) ->  | L28: 304 | M28: =IF(VLOOKUP($C28,invullijst!$A$11:$M$177,11,FALSE)="","",VLOOKUP($C28,invullijst!$A$11:$M$177,11,FALSE)) -> 32
B29: 7 | C29: 217 | D29: =IF(VLOOKUP($C29,invullijst!$A$11:$M$177,4,FALSE)="","",VLOOKUP($C29,invullijst!$A$11:$M$177,4,FALSE)) -> vr | E29: =IF(VLOOKUP($C29,invullijst!$A$11:$M$177,2,FALSE)="","",VLOOKUP($C29,invullijst!$A$11:$M$177,2,FALSE)) -> Jānis Jākobsons | F29: =IF(VLOOKUP($C29,invullijst!$A$11:$M$177,3,FALSE)="","",VLOOKUP($C29,invullijst!$A$11:$M$177,3,FALSE)) -> Besoijen | G29: =IF(VLOOKUP(C29,invullijst!$A$11:$M$177,6,FALSE)="","",VLOOKUP(C29,invullijst!$A$11:$M$177,6,FALSE)) -> 65 | H29: =IF(VLOOKUP($C29,invullijst!$A$11:$M$177,7,FALSE)="","",VLOOKUP($C29,invullijst!$A$11:$M$177,7,FALSE)) -> 72 | I29: =IF(VLOOKUP($C29,invullijst!$A$11:$M$177,8,FALSE)="","",VLOOKUP($C29,invullijst!$A$11:$M$177,8,FALSE)) -> 81 | J29: =IF(VLOOKUP($C29,invullijst!$A$11:$M$177,9,FALSE)="","",VLOOKUP($C29,invullijst!$A$11:$M$177,9,FALSE)) -> 79 | K29: =IF(VLOOKUP($C29,invullijst!$A$11:$M$177,10,FALSE)="","",VLOOKUP($C29,invullijst!$A$11:$M$177,10,FALSE)) ->  | L29: 297 | M29: =IF(VLOOKUP($C29,invullijst!$A$11:$M$177,11,FALSE)="","",VLOOKUP($C29,invullijst!$A$11:$M$177,11,FALSE)) -> 40
B30: 8 | C30: 512 | D30: =IF(VLOOKUP($C30,invullijst!$A$11:$M$177,4,FALSE)="","",VLOOKUP($C30,invullijst!$A$11:$M$177,4,FALSE)) -> vr | E30: =IF(VLOOKUP($C30,invullijst!$A$11:$M$177,2,FALSE)="","",VLOOKUP($C30,invullijst!$A$11:$M$177,2,FALSE)) -> Hans Bergakker | F30: =IF(VLOOKUP($C30,invullijst!$A$11:$M$177,3,FALSE)="","",VLOOKUP($C30,invullijst!$A$11:$M$177,3,FALSE)) -> Kaatsheuvel | G30: =IF(VLOOKUP(C30,invullijst!$A$11:$M$177,6,FALSE)="","",VLOOKUP(C30,invullijst!$A$11:$M$177,6,FALSE)) -> 81 | H30: =IF(VLOOKUP($C30,invullijst!$A$11:$M$177,7,FALSE)="","",VLOOKUP($C30,invullijst!$A$11:$M$177,7,FALSE)) -> 71 | I30: =IF(VLOOKUP($C30,invullijst!$A$11:$M$177,8,FALSE)="","",VLOOKUP($C30,invullijst!$A$11:$M$177,8,FALSE)) -> 71 | J30: =IF(VLOOKUP($C30,invullijst!$A$11:$M$177,9,FALSE)="","",VLOOKUP($C30,invullijst!$A$11:$M$177,9,FALSE)) ->  | K30: =IF(VLOOKUP($C30,invullijst!$A$11:$M$177,10,FALSE)="","",VLOOKUP($C30,invullijst!$A$11:$M$177,10,FALSE)) -> 69 | L30: 292 | M30: =IF(VLOOKUP($C30,invullijst!$A$11:$M$177,11,FALSE)="","",VLOOKUP($C30,invullijst!$A$11:$M$177,11,FALSE)) -> 38
B31: 9 | C31: 507 | D31: =IF(VLOOKUP($C31,invullijst!$A$11:$M$177,4,FALSE)="","",VLOOKUP($C31,invullijst!$A$11:$M$177,4,FALSE)) -> vr | E31: =IF(VLOOKUP($C31,invullijst!$A$11:$M$177,2,FALSE)="","",VLOOKUP($C31,invullijst!$A$11:$M$177,2,FALSE)) -> Michael Blaauwbroek | F31: =IF(VLOOKUP($C31,invullijst!$A$11:$M$177,3,FALSE)="","",VLOOKUP($C31,invullijst!$A$11:$M$177,3,FALSE)) -> Kaatsheuvel | G31: =IF(VLOOKUP(C31,invullijst!$A$11:$M$177,6,FALSE)="","",VLOOKUP(C31,invullijst!$A$11:$M$177,6,FALSE)) -> 70 | H31: =IF(VLOOKUP($C31,invullijst!$A$11:$M$177,7,FALSE)="","",VLOOKUP($C31,invullijst!$A$11:$M$177,7,FALSE)) -> 70 | I31: =IF(VLOOKUP($C31,invullijst!$A$11:$M$177,8,FALSE)="","",VLOOKUP($C31,invullijst!$A$11:$M$177,8,FALSE)) -> 77 | J31: =IF(VLOOKUP($C31,invullijst!$A$11:$M$177,9,FALSE)="","",VLOOKUP($C31,invullijst!$A$11:$M$177,9,FALSE)) ->  | K31: =IF(VLOOKUP($C31,invullijst!$A$11:$M$177,10,FALSE)="","",VLOOKUP($C31,invullijst!$A$11:$M$177,10,FALSE)) -> 70 | L31: 287 | M31: =IF(VLOOKUP($C31,invullijst!$A$11:$M$177,11,FALSE)="","",VLOOKUP($C31,invullijst!$A$11:$M$177,11,FALSE)) -> 42
B32: 10 | C32: 304 | D32: =IF(VLOOKUP($C32,invullijst!$A$11:$M$177,4,FALSE)="","",VLOOKUP($C32,invullijst!$A$11:$M$177,4,FALSE)) -> vr | E32: =IF(VLOOKUP($C32,invullijst!$A$11:$M$177,2,FALSE)="","",VLOOKUP($C32,invullijst!$A$11:$M$177,2,FALSE)) -> Henk Bruurmijn | F32: =IF(VLOOKUP($C32,invullijst!$A$11:$M$177,3,FALSE)="","",VLOOKUP($C32,invullijst!$A$11:$M$177,3,FALSE)) -> Elshout | G32: =IF(VLOOKUP(C32,invullijst!$A$11:$M$177,6,FALSE)="","",VLOOKUP(C32,invullijst!$A$11:$M$177,6,FALSE)) -> 71 | H32: =IF(VLOOKUP($C32,invullijst!$A$11:$M$177,7,FALSE)="","",VLOOKUP($C32,invullijst!$A$11:$M$177,7,FALSE)) ->  | I32: =IF(VLOOKUP($C32,invullijst!$A$11:$M$177,8,FALSE)="","",VLOOKUP($C32,invullijst!$A$11:$M$177,8,FALSE)) -> 78 | J32: =IF(VLOOKUP($C32,invullijst!$A$11:$M$177,9,FALSE)="","",VLOOKUP($C32,invullijst!$A$11:$M$177,9,FALSE)) -> 68 | K32: =IF(VLOOKUP($C32,invullijst!$A$11:$M$177,10,FALSE)="","",VLOOKUP($C32,invullijst!$A$11:$M$177,10,FALSE)) -> 68 | L32: 285 | M32: =IF(VLOOKUP($C32,invullijst!$A$11:$M$177,11,FALSE)="","",VLOOKUP($C32,invullijst!$A$11:$M$177,11,FALSE)) -> 40
B33: 11 | C33: 502 | D33: =IF(VLOOKUP($C33,invullijst!$A$11:$M$177,4,FALSE)="","",VLOOKUP($C33,invullijst!$A$11:$M$177,4,FALSE)) -> vr | E33: =IF(VLOOKUP($C33,invullijst!$A$11:$M$177,2,FALSE)="","",VLOOKUP($C33,invullijst!$A$11:$M$177,2,FALSE)) -> Diny Vos | F33: =IF(VLOOKUP($C33,invullijst!$A$11:$M$177,3,FALSE)="","",VLOOKUP($C33,invullijst!$A$11:$M$177,3,FALSE)) -> Kaatsheuvel | G33: =IF(VLOOKUP(C33,invullijst!$A$11:$M$177,6,FALSE)="","",VLOOKUP(C33,invullijst!$A$11:$M$177,6,FALSE)) -> 67 | H33: =IF(VLOOKUP($C33,invullijst!$A$11:$M$177,7,FALSE)="","",VLOOKUP($C33,invullijst!$A$11:$M$177,7,FALSE)) -> 66 | I33: =IF(VLOOKUP($C33,invullijst!$A$11:$M$177,8,FALSE)="","",VLOOKUP($C33,invullijst!$A$11:$M$177,8,FALSE)) -> 81 | J33: =IF(VLOOKUP($C33,invullijst!$A$11:$M$177,9,FALSE)="","",VLOOKUP($C33,invullijst!$A$11:$M$177,9,FALSE)) ->  | K33: =IF(VLOOKUP($C33,invullijst!$A$11:$M$177,10,FALSE)="","",VLOOKUP($C33,invullijst!$A$11:$M$177,10,FALSE)) -> 71 | L33: 285 | M33: =IF(VLOOKUP($C33,invullijst!$A$11:$M$177,11,FALSE)="","",VLOOKUP($C33,invullijst!$A$11:$M$177,11,FALSE)) -> 34
B34: 12 | C34: 213 | D34: =IF(VLOOKUP($C34,invullijst!$A$11:$M$177,4,FALSE)="","",VLOOKUP($C34,invullijst!$A$11:$M$177,4,FALSE)) -> vr | E34: =IF(VLOOKUP($C34,invullijst!$A$11:$M$177,2,FALSE)="","",VLOOKUP($C34,invullijst!$A$11:$M$177,2,FALSE)) -> Roland van Delft | F34: =IF(VLOOKUP($C34,invullijst!$A$11:$M$177,3,FALSE)="","",VLOOKUP($C34,invullijst!$A$11:$M$177,3,FALSE)) -> Besoijen | G34: =IF(VLOOKUP(C34,invullijst!$A$11:$M$177,6,FALSE)="","",VLOOKUP(C34,invullijst!$A$11:$M$177,6,FALSE)) -> 69 | H34: =IF(VLOOKUP($C34,invullijst!$A$11:$M$177,7,FALSE)="","",VLOOKUP($C34,invullijst!$A$11:$M$177,7,FALSE)) -> 59 | I34: =IF(VLOOKUP($C34,invullijst!$A$11:$M$177,8,FALSE)="","",VLOOKUP($C34,invullijst!$A$11:$M$177,8,FALSE)) -> 77 | J34: =IF(VLOOKUP($C34,invullijst!$A$11:$M$177,9,FALSE)="","",VLOOKUP($C34,invullijst!$A$11:$M$177,9,FALSE)) -> 77 | K34: =IF(VLOOKUP($C34,invullijst!$A$11:$M$177,10,FALSE)="","",VLOOKUP($C34,invullijst!$A$11:$M$177,10,FALSE)) ->  | L34: 282 | M34: =IF(VLOOKUP($C34,invullijst!$A$11:$M$177,11,FALSE)="","",VLOOKUP($C34,invullijst!$A$11:$M$177,11,FALSE)) -> 35
B35: 13 | C35: 210 | D35: =IF(VLOOKUP($C35,invullijst!$A$11:$M$177,4,FALSE)="","",VLOOKUP($C35,invullijst!$A$11:$M$177,4,FALSE)) -> vr | E35: =IF(VLOOKUP($C35,invullijst!$A$11:$M$177,2,FALSE)="","",VLOOKUP($C35,invullijst!$A$11:$M$177,2,FALSE)) -> Nick de Vaan | F35: =IF(VLOOKUP($C35,invullijst!$A$11:$M$177,3,FALSE)="","",VLOOKUP($C35,invullijst!$A$11:$M$177,3,FALSE)) -> Besoijen | G35: =IF(VLOOKUP(C35,invullijst!$A$11:$M$177,6,FALSE)="","",VLOOKUP(C35,invullijst!$A$11:$M$177,6,FALSE)) -> 68 | H35: =IF(VLOOKUP($C35,invullijst!$A$11:$M$177,7,FALSE)="","",VLOOKUP($C35,invullijst!$A$11:$M$177,7,FALSE)) -> 63 | I35: =IF(VLOOKUP($C35,invullijst!$A$11:$M$177,8,FALSE)="","",VLOOKUP($C35,invullijst!$A$11:$M$177,8,FALSE)) -> 74 | J35: =IF(VLOOKUP($C35,invullijst!$A$11:$M$177,9,FALSE)="","",VLOOKUP($C35,invullijst!$A$11:$M$177,9,FALSE)) -> 75 | K35: =IF(VLOOKUP($C35,invullijst!$A$11:$M$177,10,FALSE)="","",VLOOKUP($C35,invullijst!$A$11:$M$177,10,FALSE)) ->  | L35: 280 | M35: =IF(VLOOKUP($C35,invullijst!$A$11:$M$177,11,FALSE)="","",VLOOKUP($C35,invullijst!$A$11:$M$177,11,FALSE)) -> 37
B36: 14 | C36: 102 | D36: =IF(VLOOKUP($C36,invullijst!$A$11:$M$177,4,FALSE)="","",VLOOKUP($C36,invullijst!$A$11:$M$177,4,FALSE)) -> vr | E36: =IF(VLOOKUP($C36,invullijst!$A$11:$M$177,2,FALSE)="","",VLOOKUP($C36,invullijst!$A$11:$M$177,2,FALSE)) -> John de Jong | F36: =IF(VLOOKUP($C36,invullijst!$A$11:$M$177,3,FALSE)="","",VLOOKUP($C36,invullijst!$A$11:$M$177,3,FALSE)) -> Baardwijk | G36: =IF(VLOOKUP(C36,invullijst!$A$11:$M$177,6,FALSE)="","",VLOOKUP(C36,invullijst!$A$11:$M$177,6,FALSE)) ->  | H36: =IF(VLOOKUP($C36,invullijst!$A$11:$M$177,7,FALSE)="","",VLOOKUP($C36,invullijst!$A$11:$M$177,7,FALSE)) -> 74 | I36: =IF(VLOOKUP($C36,invullijst!$A$11:$M$177,8,FALSE)="","",VLOOKUP($C36,invullijst!$A$11:$M$177,8,FALSE)) -> 61 | J36: =IF(VLOOKUP($C36,invullijst!$A$11:$M$177,9,FALSE)="","",VLOOKUP($C36,invullijst!$A$11:$M$177,9,FALSE)) -> 65 | K36: =IF(VLOOKUP($C36,invullijst!$A$11:$M$177,10,FALSE)="","",VLOOKUP($C36,invullijst!$A$11:$M$177,10,FALSE)) -> 77 | L36: 277 | M36: =IF(VLOOKUP($C36,invullijst!$A$11:$M$177,11,FALSE)="","",VLOOKUP($C36,invullijst!$A$11:$M$177,11,FALSE)) -> 37
B37: 15 | C37: 202 | D37: =IF(VLOOKUP($C37,invullijst!$A$11:$M$177,4,FALSE)="","",VLOOKUP($C37,invullijst!$A$11:$M$177,4,FALSE)) -> vr | E37: =IF(VLOOKUP($C37,invullijst!$A$11:$M$177,2,FALSE)="","",VLOOKUP($C37,invullijst!$A$11:$M$177,2,FALSE)) -> Arco van Kuijk | F37: =IF(VLOOKUP($C37,invullijst!$A$11:$M$177,3,FALSE)="","",VLOOKUP($C37,invullijst!$A$11:$M$177,3,FALSE)) -> Besoijen | G37: =IF(VLOOKUP($C37,invullijst!$A$11:$M$177,6,FALSE)="","",VLOOKUP($C37,invullijst!$A$11:$M$177,6,FALSE)) -> 74 | H37: =IF(VLOOKUP($C37,invullijst!$A$11:$M$177,7,FALSE)="","",VLOOKUP($C37,invullijst!$A$11:$M$177,7,FALSE)) -> 68 | I37: =IF(VLOOKUP($C37,invullijst!$A$11:$M$177,8,FALSE)="","",VLOOKUP($C37,invullijst!$A$11:$M$177,8,FALSE)) -> 69 | J37: =IF(VLOOKUP($C37,invullijst!$A$11:$M$177,9,FALSE)="","",VLOOKUP($C37,invullijst!$A$11:$M$177,9,FALSE)) -> 60 | K37: =IF(VLOOKUP($C37,invullijst!$A$11:$M$177,10,FALSE)="","",VLOOKUP($C37,invullijst!$A$11:$M$177,10,FALSE)) ->  | L37: 271 | M37: =IF(VLOOKUP($C37,invullijst!$A$11:$M$177,11,FALSE)="","",VLOOKUP($C37,invullijst!$A$11:$M$177,11,FALSE)) -> 37
B38: 16 | C38: 513 | D38: =IF(VLOOKUP($C38,invullijst!$A$11:$M$177,4,FALSE)="","",VLOOKUP($C38,invullijst!$A$11:$M$177,4,FALSE)) -> vr | E38: =IF(VLOOKUP($C38,invullijst!$A$11:$M$177,2,FALSE)="","",VLOOKUP($C38,invullijst!$A$11:$M$177,2,FALSE)) -> Mark van Delft | F38: =IF(VLOOKUP($C38,invullijst!$A$11:$M$177,3,FALSE)="","",VLOOKUP($C38,invullijst!$A$11:$M$177,3,FALSE)) -> Kaatsheuvel | G38: =IF(VLOOKUP(C38,invullijst!$A$11:$M$177,6,FALSE)="","",VLOOKUP(C38,invullijst!$A$11:$M$177,6,FALSE)) -> 65 | H38: =IF(VLOOKUP($C38,invullijst!$A$11:$M$177,7,FALSE)="","",VLOOKUP($C38,invullijst!$A$11:$M$177,7,FALSE)) -> 79 | I38: =IF(VLOOKUP($C38,invullijst!$A$11:$M$177,8,FALSE)="","",VLOOKUP($C38,invullijst!$A$11:$M$177,8,FALSE)) ->  | J38: =IF(VLOOKUP($C38,invullijst!$A$11:$M$177,9,FALSE)="","",VLOOKUP($C38,invullijst!$A$11:$M$177,9,FALSE)) ->  | K38: =IF(VLOOKUP($C38,invullijst!$A$11:$M$177,10,FALSE)="","",VLOOKUP($C38,invullijst!$A$11:$M$177,10,FALSE)) ->  | L38: 144 | M38: =IF(VLOOKUP($C38,invullijst!$A$11:$M$177,11,FALSE)="","",VLOOKUP($C38,invullijst!$A$11:$M$177,11,FALSE)) -> 
B39: 17 | C39: 103 | D39: =IF(VLOOKUP($C39,invullijst!$A$11:$M$177,4,FALSE)="","",VLOOKUP($C39,invullijst!$A$11:$M$177,4,FALSE)) -> vr | E39: =IF(VLOOKUP($C39,invullijst!$A$11:$M$177,2,FALSE)="","",VLOOKUP($C39,invullijst!$A$11:$M$177,2,FALSE)) -> Norbert van Buul | F39: =IF(VLOOKUP($C39,invullijst!$A$11:$M$177,3,FALSE)="","",VLOOKUP($C39,invullijst!$A$11:$M$177,3,FALSE)) -> Baardwijk | G39: =IF(VLOOKUP(C39,invullijst!$A$11:$M$177,6,FALSE)="","",VLOOKUP(C39,invullijst!$A$11:$M$177,6,FALSE)) ->  | H39: =IF(VLOOKUP($C39,invullijst!$A$11:$M$177,7,FALSE)="","",VLOOKUP($C39,invullijst!$A$11:$M$177,7,FALSE)) -> 64 | I39: =IF(VLOOKUP($C39,invullijst!$A$11:$M$177,8,FALSE)="","",VLOOKUP($C39,invullijst!$A$11:$M$177,8,FALSE)) -> 53 | J39: =IF(VLOOKUP($C39,invullijst!$A$11:$M$177,9,FALSE)="","",VLOOKUP($C39,invullijst!$A$11:$M$177,9,FALSE)) ->  | K39: =IF(VLOOKUP($C39,invullijst!$A$11:$M$177,10,FALSE)="","",VLOOKUP($C39,invullijst!$A$11:$M$177,10,FALSE)) ->  | L39: 117 | M39: =IF(VLOOKUP($C39,invullijst!$A$11:$M$177,11,FALSE)="","",VLOOKUP($C39,invullijst!$A$11:$M$177,11,FALSE)) -> 
B40: 18 | C40: 308 | D40: =IF(VLOOKUP($C40,invullijst!$A$11:$M$177,4,FALSE)="","",VLOOKUP($C40,invullijst!$A$11:$M$177,4,FALSE)) -> vr | E40: =IF(VLOOKUP($C40,invullijst!$A$11:$M$177,2,FALSE)="","",VLOOKUP($C40,invullijst!$A$11:$M$177,2,FALSE)) -> Jan van Esch | F40: =IF(VLOOKUP($C40,invullijst!$A$11:$M$177,3,FALSE)="","",VLOOKUP($C40,invullijst!$A$11:$M$177,3,FALSE)) -> Elshout | G40: =IF(VLOOKUP(C40,invullijst!$A$11:$M$177,6,FALSE)="","",VLOOKUP(C40,invullijst!$A$11:$M$177,6,FALSE)) -> 60 | H40: =IF(VLOOKUP($C40,invullijst!$A$11:$M$177,7,FALSE)="","",VLOOKUP($C40,invullijst!$A$11:$M$177,7,FALSE)) ->  | I40: =IF(VLOOKUP($C40,invullijst!$A$11:$M$177,8,FALSE)="","",VLOOKUP($C40,invullijst!$A$11:$M$177,8,FALSE)) ->  | J40: =IF(VLOOKUP($C40,invullijst!$A$11:$M$177,9,FALSE)="","",VLOOKUP($C40,invullijst!$A$11:$M$177,9,FALSE)) ->  | K40: =IF(VLOOKUP($C40,invullijst!$A$11:$M$177,10,FALSE)="","",VLOOKUP($C40,invullijst!$A$11:$M$177,10,FALSE)) ->  | L40: 60 | M40: =IF(VLOOKUP($C40,invullijst!$A$11:$M$177,11,FALSE)="","",VLOOKUP($C40,invullijst!$A$11:$M$177,11,FALSE)) -> 
D41: =IF(VLOOKUP($C41,invullijst!$A$10:$M$177,4,FALSE)="","",VLOOKUP($C41,invullijst!$A$10:$M$177,4,FALSE)) -> 0 | E41: =IF(VLOOKUP($C41,invullijst!$A$10:$M$177,2,FALSE)="","",VLOOKUP($C41,invullijst!$A$10:$M$177,2,FALSE)) -> 0 | F41: =IF(VLOOKUP($C41,invullijst!$A$10:$M$177,3,FALSE)="","",VLOOKUP($C41,invullijst!$A$10:$M$177,3,FALSE)) -> 0 | G41: =IF(VLOOKUP(C41,invullijst!$A$10:$M$177,6,FALSE)="","",VLOOKUP(C41,invullijst!$A$10:$M$177,6,FALSE)) -> 0 | H41: =IF(VLOOKUP($C41,invullijst!$A$10:$M$177,7,FALSE)="","",VLOOKUP($C41,invullijst!$A$10:$M$177,7,FALSE)) -> 0 | I41: =IF(VLOOKUP($C41,invullijst!$A$10:$M$177,8,FALSE)="","",VLOOKUP($C41,invullijst!$A$10:$M$177,8,FALSE)) -> 0 | J41: =IF(VLOOKUP($C41,invullijst!$A$10:$M$177,9,FALSE)="","",VLOOKUP($C41,invullijst!$A$10:$M$177,9,FALSE)) -> 0 | K41: =IF(VLOOKUP($C41,invullijst!$A$10:$M$177,10,FALSE)="","",VLOOKUP($C41,invullijst!$A$10:$M$177,10,FALSE)) -> 0 | L41: =SUM(G41:K41) -> 0 | M41: =IF(VLOOKUP($C41,invullijst!$A$10:$M$177,11,FALSE)="","",VLOOKUP($C41,invullijst!$A$10:$M$177,11,FALSE)) -> 0
D42: =IF(VLOOKUP($C42,invullijst!$A$10:$M$177,4,FALSE)="","",VLOOKUP($C42,invullijst!$A$10:$M$177,4,FALSE)) -> 0 | E42: =IF(VLOOKUP($C42,invullijst!$A$10:$M$177,2,FALSE)="","",VLOOKUP($C42,invullijst!$A$10:$M$177,2,FALSE)) -> 0 | F42: =IF(VLOOKUP($C42,invullijst!$A$10:$M$177,3,FALSE)="","",VLOOKUP($C42,invullijst!$A$10:$M$177,3,FALSE)) -> 0 | G42: =IF(VLOOKUP(C42,invullijst!$A$10:$M$177,6,FALSE)="","",VLOOKUP(C42,invullijst!$A$10:$M$177,6,FALSE)) -> 0 | H42: =IF(VLOOKUP($C42,invullijst!$A$10:$M$177,7,FALSE)="","",VLOOKUP($C42,invullijst!$A$10:$M$177,7,FALSE)) -> 0 | I42: =IF(VLOOKUP($C42,invullijst!$A$10:$M$177,8,FALSE)="","",VLOOKUP($C42,invullijst!$A$10:$M$177,8,FALSE)) -> 0 | J42: =IF(VLOOKUP($C42,invullijst!$A$10:$M$177,9,FALSE)="","",VLOOKUP($C42,invullijst!$A$10:$M$177,9,FALSE)) -> 0 | K42: =IF(VLOOKUP($C42,invullijst!$A$10:$M$177,10,FALSE)="","",VLOOKUP($C42,invullijst!$A$10:$M$177,10,FALSE)) -> 0 | L42: 0 | M42: =IF(VLOOKUP($C42,invullijst!$A$10:$M$177,11,FALSE)="","",VLOOKUP($C42,invullijst!$A$10:$M$177,11,FALSE)) -> 0
D43: =IF(VLOOKUP($C43,invullijst!$A$10:$M$177,4,FALSE)="","",VLOOKUP($C43,invullijst!$A$10:$M$177,4,FALSE)) -> 0 | E43: =IF(VLOOKUP($C43,invullijst!$A$10:$M$177,2,FALSE)="","",VLOOKUP($C43,invullijst!$A$10:$M$177,2,FALSE)) -> 0 | F43: =IF(VLOOKUP($C43,invullijst!$A$10:$M$177,3,FALSE)="","",VLOOKUP($C43,invullijst!$A$10:$M$177,3,FALSE)) -> 0 | G43: =IF(VLOOKUP(C43,invullijst!$A$10:$M$177,6,FALSE)="","",VLOOKUP(C43,invullijst!$A$10:$M$177,6,FALSE)) -> 0 | H43: =IF(VLOOKUP($C43,invullijst!$A$10:$M$177,7,FALSE)="","",VLOOKUP($C43,invullijst!$A$10:$M$177,7,FALSE)) -> 0 | I43: =IF(VLOOKUP($C43,invullijst!$A$10:$M$177,8,FALSE)="","",VLOOKUP($C43,invullijst!$A$10:$M$177,8,FALSE)) -> 0 | J43: =IF(VLOOKUP($C43,invullijst!$A$10:$M$177,9,FALSE)="","",VLOOKUP($C43,invullijst!$A$10:$M$177,9,FALSE)) -> 0 | K43: =IF(VLOOKUP($C43,invullijst!$A$10:$M$177,10,FALSE)="","",VLOOKUP($C43,invullijst!$A$10:$M$177,10,FALSE)) -> 0 | L43: 0 | M43: =IF(VLOOKUP($C43,invullijst!$A$10:$M$177,11,FALSE)="","",VLOOKUP($C43,invullijst!$A$10:$M$177,11,FALSE)) -> 0
D44: =IF(VLOOKUP($C44,invullijst!$A$10:$M$177,4,FALSE)="","",VLOOKUP($C44,invullijst!$A$10:$M$177,4,FALSE)) -> 0 | E44: =IF(VLOOKUP($C44,invullijst!$A$10:$M$177,2,FALSE)="","",VLOOKUP($C44,invullijst!$A$10:$M$177,2,FALSE)) -> 0 | F44: =IF(VLOOKUP($C44,invullijst!$A$10:$M$177,3,FALSE)="","",VLOOKUP($C44,invullijst!$A$10:$M$177,3,FALSE)) -> 0 | G44: =IF(VLOOKUP(C44,invullijst!$A$10:$M$177,6,FALSE)="","",VLOOKUP(C44,invullijst!$A$10:$M$177,6,FALSE)) -> 0 | H44: =IF(VLOOKUP($C44,invullijst!$A$10:$M$177,7,FALSE)="","",VLOOKUP($C44,invullijst!$A$10:$M$177,7,FALSE)) -> 0 | I44: =IF(VLOOKUP($C44,invullijst!$A$10:$M$177,8,FALSE)="","",VLOOKUP($C44,invullijst!$A$10:$M$177,8,FALSE)) -> 0 | J44: =IF(VLOOKUP($C44,invullijst!$A$10:$M$177,9,FALSE)="","",VLOOKUP($C44,invullijst!$A$10:$M$177,9,FALSE)) -> 0 | K44: =IF(VLOOKUP($C44,invullijst!$A$10:$M$177,10,FALSE)="","",VLOOKUP($C44,invullijst!$A$10:$M$177,10,FALSE)) -> 0 | L44: 0 | M44: =IF(VLOOKUP($C44,invullijst!$A$10:$M$177,11,FALSE)="","",VLOOKUP($C44,invullijst!$A$10:$M$177,11,FALSE)) -> 0
D45: =IF(VLOOKUP($C45,invullijst!$A$10:$M$177,4,FALSE)="","",VLOOKUP($C45,invullijst!$A$10:$M$177,4,FALSE)) -> 0 | E45: =IF(VLOOKUP($C45,invullijst!$A$10:$M$177,2,FALSE)="","",VLOOKUP($C45,invullijst!$A$10:$M$177,2,FALSE)) -> 0 | F45: =IF(VLOOKUP($C45,invullijst!$A$10:$M$177,3,FALSE)="","",VLOOKUP($C45,invullijst!$A$10:$M$177,3,FALSE)) -> 0 | G45: =IF(VLOOKUP(C45,invullijst!$A$10:$M$177,6,FALSE)="","",VLOOKUP(C45,invullijst!$A$10:$M$177,6,FALSE)) -> 0 | H45: =IF(VLOOKUP($C45,invullijst!$A$10:$M$177,7,FALSE)="","",VLOOKUP($C45,invullijst!$A$10:$M$177,7,FALSE)) -> 0 | I45: =IF(VLOOKUP($C45,invullijst!$A$10:$M$177,8,FALSE)="","",VLOOKUP($C45,invullijst!$A$10:$M$177,8,FALSE)) -> 0 | J45: =IF(VLOOKUP($C45,invullijst!$A$10:$M$177,9,FALSE)="","",VLOOKUP($C45,invullijst!$A$10:$M$177,9,FALSE)) -> 0 | K45: =IF(VLOOKUP($C45,invullijst!$A$10:$M$177,10,FALSE)="","",VLOOKUP($C45,invullijst!$A$10:$M$177,10,FALSE)) -> 0 | L45: 0 | M45: =IF(VLOOKUP($C45,invullijst!$A$10:$M$177,11,FALSE)="","",VLOOKUP($C45,invullijst!$A$10:$M$177,11,FALSE)) -> 0
D46: =IF(VLOOKUP($C46,invullijst!$A$10:$M$177,4,FALSE)="","",VLOOKUP($C46,invullijst!$A$10:$M$177,4,FALSE)) -> 0 | E46: =IF(VLOOKUP($C46,invullijst!$A$10:$M$177,2,FALSE)="","",VLOOKUP($C46,invullijst!$A$10:$M$177,2,FALSE)) -> 0 | F46: =IF(VLOOKUP($C46,invullijst!$A$10:$M$177,3,FALSE)="","",VLOOKUP($C46,invullijst!$A$10:$M$177,3,FALSE)) -> 0 | G46: =IF(VLOOKUP(C46,invullijst!$A$10:$M$177,6,FALSE)="","",VLOOKUP(C46,invullijst!$A$10:$M$177,6,FALSE)) -> 0 | H46: =IF(VLOOKUP($C46,invullijst!$A$10:$M$177,7,FALSE)="","",VLOOKUP($C46,invullijst!$A$10:$M$177,7,FALSE)) -> 0 | I46: =IF(VLOOKUP($C46,invullijst!$A$10:$M$177,8,FALSE)="","",VLOOKUP($C46,invullijst!$A$10:$M$177,8,FALSE)) -> 0 | J46: =IF(VLOOKUP($C46,invullijst!$A$10:$M$177,9,FALSE)="","",VLOOKUP($C46,invullijst!$A$10:$M$177,9,FALSE)) -> 0 | K46: =IF(VLOOKUP($C46,invullijst!$A$10:$M$177,10,FALSE)="","",VLOOKUP($C46,invullijst!$A$10:$M$177,10,FALSE)) -> 0 | L46: 0 | M46: =IF(VLOOKUP($C46,invullijst!$A$10:$M$177,11,FALSE)="","",VLOOKUP($C46,invullijst!$A$10:$M$177,11,FALSE)) -> 0
D47: =IF(VLOOKUP($C47,invullijst!$A$10:$M$177,4,FALSE)="","",VLOOKUP($C47,invullijst!$A$10:$M$177,4,FALSE)) -> 0 | E47: =IF(VLOOKUP($C47,invullijst!$A$10:$M$177,2,FALSE)="","",VLOOKUP($C47,invullijst!$A$10:$M$177,2,FALSE)) -> 0 | F47: =IF(VLOOKUP($C47,invullijst!$A$10:$M$177,3,FALSE)="","",VLOOKUP($C47,invullijst!$A$10:$M$177,3,FALSE)) -> 0 | G47: =IF(VLOOKUP(C47,invullijst!$A$10:$M$177,6,FALSE)="","",VLOOKUP(C47,invullijst!$A$10:$M$177,6,FALSE)) -> 0 | H47: =IF(VLOOKUP($C47,invullijst!$A$10:$M$177,7,FALSE)="","",VLOOKUP($C47,invullijst!$A$10:$M$177,7,FALSE)) -> 0 | I47: =IF(VLOOKUP($C47,invullijst!$A$10:$M$177,8,FALSE)="","",VLOOKUP($C47,invullijst!$A$10:$M$177,8,FALSE)) -> 0 | J47: =IF(VLOOKUP($C47,invullijst!$A$10:$M$177,9,FALSE)="","",VLOOKUP($C47,invullijst!$A$10:$M$177,9,FALSE)) -> 0 | K47: =IF(VLOOKUP($C47,invullijst!$A$10:$M$177,10,FALSE)="","",VLOOKUP($C47,invullijst!$A$10:$M$177,10,FALSE)) -> 0 | L47: 0 | M47: =IF(VLOOKUP($C47,invullijst!$A$10:$M$177,11,FALSE)="","",VLOOKUP($C47,invullijst!$A$10:$M$177,11,FALSE)) -> 0
D48: =IF(VLOOKUP($C48,invullijst!$A$10:$M$177,4,FALSE)="","",VLOOKUP($C48,invullijst!$A$10:$M$177,4,FALSE)) -> 0 | E48: =IF(VLOOKUP($C48,invullijst!$A$10:$M$177,2,FALSE)="","",VLOOKUP($C48,invullijst!$A$10:$M$177,2,FALSE)) -> 0 | F48: =IF(VLOOKUP($C48,invullijst!$A$10:$M$177,3,FALSE)="","",VLOOKUP($C48,invullijst!$A$10:$M$177,3,FALSE)) -> 0 | G48: =IF(VLOOKUP(C48,invullijst!$A$10:$M$177,6,FALSE)="","",VLOOKUP(C48,invullijst!$A$10:$M$177,6,FALSE)) -> 0 | H48: =IF(VLOOKUP($C48,invullijst!$A$10:$M$177,7,FALSE)="","",VLOOKUP($C48,invullijst!$A$10:$M$177,7,FALSE)) -> 0 | I48: =IF(VLOOKUP($C48,invullijst!$A$10:$M$177,8,FALSE)="","",VLOOKUP($C48,invullijst!$A$10:$M$177,8,FALSE)) -> 0 | J48: =IF(VLOOKUP($C48,invullijst!$A$10:$M$177,9,FALSE)="","",VLOOKUP($C48,invullijst!$A$10:$M$177,9,FALSE)) -> 0 | K48: =IF(VLOOKUP($C48,invullijst!$A$10:$M$177,10,FALSE)="","",VLOOKUP($C48,invullijst!$A$10:$M$177,10,FALSE)) -> 0 | L48: 0 | M48: =IF(VLOOKUP($C48,invullijst!$A$10:$M$177,11,FALSE)="","",VLOOKUP($C48,invullijst!$A$10:$M$177,11,FALSE)) -> 0
D49: =IF(VLOOKUP($C49,invullijst!$A$10:$M$177,4,FALSE)="","",VLOOKUP($C49,invullijst!$A$10:$M$177,4,FALSE)) -> 0 | E49: =IF(VLOOKUP($C49,invullijst!$A$10:$M$177,2,FALSE)="","",VLOOKUP($C49,invullijst!$A$10:$M$177,2,FALSE)) -> 0 | F49: =IF(VLOOKUP($C49,invullijst!$A$10:$M$177,3,FALSE)="","",VLOOKUP($C49,invullijst!$A$10:$M$177,3,FALSE)) -> 0 | G49: =IF(VLOOKUP(C49,invullijst!$A$10:$M$177,6,FALSE)="","",VLOOKUP(C49,invullijst!$A$10:$M$177,6,FALSE)) -> 0 | H49: =IF(VLOOKUP($C49,invullijst!$A$10:$M$177,7,FALSE)="","",VLOOKUP($C49,invullijst!$A$10:$M$177,7,FALSE)) -> 0 | I49: =IF(VLOOKUP($C49,invullijst!$A$10:$M$177,8,FALSE)="","",VLOOKUP($C49,invullijst!$A$10:$M$177,8,FALSE)) -> 0 | J49: =IF(VLOOKUP($C49,invullijst!$A$10:$M$177,9,FALSE)="","",VLOOKUP($C49,invullijst!$A$10:$M$177,9,FALSE)) -> 0 | K49: =IF(VLOOKUP($C49,invullijst!$A$10:$M$177,10,FALSE)="","",VLOOKUP($C49,invullijst!$A$10:$M$177,10,FALSE)) -> 0 | L49: 0 | M49: =IF(VLOOKUP($C49,invullijst!$A$10:$M$177,11,FALSE)="","",VLOOKUP($C49,invullijst!$A$10:$M$177,11,FALSE)) -> 0
D50: =IF(VLOOKUP($C50,invullijst!$A$10:$M$177,4,FALSE)="","",VLOOKUP($C50,invullijst!$A$10:$M$177,4,FALSE)) -> 0 | E50: =IF(VLOOKUP($C50,invullijst!$A$10:$M$177,2,FALSE)="","",VLOOKUP($C50,invullijst!$A$10:$M$177,2,FALSE)) -> 0 | F50: =IF(VLOOKUP($C50,invullijst!$A$10:$M$177,3,FALSE)="","",VLOOKUP($C50,invullijst!$A$10:$M$177,3,FALSE)) -> 0 | G50: =IF(VLOOKUP(C50,invullijst!$A$10:$M$177,6,FALSE)="","",VLOOKUP(C50,invullijst!$A$10:$M$177,6,FALSE)) -> 0 | H50: =IF(VLOOKUP($C50,invullijst!$A$10:$M$177,7,FALSE)="","",VLOOKUP($C50,invullijst!$A$10:$M$177,7,FALSE)) -> 0 | I50: =IF(VLOOKUP($C50,invullijst!$A$10:$M$177,8,FALSE)="","",VLOOKUP($C50,invullijst!$A$10:$M$177,8,FALSE)) -> 0 | J50: =IF(VLOOKUP($C50,invullijst!$A$10:$M$177,9,FALSE)="","",VLOOKUP($C50,invullijst!$A$10:$M$177,9,FALSE)) -> 0 | K50: =IF(VLOOKUP($C50,invullijst!$A$10:$M$177,10,FALSE)="","",VLOOKUP($C50,invullijst!$A$10:$M$177,10,FALSE)) -> 0 | L50: 0 | M50: =IF(VLOOKUP($C50,invullijst!$A$10:$M$177,11,FALSE)="","",VLOOKUP($C50,invullijst!$A$10:$M$177,11,FALSE)) -> 0
D51: =IF(VLOOKUP($C51,invullijst!$A$10:$M$177,4,FALSE)="","",VLOOKUP($C51,invullijst!$A$10:$M$177,4,FALSE)) -> 0 | E51: =IF(VLOOKUP($C51,invullijst!$A$10:$M$177,2,FALSE)="","",VLOOKUP($C51,invullijst!$A$10:$M$177,2,FALSE)) -> 0 | F51: =IF(VLOOKUP($C51,invullijst!$A$10:$M$177,3,FALSE)="","",VLOOKUP($C51,invullijst!$A$10:$M$177,3,FALSE)) -> 0 | G51: =IF(VLOOKUP(C51,invullijst!$A$10:$M$177,6,FALSE)="","",VLOOKUP(C51,invullijst!$A$10:$M$177,6,FALSE)) -> 0 | H51: =IF(VLOOKUP($C51,invullijst!$A$10:$M$177,7,FALSE)="","",VLOOKUP($C51,invullijst!$A$10:$M$177,7,FALSE)) -> 0 | I51: =IF(VLOOKUP($C51,invullijst!$A$10:$M$177,8,FALSE)="","",VLOOKUP($C51,invullijst!$A$10:$M$177,8,FALSE)) -> 0 | J51: =IF(VLOOKUP($C51,invullijst!$A$10:$M$177,9,FALSE)="","",VLOOKUP($C51,invullijst!$A$10:$M$177,9,FALSE)) -> 0 | K51: =IF(VLOOKUP($C51,invullijst!$A$10:$M$177,10,FALSE)="","",VLOOKUP($C51,invullijst!$A$10:$M$177,10,FALSE)) -> 0 | L51: 0 | M51: =IF(VLOOKUP($C51,invullijst!$A$10:$M$177,11,FALSE)="","",VLOOKUP($C51,invullijst!$A$10:$M$177,11,FALSE)) -> 0
D52: =IF(VLOOKUP($C52,invullijst!$A$10:$M$177,4,FALSE)="","",VLOOKUP($C52,invullijst!$A$10:$M$177,4,FALSE)) -> 0 | E52: =IF(VLOOKUP($C52,invullijst!$A$10:$M$177,2,FALSE)="","",VLOOKUP($C52,invullijst!$A$10:$M$177,2,FALSE)) -> 0 | F52: =IF(VLOOKUP($C52,invullijst!$A$10:$M$177,3,FALSE)="","",VLOOKUP($C52,invullijst!$A$10:$M$177,3,FALSE)) -> 0 | G52: =IF(VLOOKUP(C52,invullijst!$A$10:$M$177,6,FALSE)="","",VLOOKUP(C52,invullijst!$A$10:$M$177,6,FALSE)) -> 0 | H52: =IF(VLOOKUP($C52,invullijst!$A$10:$M$177,7,FALSE)="","",VLOOKUP($C52,invullijst!$A$10:$M$177,7,FALSE)) -> 0 | I52: =IF(VLOOKUP($C52,invullijst!$A$10:$M$177,8,FALSE)="","",VLOOKUP($C52,invullijst!$A$10:$M$177,8,FALSE)) -> 0 | J52: =IF(VLOOKUP($C52,invullijst!$A$10:$M$177,9,FALSE)="","",VLOOKUP($C52,invullijst!$A$10:$M$177,9,FALSE)) -> 0 | K52: =IF(VLOOKUP($C52,invullijst!$A$10:$M$177,10,FALSE)="","",VLOOKUP($C52,invullijst!$A$10:$M$177,10,FALSE)) -> 0 | L52: 0 | M52: =IF(VLOOKUP($C52,invullijst!$A$10:$M$177,11,FALSE)="","",VLOOKUP($C52,invullijst!$A$10:$M$177,11,FALSE)) -> 0
D53: =IF(VLOOKUP($C53,invullijst!$A$10:$M$177,4,FALSE)="","",VLOOKUP($C53,invullijst!$A$10:$M$177,4,FALSE)) -> 0 | E53: =IF(VLOOKUP($C53,invullijst!$A$10:$M$177,2,FALSE)="","",VLOOKUP($C53,invullijst!$A$10:$M$177,2,FALSE)) -> 0 | F53: =IF(VLOOKUP($C53,invullijst!$A$10:$M$177,3,FALSE)="","",VLOOKUP($C53,invullijst!$A$10:$M$177,3,FALSE)) -> 0 | G53: =IF(VLOOKUP(C53,invullijst!$A$10:$M$177,6,FALSE)="","",VLOOKUP(C53,invullijst!$A$10:$M$177,6,FALSE)) -> 0 | H53: =IF(VLOOKUP($C53,invullijst!$A$10:$M$177,7,FALSE)="","",VLOOKUP($C53,invullijst!$A$10:$M$177,7,FALSE)) -> 0 | I53: =IF(VLOOKUP($C53,invullijst!$A$10:$M$177,8,FALSE)="","",VLOOKUP($C53,invullijst!$A$10:$M$177,8,FALSE)) -> 0 | J53: =IF(VLOOKUP($C53,invullijst!$A$10:$M$177,9,FALSE)="","",VLOOKUP($C53,invullijst!$A$10:$M$177,9,FALSE)) -> 0 | K53: =IF(VLOOKUP($C53,invullijst!$A$10:$M$177,10,FALSE)="","",VLOOKUP($C53,invullijst!$A$10:$M$177,10,FALSE)) -> 0 | L53: 0 | M53: =IF(VLOOKUP($C53,invullijst!$A$10:$M$177,11,FALSE)="","",VLOOKUP($C53,invullijst!$A$10:$M$177,11,FALSE)) -> 0
D54: =IF(VLOOKUP($C54,invullijst!$A$10:$M$177,4,FALSE)="","",VLOOKUP($C54,invullijst!$A$10:$M$177,4,FALSE)) -> 0 | E54: =IF(VLOOKUP($C54,invullijst!$A$10:$M$177,2,FALSE)="","",VLOOKUP($C54,invullijst!$A$10:$M$177,2,FALSE)) -> 0 | F54: =IF(VLOOKUP($C54,invullijst!$A$10:$M$177,3,FALSE)="","",VLOOKUP($C54,invullijst!$A$10:$M$177,3,FALSE)) -> 0 | G54: =IF(VLOOKUP(C54,invullijst!$A$10:$M$177,6,FALSE)="","",VLOOKUP(C54,invullijst!$A$10:$M$177,6,FALSE)) -> 0 | H54: =IF(VLOOKUP($C54,invullijst!$A$10:$M$177,7,FALSE)="","",VLOOKUP($C54,invullijst!$A$10:$M$177,7,FALSE)) -> 0 | I54: =IF(VLOOKUP($C54,invullijst!$A$10:$M$177,8,FALSE)="","",VLOOKUP($C54,invullijst!$A$10:$M$177,8,FALSE)) -> 0 | J54: =IF(VLOOKUP($C54,invullijst!$A$10:$M$177,9,FALSE)="","",VLOOKUP($C54,invullijst!$A$10:$M$177,9,FALSE)) -> 0 | K54: =IF(VLOOKUP($C54,invullijst!$A$10:$M$177,10,FALSE)="","",VLOOKUP($C54,invullijst!$A$10:$M$177,10,FALSE)) -> 0 | L54: 0 | M54: =IF(VLOOKUP($C54,invullijst!$A$10:$M$177,11,FALSE)="","",VLOOKUP($C54,invullijst!$A$10:$M$177,11,FALSE)) -> 0
D55: =IF(VLOOKUP($C55,invullijst!$A$10:$M$177,4,FALSE)="","",VLOOKUP($C55,invullijst!$A$10:$M$177,4,FALSE)) -> 0 | E55: =IF(VLOOKUP($C55,invullijst!$A$10:$M$177,2,FALSE)="","",VLOOKUP($C55,invullijst!$A$10:$M$177,2,FALSE)) -> 0 | F55: =IF(VLOOKUP($C55,invullijst!$A$10:$M$177,3,FALSE)="","",VLOOKUP($C55,invullijst!$A$10:$M$177,3,FALSE)) -> 0 | G55: =IF(VLOOKUP(C55,invullijst!$A$10:$M$177,6,FALSE)="","",VLOOKUP(C55,invullijst!$A$10:$M$177,6,FALSE)) -> 0 | H55: =IF(VLOOKUP($C55,invullijst!$A$10:$M$177,7,FALSE)="","",VLOOKUP($C55,invullijst!$A$10:$M$177,7,FALSE)) -> 0 | I55: =IF(VLOOKUP($C55,invullijst!$A$10:$M$177,8,FALSE)="","",VLOOKUP($C55,invullijst!$A$10:$M$177,8,FALSE)) -> 0 | J55: =IF(VLOOKUP($C55,invullijst!$A$10:$M$177,9,FALSE)="","",VLOOKUP($C55,invullijst!$A$10:$M$177,9,FALSE)) -> 0 | K55: =IF(VLOOKUP($C55,invullijst!$A$10:$M$177,10,FALSE)="","",VLOOKUP($C55,invullijst!$A$10:$M$177,10,FALSE)) -> 0 | L55: 0 | M55: =IF(VLOOKUP($C55,invullijst!$A$10:$M$177,11,FALSE)="","",VLOOKUP($C55,invullijst!$A$10:$M$177,11,FALSE)) -> 0

Sheet Jeugd
A1: JEUGD | G1: =invullijst!F1 -> Organisatie | K1: =invullijst!H2 -> 2023 - 2024
G2: =invullijst!F3 -> St. Crispinus & Crispinianus Besoijen
G3: wedstrijd | M3: KAMP-
A4: KL | C4: schutter | E4: NAAM | F4: PLAATS | G4: 1 | H4: 2 | I4: 3 | J4: 4 | K4: 5 | L4: TOTAAL | M4: KAART
A5: A | B5: 1 | C5: 312 | D5: =IF(VLOOKUP($C5,invullijst!$A$11:$M$177,4,FALSE)="","",VLOOKUP($C5,invullijst!$A$11:$M$177,4,FALSE)) -> J | E5: =IF(VLOOKUP($C5,invullijst!$A$11:$M$177,2,FALSE)="","",VLOOKUP($C5,invullijst!$A$11:$M$177,2,FALSE)) -> Floor de Jong | F5: =IF(VLOOKUP($C5,invullijst!$A$11:$M$177,3,FALSE)="","",VLOOKUP($C5,invullijst!$A$11:$M$177,3,FALSE)) -> Elshout | G5: =IF(VLOOKUP($C5,invullijst!$A$11:$M$177,6,FALSE)="","",VLOOKUP($C5,invullijst!$A$11:$M$177,6,FALSE)) -> 91 | H5: =IF(VLOOKUP($C5,invullijst!$A$11:$M$177,7,FALSE)="","",VLOOKUP($C5,invullijst!$A$11:$M$177,7,FALSE)) ->  | I5: =IF(VLOOKUP($C5,invullijst!$A$11:$M$177,8,FALSE)="","",VLOOKUP($C5,invullijst!$A$11:$M$177,8,FALSE)) -> 91 | J5: =IF(VLOOKUP($C5,invullijst!$A$11:$M$177,9,FALSE)="","",VLOOKUP($C5,invullijst!$A$11:$M$177,9,FALSE)) -> 90 | K5: =IF(VLOOKUP($C5,invullijst!$A$11:$M$177,10,FALSE)="","",VLOOKUP($C5,invullijst!$A$11:$M$177,10,FALSE)) -> 92 | L5: =SUM(G5:K5) -> 364 | M5: =IF(VLOOKUP($C5,invullijst!$A$11:$M$177,11,FALSE)="","",VLOOKUP($C5,invullijst!$A$11:$M$177,11,FALSE)) -> 43
B6: 2 | C6: 109 | D6: =IF(VLOOKUP($C6,invullijst!$A$11:$M$177,4,FALSE)="","",VLOOKUP($C6,invullijst!$A$11:$M$177,4,FALSE)) -> J | E6: =IF(VLOOKUP($C6,invullijst!$A$11:$M$177,2,FALSE)="","",VLOOKUP($C6,invullijst!$A$11:$M$177,2,FALSE)) -> Gijs Pullens | F6: =IF(VLOOKUP($C6,invullijst!$A$11:$M$177,3,FALSE)="","",VLOOKUP($C6,invullijst!$A$11:$M$177,3,FALSE)) -> Baardwijk | G6: =IF(VLOOKUP($C6,invullijst!$A$11:$M$177,6,FALSE)="","",VLOOKUP($C6,invullijst!$A$11:$M$177,6,FALSE)) ->  | H6: =IF(VLOOKUP($C6,invullijst!$A$11:$M$177,7,FALSE)="","",VLOOKUP($C6,invullijst!$A$11:$M$177,7,FALSE)) -> 83 | I6: =IF(VLOOKUP($C6,invullijst!$A$11:$M$177,8,FALSE)="","",VLOOKUP($C6,invullijst!$A$11:$M$177,8,FALSE)) -> 92 | J6: =IF(VLOOKUP($C6,invullijst!$A$11:$M$177,9,FALSE)="","",VLOOKUP($C6,invullijst!$A$11:$M$177,9,FALSE)) -> 83 | K6: =IF(VLOOKUP($C6,invullijst!$A$11:$M$177,10,FALSE)="","",VLOOKUP($C6,invullijst!$A$11:$M$177,10,FALSE)) -> 78 | L6: =SUM(G6:K6) -> 336 | M6: =IF(VLOOKUP($C6,invullijst!$A$11:$M$177,11,FALSE)="","",VLOOKUP($C6,invullijst!$A$11:$M$177,11,FALSE)) -> 44
B7: 3 | D7: =IF(VLOOKUP($C7,invullijst!$A$10:$M$177,4,FALSE)="","",VLOOKUP($C7,invullijst!$A$10:$M$177,4,FALSE)) -> 0 | E7: =IF(VLOOKUP($C7,invullijst!$A$10:$M$177,2,FALSE)="","",VLOOKUP($C7,invullijst!$A$10:$M$177,2,FALSE)) -> 0 | F7: =IF(VLOOKUP($C7,invullijst!$A$10:$M$177,3,FALSE)="","",VLOOKUP($C7,invullijst!$A$10:$M$177,3,FALSE)) -> 0 | G7: =IF(VLOOKUP($C7,invullijst!$A$10:$M$177,6,FALSE)="","",VLOOKUP($C7,invullijst!$A$10:$M$177,6,FALSE)) -> 0 | H7: =IF(VLOOKUP($C7,invullijst!$A$10:$M$177,7,FALSE)="","",VLOOKUP($C7,invullijst!$A$10:$M$177,7,FALSE)) -> 0 | I7: =IF(VLOOKUP($C7,invullijst!$A$10:$M$177,8,FALSE)="","",VLOOKUP($C7,invullijst!$A$10:$M$177,8,FALSE)) -> 0 | J7: =IF(VLOOKUP($C7,invullijst!$A$10:$M$177,9,FALSE)="","",VLOOKUP($C7,invullijst!$A$10:$M$177,9,FALSE)) -> 0 | K7: =IF(VLOOKUP($C7,invullijst!$A$10:$M$177,10,FALSE)="","",VLOOKUP($C7,invullijst!$A$10:$M$177,10,FALSE)) -> 0 | L7: =SUM(G7:K7) -> 0 | M7: =IF(VLOOKUP($C7,invullijst!$A$10:$M$177,11,FALSE)="","",VLOOKUP($C7,invullijst!$A$10:$M$177,11,FALSE)) -> 0
B8: 4 | D8: =IF(VLOOKUP($C8,invullijst!$A$10:$M$177,4,FALSE)="","",VLOOKUP($C8,invullijst!$A$10:$M$177,4,FALSE)) -> 0 | E8: =IF(VLOOKUP($C8,invullijst!$A$10:$M$177,2,FALSE)="","",VLOOKUP($C8,invullijst!$A$10:$M$177,2,FALSE)) -> 0 | F8: =IF(VLOOKUP($C8,invullijst!$A$10:$M$177,3,FALSE)="","",VLOOKUP($C8,invullijst!$A$10:$M$177,3,FALSE)) -> 0 | G8: =IF(VLOOKUP($C8,invullijst!$A$10:$M$177,6,FALSE)="","",VLOOKUP($C8,invullijst!$A$10:$M$177,6,FALSE)) -> 0 | H8: =IF(VLOOKUP($C8,invullijst!$A$10:$M$177,7,FALSE)="","",VLOOKUP($C8,invullijst!$A$10:$M$177,7,FALSE)) -> 0 | I8: =IF(VLOOKUP($C8,invullijst!$A$10:$M$177,8,FALSE)="","",VLOOKUP($C8,invullijst!$A$10:$M$177,8,FALSE)) -> 0 | J8: =IF(VLOOKUP($C8,invullijst!$A$10:$M$177,9,FALSE)="","",VLOOKUP($C8,invullijst!$A$10:$M$177,9,FALSE)) -> 0 | K8: =IF(VLOOKUP($C8,invullijst!$A$10:$M$177,10,FALSE)="","",VLOOKUP($C8,invullijst!$A$10:$M$177,10,FALSE)) -> 0 | L8: =SUM(G8:K8) -> 0 | M8: =IF(VLOOKUP($C8,invullijst!$A$10:$M$177,11,FALSE)="","",VLOOKUP($C8,invullijst!$A$10:$M$177,11,FALSE)) -> 0
D9: =IF(VLOOKUP($C9,invullijst!$A$10:$M$177,4,FALSE)="","",VLOOKUP($C9,invullijst!$A$10:$M$177,4,FALSE)) -> 0 | E9: =IF(VLOOKUP($C9,invullijst!$A$10:$M$177,2,FALSE)="","",VLOOKUP($C9,invullijst!$A$10:$M$177,2,FALSE)) -> 0 | F9: =IF(VLOOKUP($C9,invullijst!$A$10:$M$177,3,FALSE)="","",VLOOKUP($C9,invullijst!$A$10:$M$177,3,FALSE)) -> 0 | G9: =IF(VLOOKUP($C9,invullijst!$A$10:$M$177,6,FALSE)="","",VLOOKUP($C9,invullijst!$A$10:$M$177,6,FALSE)) -> 0 | H9: =IF(VLOOKUP($C9,invullijst!$A$10:$M$177,7,FALSE)="","",VLOOKUP($C9,invullijst!$A$10:$M$177,7,FALSE)) -> 0 | I9: =IF(VLOOKUP($C9,invullijst!$A$10:$M$177,8,FALSE)="","",VLOOKUP($C9,invullijst!$A$10:$M$177,8,FALSE)) -> 0 | J9: =IF(VLOOKUP($C9,invullijst!$A$10:$M$177,9,FALSE)="","",VLOOKUP($C9,invullijst!$A$10:$M$177,9,FALSE)) -> 0 | K9: =IF(VLOOKUP($C9,invullijst!$A$10:$M$177,10,FALSE)="","",VLOOKUP($C9,invullijst!$A$10:$M$177,10,FALSE)) -> 0 | L9: 0 | M9: =IF(VLOOKUP($C9,invullijst!$A$10:$M$177,11,FALSE)="","",VLOOKUP($C9,invullijst!$A$10:$M$177,11,FALSE)) -> 0
D10: =IF(VLOOKUP($C10,invullijst!$A$10:$M$177,4,FALSE)="","",VLOOKUP($C10,invullijst!$A$10:$M$177,4,FALSE)) -> 0 | E10: =IF(VLOOKUP($C10,invullijst!$A$10:$M$177,2,FALSE)="","",VLOOKUP($C10,invullijst!$A$10:$M$177,2,FALSE)) -> 0 | F10: =IF(VLOOKUP($C10,invullijst!$A$10:$M$177,3,FALSE)="","",VLOOKUP($C10,invullijst!$A$10:$M$177,3,FALSE)) -> 0 | G10: =IF(VLOOKUP($C10,invullijst!$A$10:$M$177,6,FALSE)="","",VLOOKUP($C10,invullijst!$A$10:$M$177,6,FALSE)) -> 0 | H10: =IF(VLOOKUP($C10,invullijst!$A$10:$M$177,7,FALSE)="","",VLOOKUP($C10,invullijst!$A$10:$M$177,7,FALSE)) -> 0 | I10: =IF(VLOOKUP($C10,invullijst!$A$10:$M$177,8,FALSE)="","",VLOOKUP($C10,invullijst!$A$10:$M$177,8,FALSE)) -> 0 | J10: =IF(VLOOKUP($C10,invullijst!$A$10:$M$177,9,FALSE)="","",VLOOKUP($C10,invullijst!$A$10:$M$177,9,FALSE)) -> 0 | K10: =IF(VLOOKUP($C10,invullijst!$A$10:$M$177,10,FALSE)="","",VLOOKUP($C10,invullijst!$A$10:$M$177,10,FALSE)) -> 0 | L10: 0 | M10: =IF(VLOOKUP($C10,invullijst!$A$10:$M$177,11,FALSE)="","",VLOOKUP($C10,invullijst!$A$10:$M$177,11,FALSE)) -> 0
D11: =IF(VLOOKUP($C11,invullijst!$A$10:$M$177,4,FALSE)="","",VLOOKUP($C11,invullijst!$A$10:$M$177,4,FALSE)) -> 0 | E11: =IF(VLOOKUP($C11,invullijst!$A$10:$M$177,2,FALSE)="","",VLOOKUP($C11,invullijst!$A$10:$M$177,2,FALSE)) -> 0 | F11: =IF(VLOOKUP($C11,invullijst!$A$10:$M$177,3,FALSE)="","",VLOOKUP($C11,invullijst!$A$10:$M$177,3,FALSE)) -> 0 | G11: =IF(VLOOKUP($C11,invullijst!$A$10:$M$177,6,FALSE)="","",VLOOKUP($C11,invullijst!$A$10:$M$177,6,FALSE)) -> 0 | H11: =IF(VLOOKUP($C11,invullijst!$A$10:$M$177,7,FALSE)="","",VLOOKUP($C11,invullijst!$A$10:$M$177,7,FALSE)) -> 0 | I11: =IF(VLOOKUP($C11,invullijst!$A$10:$M$177,8,FALSE)="","",VLOOKUP($C11,invullijst!$A$10:$M$177,8,FALSE)) -> 0 | J11: =IF(VLOOKUP($C11,invullijst!$A$10:$M$177,9,FALSE)="","",VLOOKUP($C11,invullijst!$A$10:$M$177,9,FALSE)) -> 0 | K11: =IF(VLOOKUP($C11,invullijst!$A$10:$M$177,10,FALSE)="","",VLOOKUP($C11,invullijst!$A$10:$M$177,10,FALSE)) -> 0 | L11: 0 | M11: =IF(VLOOKUP($C11,invullijst!$A$10:$M$177,11,FALSE)="","",VLOOKUP($C11,invullijst!$A$10:$M$177,11,FALSE)) -> 0
D12: =IF(VLOOKUP($C12,invullijst!$A$10:$M$177,4,FALSE)="","",VLOOKUP($C12,invullijst!$A$10:$M$177,4,FALSE)) -> 0 | E12: =IF(VLOOKUP($C12,invullijst!$A$10:$M$177,2,FALSE)="","",VLOOKUP($C12,invullijst!$A$10:$M$177,2,FALSE)) -> 0 | F12: =IF(VLOOKUP($C12,invullijst!$A$10:$M$177,3,FALSE)="","",VLOOKUP($C12,invullijst!$A$10:$M$177,3,FALSE)) -> 0 | G12: =IF(VLOOKUP($C12,invullijst!$A$10:$M$177,6,FALSE)="","",VLOOKUP($C12,invullijst!$A$10:$M$177,6,FALSE)) -> 0 | H12: =IF(VLOOKUP($C12,invullijst!$A$10:$M$177,7,FALSE)="","",VLOOKUP($C12,invullijst!$A$10:$M$177,7,FALSE)) -> 0 | I12: =IF(VLOOKUP($C12,invullijst!$A$10:$M$177,8,FALSE)="","",VLOOKUP($C12,invullijst!$A$10:$M$177,8,FALSE)) -> 0 | J12: =IF(VLOOKUP($C12,invullijst!$A$10:$M$177,9,FALSE)="","",VLOOKUP($C12,invullijst!$A$10:$M$177,9,FALSE)) -> 0 | K12: =IF(VLOOKUP($C12,invullijst!$A$10:$M$177,10,FALSE)="","",VLOOKUP($C12,invullijst!$A$10:$M$177,10,FALSE)) -> 0 | L12: 0 | M12: =IF(VLOOKUP($C12,invullijst!$A$10:$M$177,11,FALSE)="","",VLOOKUP($C12,invullijst!$A$10:$M$177,11,FALSE)) -> 0
D13: =IF(VLOOKUP($C13,invullijst!$A$10:$M$177,4,FALSE)="","",VLOOKUP($C13,invullijst!$A$10:$M$177,4,FALSE)) -> 0 | E13: =IF(VLOOKUP($C13,invullijst!$A$10:$M$177,2,FALSE)="","",VLOOKUP($C13,invullijst!$A$10:$M$177,2,FALSE)) -> 0 | F13: =IF(VLOOKUP($C13,invullijst!$A$10:$M$177,3,FALSE)="","",VLOOKUP($C13,invullijst!$A$10:$M$177,3,FALSE)) -> 0 | G13: =IF(VLOOKUP($C13,invullijst!$A$10:$M$177,6,FALSE)="","",VLOOKUP($C13,invullijst!$A$10:$M$177,6,FALSE)) -> 0 | H13: =IF(VLOOKUP($C13,invullijst!$A$10:$M$177,7,FALSE)="","",VLOOKUP($C13,invullijst!$A$10:$M$177,7,FALSE)) -> 0 | I13: =IF(VLOOKUP($C13,invullijst!$A$10:$M$177,8,FALSE)="","",VLOOKUP($C13,invullijst!$A$10:$M$177,8,FALSE)) -> 0 | J13: =IF(VLOOKUP($C13,invullijst!$A$10:$M$177,9,FALSE)="","",VLOOKUP($C13,invullijst!$A$10:$M$177,9,FALSE)) -> 0 | K13: =IF(VLOOKUP($C13,invullijst!$A$10:$M$177,10,FALSE)="","",VLOOKUP($C13,invullijst!$A$10:$M$177,10,FALSE)) -> 0 | L13: 0 | M13: =IF(VLOOKUP($C13,invullijst!$A$10:$M$177,11,FALSE)="","",VLOOKUP($C13,invullijst!$A$10:$M$177,11,FALSE)) -> 0
D14: =IF(VLOOKUP($C14,invullijst!$A$10:$M$177,4,FALSE)="","",VLOOKUP($C14,invullijst!$A$10:$M$177,4,FALSE)) -> 0 | E14: =IF(VLOOKUP($C14,invullijst!$A$10:$M$177,2,FALSE)="","",VLOOKUP($C14,invullijst!$A$10:$M$177,2,FALSE)) -> 0 | F14: =IF(VLOOKUP($C14,invullijst!$A$10:$M$177,3,FALSE)="","",VLOOKUP($C14,invullijst!$A$10:$M$177,3,FALSE)) -> 0 | G14: =IF(VLOOKUP($C14,invullijst!$A$10:$M$177,6,FALSE)="","",VLOOKUP($C14,invullijst!$A$10:$M$177,6,FALSE)) -> 0 | H14: =IF(VLOOKUP($C14,invullijst!$A$10:$M$177,7,FALSE)="","",VLOOKUP($C14,invullijst!$A$10:$M$177,7,FALSE)) -> 0 | I14: =IF(VLOOKUP($C14,invullijst!$A$10:$M$177,8,FALSE)="","",VLOOKUP($C14,invullijst!$A$10:$M$177,8,FALSE)) -> 0 | J14: =IF(VLOOKUP($C14,invullijst!$A$10:$M$177,9,FALSE)="","",VLOOKUP($C14,invullijst!$A$10:$M$177,9,FALSE)) -> 0 | K14: =IF(VLOOKUP($C14,invullijst!$A$10:$M$177,10,FALSE)="","",VLOOKUP($C14,invullijst!$A$10:$M$177,10,FALSE)) -> 0 | L14: 0 | M14: =IF(VLOOKUP($C14,invullijst!$A$10:$M$177,11,FALSE)="","",VLOOKUP($C14,invullijst!$A$10:$M$177,11,FALSE)) -> 0

Sheet 65+
A1: 65+ | G1: =invullijst!F1 -> Organisatie | K1: =invullijst!H2 -> 2023 - 2024
G2: =invullijst!F3 -> St. Crispinus & Crispinianus Besoijen
G3: wedstrijd | M3: KAMP-
A4: KL. | C4: schutter | E4: NAAM | F4: PLAATS | G4: 1 | H4: 2 | I4: 3 | J4: 4 | K4: 5 | L4: TOTAAL | M4: KAART
A5: A | B5: 1 | C5: 413 | D5: =IF(VLOOKUP($C5,invullijst!$A$10:$M188,4,FALSE)="","",VLOOKUP($C5,invullijst!$A$10:$M188,4,FALSE)) -> 65+ | E5: =IF(VLOOKUP($C5,invullijst!$A$10:$M179,2,FALSE)="","",VLOOKUP($C5,invullijst!$A$10:$M179,2,FALSE)) -> Frans Mommersteeg | F5: =IF(VLOOKUP($C5,invullijst!$A$10:$M$177,3,FALSE)="","",VLOOKUP($C5,invullijst!$A$10:$M$177,3,FALSE)) -> Haarsteeg | G5: =IF(VLOOKUP($C5,invullijst!$A$10:$M$177,6,FALSE)="","",VLOOKUP($C5,invullijst!$A$10:$M$177,6,FALSE)) -> 96 | H5: =IF(VLOOKUP($C5,invullijst!$A$10:$M$177,7,FALSE)="","",VLOOKUP($C5,invullijst!$A$10:$M$177,7,FALSE)) -> 98 | I5: =IF(VLOOKUP($C5,invullijst!$A$10:$M$177,8,FALSE)="","",VLOOKUP($C5,invullijst!$A$10:$M$177,8,FALSE)) ->  | J5: =IF(VLOOKUP($C5,invullijst!$A$10:$M$177,9,FALSE)="","",VLOOKUP($C5,invullijst!$A$10:$M$177,9,FALSE)) -> 95 | K5: =IF(VLOOKUP($C5,invullijst!$A$10:$M$177,10,FALSE)="","",VLOOKUP($C5,invullijst!$A$10:$M$177,10,FALSE)) -> 94 | L5: =SUM(G5:K5) -> 383 | M5: =IF(VLOOKUP($C5,invullijst!$A$10:$M$177,11,FALSE)="","",VLOOKUP($C5,invullijst!$A$10:$M$177,11,FALSE)) -> 48
B6: 2 | C6: 404 | D6: =IF(VLOOKUP($C6,invullijst!$A$10:$M181,4,FALSE)="","",VLOOKUP($C6,invullijst!$A$10:$M181,4,FALSE)) -> 65+ | E6: =IF(VLOOKUP($C6,invullijst!$A$10:$M181,2,FALSE)="","",VLOOKUP($C6,invullijst!$A$10:$M181,2,FALSE)) -> Gerard van Beurden | F6: =IF(VLOOKUP($C6,invullijst!$A$10:$M$177,3,FALSE)="","",VLOOKUP($C6,invullijst!$A$10:$M$177,3,FALSE)) -> Haarsteeg | G6: =IF(VLOOKUP($C6,invullijst!$A$10:$M$177,6,FALSE)="","",VLOOKUP($C6,invullijst!$A$10:$M$177,6,FALSE)) -> 93 | H6: =IF(VLOOKUP($C6,invullijst!$A$10:$M$177,7,FALSE)="","",VLOOKUP($C6,invullijst!$A$10:$M$177,7,FALSE)) -> 97 | I6: =IF(VLOOKUP($C6,invullijst!$A$10:$M$177,8,FALSE)="","",VLOOKUP($C6,invullijst!$A$10:$M$177,8,FALSE)) ->  | J6: =IF(VLOOKUP($C6,invullijst!$A$10:$M$177,9,FALSE)="","",VLOOKUP($C6,invullijst!$A$10:$M$177,9,FALSE)) -> 98 | K6: =IF(VLOOKUP($C6,invullijst!$A$10:$M$177,10,FALSE)="","",VLOOKUP($C6,invullijst!$A$10:$M$177,10,FALSE)) -> 94 | L6: 382 | M6: =IF(VLOOKUP($C6,invullijst!$A$10:$M$177,11,FALSE)="","",VLOOKUP($C6,invullijst!$A$10:$M$177,11,FALSE)) -> 46
B7: 3 | C7: 415 | D7: =IF(VLOOKUP($C7,invullijst!$A$10:$M186,4,FALSE)="","",VLOOKUP($C7,invullijst!$A$10:$M186,4,FALSE)) -> 65+ | E7: =IF(VLOOKUP($C7,invullijst!$A$10:$M184,2,FALSE)="","",VLOOKUP($C7,invullijst!$A$10:$M184,2,FALSE)) -> Wim de Gouw | F7: =IF(VLOOKUP($C7,invullijst!$A$10:$M$177,3,FALSE)="","",VLOOKUP($C7,invullijst!$A$10:$M$177,3,FALSE)) -> Haarsteeg | G7: =IF(VLOOKUP($C7,invullijst!$A$10:$M$177,6,FALSE)="","",VLOOKUP($C7,invullijst!$A$10:$M$177,6,FALSE)) -> 95 | H7: =IF(VLOOKUP($C7,invullijst!$A$10:$M$177,7,FALSE)="","",VLOOKUP($C7,invullijst!$A$10:$M$177,7,FALSE)) -> 95 | I7: =IF(VLOOKUP($C7,invullijst!$A$10:$M$177,8,FALSE)="","",VLOOKUP($C7,invullijst!$A$10:$M$177,8,FALSE)) ->  | J7: =IF(VLOOKUP($C7,invullijst!$A$10:$M$177,9,FALSE)="","",VLOOKUP($C7,invullijst!$A$10:$M$177,9,FALSE)) -> 95 | K7: =IF(VLOOKUP($C7,invullijst!$A$10:$M$177,10,FALSE)="","",VLOOKUP($C7,invullijst!$A$10:$M$177,10,FALSE)) -> 95 | L7: 380 | M7: =IF(VLOOKUP($C7,invullijst!$A$10:$M$177,11,FALSE)="","",VLOOKUP($C7,invullijst!$A$10:$M$177,11,FALSE)) -> 48
B8: 4 | C8: 401 | D8: =IF(VLOOKUP($C8,invullijst!$A$10:$M189,4,FALSE)="","",VLOOKUP($C8,invullijst!$A$10:$M189,4,FALSE)) -> 65+ | E8: =IF(VLOOKUP($C8,invullijst!$A$10:$M188,2,FALSE)="","",VLOOKUP($C8,invullijst!$A$10:$M188,2,FALSE)) -> Frans van Beurden | F8: =IF(VLOOKUP($C8,invullijst!$A$10:$M$177,3,FALSE)="","",VLOOKUP($C8,invullijst!$A$10:$M$177,3,FALSE)) -> Haarsteeg | G8: =IF(VLOOKUP($C8,invullijst!$A$10:$M$177,6,FALSE)="","",VLOOKUP($C8,invullijst!$A$10:$M$177,6,FALSE)) -> 95 | H8: =IF(VLOOKUP($C8,invullijst!$A$10:$M$177,7,FALSE)="","",VLOOKUP($C8,invullijst!$A$10:$M$177,7,FALSE)) -> 97 | I8: =IF(VLOOKUP($C8,invullijst!$A$10:$M$177,8,FALSE)="","",VLOOKUP($C8,invullijst!$A$10:$M$177,8,FALSE)) ->  | J8: =IF(VLOOKUP($C8,invullijst!$A$10:$M$177,9,FALSE)="","",VLOOKUP($C8,invullijst!$A$10:$M$177,9,FALSE)) -> 94 | K8: =IF(VLOOKUP($C8,invullijst!$A$10:$M$177,10,FALSE)="","",VLOOKUP($C8,invullijst!$A$10:$M$177,10,FALSE)) -> 94 | L8: 380 | M8: =IF(VLOOKUP($C8,invullijst!$A$10:$M$177,11,FALSE)="","",VLOOKUP($C8,invullijst!$A$10:$M$177,11,FALSE)) -> 46
B9: 5 | C9: 509 | D9: =IF(VLOOKUP($C9,invullijst!$A$10:$M197,4,FALSE)="","",VLOOKUP($C9,invullijst!$A$10:$M197,4,FALSE)) -> 65+ | E9: =IF(VLOOKUP($C9,invullijst!$A$10:$M191,2,FALSE)="","",VLOOKUP($C9,invullijst!$A$10:$M191,2,FALSE)) -> Adwan de Pinth | F9: =IF(VLOOKUP($C9,invullijst!$A$10:$M$177,3,FALSE)="","",VLOOKUP($C9,invullijst!$A$10:$M$177,3,FALSE)) -> Kaatsheuvel | G9: =IF(VLOOKUP($C9,invullijst!$A$10:$M$177,6,FALSE)="","",VLOOKUP($C9,invullijst!$A$10:$M$177,6,FALSE)) -> 95 | H9: =IF(VLOOKUP($C9,invullijst!$A$10:$M$177,7,FALSE)="","",VLOOKUP($C9,invullijst!$A$10:$M$177,7,FALSE)) -> 96 | I9: =IF(VLOOKUP($C9,invullijst!$A$10:$M$177,8,FALSE)="","",VLOOKUP($C9,invullijst!$A$10:$M$177,8,FALSE)) -> 95 | J9: =IF(VLOOKUP($C9,invullijst!$A$10:$M$177,9,FALSE)="","",VLOOKUP($C9,invullijst!$A$10:$M$177,9,FALSE)) ->  | K9: =IF(VLOOKUP($C9,invullijst!$A$10:$M$177,10,FALSE)="","",VLOOKUP($C9,invullijst!$A$10:$M$177,10,FALSE)) -> 92 | L9: 378 | M9: =IF(VLOOKUP($C9,invullijst!$A$10:$M$177,11,FALSE)="","",VLOOKUP($C9,invullijst!$A$10:$M$177,11,FALSE)) -> 49
B10: 6 | C10: 307 | D10: =IF(VLOOKUP($C10,invullijst!$A$10:$M192,4,FALSE)="","",VLOOKUP($C10,invullijst!$A$10:$M192,4,FALSE)) -> 65+ | E10: =IF(VLOOKUP($C10,invullijst!$A$10:$M192,2,FALSE)="","",VLOOKUP($C10,invullijst!$A$10:$M192,2,FALSE)) -> Bert van Engelen | F10: =IF(VLOOKUP($C10,invullijst!$A$10:$M$177,3,FALSE)="","",VLOOKUP($C10,invullijst!$A$10:$M$177,3,FALSE)) -> Elshout | G10: =IF(VLOOKUP($C10,invullijst!$A$10:$M$177,6,FALSE)="","",VLOOKUP($C10,invullijst!$A$10:$M$177,6,FALSE)) -> 95 | H10: =IF(VLOOKUP($C10,invullijst!$A$10:$M$177,7,FALSE)="","",VLOOKUP($C10,invullijst!$A$10:$M$177,7,FALSE)) ->  | I10: =IF(VLOOKUP($C10,invullijst!$A$10:$M$177,8,FALSE)="","",VLOOKUP($C10,invullijst!$A$10:$M$177,8,FALSE)) -> 93 | J10: =IF(VLOOKUP($C10,invullijst!$A$10:$M$177,9,FALSE)="","",VLOOKUP($C10,invullijst!$A$10:$M$177,9,FALSE)) -> 93 | K10: =IF(VLOOKUP($C10,invullijst!$A$10:$M$177,10,FALSE)="","",VLOOKUP($C10,invullijst!$A$10:$M$177,10,FALSE)) -> 96 | L10: 377 | M10: =IF(VLOOKUP($C10,invullijst!$A$10:$M$177,11,FALSE)="","",VLOOKUP($C10,invullijst!$A$10:$M$177,11,FALSE)) -> 45
B11: 7 | C11: 211 | D11: =IF(VLOOKUP($C11,invullijst!$A$10:$M185,4,FALSE)="","",VLOOKUP($C11,invullijst!$A$10:$M185,4,FALSE)) -> 65+ | E11: =IF(VLOOKUP($C11,invullijst!$A$10:$M186,2,FALSE)="","",VLOOKUP($C11,invullijst!$A$10:$M186,2,FALSE)) -> Ad van den houdt | F11: =IF(VLOOKUP($C11,invullijst!$A$10:$M$177,3,FALSE)="","",VLOOKUP($C11,invullijst!$A$10:$M$177,3,FALSE)) -> Besoijen | G11: =IF(VLOOKUP($C11,invullijst!$A$10:$M$177,6,FALSE)="","",VLOOKUP($C11,invullijst!$A$10:$M$177,6,FALSE)) -> 96 | H11: =IF(VLOOKUP($C11,invullijst!$A$10:$M$177,7,FALSE)="","",VLOOKUP($C11,invullijst!$A$10:$M$177,7,FALSE)) -> 88 | I11: =IF(VLOOKUP($C11,invullijst!$A$10:$M$177,8,FALSE)="","",VLOOKUP($C11,invullijst!$A$10:$M$177,8,FALSE)) -> 92 | J11: =IF(VLOOKUP($C11,invullijst!$A$10:$M$177,9,FALSE)="","",VLOOKUP($C11,invullijst!$A$10:$M$177,9,FALSE)) -> 90 | K11: =IF(VLOOKUP($C11,invullijst!$A$10:$M$177,10,FALSE)="","",VLOOKUP($C11,invullijst!$A$10:$M$177,10,FALSE)) ->  | L11: 366 | M11: =IF(VLOOKUP($C11,invullijst!$A$10:$M$177,11,FALSE)="","",VLOOKUP($C11,invullijst!$A$10:$M$177,11,FALSE)) -> 41
B12: 8 | C12: 412 | D12: =IF(VLOOKUP($C12,invullijst!$A$10:$M196,4,FALSE)="","",VLOOKUP($C12,invullijst!$A$10:$M196,4,FALSE)) -> 65+ | E12: =IF(VLOOKUP($C12,invullijst!$A$10:$M194,2,FALSE)="","",VLOOKUP($C12,invullijst!$A$10:$M194,2,FALSE)) -> Francien v/d Wiel | F12: =IF(VLOOKUP($C12,invullijst!$A$10:$M$177,3,FALSE)="","",VLOOKUP($C12,invullijst!$A$10:$M$177,3,FALSE)) -> Haarsteeg | G12: =IF(VLOOKUP($C12,invullijst!$A$10:$M$177,6,FALSE)="","",VLOOKUP($C12,invullijst!$A$10:$M$177,6,FALSE)) -> 96 | H12: =IF(VLOOKUP($C12,invullijst!$A$10:$M$177,7,FALSE)="","",VLOOKUP($C12,invullijst!$A$10:$M$177,7,FALSE)) -> 87 | I12: =IF(VLOOKUP($C12,invullijst!$A$10:$M$177,8,FALSE)="","",VLOOKUP($C12,invullijst!$A$10:$M$177,8,FALSE)) ->  | J12: =IF(VLOOKUP($C12,invullijst!$A$10:$M$177,9,FALSE)="","",VLOOKUP($C12,invullijst!$A$10:$M$177,9,FALSE)) -> 92 | K12: =IF(VLOOKUP($C12,invullijst!$A$10:$M$177,10,FALSE)="","",VLOOKUP($C12,invullijst!$A$10:$M$177,10,FALSE)) -> 89 | L12: 364 | M12: =IF(VLOOKUP($C12,invullijst!$A$10:$M$177,11,FALSE)="","",VLOOKUP($C12,invullijst!$A$10:$M$177,11,FALSE)) -> 47
B13: 9 | C13: 214 | D13: =IF(VLOOKUP($C13,invullijst!$A$10:$M198,4,FALSE)="","",VLOOKUP($C13,invullijst!$A$10:$M198,4,FALSE)) -> 65+ | E13: =IF(VLOOKUP($C13,invullijst!$A$10:$M194,2,FALSE)="","",VLOOKUP($C13,invullijst!$A$10:$M194,2,FALSE)) -> André de Vaan | F13: =IF(VLOOKUP($C13,invullijst!$A$10:$M$177,3,FALSE)="","",VLOOKUP($C13,invullijst!$A$10:$M$177,3,FALSE)) -> Besoijen | G13: =IF(VLOOKUP($C13,invullijst!$A$10:$M$177,6,FALSE)="","",VLOOKUP($C13,invullijst!$A$10:$M$177,6,FALSE)) -> 87 | H13: =IF(VLOOKUP($C13,invullijst!$A$10:$M$177,7,FALSE)="","",VLOOKUP($C13,invullijst!$A$10:$M$177,7,FALSE)) -> 89 | I13: =IF(VLOOKUP($C13,invullijst!$A$10:$M$177,8,FALSE)="","",VLOOKUP($C13,invullijst!$A$10:$M$177,8,FALSE)) -> 91 | J13: =IF(VLOOKUP($C13,invullijst!$A$10:$M$177,9,FALSE)="","",VLOOKUP($C13,invullijst!$A$10:$M$177,9,FALSE)) -> 96 | K13: =IF(VLOOKUP($C13,invullijst!$A$10:$M$177,10,FALSE)="","",VLOOKUP($C13,invullijst!$A$10:$M$177,10,FALSE)) ->  | L13: 363 | M13: =IF(VLOOKUP($C13,invullijst!$A$10:$M$177,11,FALSE)="","",VLOOKUP($C13,invullijst!$A$10:$M$177,11,FALSE)) -> 45
B14: 10 | C14: 301 | D14: =IF(VLOOKUP($C14,invullijst!$A$10:$M190,4,FALSE)="","",VLOOKUP($C14,invullijst!$A$10:$M190,4,FALSE)) -> 65+ | E14: =IF(VLOOKUP($C14,invullijst!$A$10:$M190,2,FALSE)="","",VLOOKUP($C14,invullijst!$A$10:$M190,2,FALSE)) -> Arjen van Assem disp | F14: =IF(VLOOKUP($C14,invullijst!$A$10:$M$177,3,FALSE)="","",VLOOKUP($C14,invullijst!$A$10:$M$177,3,FALSE)) -> Elshout | G14: =IF(VLOOKUP($C14,invullijst!$A$10:$M$177,6,FALSE)="","",VLOOKUP($C14,invullijst!$A$10:$M$177,6,FALSE)) -> 91 | H14: =IF(VLOOKUP($C14,invullijst!$A$10:$M$177,7,FALSE)="","",VLOOKUP($C14,invullijst!$A$10:$M$177,7,FALSE)) ->  | I14: =IF(VLOOKUP($C14,invullijst!$A$10:$M$177,8,FALSE)="","",VLOOKUP($C14,invullijst!$A$10:$M$177,8,FALSE)) -> 93 | J14: =IF(VLOOKUP($C14,invullijst!$A$10:$M$177,9,FALSE)="","",VLOOKUP($C14,invullijst!$A$10:$M$177,9,FALSE)) -> 89 | K14: =IF(VLOOKUP($C14,invullijst!$A$10:$M$177,10,FALSE)="","",VLOOKUP($C14,invullijst!$A$10:$M$177,10,FALSE)) -> 89 | L14: 362 | M14: =IF(VLOOKUP($C14,invullijst!$A$10:$M$177,11,FALSE)="","",VLOOKUP($C14,invullijst!$A$10:$M$177,11,FALSE)) -> 42
A15: B | B15: 1 | C15: 309 | D15: =IF(VLOOKUP($C15,invullijst!$A$10:$M187,4,FALSE)="","",VLOOKUP($C15,invullijst!$A$10:$M187,4,FALSE)) -> 65+ | E15: =IF(VLOOKUP($C15,invullijst!$A$10:$M177,2,FALSE)="","",VLOOKUP($C15,invullijst!$A$10:$M177,2,FALSE)) -> René de Jong | F15: =IF(VLOOKUP($C15,invullijst!$A$10:$M$177,3,FALSE)="","",VLOOKUP($C15,invullijst!$A$10:$M$177,3,FALSE)) -> Elshout | G15: =IF(VLOOKUP($C15,invullijst!$A$10:$M$177,6,FALSE)="","",VLOOKUP($C15,invullijst!$A$10:$M$177,6,FALSE)) -> 88 | H15: =IF(VLOOKUP($C15,invullijst!$A$10:$M$177,7,FALSE)="","",VLOOKUP($C15,invullijst!$A$10:$M$177,7,FALSE)) ->  | I15: =IF(VLOOKUP($C15,invullijst!$A$10:$M$177,8,FALSE)="","",VLOOKUP($C15,invullijst!$A$10:$M$177,8,FALSE)) -> 94 | J15: =IF(VLOOKUP($C15,invullijst!$A$10:$M$177,9,FALSE)="","",VLOOKUP($C15,invullijst!$A$10:$M$177,9,FALSE)) -> 93 | K15: =IF(VLOOKUP($C15,invullijst!$A$10:$M$177,10,FALSE)="","",VLOOKUP($C15,invullijst!$A$10:$M$177,10,FALSE)) -> 84 | L15: 359 | M15: =IF(VLOOKUP($C15,invullijst!$A$10:$M$177,11,FALSE)="","",VLOOKUP($C15,invullijst!$A$10:$M$177,11,FALSE)) -> 46
B16: 2 | C16: 212 | D16: =IF(VLOOKUP($C16,invullijst!$A$10:$M178,4,FALSE)="","",VLOOKUP($C16,invullijst!$A$10:$M178,4,FALSE)) -> 65+ | E16: =IF(VLOOKUP($C16,invullijst!$A$10:$M179,2,FALSE)="","",VLOOKUP($C16,invullijst!$A$10:$M179,2,FALSE)) -> René Duquesnoy | F16: =IF(VLOOKUP($C16,invullijst!$A$10:$M$177,3,FALSE)="","",VLOOKUP($C16,invullijst!$A$10:$M$177,3,FALSE)) -> Besoijen | G16: =IF(VLOOKUP($C16,invullijst!$A$10:$M$177,6,FALSE)="","",VLOOKUP($C16,invullijst!$A$10:$M$177,6,FALSE)) -> 90 | H16: =IF(VLOOKUP($C16,invullijst!$A$10:$M$177,7,FALSE)="","",VLOOKUP($C16,invullijst!$A$10:$M$177,7,FALSE)) -> 87 | I16: =IF(VLOOKUP($C16,invullijst!$A$10:$M$177,8,FALSE)="","",VLOOKUP($C16,invullijst!$A$10:$M$177,8,FALSE)) -> 92 | J16: =IF(VLOOKUP($C16,invullijst!$A$10:$M$177,9,FALSE)="","",VLOOKUP($C16,invullijst!$A$10:$M$177,9,FALSE)) -> 87 | K16: =IF(VLOOKUP($C16,invullijst!$A$10:$M$177,10,FALSE)="","",VLOOKUP($C16,invullijst!$A$10:$M$177,10,FALSE)) ->  | L16: 356 | M16: =IF(VLOOKUP($C16,invullijst!$A$10:$M$177,11,FALSE)="","",VLOOKUP($C16,invullijst!$A$10:$M$177,11,FALSE)) -> 45
B17: 3 | C17: 516 | D17: =IF(VLOOKUP($C17,invullijst!$A$10:$M183,4,FALSE)="","",VLOOKUP($C17,invullijst!$A$10:$M183,4,FALSE)) -> 65+ | E17: =IF(VLOOKUP($C17,invullijst!$A$10:$M183,2,FALSE)="","",VLOOKUP($C17,invullijst!$A$10:$M183,2,FALSE)) -> Henry Bergakker disp | F17: =IF(VLOOKUP($C17,invullijst!$A$10:$M$177,3,FALSE)="","",VLOOKUP($C17,invullijst!$A$10:$M$177,3,FALSE)) -> Kaatsheuvel | G17: =IF(VLOOKUP($C17,invullijst!$A$10:$M$177,6,FALSE)="","",VLOOKUP($C17,invullijst!$A$10:$M$177,6,FALSE)) -> 80 | H17: =IF(VLOOKUP($C17,invullijst!$A$10:$M$177,7,FALSE)="","",VLOOKUP($C17,invullijst!$A$10:$M$177,7,FALSE)) -> 88 | I17: =IF(VLOOKUP($C17,invullijst!$A$10:$M$177,8,FALSE)="","",VLOOKUP($C17,invullijst!$A$10:$M$177,8,FALSE)) -> 88 | J17: =IF(VLOOKUP($C17,invullijst!$A$10:$M$177,9,FALSE)="","",VLOOKUP($C17,invullijst!$A$10:$M$177,9,FALSE)) ->  | K17: =IF(VLOOKUP($C17,invullijst!$A$10:$M$177,10,FALSE)="","",VLOOKUP($C17,invullijst!$A$10:$M$177,10,FALSE)) -> 93 | L17: 349 | M17: =IF(VLOOKUP($C17,invullijst!$A$10:$M$177,11,FALSE)="","",VLOOKUP($C17,invullijst!$A$10:$M$177,11,FALSE)) -> 44
B18: 4 | C18: 511 | D18: =IF(VLOOKUP($C18,invullijst!$A$10:$M179,4,FALSE)="","",VLOOKUP($C18,invullijst!$A$10:$M179,4,FALSE)) -> 65+ | E18: =IF(VLOOKUP($C18,invullijst!$A$10:$M180,2,FALSE)="","",VLOOKUP($C18,invullijst!$A$10:$M180,2,FALSE)) -> Ton Stans | F18: =IF(VLOOKUP($C18,invullijst!$A$10:$M$177,3,FALSE)="","",VLOOKUP($C18,invullijst!$A$10:$M$177,3,FALSE)) -> Kaatsheuvel | G18: =IF(VLOOKUP($C18,invullijst!$A$10:$M$177,6,FALSE)="","",VLOOKUP($C18,invullijst!$A$10:$M$177,6,FALSE)) -> 85 | H18: =IF(VLOOKUP($C18,invullijst!$A$10:$M$177,7,FALSE)="","",VLOOKUP($C18,invullijst!$A$10:$M$177,7,FALSE)) -> 83 | I18: =IF(VLOOKUP($C18,invullijst!$A$10:$M$177,8,FALSE)="","",VLOOKUP($C18,invullijst!$A$10:$M$177,8,FALSE)) -> 82 | J18: =IF(VLOOKUP($C18,invullijst!$A$10:$M$177,9,FALSE)="","",VLOOKUP($C18,invullijst!$A$10:$M$177,9,FALSE)) ->  | K18: =IF(VLOOKUP($C18,invullijst!$A$10:$M$177,10,FALSE)="","",VLOOKUP($C18,invullijst!$A$10:$M$177,10,FALSE)) -> 84 | L18: 334 | M18: =IF(VLOOKUP($C18,invullijst!$A$10:$M$177,11,FALSE)="","",VLOOKUP($C18,invullijst!$A$10:$M$177,11,FALSE)) -> 38
B19: 5 | C19: 113 | D19: =IF(VLOOKUP($C19,invullijst!$A$10:$M195,4,FALSE)="","",VLOOKUP($C19,invullijst!$A$10:$M195,4,FALSE)) -> 65+ | E19: =IF(VLOOKUP($C19,invullijst!$A$10:$M189,2,FALSE)="","",VLOOKUP($C19,invullijst!$A$10:$M189,2,FALSE)) -> Kees Coppens | F19: =IF(VLOOKUP($C19,invullijst!$A$10:$M$177,3,FALSE)="","",VLOOKUP($C19,invullijst!$A$10:$M$177,3,FALSE)) -> Baardwijk | G19: =IF(VLOOKUP($C19,invullijst!$A$10:$M$177,6,FALSE)="","",VLOOKUP($C19,invullijst!$A$10:$M$177,6,FALSE)) ->  | H19: =IF(VLOOKUP($C19,invullijst!$A$10:$M$177,7,FALSE)="","",VLOOKUP($C19,invullijst!$A$10:$M$177,7,FALSE)) -> 84 | I19: =IF(VLOOKUP($C19,invullijst!$A$10:$M$177,8,FALSE)="","",VLOOKUP($C19,invullijst!$A$10:$M$177,8,FALSE)) -> 88 | J19: =IF(VLOOKUP($C19,invullijst!$A$10:$M$177,9,FALSE)="","",VLOOKUP($C19,invullijst!$A$10:$M$177,9,FALSE)) -> 68 | K19: =IF(VLOOKUP($C19,invullijst!$A$10:$M$177,10,FALSE)="","",VLOOKUP($C19,invullijst!$A$10:$M$177,10,FALSE)) -> 85 | L19: 325 | M19: =IF(VLOOKUP($C19,invullijst!$A$10:$M$177,11,FALSE)="","",VLOOKUP($C19,invullijst!$A$10:$M$177,11,FALSE)) -> 36
B20: 6 | C20: 111 | D20: =IF(VLOOKUP($C20,invullijst!$A$10:$M194,4,FALSE)="","",VLOOKUP($C20,invullijst!$A$10:$M194,4,FALSE)) -> 65+ | E20: =IF(VLOOKUP($C20,invullijst!$A$10:$M193,2,FALSE)="","",VLOOKUP($C20,invullijst!$A$10:$M193,2,FALSE)) -> Frans van Buul | F20: =IF(VLOOKUP($C20,invullijst!$A$10:$M$177,3,FALSE)="","",VLOOKUP($C20,invullijst!$A$10:$M$177,3,FALSE)) -> Baardwijk | G20: =IF(VLOOKUP($C20,invullijst!$A$10:$M$177,6,FALSE)="","",VLOOKUP($C20,invullijst!$A$10:$M$177,6,FALSE)) ->  | H20: =IF(VLOOKUP($C20,invullijst!$A$10:$M$177,7,FALSE)="","",VLOOKUP($C20,invullijst!$A$10:$M$177,7,FALSE)) -> 83 | I20: =IF(VLOOKUP($C20,invullijst!$A$10:$M$177,8,FALSE)="","",VLOOKUP($C20,invullijst!$A$10:$M$177,8,FALSE)) -> 81 | J20: =IF(VLOOKUP($C20,invullijst!$A$10:$M$177,9,FALSE)="","",VLOOKUP($C20,invullijst!$A$10:$M$177,9,FALSE)) -> 66 | K20: =IF(VLOOKUP($C20,invullijst!$A$10:$M$177,10,FALSE)="","",VLOOKUP($C20,invullijst!$A$10:$M$177,10,FALSE)) -> 78 | L20: 308 | M20: =IF(VLOOKUP($C20,invullijst!$A$10:$M$177,11,FALSE)="","",VLOOKUP($C20,invullijst!$A$10:$M$177,11,FALSE)) -> 40
B21: 7 | C21: 515 | D21: =IF(VLOOKUP($C21,invullijst!$A$10:$M193,4,FALSE)="","",VLOOKUP($C21,invullijst!$A$10:$M193,4,FALSE)) -> 65+ | E21: =IF(VLOOKUP($C21,invullijst!$A$10:$M187,2,FALSE)="","",VLOOKUP($C21,invullijst!$A$10:$M187,2,FALSE)) -> Ilona Bergakker disp | F21: =IF(VLOOKUP($C21,invullijst!$A$10:$M$177,3,FALSE)="","",VLOOKUP($C21,invullijst!$A$10:$M$177,3,FALSE)) -> Kaatsheuvel | G21: =IF(VLOOKUP($C21,invullijst!$A$10:$M$177,6,FALSE)="","",VLOOKUP($C21,invullijst!$A$10:$M$177,6,FALSE)) -> 92 | H21: =IF(VLOOKUP($C21,invullijst!$A$10:$M$177,7,FALSE)="","",VLOOKUP($C21,invullijst!$A$10:$M$177,7,FALSE)) -> 93 | I21: =IF(VLOOKUP($C21,invullijst!$A$10:$M$177,8,FALSE)="","",VLOOKUP($C21,invullijst!$A$10:$M$177,8,FALSE)) -> 89 | J21: =IF(VLOOKUP($C21,invullijst!$A$10:$M$177,9,FALSE)="","",VLOOKUP($C21,invullijst!$A$10:$M$177,9,FALSE)) ->  | K21: =IF(VLOOKUP($C21,invullijst!$A$10:$M$177,10,FALSE)="","",VLOOKUP($C21,invullijst!$A$10:$M$177,10,FALSE)) ->  | L21: 274 | M21: =IF(VLOOKUP($C21,invullijst!$A$10:$M$177,11,FALSE)="","",VLOOKUP($C21,invullijst!$A$10:$M$177,11,FALSE)) -> 46
B22: 8 | C22: 403 | D22: =IF(VLOOKUP($C22,invullijst!$A$10:$M182,4,FALSE)="","",VLOOKUP($C22,invullijst!$A$10:$M182,4,FALSE)) -> 65+ | E22: =IF(VLOOKUP($C22,invullijst!$A$10:$M193,2,FALSE)="","",VLOOKUP($C22,invullijst!$A$10:$M193,2,FALSE)) -> Dorien de Kort | F22: =IF(VLOOKUP($C22,invullijst!$A$10:$M$177,3,FALSE)="","",VLOOKUP($C22,invullijst!$A$10:$M$177,3,FALSE)) -> Haarsteeg | G22: =IF(VLOOKUP($C22,invullijst!$A$10:$M$177,6,FALSE)="","",VLOOKUP($C22,invullijst!$A$10:$M$177,6,FALSE)) -> 92 | H22: =IF(VLOOKUP($C22,invullijst!$A$10:$M$177,7,FALSE)="","",VLOOKUP($C22,invullijst!$A$10:$M$177,7,FALSE)) ->  | I22: =IF(VLOOKUP($C22,invullijst!$A$10:$M$177,8,FALSE)="","",VLOOKUP($C22,invullijst!$A$10:$M$177,8,FALSE)) ->  | J22: =IF(VLOOKUP($C22,invullijst!$A$10:$M$177,9,FALSE)="","",VLOOKUP($C22,invullijst!$A$10:$M$177,9,FALSE)) -> 94 | K22: =IF(VLOOKUP($C22,invullijst!$A$10:$M$177,10,FALSE)="","",VLOOKUP($C22,invullijst!$A$10:$M$177,10,FALSE)) -> 87 | L22: 273 | M22: =IF(VLOOKUP($C22,invullijst!$A$10:$M$177,11,FALSE)="","",VLOOKUP($C22,invullijst!$A$10:$M$177,11,FALSE)) -> 46
B23: 9 | C23: 514 | D23: =IF(VLOOKUP($C23,invullijst!$A$10:$M191,4,FALSE)="","",VLOOKUP($C23,invullijst!$A$10:$M191,4,FALSE)) -> 65+ | E23: =IF(VLOOKUP($C23,invullijst!$A$10:$M192,2,FALSE)="","",VLOOKUP($C23,invullijst!$A$10:$M192,2,FALSE)) -> Toon Ophorst | F23: =IF(VLOOKUP($C23,invullijst!$A$10:$M$177,3,FALSE)="","",VLOOKUP($C23,invullijst!$A$10:$M$177,3,FALSE)) -> Kaatsheuvel | G23: =IF(VLOOKUP($C23,invullijst!$A$10:$M$177,6,FALSE)="","",VLOOKUP($C23,invullijst!$A$10:$M$177,6,FALSE)) -> 49 | H23: =IF(VLOOKUP($C23,invullijst!$A$10:$M$177,7,FALSE)="","",VLOOKUP($C23,invullijst!$A$10:$M$177,7,FALSE)) -> 67 | I23: =IF(VLOOKUP($C23,invullijst!$A$10:$M$177,8,FALSE)="","",VLOOKUP($C23,invullijst!$A$10:$M$177,8,FALSE)) -> 75 | J23: =IF(VLOOKUP($C23,invullijst!$A$10:$M$177,9,FALSE)="","",VLOOKUP($C23,invullijst!$A$10:$M$177,9,FALSE)) ->  | K23: =IF(VLOOKUP($C23,invullijst!$A$10:$M$177,10,FALSE)="","",VLOOKUP($C23,invullijst!$A$10:$M$177,10,FALSE)) -> 63 | L23: 254 | M23: =IF(VLOOKUP($C23,invullijst!$A$10:$M$177,11,FALSE)="","",VLOOKUP($C23,invullijst!$A$10:$M$177,11,FALSE)) -> 18
B24: 10 | C24: 505 | D24: =IF(VLOOKUP($C24,invullijst!$A$10:$M180,4,FALSE)="","",VLOOKUP($C24,invullijst!$A$10:$M180,4,FALSE)) -> 65+ | E24: =IF(VLOOKUP($C24,invullijst!$A$10:$M182,2,FALSE)="","",VLOOKUP($C24,invullijst!$A$10:$M182,2,FALSE)) -> Leo Wagemakers | F24: =IF(VLOOKUP($C24,invullijst!$A$10:$M$177,3,FALSE)="","",VLOOKUP($C24,invullijst!$A$10:$M$177,3,FALSE)) -> Kaatsheuvel | G24: =IF(VLOOKUP($C24,invullijst!$A$10:$M$177,6,FALSE)="","",VLOOKUP($C24,invullijst!$A$10:$M$177,6,FALSE)) -> 58 | H24: =IF(VLOOKUP($C24,invullijst!$A$10:$M$177,7,FALSE)="","",VLOOKUP($C24,invullijst!$A$10:$M$177,7,FALSE)) -> 69 | I24: =IF(VLOOKUP($C24,invullijst!$A$10:$M$177,8,FALSE)="","",VLOOKUP($C24,invullijst!$A$10:$M$177,8,FALSE)) -> 58 | J24: =IF(VLOOKUP($C24,invullijst!$A$10:$M$177,9,FALSE)="","",VLOOKUP($C24,invullijst!$A$10:$M$177,9,FALSE)) ->  | K24: =IF(VLOOKUP($C24,invullijst!$A$10:$M$177,10,FALSE)="","",VLOOKUP($C24,invullijst!$A$10:$M$177,10,FALSE)) -> 10 | L24: 195 | M24: =IF(VLOOKUP($C24,invullijst!$A$10:$M$177,11,FALSE)="","",VLOOKUP($C24,invullijst!$A$10:$M$177,11,FALSE)) -> 36
D25: =IF(VLOOKUP($C25,invullijst!$A$10:$M199,4,FALSE)="","",VLOOKUP($C25,invullijst!$A$10:$M199,4,FALSE)) -> 0 | E25: =IF(VLOOKUP($C25,invullijst!$A$10:$M195,2,FALSE)="","",VLOOKUP($C25,invullijst!$A$10:$M195,2,FALSE)) -> 0 | F25: =IF(VLOOKUP($C25,invullijst!$A$10:$M$177,3,FALSE)="","",VLOOKUP($C25,invullijst!$A$10:$M$177,3,FALSE)) -> 0 | G25: =IF(VLOOKUP($C25,invullijst!$A$10:$M$177,6,FALSE)="","",VLOOKUP($C25,invullijst!$A$10:$M$177,6,FALSE)) -> 0 | H25: =IF(VLOOKUP($C25,invullijst!$A$10:$M$177,7,FALSE)="","",VLOOKUP($C25,invullijst!$A$10:$M$177,7,FALSE)) -> 0 | I25: =IF(VLOOKUP($C25,invullijst!$A$10:$M$177,8,FALSE)="","",VLOOKUP($C25,invullijst!$A$10:$M$177,8,FALSE)) -> 0 | J25: =IF(VLOOKUP($C25,invullijst!$A$10:$M$177,9,FALSE)="","",VLOOKUP($C25,invullijst!$A$10:$M$177,9,FALSE)) -> 0 | K25: =IF(VLOOKUP($C25,invullijst!$A$10:$M$177,10,FALSE)="","",VLOOKUP($C25,invullijst!$A$10:$M$177,10,FALSE)) -> 0 | L25: 0 | M25: =IF(VLOOKUP($C25,invullijst!$A$10:$M$177,11,FALSE)="","",VLOOKUP($C25,invullijst!$A$10:$M$177,11,FALSE)) -> 0
D26: =IF(VLOOKUP($C26,invullijst!$A$10:$M200,4,FALSE)="","",VLOOKUP($C26,invullijst!$A$10:$M200,4,FALSE)) -> 0 | E26: =IF(VLOOKUP($C26,invullijst!$A$10:$M196,2,FALSE)="","",VLOOKUP($C26,invullijst!$A$10:$M196,2,FALSE)) -> 0 | F26: =IF(VLOOKUP($C26,invullijst!$A$10:$M$177,3,FALSE)="","",VLOOKUP($C26,invullijst!$A$10:$M$177,3,FALSE)) -> 0 | G26: =IF(VLOOKUP($C26,invullijst!$A$10:$M$177,6,FALSE)="","",VLOOKUP($C26,invullijst!$A$10:$M$177,6,FALSE)) -> 0 | H26: =IF(VLOOKUP($C26,invullijst!$A$10:$M$177,7,FALSE)="","",VLOOKUP($C26,invullijst!$A$10:$M$177,7,FALSE)) -> 0 | I26: =IF(VLOOKUP($C26,invullijst!$A$10:$M$177,8,FALSE)="","",VLOOKUP($C26,invullijst!$A$10:$M$177,8,FALSE)) -> 0 | J26: =IF(VLOOKUP($C26,invullijst!$A$10:$M$177,9,FALSE)="","",VLOOKUP($C26,invullijst!$A$10:$M$177,9,FALSE)) -> 0 | K26: =IF(VLOOKUP($C26,invullijst!$A$10:$M$177,10,FALSE)="","",VLOOKUP($C26,invullijst!$A$10:$M$177,10,FALSE)) -> 0 | L26: 0 | M26: =IF(VLOOKUP($C26,invullijst!$A$10:$M$177,11,FALSE)="","",VLOOKUP($C26,invullijst!$A$10:$M$177,11,FALSE)) -> 0
D27: =IF(VLOOKUP($C27,invullijst!$A$10:$M201,4,FALSE)="","",VLOOKUP($C27,invullijst!$A$10:$M201,4,FALSE)) -> 0 | E27: =IF(VLOOKUP($C27,invullijst!$A$10:$M197,2,FALSE)="","",VLOOKUP($C27,invullijst!$A$10:$M197,2,FALSE)) -> 0 | F27: =IF(VLOOKUP($C27,invullijst!$A$10:$M$177,3,FALSE)="","",VLOOKUP($C27,invullijst!$A$10:$M$177,3,FALSE)) -> 0 | G27: =IF(VLOOKUP($C27,invullijst!$A$10:$M$177,6,FALSE)="","",VLOOKUP($C27,invullijst!$A$10:$M$177,6,FALSE)) -> 0 | H27: =IF(VLOOKUP($C27,invullijst!$A$10:$M$177,7,FALSE)="","",VLOOKUP($C27,invullijst!$A$10:$M$177,7,FALSE)) -> 0 | I27: =IF(VLOOKUP($C27,invullijst!$A$10:$M$177,8,FALSE)="","",VLOOKUP($C27,invullijst!$A$10:$M$177,8,FALSE)) -> 0 | J27: =IF(VLOOKUP($C27,invullijst!$A$10:$M$177,9,FALSE)="","",VLOOKUP($C27,invullijst!$A$10:$M$177,9,FALSE)) -> 0 | K27: =IF(VLOOKUP($C27,invullijst!$A$10:$M$177,10,FALSE)="","",VLOOKUP($C27,invullijst!$A$10:$M$177,10,FALSE)) -> 0 | L27: 0 | M27: =IF(VLOOKUP($C27,invullijst!$A$10:$M$177,11,FALSE)="","",VLOOKUP($C27,invullijst!$A$10:$M$177,11,FALSE)) -> 0
D28: =IF(VLOOKUP($C28,invullijst!$A$10:$M202,4,FALSE)="","",VLOOKUP($C28,invullijst!$A$10:$M202,4,FALSE)) -> 0 | E28: =IF(VLOOKUP($C28,invullijst!$A$10:$M198,2,FALSE)="","",VLOOKUP($C28,invullijst!$A$10:$M198,2,FALSE)) -> 0 | F28: =IF(VLOOKUP($C28,invullijst!$A$10:$M$177,3,FALSE)="","",VLOOKUP($C28,invullijst!$A$10:$M$177,3,FALSE)) -> 0 | G28: =IF(VLOOKUP($C28,invullijst!$A$10:$M$177,6,FALSE)="","",VLOOKUP($C28,invullijst!$A$10:$M$177,6,FALSE)) -> 0 | H28: =IF(VLOOKUP($C28,invullijst!$A$10:$M$177,7,FALSE)="","",VLOOKUP($C28,invullijst!$A$10:$M$177,7,FALSE)) -> 0 | I28: =IF(VLOOKUP($C28,invullijst!$A$10:$M$177,8,FALSE)="","",VLOOKUP($C28,invullijst!$A$10:$M$177,8,FALSE)) -> 0 | J28: =IF(VLOOKUP($C28,invullijst!$A$10:$M$177,9,FALSE)="","",VLOOKUP($C28,invullijst!$A$10:$M$177,9,FALSE)) -> 0 | K28: =IF(VLOOKUP($C28,invullijst!$A$10:$M$177,10,FALSE)="","",VLOOKUP($C28,invullijst!$A$10:$M$177,10,FALSE)) -> 0 | L28: 0 | M28: =IF(VLOOKUP($C28,invullijst!$A$10:$M$177,11,FALSE)="","",VLOOKUP($C28,invullijst!$A$10:$M$177,11,FALSE)) -> 0
D29: =IF(VLOOKUP($C29,invullijst!$A$10:$M203,4,FALSE)="","",VLOOKUP($C29,invullijst!$A$10:$M203,4,FALSE)) -> 0 | E29: =IF(VLOOKUP($C29,invullijst!$A$10:$M199,2,FALSE)="","",VLOOKUP($C29,invullijst!$A$10:$M199,2,FALSE)) -> 0 | F29: =IF(VLOOKUP($C29,invullijst!$A$10:$M$177,3,FALSE)="","",VLOOKUP($C29,invullijst!$A$10:$M$177,3,FALSE)) -> 0 | G29: =IF(VLOOKUP($C29,invullijst!$A$10:$M$177,6,FALSE)="","",VLOOKUP($C29,invullijst!$A$10:$M$177,6,FALSE)) -> 0 | H29: =IF(VLOOKUP($C29,invullijst!$A$10:$M$177,7,FALSE)="","",VLOOKUP($C29,invullijst!$A$10:$M$177,7,FALSE)) -> 0 | I29: =IF(VLOOKUP($C29,invullijst!$A$10:$M$177,8,FALSE)="","",VLOOKUP($C29,invullijst!$A$10:$M$177,8,FALSE)) -> 0 | J29: =IF(VLOOKUP($C29,invullijst!$A$10:$M$177,9,FALSE)="","",VLOOKUP($C29,invullijst!$A$10:$M$177,9,FALSE)) -> 0 | K29: =IF(VLOOKUP($C29,invullijst!$A$10:$M$177,10,FALSE)="","",VLOOKUP($C29,invullijst!$A$10:$M$177,10,FALSE)) -> 0 | L29: 0 | M29: =IF(VLOOKUP($C29,invullijst!$A$10:$M$177,11,FALSE)="","",VLOOKUP($C29,invullijst!$A$10:$M$177,11,FALSE)) -> 0
D30: =IF(VLOOKUP($C30,invullijst!$A$10:$M204,4,FALSE)="","",VLOOKUP($C30,invullijst!$A$10:$M204,4,FALSE)) -> 0 | E30: =IF(VLOOKUP($C30,invullijst!$A$10:$M200,2,FALSE)="","",VLOOKUP($C30,invullijst!$A$10:$M200,2,FALSE)) -> 0 | F30: =IF(VLOOKUP($C30,invullijst!$A$10:$M$177,3,FALSE)="","",VLOOKUP($C30,invullijst!$A$10:$M$177,3,FALSE)) -> 0 | G30: =IF(VLOOKUP($C30,invullijst!$A$10:$M$177,6,FALSE)="","",VLOOKUP($C30,invullijst!$A$10:$M$177,6,FALSE)) -> 0 | H30: =IF(VLOOKUP($C30,invullijst!$A$10:$M$177,7,FALSE)="","",VLOOKUP($C30,invullijst!$A$10:$M$177,7,FALSE)) -> 0 | I30: =IF(VLOOKUP($C30,invullijst!$A$10:$M$177,8,FALSE)="","",VLOOKUP($C30,invullijst!$A$10:$M$177,8,FALSE)) -> 0 | J30: =IF(VLOOKUP($C30,invullijst!$A$10:$M$177,9,FALSE)="","",VLOOKUP($C30,invullijst!$A$10:$M$177,9,FALSE)) -> 0 | K30: =IF(VLOOKUP($C30,invullijst!$A$10:$M$177,10,FALSE)="","",VLOOKUP($C30,invullijst!$A$10:$M$177,10,FALSE)) -> 0 | L30: 0 | M30: =IF(VLOOKUP($C30,invullijst!$A$10:$M$177,11,FALSE)="","",VLOOKUP($C30,invullijst!$A$10:$M$177,11,FALSE)) -> 0
D31: =IF(VLOOKUP($C31,invullijst!$A$10:$M205,4,FALSE)="","",VLOOKUP($C31,invullijst!$A$10:$M205,4,FALSE)) -> 0 | E31: =IF(VLOOKUP($C31,invullijst!$A$10:$M201,2,FALSE)="","",VLOOKUP($C31,invullijst!$A$10:$M201,2,FALSE)) -> 0 | F31: =IF(VLOOKUP($C31,invullijst!$A$10:$M$177,3,FALSE)="","",VLOOKUP($C31,invullijst!$A$10:$M$177,3,FALSE)) -> 0 | G31: =IF(VLOOKUP($C31,invullijst!$A$10:$M$177,6,FALSE)="","",VLOOKUP($C31,invullijst!$A$10:$M$177,6,FALSE)) -> 0 | H31: =IF(VLOOKUP($C31,invullijst!$A$10:$M$177,7,FALSE)="","",VLOOKUP($C31,invullijst!$A$10:$M$177,7,FALSE)) -> 0 | I31: =IF(VLOOKUP($C31,invullijst!$A$10:$M$177,8,FALSE)="","",VLOOKUP($C31,invullijst!$A$10:$M$177,8,FALSE)) -> 0 | J31: =IF(VLOOKUP($C31,invullijst!$A$10:$M$177,9,FALSE)="","",VLOOKUP($C31,invullijst!$A$10:$M$177,9,FALSE)) -> 0 | K31: =IF(VLOOKUP($C31,invullijst!$A$10:$M$177,10,FALSE)="","",VLOOKUP($C31,invullijst!$A$10:$M$177,10,FALSE)) -> 0 | L31: 0 | M31: =IF(VLOOKUP($C31,invullijst!$A$10:$M$177,11,FALSE)="","",VLOOKUP($C31,invullijst!$A$10:$M$177,11,FALSE)) -> 0
D32: =IF(VLOOKUP($C32,invullijst!$A$10:$M206,4,FALSE)="","",VLOOKUP($C32,invullijst!$A$10:$M206,4,FALSE)) -> 0 | E32: =IF(VLOOKUP($C32,invullijst!$A$10:$M202,2,FALSE)="","",VLOOKUP($C32,invullijst!$A$10:$M202,2,FALSE)) -> 0 | F32: =IF(VLOOKUP($C32,invullijst!$A$10:$M$177,3,FALSE)="","",VLOOKUP($C32,invullijst!$A$10:$M$177,3,FALSE)) -> 0 | G32: =IF(VLOOKUP($C32,invullijst!$A$10:$M$177,6,FALSE)="","",VLOOKUP($C32,invullijst!$A$10:$M$177,6,FALSE)) -> 0 | H32: =IF(VLOOKUP($C32,invullijst!$A$10:$M$177,7,FALSE)="","",VLOOKUP($C32,invullijst!$A$10:$M$177,7,FALSE)) -> 0 | I32: =IF(VLOOKUP($C32,invullijst!$A$10:$M$177,8,FALSE)="","",VLOOKUP($C32,invullijst!$A$10:$M$177,8,FALSE)) -> 0 | J32: =IF(VLOOKUP($C32,invullijst!$A$10:$M$177,9,FALSE)="","",VLOOKUP($C32,invullijst!$A$10:$M$177,9,FALSE)) -> 0 | K32: =IF(VLOOKUP($C32,invullijst!$A$10:$M$177,10,FALSE)="","",VLOOKUP($C32,invullijst!$A$10:$M$177,10,FALSE)) -> 0 | L32: 0 | M32: =IF(VLOOKUP($C32,invullijst!$A$10:$M$177,11,FALSE)="","",VLOOKUP($C32,invullijst!$A$10:$M$177,11,FALSE)) -> 0
D33: =IF(VLOOKUP($C33,invullijst!$A$10:$M207,4,FALSE)="","",VLOOKUP($C33,invullijst!$A$10:$M207,4,FALSE)) -> 0 | E33: =IF(VLOOKUP($C33,invullijst!$A$10:$M203,2,FALSE)="","",VLOOKUP($C33,invullijst!$A$10:$M203,2,FALSE)) -> 0 | F33: =IF(VLOOKUP($C33,invullijst!$A$10:$M$177,3,FALSE)="","",VLOOKUP($C33,invullijst!$A$10:$M$177,3,FALSE)) -> 0 | G33: =IF(VLOOKUP($C33,invullijst!$A$10:$M$177,6,FALSE)="","",VLOOKUP($C33,invullijst!$A$10:$M$177,6,FALSE)) -> 0 | H33: =IF(VLOOKUP($C33,invullijst!$A$10:$M$177,7,FALSE)="","",VLOOKUP($C33,invullijst!$A$10:$M$177,7,FALSE)) -> 0 | I33: =IF(VLOOKUP($C33,invullijst!$A$10:$M$177,8,FALSE)="","",VLOOKUP($C33,invullijst!$A$10:$M$177,8,FALSE)) -> 0 | J33: =IF(VLOOKUP($C33,invullijst!$A$10:$M$177,9,FALSE)="","",VLOOKUP($C33,invullijst!$A$10:$M$177,9,FALSE)) -> 0 | K33: =IF(VLOOKUP($C33,invullijst!$A$10:$M$177,10,FALSE)="","",VLOOKUP($C33,invullijst!$A$10:$M$177,10,FALSE)) -> 0 | L33: 0 | M33: =IF(VLOOKUP($C33,invullijst!$A$10:$M$177,11,FALSE)="","",VLOOKUP($C33,invullijst!$A$10:$M$177,11,FALSE)) -> 0
D34: =IF(VLOOKUP($C34,invullijst!$A$10:$M184,4,FALSE)="","",VLOOKUP($C34,invullijst!$A$10:$M184,4,FALSE)) -> 0 | E34: =IF(VLOOKUP($C34,invullijst!$A$10:$M185,2,FALSE)="","",VLOOKUP($C34,invullijst!$A$10:$M185,2,FALSE)) -> 0 | F34: =IF(VLOOKUP($C34,invullijst!$A$10:$M$177,3,FALSE)="","",VLOOKUP($C34,invullijst!$A$10:$M$177,3,FALSE)) -> 0 | G34: =IF(VLOOKUP($C34,invullijst!$A$10:$M$177,6,FALSE)="","",VLOOKUP($C34,invullijst!$A$10:$M$177,6,FALSE)) -> 0 | H34: =IF(VLOOKUP($C34,invullijst!$A$10:$M$177,7,FALSE)="","",VLOOKUP($C34,invullijst!$A$10:$M$177,7,FALSE)) -> 0 | I34: =IF(VLOOKUP($C34,invullijst!$A$10:$M$177,8,FALSE)="","",VLOOKUP($C34,invullijst!$A$10:$M$177,8,FALSE)) -> 0 | J34: =IF(VLOOKUP($C34,invullijst!$A$10:$M$177,9,FALSE)="","",VLOOKUP($C34,invullijst!$A$10:$M$177,9,FALSE)) -> 0 | K34: =IF(VLOOKUP($C34,invullijst!$A$10:$M$177,10,FALSE)="","",VLOOKUP($C34,invullijst!$A$10:$M$177,10,FALSE)) -> 0 | L34: 0 | M34: =IF(VLOOKUP($C34,invullijst!$A$10:$M$177,11,FALSE)="","",VLOOKUP($C34,invullijst!$A$10:$M$177,11,FALSE)) -> 0

Sheet Korps
C1: =invullijst!F1 -> Organisatie | E1: =invullijst!H2 -> 2023 - 2024 | J1: =invullijst!F3 -> St. Crispinus & Crispinianus Besoijen
C5: UITSLAGEN O.V.L.B. KORPS VRIJE-HAND | Q5: Hieronder niets wijzigen
C7: A-Korps Vrije-hand | J7: B-Korps Vrije-hand | AC7: A-Korps | AF7: B-Korps
C8: Baardwijk | D8: 313 | E8: - | F8: 330 | G8: Besoijen | J8: Baardwijk | K8: 53 | L8: - | M8: 340 | N8: Besoijen | Q8: =D8 -> 313 | R8: ba | S8: =IF(ISBLANK(D8),"",IF(D8=F8,1,IF(D8>F8,2,0))) -> 0 | T8: =IF(ISBLANK(F8),"",IF(F8=D8,1,IF(F8>D8,2,0))) -> 2 | U8: be | V8: =F8 -> 330 | W8: =K8 -> 53 | X8: ba | Y8: =IF(ISBLANK(K8),"",IF(K8=M8,1,IF(K8>M8,2,0))) -> 0 | Z8: =IF(ISBLANK(M8),"",IF(M8=K8,1,IF(M8>K8,2,0))) -> 2 | AA8: be | AB8: =M8 -> 340 | AC8: Baardwijk | AD8: =SUM(S8:S11) -> 0 | AE8: =SUM(Q8:Q11) -> 1262 | AF8: Baardwijk | AG8: =SUM(Y8:Y11) -> 0 | AH8: =SUM(W8:W11) -> 117
C9: Baardwijk | D9: 324 | E9: - | F9: 340 | G9: Elshout | J9: Baardwijk | K9: 0 | L9: - | M9: 68 | N9: Elshout | Q9: 324 | R9: ba | S9: 0 | T9: 2 | U9: el | V9: 340 | W9: =K9 -> 0 | X9: ba | Y9: =IF(ISBLANK(K9),"",IF(K9=M9,1,IF(K9>M9,2,0))) -> 0 | Z9: =IF(ISBLANK(M9),"",IF(M9=K9,1,IF(M9>K9,2,0))) -> 2 | AA9: el | AB9: =M9 -> 68 | AC9: Besoijen | AD9: =SUM(T8,S12:S14) -> 7 | AE9: =SUM(V8,Q12:Q14) -> 1349 | AF9: Besoijen | AG9: =SUM(Z8,Y12:Y14) -> 8 | AH9: =SUM(AB8,W12:W14) -> 1285
C10: Baardwijk | D10: 303 | E10: - | F10: 326 | G10: Haarsteeg | J10: Baardwijk | K10: 0 | L10: - | M10: 154 | N10: Haarsteeg | Q10: 303 | R10: ba | S10: 0 | T10: 2 | U10: ha | V10: 326 | W10: 0 | X10: ba | Y10: 0 | Z10: 2 | AA10: ha | AB10: 154 | AC10: Elshout | AD10: =SUM(T9,T12,S15:S16) -> 5 | AE10: =SUM(V9,V12,Q15:Q16) -> 1334 | AF10: Elshout | AG10: =SUM(Z9,Z12,Y15:Y16) -> 2 | AH10: =SUM(AB9,AB12,W15:W16) -> 216
C11: Baardwijk | D11: 322 | E11: - | F11: 335 | G11: Kaatsheuvel | J11: Baardwijk | K11: 64 | L11: - | M11: 294 | N11: Kaatsheuvel | Q11: 322 | R11: ba | S11: 0 | T11: 2 | U11: ka | V11: 335 | W11: 64 | X11: ba | Y11: 0 | Z11: 2 | AA11: ka | AB11: 294 | AC11: Haarsteeg | AD11: =SUM(T10,T13,T15,S17) -> 6 | AE11: =SUM(V10,V13,V15,Q17) -> 1325 | AF11: Haarsteeg | AG11: =SUM(Z10,Z13,Z15,Y17) -> 4 | AH11: =SUM(AB10,AB13,AB15,W17) -> 565
C12: Besoijen | D12: 342 | E12: - | F12: 342 | G12: Elshout | J12: Besoijen | K12: 320 | L12: - | M12: 68 | N12: Elshout | Q12: 342 | R12: be | S12: 1 | T12: 1 | U12: el | V12: 342 | W12: 320 | X12: be | Y12: 2 | Z12: 0 | AA12: el | AB12: 68 | AC12: Kaatsheuvel | AD12: =SUM(T11,T14,T16,T17) -> 2 | AE12: =SUM(V11,V14,V16,V17) -> 1312 | AF12: Kaatsheuvel | AG12: =SUM(Z11,Z14,Z16,Z17) -> 6 | AH12: =SUM(AB11,AB14,AB16,AB17) -> 953
C13: Besoijen | D13: 342 | E13: - | F13: 330 | G13: Haarsteeg | J13: Besoijen | K13: 315 | L13: - | M13: 79 | N13: Haarsteeg | Q13: 342 | R13: be | S13: 2 | T13: 0 | U13: ha | V13: 330 | W13: 315 | X13: be | Y13: 2 | Z13: 0 | AA13: ha | AB13: 79
C14: Besoijen | D14: 335 | E14: - | F14: 328 | G14: Kaatsheuvel | J14: Besoijen | K14: 310 | L14: - | M14: 213 | N14: Kaatsheuvel | Q14: 335 | R14: be | S14: 2 | T14: 0 | U14: ka | V14: 328 | W14: 310 | X14: be | Y14: 2 | Z14: 0 | AA14: ka | AB14: 213
C15: Elshout | D15: 304 | E15: - | F15: 334 | G15: Haarsteeg | J15: Elshout | K15: 0 | L15: - | M15: 169 | N15: Haarsteeg | Q15: 304 | R15: el | S15: 0 | T15: 2 | U15: ha | V15: 334 | W15: 0 | X15: el | Y15: 0 | Z15: 2 | AA15: ha | AB15: 169
C16: Elshout | D16: 348 | E16: - | F16: 327 | G16: Kaatsheuvel | J16: Elshout | K16: 80 | L16: - | M16: 235 | N16: Kaatsheuvel | Q16: 348 | R16: el | S16: 2 | T16: 0 | U16: ka | V16: 327 | W16: 80 | X16: el | Y16: 0 | Z16: 2 | AA16: ka | AB16: 235
C17: Haarsteeg | D17: 335 | E17: - | F17: 322 | G17: Kaatsheuvel | J17: Haarsteeg | K17: 163 | L17: - | M17: 211 | N17: Kaatsheuvel | Q17: 335 | R17: ha | S17: 2 | T17: 0 | U17: ka | V17: 322 | W17: 163 | X17: ha | Y17: 0 | Z17: 2 | AA17: ka | AB17: 211
C18: (*): de wedstrijden kunnen zowel uit- als thuiswedstrijden zijn; dus b.v. zowel Besoijen-Elshout als Elshout- Besoijen...
C21: EINDSTAND A-KORPS VRIJE-HAND | J21: EINDSTAND B-KORPS VRIJE-HAND
D22: Matchpunten | E22: - | F22: Totaalpunten | K22: Matchpunten | L22: - | M22: Totaalpunten
A24: 1 | C24: Besoijen | D24: =IF(ISTEXT(C24),VLOOKUP(C24,$AC$8:$AE$12,2,FALSE)," ") -> 7 | E24: - | F24: =IF(ISTEXT(C24),VLOOKUP(C24,$AC$8:$AE$12,3,FALSE)," ") -> 1349 | H24: 1 | J24: Besoijen | K24: =IF(ISTEXT(J24),VLOOKUP(J24,$AF$8:$AH$12,2,FALSE)," ") -> 8 | L24: - | M24: =IF(ISTEXT(J24),VLOOKUP(J24,$AF$8:$AH$12,3,FALSE)," ") -> 1285
A25: 2 | C25: Haarsteeg | D25: =IF(ISTEXT(C25),VLOOKUP(C25,$AC$8:$AE$12,2,FALSE)," ") -> 6 | E25: - | F25: =IF(ISTEXT(C25),VLOOKUP(C25,$AC$8:$AE$12,3,FALSE)," ") -> 1325 | H25: 2 | J25: Kaatsheuvel | K25: =IF(ISTEXT(J25),VLOOKUP(J25,$AF$8:$AH$12,2,FALSE)," ") -> 6 | L25: - | M25: =IF(ISTEXT(J25),VLOOKUP(J25,$AF$8:$AH$12,3,FALSE)," ") -> 953
A26: 3 | C26: Elshout | D26: =IF(ISTEXT(C26),VLOOKUP(C26,$AC$8:$AE$12,2,FALSE)," ") -> 5 | E26: - | F26: =IF(ISTEXT(C26),VLOOKUP(C26,$AC$8:$AE$12,3,FALSE)," ") -> 1334 | H26: 3 | J26: Haarsteeg | K26: =IF(ISTEXT(J26),VLOOKUP(J26,$AF$8:$AH$12,2,FALSE)," ") -> 4 | L26: - | M26: =IF(ISTEXT(J26),VLOOKUP(J26,$AF$8:$AH$12,3,FALSE)," ") -> 565
A27: 4 | C27: Kaatsheuvel | D27: =IF(ISTEXT(C27),VLOOKUP(C27,$AC$8:$AE$12,2,FALSE)," ") -> 2 | E27: - | F27: =IF(ISTEXT(C27),VLOOKUP(C27,$AC$8:$AE$12,3,FALSE)," ") -> 1312 | H27: 4 | J27: Elshout | K27: =IF(ISTEXT(J27),VLOOKUP(J27,$AF$8:$AH$12,2,FALSE)," ") -> 2 | L27: - | M27: =IF(ISTEXT(J27),VLOOKUP(J27,$AF$8:$AH$12,3,FALSE)," ") -> 216
A28: 5 | C28: Baardwijk | D28: =IF(ISTEXT(C28),VLOOKUP(C28,$AC$8:$AE$12,2,FALSE)," ") -> 0 | E28: - | F28: =IF(ISTEXT(C28),VLOOKUP(C28,$AC$8:$AE$12,3,FALSE)," ") -> 1262 | H28: 5 | J28: Baardwijk | K28: =IF(ISTEXT(J28),VLOOKUP(J28,$AF$8:$AH$12,2,FALSE)," ") -> 0 | L28: - | M28: =IF(ISTEXT(J28),VLOOKUP(J28,$AF$8:$AH$12,3,FALSE)," ") -> 117
C32: UITSLAGEN O.V.L.B. KORPS OPGELEGD | Q32: Hieronder niets wijzigen
C34: A-KORPS OPGELEGD | J34: B-KORPS OPGELEGD | AC34: A-Korps | AF34: B-Korps
C35: Baardwijk | D35: 261 | E35: - | F35: 275 | G35: Besoijen | J35: Baardwijk | L35: - | N35: Besoijen | Q35: =D35 -> 261 | R35: ba | S35: =IF(ISBLANK(D35),"",IF(D35=F35,1,IF(D35>F35,2,0))) -> 0 | T35: =IF(ISBLANK(F35),"",IF(F35=D35,1,IF(F35>D35,2,0))) -> 2 | U35: be | V35: =F35 -> 275 | W35: =K35 -> 0 | X35: ba | Y35: =IF(ISBLANK(K35),"",IF(K35=M35,1,IF(K35>M35,2,0))) ->  | Z35: =IF(ISBLANK(M35),"",IF(M35=K35,1,IF(M35>K35,2,0))) ->  | AA35: be | AB35: =M35 -> 0 | AC35: Baardwijk | AD35: =SUM(S35:S38) -> 0 | AE35: =SUM(Q35:Q38) -> 969 | AF35: Baardwijk | AG35: =SUM(Y35:Y38) -> 0 | AH35: =SUM(W35:W38) -> 65
C36: Baardwijk | D36: 241 | E36: - | F36: 271 | G36: Elshout | J36: Baardwijk | K36: 0 | L36: - | M36: 181 | N36: Elshout | Q36: 241 | R36: ba | S36: 0 | T36: 2 | U36: el | V36: 271 | W36: =K36 -> 0 | X36: ba | Y36: =IF(ISBLANK(K36),"",IF(K36=M36,1,IF(K36>M36,2,0))) -> 0 | Z36: =IF(ISBLANK(M36),"",IF(M36=K36,1,IF(M36>K36,2,0))) -> 2 | AA36: el | AB36: =M36 -> 181 | AC36: Besoijen | AD36: =SUM(T35,S39:S41) -> 4 | AE36: =SUM(V35,Q39:Q41) -> 1085 | AF36: Besoijen | AG36: =SUM(Z35,Y39:Y41) -> 0 | AH36: =SUM(AB35,W39:W41) -> 0
C37: Baardwijk | D37: 217 | E37: - | F37: 287 | G37: Haarsteeg | J37: Baardwijk | K37: 65 | L37: - | M37: 281 | N37: Haarsteeg | Q37: 217 | R37: ba | S37: 0 | T37: 2 | U37: ha | V37: 287 | W37: 65 | X37: ba | Y37: 0 | Z37: 2 | AA37: ha | AB37: 281 | AC37: Elshout | AD37: =SUM(T36,T39,S42:S43) -> 6 | AE37: =SUM(V36,V39,Q42:Q43) -> 1102 | AF37: Elshout | AG37: =SUM(Z36,Z39,Y42:Y43) -> 4 | AH37: =SUM(AB36,AB39,W42:W43) -> 638
C38: Baardwijk | D38: 250 | E38: - | F38: 272 | G38: Kaatsheuvel | J38: Baardwijk | K38: 0 | L38: - | M38: 224 | N38: Kaatsheuvel | Q38: 250 | R38: ba | S38: 0 | T38: 2 | U38: ka | V38: 272 | W38: 0 | X38: ba | Y38: 0 | Z38: 2 | AA38: ka | AB38: 224 | AC38: Haarsteeg | AD38: =SUM(T37,T40,T42,S44) -> 8 | AE38: =SUM(V37,V40,V42,Q44) -> 1144 | AF38: Haarsteeg | AG38: =SUM(Z37,Z40,Z42,Y44) -> 8 | AH38: =SUM(AB37,AB40,AB42,W44) -> 1018
C39: Besoijen | D39: 273 | E39: - | F39: 277 | G39: Elshout | J39: Besoijen | K39: 0 | L39: - | M39: 182 | N39: Elshout | Q39: 273 | R39: be | S39: 0 | T39: 2 | U39: el | V39: 277 | W39: 0 | X39: be | Y39: 0 | Z39: 2 | AA39: el | AB39: 182 | AC39: Kaatsheuvel | AD39: =SUM(T38,T41,T43,T44) -> 2 | AE39: =SUM(V38,V41,V43,V44) -> 1074 | AF39: Kaatsheuvel | AG39: =SUM(Z38,Z41,Z43,Z44) -> 6 | AH39: =SUM(AB38,AB41,AB43,AB44) -> 710
C40: Besoijen | D40: 264 | E40: - | F40: 289 | G40: Haarsteeg | J40: Besoijen | K40: 0 | L40: - | M40: 185 | N40: Haarsteeg | Q40: 264 | R40: be | S40: 0 | T40: 2 | U40: ha | V40: 289 | W40: 0 | X40: be | Y40: 0 | Z40: 2 | AA40: ha | AB40: 185
C41: Besoijen | D41: 273 | E41: - | F41: 267 | G41: Kaatsheuvel | J41: Besoijen | K41: 0 | L41: - | M41: 192 | N41: Kaatsheuvel | Q41: 273 | R41: be | S41: 2 | T41: 0 | U41: ka | V41: 267 | W41: 0 | X41: be | Y41: 0 | Z41: 2 | AA41: ka | AB41: 192
C42: Elshout | D42: 277 | E42: - | F42: 286 | G42: Haarsteeg | J42: Elshout | K42: 88 | L42: - | M42: 281 | N42: Haarsteeg | Q42: 277 | R42: el | S42: 0 | T42: 2 | U42: ha | V42: 286 | W42: 88 | X42: el | Y42: 0 | Z42: 2 | AA42: ha | AB42: 281
C43: Elshout | D43: 277 | E43: - | F43: 266 | G43: Kaatsheuvel | J43: Elshout | K43: 187 | L43: - | M43: 221 | N43: Kaatsheuvel | Q43: 277 | R43: el | S43: 2 | T43: 0 | U43: ka | V43: 266 | W43: 187 | X43: el | Y43: 0 | Z43: 2 | AA43: ka | AB43: 221
C44: Haarsteeg | D44: 282 | E44: - | F44: 269 | G44: Kaatsheuvel | J44: Haarsteeg | K44: 271 | L44: - | M44: 73 | N44: Kaatsheuvel | Q44: 282 | R44: ha | S44: 2 | T44: 0 | U44: ka | V44: 269 | W44: 271 | X44: ha | Y44: 2 | Z44: 0 | AA44: ka | AB44: 73
C45: (*): de wedstrijden kunnen zowel uit- als thuiswedstrijden zijn; dus b.v. zowel Besoijen-Elshout als Elshout- Besoijen...
C48: EINDSTAND A-KORPS OPGELEGD | J48: EINDSTAND B-KORPS OPGELEGD
D49: Matchpunten | E49: - | F49: Totaalpunten | K49: Matchpunten | L49: - | M49: Totaalpunten
A51: 1 | C51: Haarsteeg | D51: =IF(ISTEXT(C51),VLOOKUP(C51,$AC$35:$AE$39,2,FALSE)," ") -> 8 | E51: - | F51: =IF(ISTEXT(C51),VLOOKUP(C51,$AC$35:$AE$39,3,FALSE)," ") -> 1144 | H51: 1 | J51: Haarsteeg | K51: =IF(ISTEXT(J51),VLOOKUP(J51,$AF$35:$AH$39,2,FALSE)," ") -> 8 | L51: - | M51: =IF(ISTEXT(J51),VLOOKUP(J51,$AF$35:$AH$39,3,FALSE)," ") -> 1018
A52: 2 | C52: Elshout | D52: =IF(ISTEXT(C52),VLOOKUP(C52,$AC$35:$AE$39,2,FALSE)," ") -> 6 | E52: - | F52: =IF(ISTEXT(C52),VLOOKUP(C52,$AC$35:$AE$39,3,FALSE)," ") -> 1102 | H52: 2 | J52: Kaatsheuvel | K52: =IF(ISTEXT(J52),VLOOKUP(J52,$AF$35:$AH$39,2,FALSE)," ") -> 6 | L52: - | M52: =IF(ISTEXT(J52),VLOOKUP(J52,$AF$35:$AH$39,3,FALSE)," ") -> 710
A53: 3 | C53: Besoijen | D53: =IF(ISTEXT(C53),VLOOKUP(C53,$AC$35:$AE$39,2,FALSE)," ") -> 4 | E53: - | F53: =IF(ISTEXT(C53),VLOOKUP(C53,$AC$35:$AE$39,3,FALSE)," ") -> 1085 | H53: 3 | J53: Elshout | K53: =IF(ISTEXT(J53),VLOOKUP(J53,$AF$35:$AH$39,2,FALSE)," ") -> 4 | L53: - | M53: =IF(ISTEXT(J53),VLOOKUP(J53,$AF$35:$AH$39,3,FALSE)," ") -> 638
A54: 4 | C54: Kaatsheuvel | D54: =IF(ISTEXT(C54),VLOOKUP(C54,$AC$35:$AE$39,2,FALSE)," ") -> 2 | E54: - | F54: =IF(ISTEXT(C54),VLOOKUP(C54,$AC$35:$AE$39,3,FALSE)," ") -> 1074 | H54: 4 | J54: Baardwijk | K54: =IF(ISTEXT(J54),VLOOKUP(J54,$AF$35:$AH$39,2,FALSE)," ") -> 0 | L54: - | M54: =IF(ISTEXT(J54),VLOOKUP(J54,$AF$35:$AH$39,3,FALSE)," ") -> 65
A55: 5 | C55: Baardwijk | D55: =IF(ISTEXT(C55),VLOOKUP(C55,$AC$35:$AE$39,2,FALSE)," ") -> 0 | E55: - | F55: =IF(ISTEXT(C55),VLOOKUP(C55,$AC$35:$AE$39,3,FALSE)," ") -> 969 | H55: 5 | J55: Besoijen | K55: =IF(ISTEXT(J55),VLOOKUP(J55,$AF$35:$AH$39,2,FALSE)," ") -> 0 | L55: - | M55: =IF(ISTEXT(J55),VLOOKUP(J55,$AF$35:$AH$39,3,FALSE)," ") -> 0

Sheet wedstrijd 1A
A1: =invullijst!F1 -> Organisatie | F1: =invullijst!H2 -> 2023 - 2024 | I1: =invullijst!F3 -> St. Crispinus & Crispinianus Besoijen
A2: Datum: | M2: 2023-12-10
A3: 5 | B3: =IF(VLOOKUP(A3,invullijst!A1:F5,2,FALSE)="","",VLOOKUP(A3,invullijst!A1:F5,2,FALSE)) -> Sint Jan Baptist Kaatsheuvel | I3: 2 | J3: =IF(VLOOKUP(I3,invullijst!A1:C5,2,FALSE)="","",VLOOKUP(I3,invullijst!A1:C5,2,FALSE)) -> St. Crispinus & Crispinianus Besoijen
A5: vrijehand
A6: 1 | B6: =IF($G$3="k",IF(VLOOKUP($D6,invullijst!$A$11:$M$177,11,FALSE)=0," ",VLOOKUP($D6,invullijst!$A$11:$M$177,11,FALSE)),"") ->  | C6: =IF(VLOOKUP(D6,invullijst!A$11:F$218,4,FALSE)="","",VLOOKUP(D6,invullijst!A$11:D$218,4,FALSE)) -> vr | D6: 501 | E6: =IF(VLOOKUP($D6,invullijst!$A$11:$M$177,2,FALSE)="","",VLOOKUP($D6,invullijst!$A$11:$M$177,2,FALSE)) -> Annette Vos | G6: =IF(VLOOKUP($D6,invullijst!$A$11:$M$177,6,FALSE)=0,"",VLOOKUP($D6,invullijst!$A$11:$M$177,6,FALSE)) -> 80 | I6: 1 | J6: =IF($O$3="k",IF(VLOOKUP($L6,invullijst!$A$11:$M$177,11,FALSE)=0," ",VLOOKUP($L6,invullijst!$A$11:$M$177,11,FALSE)),"") ->  | L6: 201 | M6: =IF(VLOOKUP($L6,invullijst!$A$11:$M$177,2,FALSE)="","",VLOOKUP($L6,invullijst!$A$11:$M$177,2,FALSE)) -> Sander Oome | O6: =IF(VLOOKUP($L6,invullijst!$A$11:$M$177,6,FALSE)=0,"",VLOOKUP($L6,invullijst!$A$11:$M$177,6,FALSE)) -> 91
A7: 2 | B7: =IF($G$3="k",IF(VLOOKUP($D7,invullijst!$A$11:$M$177,11,FALSE)=0," ",VLOOKUP($D7,invullijst!$A$11:$M$177,11,FALSE)),"") ->  | C7: =IF(VLOOKUP(D7,invullijst!A$11:F$218,4,FALSE)="","",VLOOKUP(D7,invullijst!A$11:D$218,4,FALSE)) -> vr | D7: 507 | E7: =IF(VLOOKUP($D7,invullijst!$A$11:$M$177,2,FALSE)="","",VLOOKUP($D7,invullijst!$A$11:$M$177,2,FALSE)) -> Michael Blaauwbroek | G7: =IF(VLOOKUP($D7,invullijst!$A$11:$M$177,6,FALSE)=0,"",VLOOKUP($D7,invullijst!$A$11:$M$177,6,FALSE)) -> 70 | I7: 2 | J7: =IF($O$3="k",IF(VLOOKUP($L7,invullijst!$A$11:$M$177,11,FALSE)=0," ",VLOOKUP($L7,invullijst!$A$11:$M$177,11,FALSE)),"") ->  | L7: 206 | M7: =IF(VLOOKUP($L7,invullijst!$A$11:$M$177,2,FALSE)="","",VLOOKUP($L7,invullijst!$A$11:$M$177,2,FALSE)) -> Kees van Hulten | O7: =IF(VLOOKUP($L7,invullijst!$A$11:$M$177,6,FALSE)=0,"",VLOOKUP($L7,invullijst!$A$11:$M$177,6,FALSE)) -> 86
A8: 3 | B8: =IF($G$3="k",IF(VLOOKUP($D8,invullijst!$A$11:$M$177,11,FALSE)=0," ",VLOOKUP($D8,invullijst!$A$11:$M$177,11,FALSE)),"") ->  | C8: =IF(VLOOKUP(D8,invullijst!A$11:F$218,4,FALSE)="","",VLOOKUP(D8,invullijst!A$11:D$218,4,FALSE)) -> vr | D8: 506 | E8: =IF(VLOOKUP($D8,invullijst!$A$11:$M$177,2,FALSE)="","",VLOOKUP($D8,invullijst!$A$11:$M$177,2,FALSE)) -> Maikel Monden | G8: =IF(VLOOKUP($D8,invullijst!$A$11:$M$177,6,FALSE)=0,"",VLOOKUP($D8,invullijst!$A$11:$M$177,6,FALSE)) -> 84 | I8: 3 | J8: =IF($O$3="k",IF(VLOOKUP($L8,invullijst!$A$11:$M$177,11,FALSE)=0," ",VLOOKUP($L8,invullijst!$A$11:$M$177,11,FALSE)),"") ->  | L8: 205 | M8: =IF(VLOOKUP($L8,invullijst!$A$11:$M$177,2,FALSE)="","",VLOOKUP($L8,invullijst!$A$11:$M$177,2,FALSE)) -> Jos v/d Snepscheut | O8: =IF(VLOOKUP($L8,invullijst!$A$11:$M$177,6,FALSE)=0,"",VLOOKUP($L8,invullijst!$A$11:$M$177,6,FALSE)) -> 79
A9: 4 | B9: =IF($G$3="k",IF(VLOOKUP($D9,invullijst!$A$11:$M$177,11,FALSE)=0," ",VLOOKUP($D9,invullijst!$A$11:$M$177,11,FALSE)),"") ->  | C9: =IF(VLOOKUP(D9,invullijst!A$11:F$218,4,FALSE)="","",VLOOKUP(D9,invullijst!A$11:D$218,4,FALSE)) -> vr | D9: 504 | E9: =IF(VLOOKUP($D9,invullijst!$A$11:$M$177,2,FALSE)="","",VLOOKUP($D9,invullijst!$A$11:$M$177,2,FALSE)) -> Koen v/d Ven | G9: =IF(VLOOKUP($D9,invullijst!$A$11:$M$177,6,FALSE)=0,"",VLOOKUP($D9,invullijst!$A$11:$M$177,6,FALSE)) -> 94 | I9: 4 | J9: =IF($O$3="k",IF(VLOOKUP($L9,invullijst!$A$11:$M$177,11,FALSE)=0," ",VLOOKUP($L9,invullijst!$A$11:$M$177,11,FALSE)),"") ->  | L9: 215 | M9: =IF(VLOOKUP($L9,invullijst!$A$11:$M$177,2,FALSE)="","",VLOOKUP($L9,invullijst!$A$11:$M$177,2,FALSE)) -> Pieter Laghuwitz | O9: =IF(VLOOKUP($L9,invullijst!$A$11:$M$177,6,FALSE)=0,"",VLOOKUP($L9,invullijst!$A$11:$M$177,6,FALSE)) -> 79
A10: Totaal A korps | G10: =SUM(G6:G9) -> 328 | I10: Totaal A korps | O10: =SUM(O6:O9) -> 335
A12: 1 | B12: =IF($G$3="k",IF(VLOOKUP($D12,invullijst!$A$11:$M$177,11,FALSE)=0," ",VLOOKUP($D12,invullijst!$A$11:$M$177,11,FALSE)),"") ->  | C12: =IF(VLOOKUP(D12,invullijst!A$11:F$218,4,FALSE)="","",VLOOKUP(D12,invullijst!A$11:D$218,4,FALSE)) -> vr | D12: 512 | E12: =IF(VLOOKUP($D12,invullijst!$A$11:$M$177,2,FALSE)="","",VLOOKUP($D12,invullijst!$A$11:$M$177,2,FALSE)) -> Hans Bergakker | G12: =IF(VLOOKUP($D12,invullijst!$A$11:$M$177,6,FALSE)=0,"",VLOOKUP($D12,invullijst!$A$11:$M$177,6,FALSE)) -> 81 | I12: 1 | J12: =IF($O$3="k",IF(VLOOKUP($L12,invullijst!$A$11:$M$177,11,FALSE)=0," ",VLOOKUP($L12,invullijst!$A$11:$M$177,11,FALSE)),"") ->  | K12: =IF(VLOOKUP($L12,invullijst!$A$11:$M$218,4,FALSE)="","",VLOOKUP($L12,invullijst!$A$11:$M$218,4,FALSE)) -> vr | L12: 203 | M12: =IF(VLOOKUP($L12,invullijst!$A$11:$M$177,2,FALSE)="","",VLOOKUP($L12,invullijst!$A$11:$M$177,2,FALSE)) -> Frank van den Houdt | O12: =IF(VLOOKUP($L12,invullijst!$A$11:$M$177,6,FALSE)=0,"",VLOOKUP($L12,invullijst!$A$11:$M$177,6,FALSE)) -> 80
A13: 2 | B13: =IF($G$3="k",IF(VLOOKUP($D13,invullijst!$A$11:$M$177,11,FALSE)=0," ",VLOOKUP($D13,invullijst!$A$11:$M$177,11,FALSE)),"") ->  | C13: =IF(VLOOKUP(D13,invullijst!A$11:F$218,4,FALSE)="","",VLOOKUP(D13,invullijst!A$11:D$218,4,FALSE)) -> vr | D13: 502 | E13: =IF(VLOOKUP($D13,invullijst!$A$11:$M$177,2,FALSE)="","",VLOOKUP($D13,invullijst!$A$11:$M$177,2,FALSE)) -> Diny Vos | G13: =IF(VLOOKUP($D13,invullijst!$A$11:$M$177,6,FALSE)=0,"",VLOOKUP($D13,invullijst!$A$11:$M$177,6,FALSE)) -> 67 | I13: 2 | J13: =IF($O$3="k",IF(VLOOKUP($L13,invullijst!$A$11:$M$177,11,FALSE)=0," ",VLOOKUP($L13,invullijst!$A$11:$M$177,11,FALSE)),"") ->  | K13: =IF(VLOOKUP($L13,invullijst!$A$11:$M$218,4,FALSE)="","",VLOOKUP($L13,invullijst!$A$11:$M$218,4,FALSE)) -> vr | L13: 209 | M13: =IF(VLOOKUP($L13,invullijst!$A$11:$M$177,2,FALSE)="","",VLOOKUP($L13,invullijst!$A$11:$M$177,2,FALSE)) -> René van Kuijk | O13: =IF(VLOOKUP($L13,invullijst!$A$11:$M$177,6,FALSE)=0,"",VLOOKUP($L13,invullijst!$A$11:$M$177,6,FALSE)) -> 76
A14: 3 | B14: =IF($G$3="k",IF(VLOOKUP($D14,invullijst!$A$11:$M$177,11,FALSE)=0," ",VLOOKUP($D14,invullijst!$A$11:$M$177,11,FALSE)),"") ->  | C14: =IF(VLOOKUP(D14,invullijst!A$11:F$218,4,FALSE)="","",VLOOKUP(D14,invullijst!A$11:D$218,4,FALSE)) -> vr | D14: 513 | E14: =IF(VLOOKUP($D14,invullijst!$A$11:$M$177,2,FALSE)="","",VLOOKUP($D14,invullijst!$A$11:$M$177,2,FALSE)) -> Mark van Delft | G14: =IF(VLOOKUP($D14,invullijst!$A$11:$M$177,6,FALSE)=0,"",VLOOKUP($D14,invullijst!$A$11:$M$177,6,FALSE)) -> 65 | I14: 3 | J14: =IF($O$3="k",IF(VLOOKUP($L14,invullijst!$A$11:$M$177,11,FALSE)=0," ",VLOOKUP($L14,invullijst!$A$11:$M$177,11,FALSE)),"") ->  | K14: =IF(VLOOKUP($L14,invullijst!$A$11:$M$218,4,FALSE)="","",VLOOKUP($L14,invullijst!$A$11:$M$218,4,FALSE)) -> vr | L14: 202 | M14: =IF(VLOOKUP($L14,invullijst!$A$11:$M$177,2,FALSE)="","",VLOOKUP($L14,invullijst!$A$11:$M$177,2,FALSE)) -> Arco van Kuijk | O14: =IF(VLOOKUP($L14,invullijst!$A$11:$M$177,6,FALSE)=0,"",VLOOKUP($L14,invullijst!$A$11:$M$177,6,FALSE)) -> 74
A15: 4 | B15: =IF($G$3="k",IF(VLOOKUP($D15,invullijst!$A$11:$M$177,11,FALSE)=0," ",VLOOKUP($D15,invullijst!$A$11:$M$177,11,FALSE)),"") ->  | C15: =IF(VLOOKUP(D15,invullijst!A$10:F$218,4,FALSE)="","",VLOOKUP(D15,invullijst!A$10:D$218,4,FALSE)) -> 0 | E15: =IF(VLOOKUP($D15,invullijst!$A$10:$M$177,2,FALSE)="","",VLOOKUP($D15,invullijst!$A$10:$M$177,2,FALSE)) -> 0 | G15: =IF(VLOOKUP($D15,invullijst!$A$10:$M$177,6,FALSE)=0,"",VLOOKUP($D15,invullijst!$A$10:$M$177,6,FALSE)) ->  | I15: 4 | J15: =IF($O$3="k",IF(VLOOKUP($L15,invullijst!$A$11:$M$177,11,FALSE)=0," ",VLOOKUP($L15,invullijst!$A$11:$M$177,11,FALSE)),"") ->  | K15: =IF(VLOOKUP($L15,invullijst!$A$11:$M$218,4,FALSE)="","",VLOOKUP($L15,invullijst!$A$11:$M$218,4,FALSE)) -> vr | L15: 204 | M15: =IF(VLOOKUP($L15,invullijst!$A$11:$M$177,2,FALSE)="","",VLOOKUP($L15,invullijst!$A$11:$M$177,2,FALSE)) -> Harry de Louw | O15: =IF(VLOOKUP($L15,invullijst!$A$11:$M$177,6,FALSE)=0,"",VLOOKUP($L15,invullijst!$A$11:$M$177,6,FALSE)) -> 80
A16: Totaal B1 korps | G16: =SUM(G12:G15) -> 213 | I16: Totaal B1 korps | O16: =SUM(O12:O15) -> 310
A18: 1 | B18: =IF($G$3="k",IF(VLOOKUP($D18,invullijst!$A$11:$M$177,11,FALSE)=0," ",VLOOKUP($D18,invullijst!$A$11:$M$177,11,FALSE)),"") ->  | C18: =IF(VLOOKUP(D18,invullijst!A$10:F$218,4,FALSE)="","",VLOOKUP(D18,invullijst!A$10:D$218,4,FALSE)) -> 0 | E18: =IF(VLOOKUP($D18,invullijst!$A$10:$M$177,2,FALSE)="","",VLOOKUP($D18,invullijst!$A$10:$M$177,2,FALSE)) -> 0 | G18: =IF(VLOOKUP($D18,invullijst!$A$10:$M$177,6,FALSE)=0,"",VLOOKUP($D18,invullijst!$A$10:$M$177,6,FALSE)) ->  | I18: 1 | J18: =IF($O$3="k",IF(VLOOKUP($L18,invullijst!$A$11:$M$177,11,FALSE)=0," ",VLOOKUP($L18,invullijst!$A$11:$M$177,11,FALSE)),"") ->  | K18: =IF(VLOOKUP($L18,invullijst!$A$11:$M$218,4,FALSE)="","",VLOOKUP($L18,invullijst!$A$11:$M$218,4,FALSE)) -> vr | L18: 216 | M18: =IF(VLOOKUP($L18,invullijst!$A$11:$M$177,2,FALSE)="","",VLOOKUP($L18,invullijst!$A$11:$M$177,2,FALSE)) -> Hans Laghuwitz | O18: =IF(VLOOKUP($L18,invullijst!$A$11:$M$177,6,FALSE)=0,"",VLOOKUP($L18,invullijst!$A$11:$M$177,6,FALSE)) -> 67
A19: 2 | B19: =IF($G$3="k",IF(VLOOKUP($D19,invullijst!$A$11:$M$177,11,FALSE)=0," ",VLOOKUP($D19,invullijst!$A$11:$M$177,11,FALSE)),"") ->  | C19: =IF(VLOOKUP(D19,invullijst!A$10:F$218,4,FALSE)="","",VLOOKUP(D19,invullijst!A$10:D$218,4,FALSE)) -> 0 | E19: =IF(VLOOKUP($D19,invullijst!$A$10:$M$177,2,FALSE)="","",VLOOKUP($D19,invullijst!$A$10:$M$177,2,FALSE)) -> 0 | G19: =IF(VLOOKUP($D19,invullijst!$A$10:$M$177,6,FALSE)=0,"",VLOOKUP($D19,invullijst!$A$10:$M$177,6,FALSE)) ->  | I19: 2 | J19: =IF($O$3="k",IF(VLOOKUP($L19,invullijst!$A$11:$M$177,11,FALSE)=0," ",VLOOKUP($L19,invullijst!$A$11:$M$177,11,FALSE)),"") ->  | K19: =IF(VLOOKUP($L19,invullijst!$A$11:$M$218,4,FALSE)="","",VLOOKUP($L19,invullijst!$A$11:$M$218,4,FALSE)) -> vr | L19: 210 | M19: =IF(VLOOKUP($L19,invullijst!$A$11:$M$177,2,FALSE)="","",VLOOKUP($L19,invullijst!$A$11:$M$177,2,FALSE)) -> Nick de Vaan | O19: =IF(VLOOKUP($L19,invullijst!$A$11:$M$177,6,FALSE)=0,"",VLOOKUP($L19,invullijst!$A$11:$M$177,6,FALSE)) -> 68
A20: 3 | B20: =IF($G$3="k",IF(VLOOKUP($D20,invullijst!$A$11:$M$177,11,FALSE)=0," ",VLOOKUP($D20,invullijst!$A$11:$M$177,11,FALSE)),"") ->  | C20: =IF(VLOOKUP(D20,invullijst!A$10:F$218,4,FALSE)="","",VLOOKUP(D20,invullijst!A$10:D$218,4,FALSE)) -> 0 | E20: =IF(VLOOKUP($D20,invullijst!$A$10:$M$177,2,FALSE)="","",VLOOKUP($D20,invullijst!$A$10:$M$177,2,FALSE)) -> 0 | G20: =IF(VLOOKUP($D20,invullijst!$A$10:$M$177,6,FALSE)=0,"",VLOOKUP($D20,invullijst!$A$10:$M$177,6,FALSE)) ->  | I20: 3 | J20: =IF($O$3="k",IF(VLOOKUP($L20,invullijst!$A$11:$M$177,11,FALSE)=0," ",VLOOKUP($L20,invullijst!$A$11:$M$177,11,FALSE)),"") ->  | K20: =IF(VLOOKUP($L20,invullijst!$A$11:$M$218,4,FALSE)="","",VLOOKUP($L20,invullijst!$A$11:$M$218,4,FALSE)) -> vr | L20: 213 | M20: =IF(VLOOKUP($L20,invullijst!$A$11:$M$177,2,FALSE)="","",VLOOKUP($L20,invullijst!$A$11:$M$177,2,FALSE)) -> Roland van Delft | O20: =IF(VLOOKUP($L20,invullijst!$A$11:$M$177,6,FALSE)=0,"",VLOOKUP($L20,invullijst!$A$11:$M$177,6,FALSE)) -> 69
A21: 4 | B21: =IF($G$3="k",IF(VLOOKUP($D21,invullijst!$A$11:$M$177,11,FALSE)=0," ",VLOOKUP($D21,invullijst!$A$11:$M$177,11,FALSE)),"") ->  | C21: =IF(VLOOKUP(D21,invullijst!A$10:F$218,4,FALSE)="","",VLOOKUP(D21,invullijst!A$10:D$218,4,FALSE)) -> 0 | E21: =IF(VLOOKUP($D21,invullijst!$A$10:$M$177,2,FALSE)="","",VLOOKUP($D21,invullijst!$A$10:$M$177,2,FALSE)) -> 0 | G21: =IF(VLOOKUP($D21,invullijst!$A$10:$M$177,6,FALSE)=0,"",VLOOKUP($D21,invullijst!$A$10:$M$177,6,FALSE)) ->  | I21: 4 | J21: =IF($O$3="k",IF(VLOOKUP($L21,invullijst!$A$11:$M$177,11,FALSE)=0," ",VLOOKUP($L21,invullijst!$A$11:$M$177,11,FALSE)),"") ->  | K21: =IF(VLOOKUP($L21,invullijst!$A$11:$M$218,4,FALSE)="","",VLOOKUP($L21,invullijst!$A$11:$M$218,4,FALSE)) -> vr | L21: 208 | M21: =IF(VLOOKUP($L21,invullijst!$A$11:$M$177,2,FALSE)="","",VLOOKUP($L21,invullijst!$A$11:$M$177,2,FALSE)) -> Erin van Hulten | O21: =IF(VLOOKUP($L21,invullijst!$A$11:$M$177,6,FALSE)=0,"",VLOOKUP($L21,invullijst!$A$11:$M$177,6,FALSE)) -> 78
A22: DIVERSEN / INHAAL | I22: DIVERSEN / INHAAL
A24: OPGELEGD (Jeugd <16 en 65+)
A25: 1 | B25: =IF($G$3="k",IF(VLOOKUP($D25,invullijst!$A$11:$M$177,11,FALSE)=0," ",VLOOKUP($D25,invullijst!$A$11:$M$177,11,FALSE)),"") ->  | C25: =IF(VLOOKUP(D25,invullijst!A$11:F$218,4,FALSE)="","",VLOOKUP(D25,invullijst!A$11:D$218,4,FALSE)) -> 65+ | D25: 509 | E25: =IF(VLOOKUP($D25,invullijst!$A$11:$M$177,2,FALSE)="","",VLOOKUP($D25,invullijst!$A$11:$M$177,2,FALSE)) -> Adwan de Pinth | G25: =IF(VLOOKUP($D25,invullijst!$A$11:$M$177,6,FALSE)=0,"",VLOOKUP($D25,invullijst!$A$11:$M$177,6,FALSE)) -> 95 | I25: 1 | J25: =IF($O$3="k",IF(VLOOKUP($L25,invullijst!$A$11:$M$177,11,FALSE)=0," ",VLOOKUP($L25,invullijst!$A$11:$M$177,11,FALSE)),"") ->  | K25: =IF(VLOOKUP($L25,invullijst!$A$11:$M$218,4,FALSE)="","",VLOOKUP($L25,invullijst!$A$11:$M$218,4,FALSE)) -> 65+ | L25: 212 | M25: =IF(VLOOKUP($L25,invullijst!$A$11:$M$177,2,FALSE)="","",VLOOKUP($L25,invullijst!$A$11:$M$177,2,FALSE)) -> René Duquesnoy | O25: =IF(VLOOKUP($L25,invullijst!$A$11:$M$177,6,FALSE)=0,"",VLOOKUP($L25,invullijst!$A$11:$M$177,6,FALSE)) -> 90
A26: 2 | B26: =IF($G$3="k",IF(VLOOKUP($D26,invullijst!$A$11:$M$177,11,FALSE)=0," ",VLOOKUP($D26,invullijst!$A$11:$M$177,11,FALSE)),"") ->  | C26: =IF(VLOOKUP(D26,invullijst!A$11:F$218,4,FALSE)="","",VLOOKUP(D26,invullijst!A$11:D$218,4,FALSE)) -> 65+ | D26: 515 | E26: =IF(VLOOKUP($D26,invullijst!$A$11:$M$177,2,FALSE)="","",VLOOKUP($D26,invullijst!$A$11:$M$177,2,FALSE)) -> Ilona Bergakker disp | G26: =IF(VLOOKUP($D26,invullijst!$A$11:$M$177,6,FALSE)=0,"",VLOOKUP($D26,invullijst!$A$11:$M$177,6,FALSE)) -> 92 | I26: 2 | J26: =IF($O$3="k",IF(VLOOKUP($L26,invullijst!$A$11:$M$177,11,FALSE)=0," ",VLOOKUP($L26,invullijst!$A$11:$M$177,11,FALSE)),"") ->  | K26: =IF(VLOOKUP($L26,invullijst!$A$11:$M$218,4,FALSE)="","",VLOOKUP($L26,invullijst!$A$11:$M$218,4,FALSE)) -> 65+ | L26: 211 | M26: =IF(VLOOKUP($L26,invullijst!$A$11:$M$177,2,FALSE)="","",VLOOKUP($L26,invullijst!$A$11:$M$177,2,FALSE)) -> Ad van den houdt | O26: =IF(VLOOKUP($L26,invullijst!$A$11:$M$177,6,FALSE)=0,"",VLOOKUP($L26,invullijst!$A$11:$M$177,6,FALSE)) -> 96
A27: 3 | B27: =IF($G$3="k",IF(VLOOKUP($D27,invullijst!$A$11:$M$177,11,FALSE)=0," ",VLOOKUP($D27,invullijst!$A$11:$M$177,11,FALSE)),"") ->  | C27: =IF(VLOOKUP(D27,invullijst!A$11:F$218,4,FALSE)="","",VLOOKUP(D27,invullijst!A$11:D$218,4,FALSE)) -> 65+ | D27: 516 | E27: =IF(VLOOKUP($D27,invullijst!$A$11:$M$177,2,FALSE)="","",VLOOKUP($D27,invullijst!$A$11:$M$177,2,FALSE)) -> Henry Bergakker disp | G27: =IF(VLOOKUP($D27,invullijst!$A$11:$M$177,6,FALSE)=0,"",VLOOKUP($D27,invullijst!$A$11:$M$177,6,FALSE)) -> 80 | I27: 3 | J27: =IF($O$3="k",IF(VLOOKUP($L27,invullijst!$A$11:$M$177,11,FALSE)=0," ",VLOOKUP($L27,invullijst!$A$11:$M$177,11,FALSE)),"") ->  | K27: =IF(VLOOKUP($L27,invullijst!$A$11:$M$218,4,FALSE)="","",VLOOKUP($L27,invullijst!$A$11:$M$218,4,FALSE)) -> 65+ | L27: 214 | M27: =IF(VLOOKUP($L27,invullijst!$A$11:$M$177,2,FALSE)="","",VLOOKUP($L27,invullijst!$A$11:$M$177,2,FALSE)) -> André de Vaan | O27: =IF(VLOOKUP($L27,invullijst!$A$11:$M$177,6,FALSE)=0,"",VLOOKUP($L27,invullijst!$A$11:$M$177,6,FALSE)) -> 87
A28: Totaal korps opgelegd A1 | G28: =SUM(G25:G27) -> 267 | I28: Totaal korps opgelegd A1 | O28: =SUM(O25:O27) -> 273
A30: 1 | B30: =IF($G$3="k",IF(VLOOKUP($D30,invullijst!$A$11:$M$177,11,FALSE)=0," ",VLOOKUP($D30,invullijst!$A$11:$M$177,11,FALSE)),"") ->  | C30: =IF(VLOOKUP(D30,invullijst!A$11:F$218,4,FALSE)="","",VLOOKUP(D30,invullijst!A$11:D$218,4,FALSE)) ->  | D30: 510 | E30: =IF(VLOOKUP($D30,invullijst!$A$11:$M$177,2,FALSE)="","",VLOOKUP($D30,invullijst!$A$11:$M$177,2,FALSE)) ->  | G30: =IF(VLOOKUP($D30,invullijst!$A$11:$M$177,6,FALSE)=0,"",VLOOKUP($D30,invullijst!$A$11:$M$177,6,FALSE)) ->  | I30: 1 | J30: =IF($O$3="k",IF(VLOOKUP($L30,invullijst!$A$11:$M$177,11,FALSE)=0," ",VLOOKUP($L30,invullijst!$A$11:$M$177,11,FALSE)),"") ->  | K30: =IF(VLOOKUP($L30,invullijst!$A$10:$M$218,4,FALSE)="","",VLOOKUP($L30,invullijst!$A$10:$M$218,4,FALSE)) -> 0 | M30: =IF(VLOOKUP($L30,invullijst!$A$10:$M$177,2,FALSE)="","",VLOOKUP($L30,invullijst!$A$10:$M$177,2,FALSE)) -> 0 | O30: =IF(VLOOKUP($L30,invullijst!$A$10:$M$177,6,FALSE)=0,"",VLOOKUP($L30,invullijst!$A$10:$M$177,6,FALSE)) -> 
A31: 2 | B31: =IF($G$3="k",IF(VLOOKUP($D31,invullijst!$A$11:$M$177,11,FALSE)=0," ",VLOOKUP($D31,invullijst!$A$11:$M$177,11,FALSE)),"") ->  | C31: =IF(VLOOKUP(D31,invullijst!A$11:F$218,4,FALSE)="","",VLOOKUP(D31,invullijst!A$11:D$218,4,FALSE)) -> 65+ | D31: 514 | E31: =IF(VLOOKUP($D31,invullijst!$A$11:$M$177,2,FALSE)="","",VLOOKUP($D31,invullijst!$A$11:$M$177,2,FALSE)) -> Toon Ophorst | G31: =IF(VLOOKUP($D31,invullijst!$A$11:$M$177,6,FALSE)=0,"",VLOOKUP($D31,invullijst!$A$11:$M$177,6,FALSE)) -> 49 | I31: 2 | J31: =IF($O$3="k",IF(VLOOKUP($L31,invullijst!$A$11:$M$177,11,FALSE)=0," ",VLOOKUP($L31,invullijst!$A$11:$M$177,11,FALSE)),"") ->  | K31: =IF(VLOOKUP($L31,invullijst!$A$10:$M$218,4,FALSE)="","",VLOOKUP($L31,invullijst!$A$10:$M$218,4,FALSE)) -> 0 | M31: =IF(VLOOKUP($L31,invullijst!$A$10:$M$177,2,FALSE)="","",VLOOKUP($L31,invullijst!$A$10:$M$177,2,FALSE)) -> 0 | O31: =IF(VLOOKUP($L31,invullijst!$A$10:$M$177,6,FALSE)=0,"",VLOOKUP($L31,invullijst!$A$10:$M$177,6,FALSE)) -> 
A32: 3 | B32: =IF($G$3="k",IF(VLOOKUP($D32,invullijst!$A$11:$M$177,11,FALSE)=0," ",VLOOKUP($D32,invullijst!$A$11:$M$177,11,FALSE)),"") ->  | C32: =IF(VLOOKUP(D32,invullijst!A$11:F$218,4,FALSE)="","",VLOOKUP(D32,invullijst!A$11:D$218,4,FALSE)) -> 65+ | D32: 505 | E32: =IF(VLOOKUP($D32,invullijst!$A$11:$M$177,2,FALSE)="","",VLOOKUP($D32,invullijst!$A$11:$M$177,2,FALSE)) -> Leo Wagemakers | G32: =IF(VLOOKUP($D32,invullijst!$A$11:$M$177,6,FALSE)=0,"",VLOOKUP($D32,invullijst!$A$11:$M$177,6,FALSE)) -> 58 | I32: 3 | J32: =IF($O$3="k",IF(VLOOKUP($L32,invullijst!$A$11:$M$177,11,FALSE)=0," ",VLOOKUP($L32,invullijst!$A$11:$M$177,11,FALSE)),"") ->  | K32: =IF(VLOOKUP($L32,invullijst!$A$10:$M$218,4,FALSE)="","",VLOOKUP($L32,invullijst!$A$10:$M$218,4,FALSE)) -> 0 | M32: =IF(VLOOKUP($L32,invullijst!$A$10:$M$177,2,FALSE)="","",VLOOKUP($L32,invullijst!$A$10:$M$177,2,FALSE)) -> 0 | O32: =IF(VLOOKUP($L32,invullijst!$A$10:$M$177,6,FALSE)=0,"",VLOOKUP($L32,invullijst!$A$10:$M$177,6,FALSE)) -> 
A33: Totaal korps opgelegd A2 | G33: =SUM(G30:G32) ->  | I33: Totaal korps opgelegd A2 | O33: =SUM(O30:O32) -> 0
A35: 1 | B35: =IF($G$3="k",IF(VLOOKUP($D35,invullijst!$A$11:$M$177,11,FALSE)=0," ",VLOOKUP($D35,invullijst!$A$11:$M$177,11,FALSE)),"") ->  | C35: =IF(VLOOKUP(D35,invullijst!A$10:F$218,4,FALSE)="","",VLOOKUP(D35,invullijst!A$10:D$218,4,FALSE)) -> 65+ | D35: 511 | E35: =IF(VLOOKUP($D35,invullijst!$A$11:$M$177,2,FALSE)="","",VLOOKUP($D35,invullijst!$A$11:$M$177,2,FALSE)) -> Ton Stans | G35: =IF(VLOOKUP($D35,invullijst!$A$11:$M$177,6,FALSE)=0,"",VLOOKUP($D35,invullijst!$A$11:$M$177,6,FALSE)) -> 85 | I35: 1 | J35: =IF($O$3="k",IF(VLOOKUP($L35,invullijst!$A$11:$M$177,11,FALSE)=0," ",VLOOKUP($L35,invullijst!$A$11:$M$177,11,FALSE)),"") ->  | K35: =IF(VLOOKUP($L35,invullijst!$A$11:$M$218,4,FALSE)="","",VLOOKUP($L35,invullijst!$A$11:$M$218,4,FALSE)) -> vr | L35: 217 | M35: =IF(VLOOKUP($L35,invullijst!$A$11:$M$177,2,FALSE)="","",VLOOKUP($L35,invullijst!$A$11:$M$177,2,FALSE)) -> Jānis Jākobsons | O35: =IF(VLOOKUP($L35,invullijst!$A$11:$M$177,6,FALSE)=0,"",VLOOKUP($L35,invullijst!$A$11:$M$177,6,FALSE)) -> 65
A36: 2 | B36: =IF($G$3="k",IF(VLOOKUP($D36,invullijst!$A$11:$M$177,11,FALSE)=0," ",VLOOKUP($D36,invullijst!$A$11:$M$177,11,FALSE)),"") ->  | C36: =IF(VLOOKUP(D36,invullijst!A$10:F$218,4,FALSE)="","",VLOOKUP(D36,invullijst!A$10:D$218,4,FALSE)) -> 0 | E36: =IF(VLOOKUP($D36,invullijst!$A$10:$M$177,2,FALSE)="","",VLOOKUP($D36,invullijst!$A$10:$M$177,2,FALSE)) -> 0 | G36: =IF(VLOOKUP($D36,invullijst!$A$10:$M$177,6,FALSE)=0,"",VLOOKUP($D36,invullijst!$A$10:$M$177,6,FALSE)) ->  | I36: 2 | J36: =IF($O$3="k",IF(VLOOKUP($L36,invullijst!$A$11:$M$177,11,FALSE)=0," ",VLOOKUP($L36,invullijst!$A$11:$M$177,11,FALSE)),"") ->  | K36: =IF(VLOOKUP($L36,invullijst!$A$10:$M$218,4,FALSE)="","",VLOOKUP($L36,invullijst!$A$10:$M$218,4,FALSE)) -> 0 | M36: =IF(VLOOKUP($L36,invullijst!$A$10:$M$177,2,FALSE)="","",VLOOKUP($L36,invullijst!$A$10:$M$177,2,FALSE)) -> 0 | O36: =IF(VLOOKUP($L36,invullijst!$A$10:$M$177,6,FALSE)=0,"",VLOOKUP($L36,invullijst!$A$10:$M$177,6,FALSE)) -> 
A37: 3 | B37: =IF($G$3="k",IF(VLOOKUP($D37,invullijst!$A$11:$M$177,11,FALSE)=0," ",VLOOKUP($D37,invullijst!$A$11:$M$177,11,FALSE)),"") ->  | C37: =IF(VLOOKUP(D37,invullijst!A$10:F$218,4,FALSE)="","",VLOOKUP(D37,invullijst!A$10:D$218,4,FALSE)) -> 0 | E37: =IF(VLOOKUP($D37,invullijst!$A$10:$M$177,2,FALSE)="","",VLOOKUP($D37,invullijst!$A$10:$M$177,2,FALSE)) -> 0 | G37: =IF(VLOOKUP($D37,invullijst!$A$10:$M$177,6,FALSE)=0,"",VLOOKUP($D37,invullijst!$A$10:$M$177,6,FALSE)) ->  | I37: 3 | J37: =IF($O$3="k",IF(VLOOKUP($L37,invullijst!$A$11:$M$177,11,FALSE)=0," ",VLOOKUP($L37,invullijst!$A$11:$M$177,11,FALSE)),"") ->  | K37: =IF(VLOOKUP($L37,invullijst!$A$10:$M$218,4,FALSE)="","",VLOOKUP($L37,invullijst!$A$10:$M$218,4,FALSE)) -> 0 | M37: =IF(VLOOKUP($L37,invullijst!$A$10:$M$177,2,FALSE)="","",VLOOKUP($L37,invullijst!$A$10:$M$177,2,FALSE)) -> 0 | O37: =IF(VLOOKUP($L37,invullijst!$A$10:$M$177,6,FALSE)=0,"",VLOOKUP($L37,invullijst!$A$10:$M$177,6,FALSE)) -> 
A38: Totaal korps opgelegd A3 | G38: =SUM(G35:G37) -> 85 | I38: Totaal korps opgelegd A3 | O38: =IF(VLOOKUP($L38,invullijst!$A$11:$M$177,6,FALSE)=0,"",VLOOKUP($L38,invullijst!$A$11:$M$177,6,FALSE)) -> 

Sheet wedstrijd 1B
A1: =invullijst!F1 -> Organisatie | F1: =invullijst!H2 -> 2023 - 2024 | I1: =invullijst!F3 -> St. Crispinus & Crispinianus Besoijen
A2: Datum: | M2: 2023-12-10
A3: 4 | B3: =IF(VLOOKUP(A3,invullijst!A1:F5,2,FALSE)="","",VLOOKUP(A3,invullijst!A1:F5,2,FALSE)) -> Sint Ambrosius Haarsteeg | I3: 3 | J3: =IF(VLOOKUP(I3,invullijst!A1:C5,2,FALSE)="","",VLOOKUP(I3,invullijst!A1:C5,2,FALSE)) -> O.L.V. Schuts Elshout
A5: vrijehand
A6: 1 | B6: =IF($G$3="k",IF(VLOOKUP($D6,invullijst!$A$10:$M$177,11,FALSE)=0," ",VLOOKUP($D6,invullijst!$A$10:$M$177,11,FALSE)),"") ->  | C6: =IF(VLOOKUP(D6,invullijst!A$10:F$218,4,FALSE)="","",VLOOKUP(D6,invullijst!A$10:D$218,4,FALSE)) -> vr | D6: 405 | E6: =IF(VLOOKUP($D6,invullijst!$A$10:$M$177,2,FALSE)="","",VLOOKUP($D6,invullijst!$A$10:$M$177,2,FALSE)) -> Jan de Vaan | G6: =IF(VLOOKUP($D6,invullijst!$A$10:$M$177,6,FALSE)=0,"",VLOOKUP($D6,invullijst!$A$10:$M$177,6,FALSE)) -> 86 | I6: 1 | J6: =IF($O$3="k",IF(VLOOKUP($L6,invullijst!$A$10:$M$177,11,FALSE)=0," ",VLOOKUP($L6,invullijst!$A$10:$M$177,11,FALSE)),"") ->  | K6: =IF(VLOOKUP($L6,invullijst!$A$10:$M$218,4,FALSE)="","",VLOOKUP($L6,invullijst!$A$10:$M$218,4,FALSE)) -> vr | L6: 302 | M6: =IF(VLOOKUP($L6,invullijst!$A$10:$M$177,2,FALSE)="","",VLOOKUP($L6,invullijst!$A$10:$M$177,2,FALSE)) -> Freek de Jong | O6: =IF(VLOOKUP($L6,invullijst!$A$10:$M$177,6,FALSE)=0,"",VLOOKUP($L6,invullijst!$A$10:$M$177,6,FALSE)) -> 89
A7: 2 | B7: =IF($G$3="k",IF(VLOOKUP($D7,invullijst!$A$10:$M$177,11,FALSE)=0," ",VLOOKUP($D7,invullijst!$A$10:$M$177,11,FALSE)),"") ->  | C7: =IF(VLOOKUP(D7,invullijst!A$10:F$218,4,FALSE)="","",VLOOKUP(D7,invullijst!A$10:D$218,4,FALSE)) -> vr | D7: 408 | E7: =IF(VLOOKUP($D7,invullijst!$A$10:$M$177,2,FALSE)="","",VLOOKUP($D7,invullijst!$A$10:$M$177,2,FALSE)) -> Rudy van Falier | G7: =IF(VLOOKUP($D7,invullijst!$A$10:$M$177,6,FALSE)=0,"",VLOOKUP($D7,invullijst!$A$10:$M$177,6,FALSE)) -> 86 | I7: 2 | J7: =IF($O$3="k",IF(VLOOKUP($L7,invullijst!$A$10:$M$177,11,FALSE)=0," ",VLOOKUP($L7,invullijst!$A$10:$M$177,11,FALSE)),"") ->  | K7: =IF(VLOOKUP($L7,invullijst!$A$10:$M$218,4,FALSE)="","",VLOOKUP($L7,invullijst!$A$10:$M$218,4,FALSE)) -> vr | L7: 304 | M7: =IF(VLOOKUP($L7,invullijst!$A$10:$M$177,2,FALSE)="","",VLOOKUP($L7,invullijst!$A$10:$M$177,2,FALSE)) -> Henk Bruurmijn | O7: =IF(VLOOKUP($L7,invullijst!$A$10:$M$177,6,FALSE)=0,"",VLOOKUP($L7,invullijst!$A$10:$M$177,6,FALSE)) -> 71
A8: 3 | B8: =IF($G$3="k",IF(VLOOKUP($D8,invullijst!$A$10:$M$177,11,FALSE)=0," ",VLOOKUP($D8,invullijst!$A$10:$M$177,11,FALSE)),"") ->  | C8: =IF(VLOOKUP(D8,invullijst!A$10:F$218,4,FALSE)="","",VLOOKUP(D8,invullijst!A$10:D$218,4,FALSE)) -> vr | D8: 402 | E8: =IF(VLOOKUP($D8,invullijst!$A$10:$M$177,2,FALSE)="","",VLOOKUP($D8,invullijst!$A$10:$M$177,2,FALSE)) -> Daniëlle v/d Lee | G8: =IF(VLOOKUP($D8,invullijst!$A$10:$M$177,6,FALSE)=0,"",VLOOKUP($D8,invullijst!$A$10:$M$177,6,FALSE)) -> 80 | I8: 3 | J8: =IF($O$3="k",IF(VLOOKUP($L8,invullijst!$A$10:$M$177,11,FALSE)=0," ",VLOOKUP($L8,invullijst!$A$10:$M$177,11,FALSE)),"") ->  | K8: =IF(VLOOKUP($L8,invullijst!$A$10:$M$218,4,FALSE)="","",VLOOKUP($L8,invullijst!$A$10:$M$218,4,FALSE)) -> vr | L8: 305 | M8: =IF(VLOOKUP($L8,invullijst!$A$10:$M$177,2,FALSE)="","",VLOOKUP($L8,invullijst!$A$10:$M$177,2,FALSE)) -> Johan Klerx | O8: =IF(VLOOKUP($L8,invullijst!$A$10:$M$177,6,FALSE)=0,"",VLOOKUP($L8,invullijst!$A$10:$M$177,6,FALSE)) -> 84
A9: 4 | B9: =IF($G$3="k",IF(VLOOKUP($D9,invullijst!$A$10:$M$177,11,FALSE)=0," ",VLOOKUP($D9,invullijst!$A$10:$M$177,11,FALSE)),"") ->  | C9: =IF(VLOOKUP(D9,invullijst!A$10:F$218,4,FALSE)="","",VLOOKUP(D9,invullijst!A$10:D$218,4,FALSE)) -> vr | D9: 406 | E9: =IF(VLOOKUP($D9,invullijst!$A$10:$M$177,2,FALSE)="","",VLOOKUP($D9,invullijst!$A$10:$M$177,2,FALSE)) -> Jeroen van Oss | G9: =IF(VLOOKUP($D9,invullijst!$A$10:$M$177,6,FALSE)=0,"",VLOOKUP($D9,invullijst!$A$10:$M$177,6,FALSE)) -> 82 | I9: 4 | J9: =IF($O$3="k",IF(VLOOKUP($L9,invullijst!$A$10:$M$177,11,FALSE)=0," ",VLOOKUP($L9,invullijst!$A$10:$M$177,11,FALSE)),"") ->  | K9: =IF(VLOOKUP($L9,invullijst!$A$10:$M$218,4,FALSE)="","",VLOOKUP($L9,invullijst!$A$10:$M$218,4,FALSE)) -> vr | L9: 308 | M9: =IF(VLOOKUP($L9,invullijst!$A$10:$M$177,2,FALSE)="","",VLOOKUP($L9,invullijst!$A$10:$M$177,2,FALSE)) -> Jan van Esch | O9: =IF(VLOOKUP($L9,invullijst!$A$10:$M$177,6,FALSE)=0,"",VLOOKUP($L9,invullijst!$A$10:$M$177,6,FALSE)) -> 60
A10: Totaal A korps | G10: =SUM(G6:G9) -> 334 | I10: Totaal A korps | O10: =SUM(O6:O9) -> 304
A12: 1 | B12: =IF($G$3="k",IF(VLOOKUP($D12,invullijst!$A$10:$M$177,11,FALSE)=0," ",VLOOKUP($D12,invullijst!$A$10:$M$177,11,FALSE)),"") ->  | C12: =IF(VLOOKUP(D12,invullijst!A$10:F$218,4,FALSE)="","",VLOOKUP(D12,invullijst!A$10:D$218,4,FALSE)) -> vr | D12: 410 | E12: =IF(VLOOKUP($D12,invullijst!$A$10:$M$177,2,FALSE)="","",VLOOKUP($D12,invullijst!$A$10:$M$177,2,FALSE)) -> Tonnie Koks | G12: =IF(VLOOKUP($D12,invullijst!$A$10:$M$177,6,FALSE)=0,"",VLOOKUP($D12,invullijst!$A$10:$M$177,6,FALSE)) -> 85 | I12: 1 | J12: =IF($O$3="k",IF(VLOOKUP($L12,invullijst!$A$10:$M$177,11,FALSE)=0," ",VLOOKUP($L12,invullijst!$A$10:$M$177,11,FALSE)),"") ->  | K12: =IF(VLOOKUP($L12,invullijst!$A$10:$M$218,4,FALSE)="","",VLOOKUP($L12,invullijst!$A$10:$M$218,4,FALSE)) -> 0 | M12: =IF(VLOOKUP($L12,invullijst!$A$10:$M$177,2,FALSE)="","",VLOOKUP($L12,invullijst!$A$10:$M$177,2,FALSE)) -> 0 | O12: =IF(VLOOKUP($L12,invullijst!$A$10:$M$177,6,FALSE)=0,"",VLOOKUP($L12,invullijst!$A$10:$M$177,6,FALSE)) -> 
A13: 2 | B13: =IF($G$3="k",IF(VLOOKUP($D13,invullijst!$A$10:$M$177,11,FALSE)=0," ",VLOOKUP($D13,invullijst!$A$10:$M$177,11,FALSE)),"") ->  | C13: =IF(VLOOKUP(D13,invullijst!A$10:F$218,4,FALSE)="","",VLOOKUP(D13,invullijst!A$10:D$218,4,FALSE)) -> vr | D13: 407 | E13: =IF(VLOOKUP($D13,invullijst!$A$10:$M$177,2,FALSE)="","",VLOOKUP($D13,invullijst!$A$10:$M$177,2,FALSE)) -> Justin van Son | G13: =IF(VLOOKUP($D13,invullijst!$A$10:$M$177,6,FALSE)=0,"",VLOOKUP($D13,invullijst!$A$10:$M$177,6,FALSE)) -> 84 | I13: 2 | J13: =IF($O$3="k",IF(VLOOKUP($L13,invullijst!$A$10:$M$177,11,FALSE)=0," ",VLOOKUP($L13,invullijst!$A$10:$M$177,11,FALSE)),"") ->  | K13: =IF(VLOOKUP($L13,invullijst!$A$10:$M$218,4,FALSE)="","",VLOOKUP($L13,invullijst!$A$10:$M$218,4,FALSE)) -> 0 | M13: =IF(VLOOKUP($L13,invullijst!$A$10:$M$177,2,FALSE)="","",VLOOKUP($L13,invullijst!$A$10:$M$177,2,FALSE)) -> 0 | O13: =IF(VLOOKUP($L13,invullijst!$A$10:$M$177,6,FALSE)=0,"",VLOOKUP($L13,invullijst!$A$10:$M$177,6,FALSE)) -> 
A14: 3 | B14: =IF($G$3="k",IF(VLOOKUP($D14,invullijst!$A$10:$M$177,11,FALSE)=0," ",VLOOKUP($D14,invullijst!$A$10:$M$177,11,FALSE)),"") ->  | C14: =IF(VLOOKUP(D14,invullijst!A$10:F$218,4,FALSE)="","",VLOOKUP(D14,invullijst!A$10:D$218,4,FALSE)) -> 0 | E14: =IF(VLOOKUP($D14,invullijst!$A$10:$M$177,2,FALSE)="","",VLOOKUP($D14,invullijst!$A$10:$M$177,2,FALSE)) -> 0 | G14: =IF(VLOOKUP($D14,invullijst!$A$10:$M$177,6,FALSE)=0,"",VLOOKUP($D14,invullijst!$A$10:$M$177,6,FALSE)) ->  | I14: 3 | J14: =IF($O$3="k",IF(VLOOKUP($L14,invullijst!$A$10:$M$177,11,FALSE)=0," ",VLOOKUP($L14,invullijst!$A$10:$M$177,11,FALSE)),"") ->  | K14: =IF(VLOOKUP($L14,invullijst!$A$10:$M$218,4,FALSE)="","",VLOOKUP($L14,invullijst!$A$10:$M$218,4,FALSE)) -> 0 | M14: =IF(VLOOKUP($L14,invullijst!$A$10:$M$177,2,FALSE)="","",VLOOKUP($L14,invullijst!$A$10:$M$177,2,FALSE)) -> 0 | O14: =IF(VLOOKUP($L14,invullijst!$A$10:$M$177,6,FALSE)=0,"",VLOOKUP($L14,invullijst!$A$10:$M$177,6,FALSE)) -> 
A15: 4 | B15: =IF($G$3="k",IF(VLOOKUP($D15,invullijst!$A$10:$M$177,11,FALSE)=0," ",VLOOKUP($D15,invullijst!$A$10:$M$177,11,FALSE)),"") ->  | C15: =IF(VLOOKUP(D15,invullijst!A$10:F$218,4,FALSE)="","",VLOOKUP(D15,invullijst!A$10:D$218,4,FALSE)) -> 0 | E15: =IF(VLOOKUP($D15,invullijst!$A$10:$M$177,2,FALSE)="","",VLOOKUP($D15,invullijst!$A$10:$M$177,2,FALSE)) -> 0 | G15: =IF(VLOOKUP($D15,invullijst!$A$10:$M$177,6,FALSE)=0,"",VLOOKUP($D15,invullijst!$A$10:$M$177,6,FALSE)) ->  | I15: 4 | J15: =IF($O$3="k",IF(VLOOKUP($L15,invullijst!$A$10:$M$177,11,FALSE)=0," ",VLOOKUP($L15,invullijst!$A$10:$M$177,11,FALSE)),"") ->  | K15: =IF(VLOOKUP($L15,invullijst!$A$10:$M$218,4,FALSE)="","",VLOOKUP($L15,invullijst!$A$10:$M$218,4,FALSE)) -> 0 | M15: =IF(VLOOKUP($L15,invullijst!$A$10:$M$177,2,FALSE)="","",VLOOKUP($L15,invullijst!$A$10:$M$177,2,FALSE)) -> 0 | O15: =IF(VLOOKUP($L15,invullijst!$A$10:$M$177,6,FALSE)=0,"",VLOOKUP($L15,invullijst!$A$10:$M$177,6,FALSE)) -> 
A16: Totaal B1 korps | G16: =SUM(G12:G15) -> 169 | I16: Totaal B1 korps | O16: =SUM(O12:O15) -> 0
A18: 1 | B18: =IF($G$3="k",IF(VLOOKUP($D18,invullijst!$A$10:$M$177,11,FALSE)=0," ",VLOOKUP($D18,invullijst!$A$10:$M$177,11,FALSE)),"") ->  | C18: =IF(VLOOKUP(D18,invullijst!A$10:F$218,4,FALSE)="","",VLOOKUP(D18,invullijst!A$10:D$218,4,FALSE)) -> 0 | E18: =IF(VLOOKUP($D18,invullijst!$A$10:$M$177,2,FALSE)="","",VLOOKUP($D18,invullijst!$A$10:$M$177,2,FALSE)) -> 0 | G18: =IF(VLOOKUP($D18,invullijst!$A$10:$M$177,6,FALSE)=0,"",VLOOKUP($D18,invullijst!$A$10:$M$177,6,FALSE)) ->  | I18: 1 | J18: =IF($O$3="k",IF(VLOOKUP($L18,invullijst!$A$10:$M$177,11,FALSE)=0," ",VLOOKUP($L18,invullijst!$A$10:$M$177,11,FALSE)),"") ->  | K18: =IF(VLOOKUP($L18,invullijst!$A$10:$M$218,4,FALSE)="","",VLOOKUP($L18,invullijst!$A$10:$M$218,4,FALSE)) -> 0 | M18: =IF(VLOOKUP($L18,invullijst!$A$10:$M$177,2,FALSE)="","",VLOOKUP($L18,invullijst!$A$10:$M$177,2,FALSE)) -> 0 | O18: =IF(VLOOKUP($L18,invullijst!$A$10:$M$177,6,FALSE)=0,"",VLOOKUP($L18,invullijst!$A$10:$M$177,6,FALSE)) -> 
A19: 2 | B19: =IF($G$3="k",IF(VLOOKUP($D19,invullijst!$A$10:$M$177,11,FALSE)=0," ",VLOOKUP($D19,invullijst!$A$10:$M$177,11,FALSE)),"") ->  | C19: =IF(VLOOKUP(D19,invullijst!A$10:F$218,4,FALSE)="","",VLOOKUP(D19,invullijst!A$10:D$218,4,FALSE)) -> 0 | E19: =IF(VLOOKUP($D19,invullijst!$A$10:$M$177,2,FALSE)="","",VLOOKUP($D19,invullijst!$A$10:$M$177,2,FALSE)) -> 0 | G19: =IF(VLOOKUP($D19,invullijst!$A$10:$M$177,6,FALSE)=0,"",VLOOKUP($D19,invullijst!$A$10:$M$177,6,FALSE)) ->  | I19: 2 | J19: =IF($O$3="k",IF(VLOOKUP($L19,invullijst!$A$10:$M$177,11,FALSE)=0," ",VLOOKUP($L19,invullijst!$A$10:$M$177,11,FALSE)),"") ->  | K19: =IF(VLOOKUP($L19,invullijst!$A$10:$M$218,4,FALSE)="","",VLOOKUP($L19,invullijst!$A$10:$M$218,4,FALSE)) -> 0 | M19: =IF(VLOOKUP($L19,invullijst!$A$10:$M$177,2,FALSE)="","",VLOOKUP($L19,invullijst!$A$10:$M$177,2,FALSE)) -> 0 | O19: =IF(VLOOKUP($L19,invullijst!$A$10:$M$177,6,FALSE)=0,"",VLOOKUP($L19,invullijst!$A$10:$M$177,6,FALSE)) -> 
A20: 3 | B20: =IF($G$3="k",IF(VLOOKUP($D20,invullijst!$A$10:$M$177,11,FALSE)=0," ",VLOOKUP($D20,invullijst!$A$10:$M$177,11,FALSE)),"") ->  | C20: =IF(VLOOKUP(D20,invullijst!A$10:F$218,4,FALSE)="","",VLOOKUP(D20,invullijst!A$10:D$218,4,FALSE)) -> 0 | E20: =IF(VLOOKUP($D20,invullijst!$A$10:$M$177,2,FALSE)="","",VLOOKUP($D20,invullijst!$A$10:$M$177,2,FALSE)) -> 0 | G20: =IF(VLOOKUP($D20,invullijst!$A$10:$M$177,6,FALSE)=0,"",VLOOKUP($D20,invullijst!$A$10:$M$177,6,FALSE)) ->  | I20: 3 | J20: =IF($O$3="k",IF(VLOOKUP($L20,invullijst!$A$10:$M$177,11,FALSE)=0," ",VLOOKUP($L20,invullijst!$A$10:$M$177,11,FALSE)),"") ->  | K20: =IF(VLOOKUP($L20,invullijst!$A$10:$M$218,4,FALSE)="","",VLOOKUP($L20,invullijst!$A$10:$M$218,4,FALSE)) -> 0 | M20: =IF(VLOOKUP($L20,invullijst!$A$10:$M$177,2,FALSE)="","",VLOOKUP($L20,invullijst!$A$10:$M$177,2,FALSE)) -> 0 | O20: =IF(VLOOKUP($L20,invullijst!$A$10:$M$177,6,FALSE)=0,"",VLOOKUP($L20,invullijst!$A$10:$M$177,6,FALSE)) -> 
A21: 4 | B21: =IF($G$3="k",IF(VLOOKUP($D21,invullijst!$A$10:$M$177,11,FALSE)=0," ",VLOOKUP($D21,invullijst!$A$10:$M$177,11,FALSE)),"") ->  | C21: =IF(VLOOKUP(D21,invullijst!A$10:F$218,4,FALSE)="","",VLOOKUP(D21,invullijst!A$10:D$218,4,FALSE)) -> 0 | E21: =IF(VLOOKUP($D21,invullijst!$A$10:$M$177,2,FALSE)="","",VLOOKUP($D21,invullijst!$A$10:$M$177,2,FALSE)) -> 0 | G21: =IF(VLOOKUP($D21,invullijst!$A$10:$M$177,6,FALSE)=0,"",VLOOKUP($D21,invullijst!$A$10:$M$177,6,FALSE)) ->  | I21: 4 | J21: =IF($O$3="k",IF(VLOOKUP($L21,invullijst!$A$10:$M$177,11,FALSE)=0," ",VLOOKUP($L21,invullijst!$A$10:$M$177,11,FALSE)),"") ->  | K21: =IF(VLOOKUP($L21,invullijst!$A$10:$M$218,4,FALSE)="","",VLOOKUP($L21,invullijst!$A$10:$M$218,4,FALSE)) -> 0 | M21: =IF(VLOOKUP($L21,invullijst!$A$10:$M$177,2,FALSE)="","",VLOOKUP($L21,invullijst!$A$10:$M$177,2,FALSE)) -> 0 | O21: =IF(VLOOKUP($L21,invullijst!$A$10:$M$177,6,FALSE)=0,"",VLOOKUP($L21,invullijst!$A$10:$M$177,6,FALSE)) -> 
A22: DIVERSEN / INHAAL | I22: DIVERSEN / INHAAL
A24: OPGELEGD (Jeugd <16 en 65+)
A25: 1 | B25: =IF($G$3="k",IF(VLOOKUP($D25,invullijst!$A$10:$M$177,11,FALSE)=0," ",VLOOKUP($D25,invullijst!$A$10:$M$177,11,FALSE)),"") ->  | C25: =IF(VLOOKUP(D25,invullijst!A$10:F$218,4,FALSE)="","",VLOOKUP(D25,invullijst!A$10:D$218,4,FALSE)) -> 65+ | D25: 401 | E25: =IF(VLOOKUP($D25,invullijst!$A$10:$M$177,2,FALSE)="","",VLOOKUP($D25,invullijst!$A$10:$M$177,2,FALSE)) -> Frans van Beurden | G25: =IF(VLOOKUP($D25,invullijst!$A$10:$M$177,6,FALSE)=0,"",VLOOKUP($D25,invullijst!$A$10:$M$177,6,FALSE)) -> 95 | I25: 1 | J25: =IF($O$3="k",IF(VLOOKUP($L25,invullijst!$A$10:$M$177,11,FALSE)=0," ",VLOOKUP($L25,invullijst!$A$10:$M$177,11,FALSE)),"") ->  | K25: =IF(VLOOKUP($L25,invullijst!$A$10:$M$218,4,FALSE)="","",VLOOKUP($L25,invullijst!$A$10:$M$218,4,FALSE)) -> 65+ | L25: 307 | M25: =IF(VLOOKUP($L25,invullijst!$A$10:$M$177,2,FALSE)="","",VLOOKUP($L25,invullijst!$A$10:$M$177,2,FALSE)) -> Bert van Engelen | O25: =IF(VLOOKUP($L25,invullijst!$A$10:$M$177,6,FALSE)=0,"",VLOOKUP($L25,invullijst!$A$10:$M$177,6,FALSE)) -> 95
A26: 2 | B26: =IF($G$3="k",IF(VLOOKUP($D26,invullijst!$A$10:$M$177,11,FALSE)=0," ",VLOOKUP($D26,invullijst!$A$10:$M$177,11,FALSE)),"") ->  | C26: =IF(VLOOKUP(D26,invullijst!A$10:F$218,4,FALSE)="","",VLOOKUP(D26,invullijst!A$10:D$218,4,FALSE)) -> 65+ | D26: 415 | E26: =IF(VLOOKUP($D26,invullijst!$A$10:$M$177,2,FALSE)="","",VLOOKUP($D26,invullijst!$A$10:$M$177,2,FALSE)) -> Wim de Gouw | G26: =IF(VLOOKUP($D26,invullijst!$A$10:$M$177,6,FALSE)=0,"",VLOOKUP($D26,invullijst!$A$10:$M$177,6,FALSE)) -> 95 | I26: 2 | J26: =IF($O$3="k",IF(VLOOKUP($L26,invullijst!$A$10:$M$177,11,FALSE)=0," ",VLOOKUP($L26,invullijst!$A$10:$M$177,11,FALSE)),"") ->  | K26: =IF(VLOOKUP($L26,invullijst!$A$10:$M$218,4,FALSE)="","",VLOOKUP($L26,invullijst!$A$10:$M$218,4,FALSE)) -> 65+ | L26: 301 | M26: =IF(VLOOKUP($L26,invullijst!$A$10:$M$177,2,FALSE)="","",VLOOKUP($L26,invullijst!$A$10:$M$177,2,FALSE)) -> Arjen van Assem disp | O26: =IF(VLOOKUP($L26,invullijst!$A$10:$M$177,6,FALSE)=0,"",VLOOKUP($L26,invullijst!$A$10:$M$177,6,FALSE)) -> 91
A27: 3 | B27: =IF($G$3="k",IF(VLOOKUP($D27,invullijst!$A$10:$M$177,11,FALSE)=0," ",VLOOKUP($D27,invullijst!$A$10:$M$177,11,FALSE)),"") ->  | C27: =IF(VLOOKUP(D27,invullijst!A$10:F$218,4,FALSE)="","",VLOOKUP(D27,invullijst!A$10:D$218,4,FALSE)) -> 65+ | D27: 413 | E27: =IF(VLOOKUP($D27,invullijst!$A$10:$M$177,2,FALSE)="","",VLOOKUP($D27,invullijst!$A$10:$M$177,2,FALSE)) -> Frans Mommersteeg | G27: =IF(VLOOKUP($D27,invullijst!$A$10:$M$177,6,FALSE)=0,"",VLOOKUP($D27,invullijst!$A$10:$M$177,6,FALSE)) -> 96 | I27: 3 | J27: =IF($O$3="k",IF(VLOOKUP($L27,invullijst!$A$10:$M$177,11,FALSE)=0," ",VLOOKUP($L27,invullijst!$A$10:$M$177,11,FALSE)),"") ->  | K27: =IF(VLOOKUP($L27,invullijst!$A$10:$M$218,4,FALSE)="","",VLOOKUP($L27,invullijst!$A$10:$M$218,4,FALSE)) -> J | L27: 312 | M27: =IF(VLOOKUP($L27,invullijst!$A$10:$M$177,2,FALSE)="","",VLOOKUP($L27,invullijst!$A$10:$M$177,2,FALSE)) -> Floor de Jong | O27: =IF(VLOOKUP($L27,invullijst!$A$10:$M$177,6,FALSE)=0,"",VLOOKUP($L27,invullijst!$A$10:$M$177,6,FALSE)) -> 91
A28: Totaal korps opgelegd A1 | G28: =SUM(G25:G27) -> 286 | I28: Totaal korps opgelegd A1 | O28: =SUM(O25:O27) -> 277
A30: 1 | B30: =IF($G$3="k",IF(VLOOKUP($D30,invullijst!$A$10:$M$177,11,FALSE)=0," ",VLOOKUP($D30,invullijst!$A$10:$M$177,11,FALSE)),"") ->  | C30: =IF(VLOOKUP(D30,invullijst!A$10:F$218,4,FALSE)="","",VLOOKUP(D30,invullijst!A$10:D$218,4,FALSE)) -> 65+ | D30: 412 | E30: =IF(VLOOKUP($D30,invullijst!$A$10:$M$177,2,FALSE)="","",VLOOKUP($D30,invullijst!$A$10:$M$177,2,FALSE)) -> Francien v/d Wiel | G30: =IF(VLOOKUP($D30,invullijst!$A$10:$M$177,6,FALSE)=0,"",VLOOKUP($D30,invullijst!$A$10:$M$177,6,FALSE)) -> 96 | I30: 1 | J30: =IF($O$3="k",IF(VLOOKUP($L30,invullijst!$A$10:$M$177,11,FALSE)=0," ",VLOOKUP($L30,invullijst!$A$10:$M$177,11,FALSE)),"") ->  | K30: =IF(VLOOKUP($L30,invullijst!$A$10:$M$218,4,FALSE)="","",VLOOKUP($L30,invullijst!$A$10:$M$218,4,FALSE)) -> 65+ | L30: 309 | M30: =IF(VLOOKUP($L30,invullijst!$A$10:$M$177,2,FALSE)="","",VLOOKUP($L30,invullijst!$A$10:$M$177,2,FALSE)) -> René de Jong | O30: =IF(VLOOKUP($L30,invullijst!$A$10:$M$177,6,FALSE)=0,"",VLOOKUP($L30,invullijst!$A$10:$M$177,6,FALSE)) -> 88
A31: 2 | B31: =IF($G$3="k",IF(VLOOKUP($D31,invullijst!$A$10:$M$177,11,FALSE)=0," ",VLOOKUP($D31,invullijst!$A$10:$M$177,11,FALSE)),"") ->  | C31: =IF(VLOOKUP(D31,invullijst!A$10:F$218,4,FALSE)="","",VLOOKUP(D31,invullijst!A$10:D$218,4,FALSE)) -> 65+ | D31: 404 | E31: =IF(VLOOKUP($D31,invullijst!$A$10:$M$177,2,FALSE)="","",VLOOKUP($D31,invullijst!$A$10:$M$177,2,FALSE)) -> Gerard van Beurden | G31: =IF(VLOOKUP($D31,invullijst!$A$10:$M$177,6,FALSE)=0,"",VLOOKUP($D31,invullijst!$A$10:$M$177,6,FALSE)) -> 93 | I31: 2 | J31: =IF($O$3="k",IF(VLOOKUP($L31,invullijst!$A$10:$M$177,11,FALSE)=0," ",VLOOKUP($L31,invullijst!$A$10:$M$177,11,FALSE)),"") ->  | K31: =IF(VLOOKUP($L31,invullijst!$A$10:$M$218,4,FALSE)="","",VLOOKUP($L31,invullijst!$A$10:$M$218,4,FALSE)) -> 0 | M31: =IF(VLOOKUP($L31,invullijst!$A$10:$M$177,2,FALSE)="","",VLOOKUP($L31,invullijst!$A$10:$M$177,2,FALSE)) -> 0 | O31: =IF(VLOOKUP($L31,invullijst!$A$10:$M$177,6,FALSE)=0,"",VLOOKUP($L31,invullijst!$A$10:$M$177,6,FALSE)) -> 
A32: 3 | B32: =IF($G$3="k",IF(VLOOKUP($D32,invullijst!$A$10:$M$177,11,FALSE)=0," ",VLOOKUP($D32,invullijst!$A$10:$M$177,11,FALSE)),"") ->  | C32: =IF(VLOOKUP(D32,invullijst!A$10:F$218,4,FALSE)="","",VLOOKUP(D32,invullijst!A$10:D$218,4,FALSE)) -> 65+ | D32: 403 | E32: =IF(VLOOKUP($D32,invullijst!$A$10:$M$177,2,FALSE)="","",VLOOKUP($D32,invullijst!$A$10:$M$177,2,FALSE)) -> Dorien de Kort | G32: =IF(VLOOKUP($D32,invullijst!$A$10:$M$177,6,FALSE)=0,"",VLOOKUP($D32,invullijst!$A$10:$M$177,6,FALSE)) -> 92 | I32: 3 | J32: =IF($O$3="k",IF(VLOOKUP($L32,invullijst!$A$10:$M$177,11,FALSE)=0," ",VLOOKUP($L32,invullijst!$A$10:$M$177,11,FALSE)),"") ->  | K32: =IF(VLOOKUP($L32,invullijst!$A$10:$M$218,4,FALSE)="","",VLOOKUP($L32,invullijst!$A$10:$M$218,4,FALSE)) -> 0 | M32: =IF(VLOOKUP($L32,invullijst!$A$10:$M$177,2,FALSE)="","",VLOOKUP($L32,invullijst!$A$10:$M$177,2,FALSE)) -> 0 | O32: =IF(VLOOKUP($L32,invullijst!$A$10:$M$177,6,FALSE)=0,"",VLOOKUP($L32,invullijst!$A$10:$M$177,6,FALSE)) -> 
A33: Totaal korps opgelegd A2 | G33: =SUM(G30:G32) -> 281 | I33: Totaal korps opgelegd A2 | O33: =SUM(O30:O32) -> 88
A35: 1 | B35: =IF($G$3="k",IF(VLOOKUP($D35,invullijst!$A$10:$M$177,11,FALSE)=0," ",VLOOKUP($D35,invullijst!$A$10:$M$177,11,FALSE)),"") ->  | C35: =IF(VLOOKUP(D35,invullijst!A$10:F$218,4,FALSE)="","",VLOOKUP(D35,invullijst!A$10:D$218,4,FALSE)) -> 0 | E35: =IF(VLOOKUP($D35,invullijst!$A$10:$M$177,2,FALSE)="","",VLOOKUP($D35,invullijst!$A$10:$M$177,2,FALSE)) -> 0 | G35: =IF(VLOOKUP($D35,invullijst!$A$10:$M$177,6,FALSE)=0,"",VLOOKUP($D35,invullijst!$A$10:$M$177,6,FALSE)) ->  | I35: 1 | J35: =IF($O$3="k",IF(VLOOKUP($L35,invullijst!$A$10:$M$177,11,FALSE)=0," ",VLOOKUP($L35,invullijst!$A$10:$M$177,11,FALSE)),"") ->  | K35: =IF(VLOOKUP($L35,invullijst!$A$10:$M$218,4,FALSE)="","",VLOOKUP($L35,invullijst!$A$10:$M$218,4,FALSE)) -> 0 | M35: =IF(VLOOKUP($L35,invullijst!$A$10:$M$177,2,FALSE)="","",VLOOKUP($L35,invullijst!$A$10:$M$177,2,FALSE)) -> 0 | O35: =IF(VLOOKUP($L35,invullijst!$A$10:$M$177,6,FALSE)=0,"",VLOOKUP($L35,invullijst!$A$10:$M$177,6,FALSE)) -> 
A36: 2 | B36: =IF($G$3="k",IF(VLOOKUP($D36,invullijst!$A$10:$M$177,11,FALSE)=0," ",VLOOKUP($D36,invullijst!$A$10:$M$177,11,FALSE)),"") ->  | C36: =IF(VLOOKUP(D36,invullijst!A$10:F$218,4,FALSE)="","",VLOOKUP(D36,invullijst!A$10:D$218,4,FALSE)) -> 0 | E36: =IF(VLOOKUP($D36,invullijst!$A$10:$M$177,2,FALSE)="","",VLOOKUP($D36,invullijst!$A$10:$M$177,2,FALSE)) -> 0 | G36: =IF(VLOOKUP($D36,invullijst!$A$10:$M$177,6,FALSE)=0,"",VLOOKUP($D36,invullijst!$A$10:$M$177,6,FALSE)) ->  | I36: 2 | J36: =IF($O$3="k",IF(VLOOKUP($L36,invullijst!$A$10:$M$177,11,FALSE)=0," ",VLOOKUP($L36,invullijst!$A$10:$M$177,11,FALSE)),"") ->  | K36: =IF(VLOOKUP($L36,invullijst!$A$10:$M$218,4,FALSE)="","",VLOOKUP($L36,invullijst!$A$10:$M$218,4,FALSE)) -> 0 | M36: =IF(VLOOKUP($L36,invullijst!$A$10:$M$177,2,FALSE)="","",VLOOKUP($L36,invullijst!$A$10:$M$177,2,FALSE)) -> 0 | O36: =IF(VLOOKUP($L36,invullijst!$A$10:$M$177,6,FALSE)=0,"",VLOOKUP($L36,invullijst!$A$10:$M$177,6,FALSE)) -> 
A37: 3 | B37: =IF($G$3="k",IF(VLOOKUP($D37,invullijst!$A$10:$M$177,11,FALSE)=0," ",VLOOKUP($D37,invullijst!$A$10:$M$177,11,FALSE)),"") ->  | C37: =IF(VLOOKUP(D37,invullijst!A$10:F$218,4,FALSE)="","",VLOOKUP(D37,invullijst!A$10:D$218,4,FALSE)) -> 0 | E37: =IF(VLOOKUP($D37,invullijst!$A$10:$M$177,2,FALSE)="","",VLOOKUP($D37,invullijst!$A$10:$M$177,2,FALSE)) -> 0 | G37: =IF(VLOOKUP($D37,invullijst!$A$10:$M$177,6,FALSE)=0,"",VLOOKUP($D37,invullijst!$A$10:$M$177,6,FALSE)) ->  | I37: 3 | J37: =IF($O$3="k",IF(VLOOKUP($L37,invullijst!$A$10:$M$177,11,FALSE)=0," ",VLOOKUP($L37,invullijst!$A$10:$M$177,11,FALSE)),"") ->  | K37: =IF(VLOOKUP($L37,invullijst!$A$10:$M$218,4,FALSE)="","",VLOOKUP($L37,invullijst!$A$10:$M$218,4,FALSE)) -> 0 | M37: =IF(VLOOKUP($L37,invullijst!$A$10:$M$177,2,FALSE)="","",VLOOKUP($L37,invullijst!$A$10:$M$177,2,FALSE)) -> 0 | O37: =IF(VLOOKUP($L37,invullijst!$A$10:$M$177,6,FALSE)=0,"",VLOOKUP($L37,invullijst!$A$10:$M$177,6,FALSE)) -> 
A38: Totaal korps opgelegd A3 | G38: =SUM(G35:G37) -> 0 | I38: Totaal korps opgelegd A3 | O38: =SUM(O35:O37) -> 0

Sheet wedstrijd 2A
A1: =invullijst!F1 -> Organisatie | F1: =invullijst!H2 -> 2023 - 2024 | I1: =invullijst!F3 -> St. Crispinus & Crispinianus Besoijen
A2: Datum: | M2: 2024-02-21
A3: 4 | B3: =IF(VLOOKUP(A3,invullijst!A1:F5,2,FALSE)="","",VLOOKUP(A3,invullijst!A1:F5,2,FALSE)) -> Sint Ambrosius Haarsteeg | I3: 2 | J3: =IF(VLOOKUP(I3,invullijst!A1:C5,2,FALSE)="","",VLOOKUP(I3,invullijst!A1:C5,2,FALSE)) -> St. Crispinus & Crispinianus Besoijen
A5: vrijehand
A6: 1 | B6: =IF($G$3="k",IF(VLOOKUP($D6,invullijst!$A$10:$M$177,11,FALSE)=0," ",VLOOKUP($D6,invullijst!$A$10:$M$177,11,FALSE)),"") ->  | C6: =IF(VLOOKUP(D6,invullijst!A$10:F$218,4,FALSE)="","",VLOOKUP(D6,invullijst!A$10:D$218,4,FALSE)) -> vr | D6: 405 | E6: =IF(VLOOKUP($D6,invullijst!$A$10:$M$177,2,FALSE)="","",VLOOKUP($D6,invullijst!$A$10:$M$177,2,FALSE)) -> Jan de Vaan | G6: =IF(VLOOKUP($D6,invullijst!$A$10:$M$177,7,FALSE)=0,"",VLOOKUP($D6,invullijst!$A$10:$M$177,7,FALSE)) -> 85 | I6: 1 | J6: =IF($O$3="k",IF(VLOOKUP($L6,invullijst!$A$10:$M$177,11,FALSE)=0," ",VLOOKUP($L6,invullijst!$A$10:$M$177,11,FALSE)),"") ->  | K6: =IF(VLOOKUP($L6,invullijst!$A$10:$M$218,4,FALSE)="","",VLOOKUP($L6,invullijst!$A$10:$M$218,4,FALSE)) -> vr | L6: 201 | M6: =IF(VLOOKUP($L6,invullijst!$A$10:$M$177,2,FALSE)="","",VLOOKUP($L6,invullijst!$A$10:$M$177,2,FALSE)) -> Sander Oome | O6: =IF(VLOOKUP($L6,invullijst!$A$10:$M$177,7,FALSE)=0,"",VLOOKUP($L6,invullijst!$A$10:$M$177,7,FALSE)) -> 92
A7: 2 | B7: =IF($G$3="k",IF(VLOOKUP($D7,invullijst!$A$10:$M$177,11,FALSE)=0," ",VLOOKUP($D7,invullijst!$A$10:$M$177,11,FALSE)),"") ->  | C7: =IF(VLOOKUP(D7,invullijst!A$10:F$218,4,FALSE)="","",VLOOKUP(D7,invullijst!A$10:D$218,4,FALSE)) -> vr | D7: 410 | E7: =IF(VLOOKUP($D7,invullijst!$A$10:$M$177,2,FALSE)="","",VLOOKUP($D7,invullijst!$A$10:$M$177,2,FALSE)) -> Tonnie Koks | G7: =IF(VLOOKUP($D7,invullijst!$A$10:$M$177,7,FALSE)=0,"",VLOOKUP($D7,invullijst!$A$10:$M$177,7,FALSE)) -> 84 | I7: 2 | J7: =IF($O$3="k",IF(VLOOKUP($L7,invullijst!$A$10:$M$177,11,FALSE)=0," ",VLOOKUP($L7,invullijst!$A$10:$M$177,11,FALSE)),"") ->  | K7: =IF(VLOOKUP($L7,invullijst!$A$10:$M$218,4,FALSE)="","",VLOOKUP($L7,invullijst!$A$10:$M$218,4,FALSE)) -> vr | L7: 206 | M7: =IF(VLOOKUP($L7,invullijst!$A$10:$M$177,2,FALSE)="","",VLOOKUP($L7,invullijst!$A$10:$M$177,2,FALSE)) -> Kees van Hulten | O7: =IF(VLOOKUP($L7,invullijst!$A$10:$M$177,7,FALSE)=0,"",VLOOKUP($L7,invullijst!$A$10:$M$177,7,FALSE)) -> 85
A8: 3 | B8: =IF($G$3="k",IF(VLOOKUP($D8,invullijst!$A$10:$M$177,11,FALSE)=0," ",VLOOKUP($D8,invullijst!$A$10:$M$177,11,FALSE)),"") ->  | C8: =IF(VLOOKUP(D8,invullijst!A$10:F$218,4,FALSE)="","",VLOOKUP(D8,invullijst!A$10:D$218,4,FALSE)) -> vr | D8: 406 | E8: =IF(VLOOKUP($D8,invullijst!$A$10:$M$177,2,FALSE)="","",VLOOKUP($D8,invullijst!$A$10:$M$177,2,FALSE)) -> Jeroen van Oss | G8: =IF(VLOOKUP($D8,invullijst!$A$10:$M$177,7,FALSE)=0,"",VLOOKUP($D8,invullijst!$A$10:$M$177,7,FALSE)) -> 82 | I8: 3 | J8: =IF($O$3="k",IF(VLOOKUP($L8,invullijst!$A$10:$M$177,11,FALSE)=0," ",VLOOKUP($L8,invullijst!$A$10:$M$177,11,FALSE)),"") ->  | K8: =IF(VLOOKUP($L8,invullijst!$A$10:$M$218,4,FALSE)="","",VLOOKUP($L8,invullijst!$A$10:$M$218,4,FALSE)) -> vr | L8: 203 | M8: =IF(VLOOKUP($L8,invullijst!$A$10:$M$177,2,FALSE)="","",VLOOKUP($L8,invullijst!$A$10:$M$177,2,FALSE)) -> Frank van den Houdt | O8: =IF(VLOOKUP($L8,invullijst!$A$10:$M$177,7,FALSE)=0,"",VLOOKUP($L8,invullijst!$A$10:$M$177,7,FALSE)) -> 82
A9: 4 | B9: =IF($G$3="k",IF(VLOOKUP($D9,invullijst!$A$10:$M$177,11,FALSE)=0," ",VLOOKUP($D9,invullijst!$A$10:$M$177,11,FALSE)),"") ->  | C9: =IF(VLOOKUP(D9,invullijst!A$10:F$218,4,FALSE)="","",VLOOKUP(D9,invullijst!A$10:D$218,4,FALSE)) -> vr | D9: 408 | E9: =IF(VLOOKUP($D9,invullijst!$A$10:$M$177,2,FALSE)="","",VLOOKUP($D9,invullijst!$A$10:$M$177,2,FALSE)) -> Rudy van Falier | G9: =IF(VLOOKUP($D9,invullijst!$A$10:$M$177,7,FALSE)=0,"",VLOOKUP($D9,invullijst!$A$10:$M$177,7,FALSE)) -> 79 | I9: 4 | J9: =IF($O$3="k",IF(VLOOKUP($L9,invullijst!$A$10:$M$177,11,FALSE)=0," ",VLOOKUP($L9,invullijst!$A$10:$M$177,11,FALSE)),"") ->  | K9: =IF(VLOOKUP($L9,invullijst!$A$10:$M$218,4,FALSE)="","",VLOOKUP($L9,invullijst!$A$10:$M$218,4,FALSE)) -> vr | L9: 205 | M9: =IF(VLOOKUP($L9,invullijst!$A$10:$M$177,2,FALSE)="","",VLOOKUP($L9,invullijst!$A$10:$M$177,2,FALSE)) -> Jos v/d Snepscheut | O9: =IF(VLOOKUP($L9,invullijst!$A$10:$M$177,7,FALSE)=0,"",VLOOKUP($L9,invullijst!$A$10:$M$177,7,FALSE)) -> 83
A10: Totaal A korps | G10: =SUM(G6:G9) -> 330 | I10: Totaal A korps | O10: =SUM(O6:O9) -> 342
A12: 1 | B12: =IF($G$3="k",IF(VLOOKUP($D12,invullijst!$A$10:$M$177,11,FALSE)=0," ",VLOOKUP($D12,invullijst!$A$10:$M$177,11,FALSE)),"") ->  | C12: =IF(VLOOKUP(D12,invullijst!A$10:F$218,4,FALSE)="","",VLOOKUP(D12,invullijst!A$10:D$218,4,FALSE)) -> vr | D12: 402 | E12: =IF(VLOOKUP($D12,invullijst!$A$10:$M$177,2,FALSE)="","",VLOOKUP($D12,invullijst!$A$10:$M$177,2,FALSE)) -> Daniëlle v/d Lee | G12: =IF(VLOOKUP($D12,invullijst!$A$10:$M$177,7,FALSE)=0,"",VLOOKUP($D12,invullijst!$A$10:$M$177,7,FALSE)) -> 79 | I12: 1 | J12: =IF($O$3="k",IF(VLOOKUP($L12,invullijst!$A$10:$M$177,11,FALSE)=0," ",VLOOKUP($L12,invullijst!$A$10:$M$177,11,FALSE)),"") ->  | K12: =IF(VLOOKUP($L12,invullijst!$A$10:$M$218,4,FALSE)="","",VLOOKUP($L12,invullijst!$A$10:$M$218,4,FALSE)) -> vr | L12: 209 | M12: =IF(VLOOKUP($L12,invullijst!$A$10:$M$177,2,FALSE)="","",VLOOKUP($L12,invullijst!$A$10:$M$177,2,FALSE)) -> René van Kuijk | O12: =IF(VLOOKUP($L12,invullijst!$A$10:$M$177,7,FALSE)=0,"",VLOOKUP($L12,invullijst!$A$10:$M$177,7,FALSE)) -> 80
A13: 2 | B13: =IF($G$3="k",IF(VLOOKUP($D13,invullijst!$A$10:$M$177,11,FALSE)=0," ",VLOOKUP($D13,invullijst!$A$10:$M$177,11,FALSE)),"") ->  | C13: =IF(VLOOKUP(D13,invullijst!A$10:F$218,4,FALSE)="","",VLOOKUP(D13,invullijst!A$10:D$218,4,FALSE)) -> 0 | E13: =IF(VLOOKUP($D13,invullijst!$A$10:$M$177,2,FALSE)="","",VLOOKUP($D13,invullijst!$A$10:$M$177,2,FALSE)) -> 0 | G13: =IF(VLOOKUP($D13,invullijst!$A$10:$M$177,7,FALSE)=0,"",VLOOKUP($D13,invullijst!$A$10:$M$177,7,FALSE)) ->  | I13: 2 | J13: =IF($O$3="k",IF(VLOOKUP($L13,invullijst!$A$10:$M$177,11,FALSE)=0," ",VLOOKUP($L13,invullijst!$A$10:$M$177,11,FALSE)),"") ->  | K13: =IF(VLOOKUP($L13,invullijst!$A$10:$M$218,4,FALSE)="","",VLOOKUP($L13,invullijst!$A$10:$M$218,4,FALSE)) -> vr | L13: 215 | M13: =IF(VLOOKUP($L13,invullijst!$A$10:$M$177,2,FALSE)="","",VLOOKUP($L13,invullijst!$A$10:$M$177,2,FALSE)) -> Pieter Laghuwitz | O13: =IF(VLOOKUP($L13,invullijst!$A$10:$M$177,7,FALSE)=0,"",VLOOKUP($L13,invullijst!$A$10:$M$177,7,FALSE)) -> 74
A14: 3 | B14: =IF($G$3="k",IF(VLOOKUP($D14,invullijst!$A$10:$M$177,11,FALSE)=0," ",VLOOKUP($D14,invullijst!$A$10:$M$177,11,FALSE)),"") ->  | C14: =IF(VLOOKUP(D14,invullijst!A$10:F$218,4,FALSE)="","",VLOOKUP(D14,invullijst!A$10:D$218,4,FALSE)) -> 0 | E14: =IF(VLOOKUP($D14,invullijst!$A$10:$M$177,2,FALSE)="","",VLOOKUP($D14,invullijst!$A$10:$M$177,2,FALSE)) -> 0 | G14: =IF(VLOOKUP($D14,invullijst!$A$10:$M$177,7,FALSE)=0,"",VLOOKUP($D14,invullijst!$A$10:$M$177,7,FALSE)) ->  | I14: 3 | J14: =IF($O$3="k",IF(VLOOKUP($L14,invullijst!$A$10:$M$177,11,FALSE)=0," ",VLOOKUP($L14,invullijst!$A$10:$M$177,11,FALSE)),"") ->  | K14: =IF(VLOOKUP($L14,invullijst!$A$10:$M$218,4,FALSE)="","",VLOOKUP($L14,invullijst!$A$10:$M$218,4,FALSE)) -> vr | L14: 208 | M14: =IF(VLOOKUP($L14,invullijst!$A$10:$M$177,2,FALSE)="","",VLOOKUP($L14,invullijst!$A$10:$M$177,2,FALSE)) -> Erin van Hulten | O14: =IF(VLOOKUP($L14,invullijst!$A$10:$M$177,7,FALSE)=0,"",VLOOKUP($L14,invullijst!$A$10:$M$177,7,FALSE)) -> 80
A15: 4 | B15: =IF($G$3="k",IF(VLOOKUP($D15,invullijst!$A$10:$M$177,11,FALSE)=0," ",VLOOKUP($D15,invullijst!$A$10:$M$177,11,FALSE)),"") ->  | C15: =IF(VLOOKUP(D15,invullijst!A$10:F$218,4,FALSE)="","",VLOOKUP(D15,invullijst!A$10:D$218,4,FALSE)) -> 0 | E15: =IF(VLOOKUP($D15,invullijst!$A$10:$M$177,2,FALSE)="","",VLOOKUP($D15,invullijst!$A$10:$M$177,2,FALSE)) -> 0 | G15: =IF(VLOOKUP($D15,invullijst!$A$10:$M$177,7,FALSE)=0,"",VLOOKUP($D15,invullijst!$A$10:$M$177,7,FALSE)) ->  | I15: 4 | J15: =IF($O$3="k",IF(VLOOKUP($L15,invullijst!$A$10:$M$177,11,FALSE)=0," ",VLOOKUP($L15,invullijst!$A$10:$M$177,11,FALSE)),"") ->  | K15: =IF(VLOOKUP($L15,invullijst!$A$10:$M$218,4,FALSE)="","",VLOOKUP($L15,invullijst!$A$10:$M$218,4,FALSE)) -> vr | L15: 204 | M15: =IF(VLOOKUP($L15,invullijst!$A$10:$M$177,2,FALSE)="","",VLOOKUP($L15,invullijst!$A$10:$M$177,2,FALSE)) -> Harry de Louw | O15: =IF(VLOOKUP($L15,invullijst!$A$10:$M$177,7,FALSE)=0,"",VLOOKUP($L15,invullijst!$A$10:$M$177,7,FALSE)) -> 81
A16: Totaal B1 korps | G16: =SUM(G12:G15) -> 79 | I16: Totaal B1 korps | O16: =SUM(O12:O15) -> 315
A18: 1 | B18: =IF($G$3="k",IF(VLOOKUP($D18,invullijst!$A$10:$M$177,11,FALSE)=0," ",VLOOKUP($D18,invullijst!$A$10:$M$177,11,FALSE)),"") ->  | C18: =IF(VLOOKUP(D18,invullijst!A$10:F$218,4,FALSE)="","",VLOOKUP(D18,invullijst!A$10:D$218,4,FALSE)) -> 0 | E18: =IF(VLOOKUP($D18,invullijst!$A$10:$M$177,2,FALSE)="","",VLOOKUP($D18,invullijst!$A$10:$M$177,2,FALSE)) -> 0 | G18: =IF(VLOOKUP($D18,invullijst!$A$10:$M$177,7,FALSE)=0,"",VLOOKUP($D18,invullijst!$A$10:$M$177,7,FALSE)) ->  | I18: 1 | J18: =IF($O$3="k",IF(VLOOKUP($L18,invullijst!$A$10:$M$177,11,FALSE)=0," ",VLOOKUP($L18,invullijst!$A$10:$M$177,11,FALSE)),"") ->  | K18: =IF(VLOOKUP($L18,invullijst!$A$10:$M$218,4,FALSE)="","",VLOOKUP($L18,invullijst!$A$10:$M$218,4,FALSE)) -> vr | L18: 216 | M18: =IF(VLOOKUP($L18,invullijst!$A$10:$M$177,2,FALSE)="","",VLOOKUP($L18,invullijst!$A$10:$M$177,2,FALSE)) -> Hans Laghuwitz | O18: =IF(VLOOKUP($L18,invullijst!$A$10:$M$177,7,FALSE)=0,"",VLOOKUP($L18,invullijst!$A$10:$M$177,7,FALSE)) -> 74
A19: 2 | B19: =IF($G$3="k",IF(VLOOKUP($D19,invullijst!$A$10:$M$177,11,FALSE)=0," ",VLOOKUP($D19,invullijst!$A$10:$M$177,11,FALSE)),"") ->  | C19: =IF(VLOOKUP(D19,invullijst!A$10:F$218,4,FALSE)="","",VLOOKUP(D19,invullijst!A$10:D$218,4,FALSE)) -> 0 | E19: =IF(VLOOKUP($D19,invullijst!$A$10:$M$177,2,FALSE)="","",VLOOKUP($D19,invullijst!$A$10:$M$177,2,FALSE)) -> 0 | G19: =IF(VLOOKUP($D19,invullijst!$A$10:$M$177,7,FALSE)=0,"",VLOOKUP($D19,invullijst!$A$10:$M$177,7,FALSE)) ->  | I19: 2 | J19: =IF($O$3="k",IF(VLOOKUP($L19,invullijst!$A$10:$M$177,11,FALSE)=0," ",VLOOKUP($L19,invullijst!$A$10:$M$177,11,FALSE)),"") ->  | K19: =IF(VLOOKUP($L19,invullijst!$A$10:$M$218,4,FALSE)="","",VLOOKUP($L19,invullijst!$A$10:$M$218,4,FALSE)) -> vr | L19: 213 | M19: =IF(VLOOKUP($L19,invullijst!$A$10:$M$177,2,FALSE)="","",VLOOKUP($L19,invullijst!$A$10:$M$177,2,FALSE)) -> Roland van Delft | O19: =IF(VLOOKUP($L19,invullijst!$A$10:$M$177,7,FALSE)=0,"",VLOOKUP($L19,invullijst!$A$10:$M$177,7,FALSE)) -> 59
A20: 3 | B20: =IF($G$3="k",IF(VLOOKUP($D20,invullijst!$A$10:$M$177,11,FALSE)=0," ",VLOOKUP($D20,invullijst!$A$10:$M$177,11,FALSE)),"") ->  | C20: =IF(VLOOKUP(D20,invullijst!A$10:F$218,4,FALSE)="","",VLOOKUP(D20,invullijst!A$10:D$218,4,FALSE)) -> 0 | E20: =IF(VLOOKUP($D20,invullijst!$A$10:$M$177,2,FALSE)="","",VLOOKUP($D20,invullijst!$A$10:$M$177,2,FALSE)) -> 0 | G20: =IF(VLOOKUP($D20,invullijst!$A$10:$M$177,7,FALSE)=0,"",VLOOKUP($D20,invullijst!$A$10:$M$177,7,FALSE)) ->  | I20: 3 | J20: =IF($O$3="k",IF(VLOOKUP($L20,invullijst!$A$10:$M$177,11,FALSE)=0," ",VLOOKUP($L20,invullijst!$A$10:$M$177,11,FALSE)),"") ->  | K20: =IF(VLOOKUP($L20,invullijst!$A$10:$M$218,4,FALSE)="","",VLOOKUP($L20,invullijst!$A$10:$M$218,4,FALSE)) -> vr | L20: 210 | M20: =IF(VLOOKUP($L20,invullijst!$A$10:$M$177,2,FALSE)="","",VLOOKUP($L20,invullijst!$A$10:$M$177,2,FALSE)) -> Nick de Vaan | O20: =IF(VLOOKUP($L20,invullijst!$A$10:$M$177,7,FALSE)=0,"",VLOOKUP($L20,invullijst!$A$10:$M$177,7,FALSE)) -> 63
A21: 4 | B21: =IF($G$3="k",IF(VLOOKUP($D21,invullijst!$A$10:$M$177,11,FALSE)=0," ",VLOOKUP($D21,invullijst!$A$10:$M$177,11,FALSE)),"") ->  | C21: =IF(VLOOKUP(D21,invullijst!A$10:F$218,4,FALSE)="","",VLOOKUP(D21,invullijst!A$10:D$218,4,FALSE)) -> 0 | E21: =IF(VLOOKUP($D21,invullijst!$A$10:$M$177,2,FALSE)="","",VLOOKUP($D21,invullijst!$A$10:$M$177,2,FALSE)) -> 0 | G21: =IF(VLOOKUP($D21,invullijst!$A$10:$M$177,7,FALSE)=0,"",VLOOKUP($D21,invullijst!$A$10:$M$177,7,FALSE)) ->  | I21: 4 | J21: =IF($O$3="k",IF(VLOOKUP($L21,invullijst!$A$10:$M$177,11,FALSE)=0," ",VLOOKUP($L21,invullijst!$A$10:$M$177,11,FALSE)),"") ->  | K21: =IF(VLOOKUP($L21,invullijst!$A$10:$M$218,4,FALSE)="","",VLOOKUP($L21,invullijst!$A$10:$M$218,4,FALSE)) -> vr | L21: 217 | M21: =IF(VLOOKUP($L21,invullijst!$A$10:$M$177,2,FALSE)="","",VLOOKUP($L21,invullijst!$A$10:$M$177,2,FALSE)) -> Jānis Jākobsons | O21: =IF(VLOOKUP($L21,invullijst!$A$10:$M$177,7,FALSE)=0,"",VLOOKUP($L21,invullijst!$A$10:$M$177,7,FALSE)) -> 72
A22: DIVERSEN / INHAAL | I22: DIVERSEN / INHAAL
A24: OPGELEGD (Jeugd <16 en 65+)
A25: 1 | B25: =IF($G$3="k",IF(VLOOKUP($D25,invullijst!$A$10:$M$177,11,FALSE)=0," ",VLOOKUP($D25,invullijst!$A$10:$M$177,11,FALSE)),"") ->  | C25: =IF(VLOOKUP(D25,invullijst!A$10:F$218,4,FALSE)="","",VLOOKUP(D25,invullijst!A$10:D$218,4,FALSE)) -> 65+ | D25: 404 | E25: =IF(VLOOKUP($D25,invullijst!$A$10:$M$177,2,FALSE)="","",VLOOKUP($D25,invullijst!$A$10:$M$177,2,FALSE)) -> Gerard van Beurden | G25: =IF(VLOOKUP($D25,invullijst!$A$10:$M$177,7,FALSE)=0,"",VLOOKUP($D25,invullijst!$A$10:$M$177,7,FALSE)) -> 97 | I25: 1 | J25: =IF($O$3="k",IF(VLOOKUP($L25,invullijst!$A$10:$M$177,11,FALSE)=0," ",VLOOKUP($L25,invullijst!$A$10:$M$177,11,FALSE)),"") ->  | K25: =IF(VLOOKUP($L25,invullijst!$A$10:$M$218,4,FALSE)="","",VLOOKUP($L25,invullijst!$A$10:$M$218,4,FALSE)) -> 65+ | L25: 211 | M25: =IF(VLOOKUP($L25,invullijst!$A$10:$M$177,2,FALSE)="","",VLOOKUP($L25,invullijst!$A$10:$M$177,2,FALSE)) -> Ad van den houdt | O25: =IF(VLOOKUP($L25,invullijst!$A$10:$M$177,7,FALSE)=0,"",VLOOKUP($L25,invullijst!$A$10:$M$177,7,FALSE)) -> 88
A26: 2 | B26: =IF($G$3="k",IF(VLOOKUP($D26,invullijst!$A$10:$M$177,11,FALSE)=0," ",VLOOKUP($D26,invullijst!$A$10:$M$177,11,FALSE)),"") ->  | C26: =IF(VLOOKUP(D26,invullijst!A$10:F$218,4,FALSE)="","",VLOOKUP(D26,invullijst!A$10:D$218,4,FALSE)) -> 65+ | D26: 401 | E26: =IF(VLOOKUP($D26,invullijst!$A$10:$M$177,2,FALSE)="","",VLOOKUP($D26,invullijst!$A$10:$M$177,2,FALSE)) -> Frans van Beurden | G26: =IF(VLOOKUP($D26,invullijst!$A$10:$M$177,7,FALSE)=0,"",VLOOKUP($D26,invullijst!$A$10:$M$177,7,FALSE)) -> 97 | I26: 2 | J26: =IF($O$3="k",IF(VLOOKUP($L26,invullijst!$A$10:$M$177,11,FALSE)=0," ",VLOOKUP($L26,invullijst!$A$10:$M$177,11,FALSE)),"") ->  | K26: =IF(VLOOKUP($L26,invullijst!$A$10:$M$218,4,FALSE)="","",VLOOKUP($L26,invullijst!$A$10:$M$218,4,FALSE)) -> 65+ | L26: 212 | M26: =IF(VLOOKUP($L26,invullijst!$A$10:$M$177,2,FALSE)="","",VLOOKUP($L26,invullijst!$A$10:$M$177,2,FALSE)) -> René Duquesnoy | O26: =IF(VLOOKUP($L26,invullijst!$A$10:$M$177,7,FALSE)=0,"",VLOOKUP($L26,invullijst!$A$10:$M$177,7,FALSE)) -> 87
A27: 3 | B27: =IF($G$3="k",IF(VLOOKUP($D27,invullijst!$A$10:$M$177,11,FALSE)=0," ",VLOOKUP($D27,invullijst!$A$10:$M$177,11,FALSE)),"") ->  | C27: =IF(VLOOKUP(D27,invullijst!A$10:F$218,4,FALSE)="","",VLOOKUP(D27,invullijst!A$10:D$218,4,FALSE)) -> 65+ | D27: 415 | E27: =IF(VLOOKUP($D27,invullijst!$A$10:$M$177,2,FALSE)="","",VLOOKUP($D27,invullijst!$A$10:$M$177,2,FALSE)) -> Wim de Gouw | G27: =IF(VLOOKUP($D27,invullijst!$A$10:$M$177,7,FALSE)=0,"",VLOOKUP($D27,invullijst!$A$10:$M$177,7,FALSE)) -> 95 | I27: 3 | J27: =IF($O$3="k",IF(VLOOKUP($L27,invullijst!$A$10:$M$177,11,FALSE)=0," ",VLOOKUP($L27,invullijst!$A$10:$M$177,11,FALSE)),"") ->  | K27: =IF(VLOOKUP($L27,invullijst!$A$10:$M$218,4,FALSE)="","",VLOOKUP($L27,invullijst!$A$10:$M$218,4,FALSE)) -> 65+ | L27: 214 | M27: =IF(VLOOKUP($L27,invullijst!$A$10:$M$177,2,FALSE)="","",VLOOKUP($L27,invullijst!$A$10:$M$177,2,FALSE)) -> André de Vaan | O27: =IF(VLOOKUP($L27,invullijst!$A$10:$M$177,7,FALSE)=0,"",VLOOKUP($L27,invullijst!$A$10:$M$177,7,FALSE)) -> 89
A28: Totaal korps opgelegd A1 | G28: =SUM(G25:G27) -> 289 | I28: Totaal korps opgelegd A1 | O28: =SUM(O25:O27) -> 264
A30: 1 | B30: =IF($G$3="k",IF(VLOOKUP($D30,invullijst!$A$10:$M$177,11,FALSE)=0," ",VLOOKUP($D30,invullijst!$A$10:$M$177,11,FALSE)),"") ->  | C30: =IF(VLOOKUP(D30,invullijst!A$10:F$218,4,FALSE)="","",VLOOKUP(D30,invullijst!A$10:D$218,4,FALSE)) -> 65+ | D30: 413 | E30: =IF(VLOOKUP($D30,invullijst!$A$10:$M$177,2,FALSE)="","",VLOOKUP($D30,invullijst!$A$10:$M$177,2,FALSE)) -> Frans Mommersteeg | G30: =IF(VLOOKUP($D30,invullijst!$A$10:$M$177,7,FALSE)=0,"",VLOOKUP($D30,invullijst!$A$10:$M$177,7,FALSE)) -> 98 | I30: 1 | J30: =IF($O$3="k",IF(VLOOKUP($L30,invullijst!$A$10:$M$177,11,FALSE)=0," ",VLOOKUP($L30,invullijst!$A$10:$M$177,11,FALSE)),"") ->  | K30: =IF(VLOOKUP($L30,invullijst!$A$10:$M$218,4,FALSE)="","",VLOOKUP($L30,invullijst!$A$10:$M$218,4,FALSE)) -> 0 | M30: =IF(VLOOKUP($L30,invullijst!$A$10:$M$177,2,FALSE)="","",VLOOKUP($L30,invullijst!$A$10:$M$177,2,FALSE)) -> 0 | O30: =IF(VLOOKUP($L30,invullijst!$A$10:$M$177,7,FALSE)=0,"",VLOOKUP($L30,invullijst!$A$10:$M$177,7,FALSE)) -> 
A31: 2 | B31: =IF($G$3="k",IF(VLOOKUP($D31,invullijst!$A$10:$M$177,11,FALSE)=0," ",VLOOKUP($D31,invullijst!$A$10:$M$177,11,FALSE)),"") ->  | C31: =IF(VLOOKUP(D31,invullijst!A$10:F$218,4,FALSE)="","",VLOOKUP(D31,invullijst!A$10:D$218,4,FALSE)) -> 65+ | D31: 412 | E31: =IF(VLOOKUP($D31,invullijst!$A$10:$M$177,2,FALSE)="","",VLOOKUP($D31,invullijst!$A$10:$M$177,2,FALSE)) -> Francien v/d Wiel | G31: =IF(VLOOKUP($D31,invullijst!$A$10:$M$177,7,FALSE)=0,"",VLOOKUP($D31,invullijst!$A$10:$M$177,7,FALSE)) -> 87 | I31: 2 | J31: =IF($O$3="k",IF(VLOOKUP($L31,invullijst!$A$10:$M$177,11,FALSE)=0," ",VLOOKUP($L31,invullijst!$A$10:$M$177,11,FALSE)),"") ->  | K31: =IF(VLOOKUP($L31,invullijst!$A$10:$M$218,4,FALSE)="","",VLOOKUP($L31,invullijst!$A$10:$M$218,4,FALSE)) -> 0 | M31: =IF(VLOOKUP($L31,invullijst!$A$10:$M$177,2,FALSE)="","",VLOOKUP($L31,invullijst!$A$10:$M$177,2,FALSE)) -> 0 | O31: =IF(VLOOKUP($L31,invullijst!$A$10:$M$177,7,FALSE)=0,"",VLOOKUP($L31,invullijst!$A$10:$M$177,7,FALSE)) -> 
A32: 3 | B32: =IF($G$3="k",IF(VLOOKUP($D32,invullijst!$A$10:$M$177,11,FALSE)=0," ",VLOOKUP($D32,invullijst!$A$10:$M$177,11,FALSE)),"") ->  | C32: =IF(VLOOKUP(D32,invullijst!A$10:F$218,4,FALSE)="","",VLOOKUP(D32,invullijst!A$10:D$218,4,FALSE)) -> 0 | E32: =IF(VLOOKUP($D32,invullijst!$A$10:$M$177,2,FALSE)="","",VLOOKUP($D32,invullijst!$A$10:$M$177,2,FALSE)) -> 0 | G32: =IF(VLOOKUP($D32,invullijst!$A$10:$M$177,7,FALSE)=0,"",VLOOKUP($D32,invullijst!$A$10:$M$177,7,FALSE)) ->  | I32: 3 | J32: =IF($O$3="k",IF(VLOOKUP($L32,invullijst!$A$10:$M$177,11,FALSE)=0," ",VLOOKUP($L32,invullijst!$A$10:$M$177,11,FALSE)),"") ->  | K32: =IF(VLOOKUP($L32,invullijst!$A$10:$M$218,4,FALSE)="","",VLOOKUP($L32,invullijst!$A$10:$M$218,4,FALSE)) -> 0 | M32: =IF(VLOOKUP($L32,invullijst!$A$10:$M$177,2,FALSE)="","",VLOOKUP($L32,invullijst!$A$10:$M$177,2,FALSE)) -> 0 | O32: =IF(VLOOKUP($L32,invullijst!$A$10:$M$177,7,FALSE)=0,"",VLOOKUP($L32,invullijst!$A$10:$M$177,7,FALSE)) -> 
A33: Totaal korps opgelegd A2 | G33: =SUM(G30:G32) -> 185 | I33: Totaal korps opgelegd A2 | O33: =SUM(O30:O32) -> 0
A35: 1 | B35: =IF($G$3="k",IF(VLOOKUP($D35,invullijst!$A$10:$M$177,11,FALSE)=0," ",VLOOKUP($D35,invullijst!$A$10:$M$177,11,FALSE)),"") ->  | C35: =IF(VLOOKUP(D35,invullijst!A$10:F$218,4,FALSE)="","",VLOOKUP(D35,invullijst!A$10:D$218,4,FALSE)) -> 0 | E35: =IF(VLOOKUP($D35,invullijst!$A$10:$M$177,2,FALSE)="","",VLOOKUP($D35,invullijst!$A$10:$M$177,2,FALSE)) -> 0 | G35: =IF(VLOOKUP($D35,invullijst!$A$10:$M$177,7,FALSE)=0,"",VLOOKUP($D35,invullijst!$A$10:$M$177,7,FALSE)) ->  | I35: 1 | J35: =IF($O$3="k",IF(VLOOKUP($L35,invullijst!$A$10:$M$177,11,FALSE)=0," ",VLOOKUP($L35,invullijst!$A$10:$M$177,11,FALSE)),"") ->  | K35: =IF(VLOOKUP($L35,invullijst!$A$10:$M$218,4,FALSE)="","",VLOOKUP($L35,invullijst!$A$10:$M$218,4,FALSE)) -> 0 | M35: =IF(VLOOKUP($L35,invullijst!$A$10:$M$177,2,FALSE)="","",VLOOKUP($L35,invullijst!$A$10:$M$177,2,FALSE)) -> 0 | O35: =IF(VLOOKUP($L35,invullijst!$A$10:$M$177,7,FALSE)=0,"",VLOOKUP($L35,invullijst!$A$10:$M$177,7,FALSE)) -> 
A36: 2 | B36: =IF($G$3="k",IF(VLOOKUP($D36,invullijst!$A$10:$M$177,11,FALSE)=0," ",VLOOKUP($D36,invullijst!$A$10:$M$177,11,FALSE)),"") ->  | C36: =IF(VLOOKUP(D36,invullijst!A$10:F$218,4,FALSE)="","",VLOOKUP(D36,invullijst!A$10:D$218,4,FALSE)) -> 0 | E36: =IF(VLOOKUP($D36,invullijst!$A$10:$M$177,2,FALSE)="","",VLOOKUP($D36,invullijst!$A$10:$M$177,2,FALSE)) -> 0 | G36: =IF(VLOOKUP($D36,invullijst!$A$10:$M$177,7,FALSE)=0,"",VLOOKUP($D36,invullijst!$A$10:$M$177,7,FALSE)) ->  | I36: 2 | J36: =IF($O$3="k",IF(VLOOKUP($L36,invullijst!$A$10:$M$177,11,FALSE)=0," ",VLOOKUP($L36,invullijst!$A$10:$M$177,11,FALSE)),"") ->  | K36: =IF(VLOOKUP($L36,invullijst!$A$10:$M$218,4,FALSE)="","",VLOOKUP($L36,invullijst!$A$10:$M$218,4,FALSE)) -> 0 | M36: =IF(VLOOKUP($L36,invullijst!$A$10:$M$177,2,FALSE)="","",VLOOKUP($L36,invullijst!$A$10:$M$177,2,FALSE)) -> 0 | O36: =IF(VLOOKUP($L36,invullijst!$A$10:$M$177,7,FALSE)=0,"",VLOOKUP($L36,invullijst!$A$10:$M$177,7,FALSE)) -> 
A37: 3 | B37: =IF($G$3="k",IF(VLOOKUP($D37,invullijst!$A$10:$M$177,11,FALSE)=0," ",VLOOKUP($D37,invullijst!$A$10:$M$177,11,FALSE)),"") ->  | C37: =IF(VLOOKUP(D37,invullijst!A$10:F$218,4,FALSE)="","",VLOOKUP(D37,invullijst!A$10:D$218,4,FALSE)) -> 0 | E37: =IF(VLOOKUP($D37,invullijst!$A$10:$M$177,2,FALSE)="","",VLOOKUP($D37,invullijst!$A$10:$M$177,2,FALSE)) -> 0 | G37: =IF(VLOOKUP($D37,invullijst!$A$10:$M$177,7,FALSE)=0,"",VLOOKUP($D37,invullijst!$A$10:$M$177,7,FALSE)) ->  | I37: 3 | J37: =IF($O$3="k",IF(VLOOKUP($L37,invullijst!$A$10:$M$177,11,FALSE)=0," ",VLOOKUP($L37,invullijst!$A$10:$M$177,11,FALSE)),"") ->  | K37: =IF(VLOOKUP($L37,invullijst!$A$10:$M$218,4,FALSE)="","",VLOOKUP($L37,invullijst!$A$10:$M$218,4,FALSE)) -> 0 | M37: =IF(VLOOKUP($L37,invullijst!$A$10:$M$177,2,FALSE)="","",VLOOKUP($L37,invullijst!$A$10:$M$177,2,FALSE)) -> 0 | O37: =IF(VLOOKUP($L37,invullijst!$A$10:$M$177,7,FALSE)=0,"",VLOOKUP($L37,invullijst!$A$10:$M$177,7,FALSE)) -> 
A38: Totaal korps opgelegd A3 | G38: =SUM(G35:G37) -> 0 | I38: Totaal korps opgelegd A3 | O38: =SUM(O35:O37) -> 0

Sheet wedstrijd 2B
A1: =invullijst!F1 -> Organisatie | F1: =invullijst!H2 -> 2023 - 2024 | I1: =invullijst!F3 -> St. Crispinus & Crispinianus Besoijen
A2: Datum: | M2: 2024-02-21
A3: 5 | B3: =IF(VLOOKUP(A3,invullijst!A1:F5,2,FALSE)="","",VLOOKUP(A3,invullijst!A1:F5,2,FALSE)) -> Sint Jan Baptist Kaatsheuvel | I3: 1 | J3: =IF(VLOOKUP(I3,invullijst!A1:C5,2,FALSE)="","",VLOOKUP(I3,invullijst!A1:C5,2,FALSE)) -> Sint Ambrosius Baardwijk
A5: vrijehand
A6: 1 | B6: =IF($G$3="k",IF(VLOOKUP($D6,invullijst!$A$10:$M$177,11,FALSE)=0," ",VLOOKUP($D6,invullijst!$A$10:$M$177,11,FALSE)),"") ->  | C6: =IF(VLOOKUP(D6,invullijst!A$10:F$218,4,FALSE)="","",VLOOKUP(D6,invullijst!A$10:D$218,4,FALSE)) -> vr | D6: 506 | E6: =IF(VLOOKUP($D6,invullijst!$A$10:$M$177,2,FALSE)="","",VLOOKUP($D6,invullijst!$A$10:$M$177,2,FALSE)) -> Maikel Monden | G6: =IF(VLOOKUP($D6,invullijst!$A$10:$M$177,7,FALSE)=0,"",VLOOKUP($D6,invullijst!$A$10:$M$177,7,FALSE)) -> 85 | I6: 1 | J6: =IF($O$3="k",IF(VLOOKUP($L6,invullijst!$A$10:$M$177,11,FALSE)=0," ",VLOOKUP($L6,invullijst!$A$10:$M$177,11,FALSE)),"") ->  | K6: =IF(VLOOKUP($L6,invullijst!$A$10:$M$218,4,FALSE)="","",VLOOKUP($L6,invullijst!$A$10:$M$218,4,FALSE)) -> vr | L6: 102 | M6: =IF(VLOOKUP($L6,invullijst!$A$10:$M$177,2,FALSE)="","",VLOOKUP($L6,invullijst!$A$10:$M$177,2,FALSE)) -> John de Jong | O6: =IF(VLOOKUP($L6,invullijst!$A$10:$M$177,7,FALSE)=0,"",VLOOKUP($L6,invullijst!$A$10:$M$177,7,FALSE)) -> 74
A7: 2 | B7: =IF($G$3="k",IF(VLOOKUP($D7,invullijst!$A$10:$M$177,11,FALSE)=0," ",VLOOKUP($D7,invullijst!$A$10:$M$177,11,FALSE)),"") ->  | C7: =IF(VLOOKUP(D7,invullijst!A$10:F$218,4,FALSE)="","",VLOOKUP(D7,invullijst!A$10:D$218,4,FALSE)) -> vr | D7: 504 | E7: =IF(VLOOKUP($D7,invullijst!$A$10:$M$177,2,FALSE)="","",VLOOKUP($D7,invullijst!$A$10:$M$177,2,FALSE)) -> Koen v/d Ven | G7: =IF(VLOOKUP($D7,invullijst!$A$10:$M$177,7,FALSE)=0,"",VLOOKUP($D7,invullijst!$A$10:$M$177,7,FALSE)) -> 90 | I7: 2 | J7: =IF($O$3="k",IF(VLOOKUP($L7,invullijst!$A$10:$M$177,11,FALSE)=0," ",VLOOKUP($L7,invullijst!$A$10:$M$177,11,FALSE)),"") ->  | K7: =IF(VLOOKUP($L7,invullijst!$A$10:$M$218,4,FALSE)="","",VLOOKUP($L7,invullijst!$A$10:$M$218,4,FALSE)) -> vr | L7: 105 | M7: =IF(VLOOKUP($L7,invullijst!$A$10:$M$177,2,FALSE)="","",VLOOKUP($L7,invullijst!$A$10:$M$177,2,FALSE)) -> René Klijn | O7: =IF(VLOOKUP($L7,invullijst!$A$10:$M$177,7,FALSE)=0,"",VLOOKUP($L7,invullijst!$A$10:$M$177,7,FALSE)) -> 83
A8: 3 | B8: =IF($G$3="k",IF(VLOOKUP($D8,invullijst!$A$10:$M$177,11,FALSE)=0," ",VLOOKUP($D8,invullijst!$A$10:$M$177,11,FALSE)),"") ->  | C8: =IF(VLOOKUP(D8,invullijst!A$10:F$218,4,FALSE)="","",VLOOKUP(D8,invullijst!A$10:D$218,4,FALSE)) -> vr | D8: 501 | E8: =IF(VLOOKUP($D8,invullijst!$A$10:$M$177,2,FALSE)="","",VLOOKUP($D8,invullijst!$A$10:$M$177,2,FALSE)) -> Annette Vos | G8: =IF(VLOOKUP($D8,invullijst!$A$10:$M$177,7,FALSE)=0,"",VLOOKUP($D8,invullijst!$A$10:$M$177,7,FALSE)) -> 89 | I8: 3 | J8: =IF($O$3="k",IF(VLOOKUP($L8,invullijst!$A$10:$M$177,11,FALSE)=0," ",VLOOKUP($L8,invullijst!$A$10:$M$177,11,FALSE)),"") ->  | K8: =IF(VLOOKUP($L8,invullijst!$A$10:$M$218,4,FALSE)="","",VLOOKUP($L8,invullijst!$A$10:$M$218,4,FALSE)) -> vr | L8: 106 | M8: =IF(VLOOKUP($L8,invullijst!$A$10:$M$177,2,FALSE)="","",VLOOKUP($L8,invullijst!$A$10:$M$177,2,FALSE)) -> René Pullens | O8: =IF(VLOOKUP($L8,invullijst!$A$10:$M$177,7,FALSE)=0,"",VLOOKUP($L8,invullijst!$A$10:$M$177,7,FALSE)) -> 84
A9: 4 | B9: =IF($G$3="k",IF(VLOOKUP($D9,invullijst!$A$10:$M$177,11,FALSE)=0," ",VLOOKUP($D9,invullijst!$A$10:$M$177,11,FALSE)),"") ->  | C9: =IF(VLOOKUP(D9,invullijst!A$10:F$218,4,FALSE)="","",VLOOKUP(D9,invullijst!A$10:D$218,4,FALSE)) -> vr | D9: 512 | E9: =IF(VLOOKUP($D9,invullijst!$A$10:$M$177,2,FALSE)="","",VLOOKUP($D9,invullijst!$A$10:$M$177,2,FALSE)) -> Hans Bergakker | G9: =IF(VLOOKUP($D9,invullijst!$A$10:$M$177,7,FALSE)=0,"",VLOOKUP($D9,invullijst!$A$10:$M$177,7,FALSE)) -> 71 | I9: 4 | J9: =IF($O$3="k",IF(VLOOKUP($L9,invullijst!$A$10:$M$177,11,FALSE)=0," ",VLOOKUP($L9,invullijst!$A$10:$M$177,11,FALSE)),"") ->  | K9: =IF(VLOOKUP($L9,invullijst!$A$10:$M$218,4,FALSE)="","",VLOOKUP($L9,invullijst!$A$10:$M$218,4,FALSE)) -> vr | L9: 108 | M9: =IF(VLOOKUP($L9,invullijst!$A$10:$M$177,2,FALSE)="","",VLOOKUP($L9,invullijst!$A$10:$M$177,2,FALSE)) -> Bram Pullens | O9: =IF(VLOOKUP($L9,invullijst!$A$10:$M$177,7,FALSE)=0,"",VLOOKUP($L9,invullijst!$A$10:$M$177,7,FALSE)) -> 81
A10: Totaal A korps | G10: =SUM(G6:G9) -> 335 | I10: Totaal A korps | O10: =SUM(O6:O9) -> 322
A12: 1 | B12: =IF($G$3="k",IF(VLOOKUP($D12,invullijst!$A$10:$M$177,11,FALSE)=0," ",VLOOKUP($D12,invullijst!$A$10:$M$177,11,FALSE)),"") ->  | C12: =IF(VLOOKUP(D12,invullijst!A$10:F$218,4,FALSE)="","",VLOOKUP(D12,invullijst!A$10:D$218,4,FALSE)) -> vr | D12: 508 | E12: =IF(VLOOKUP($D12,invullijst!$A$10:$M$177,2,FALSE)="","",VLOOKUP($D12,invullijst!$A$10:$M$177,2,FALSE)) -> Rowan Dobbelsteen | G12: =IF(VLOOKUP($D12,invullijst!$A$10:$M$177,7,FALSE)=0,"",VLOOKUP($D12,invullijst!$A$10:$M$177,7,FALSE)) -> 79 | I12: 1 | J12: =IF($O$3="k",IF(VLOOKUP($L12,invullijst!$A$10:$M$177,11,FALSE)=0," ",VLOOKUP($L12,invullijst!$A$10:$M$177,11,FALSE)),"") ->  | K12: =IF(VLOOKUP($L12,invullijst!$A$10:$M$218,4,FALSE)="","",VLOOKUP($L12,invullijst!$A$10:$M$218,4,FALSE)) -> vr | L12: 103 | M12: =IF(VLOOKUP($L12,invullijst!$A$10:$M$177,2,FALSE)="","",VLOOKUP($L12,invullijst!$A$10:$M$177,2,FALSE)) -> Norbert van Buul | O12: =IF(VLOOKUP($L12,invullijst!$A$10:$M$177,7,FALSE)=0,"",VLOOKUP($L12,invullijst!$A$10:$M$177,7,FALSE)) -> 64
A13: 2 | B13: =IF($G$3="k",IF(VLOOKUP($D13,invullijst!$A$10:$M$177,11,FALSE)=0," ",VLOOKUP($D13,invullijst!$A$10:$M$177,11,FALSE)),"") ->  | C13: =IF(VLOOKUP(D13,invullijst!A$10:F$218,4,FALSE)="","",VLOOKUP(D13,invullijst!A$10:D$218,4,FALSE)) -> vr | D13: 502 | E13: =IF(VLOOKUP($D13,invullijst!$A$10:$M$177,2,FALSE)="","",VLOOKUP($D13,invullijst!$A$10:$M$177,2,FALSE)) -> Diny Vos | G13: =IF(VLOOKUP($D13,invullijst!$A$10:$M$177,7,FALSE)=0,"",VLOOKUP($D13,invullijst!$A$10:$M$177,7,FALSE)) -> 66 | I13: 2 | J13: =IF($O$3="k",IF(VLOOKUP($L13,invullijst!$A$10:$M$177,11,FALSE)=0," ",VLOOKUP($L13,invullijst!$A$10:$M$177,11,FALSE)),"") ->  | K13: =IF(VLOOKUP($L13,invullijst!$A$10:$M$218,4,FALSE)="","",VLOOKUP($L13,invullijst!$A$10:$M$218,4,FALSE)) -> 0 | M13: =IF(VLOOKUP($L13,invullijst!$A$10:$M$177,2,FALSE)="","",VLOOKUP($L13,invullijst!$A$10:$M$177,2,FALSE)) -> 0 | O13: =IF(VLOOKUP($L13,invullijst!$A$10:$M$177,7,FALSE)=0,"",VLOOKUP($L13,invullijst!$A$10:$M$177,7,FALSE)) -> 
A14: 3 | B14: =IF($G$3="k",IF(VLOOKUP($D14,invullijst!$A$10:$M$177,11,FALSE)=0," ",VLOOKUP($D14,invullijst!$A$10:$M$177,11,FALSE)),"") ->  | C14: =IF(VLOOKUP(D14,invullijst!A$10:F$218,4,FALSE)="","",VLOOKUP(D14,invullijst!A$10:D$218,4,FALSE)) -> vr | D14: 513 | E14: =IF(VLOOKUP($D14,invullijst!$A$10:$M$177,2,FALSE)="","",VLOOKUP($D14,invullijst!$A$10:$M$177,2,FALSE)) -> Mark van Delft | G14: =IF(VLOOKUP($D14,invullijst!$A$10:$M$177,7,FALSE)=0,"",VLOOKUP($D14,invullijst!$A$10:$M$177,7,FALSE)) -> 79 | I14: 3 | J14: =IF($O$3="k",IF(VLOOKUP($L14,invullijst!$A$10:$M$177,11,FALSE)=0," ",VLOOKUP($L14,invullijst!$A$10:$M$177,11,FALSE)),"") ->  | K14: =IF(VLOOKUP($L14,invullijst!$A$10:$M$218,4,FALSE)="","",VLOOKUP($L14,invullijst!$A$10:$M$218,4,FALSE)) -> 0 | M14: =IF(VLOOKUP($L14,invullijst!$A$10:$M$177,2,FALSE)="","",VLOOKUP($L14,invullijst!$A$10:$M$177,2,FALSE)) -> 0 | O14: =IF(VLOOKUP($L14,invullijst!$A$10:$M$177,7,FALSE)=0,"",VLOOKUP($L14,invullijst!$A$10:$M$177,7,FALSE)) -> 
A15: 4 | B15: =IF($G$3="k",IF(VLOOKUP($D15,invullijst!$A$10:$M$177,11,FALSE)=0," ",VLOOKUP($D15,invullijst!$A$10:$M$177,11,FALSE)),"") ->  | C15: =IF(VLOOKUP(D15,invullijst!A$10:F$218,4,FALSE)="","",VLOOKUP(D15,invullijst!A$10:D$218,4,FALSE)) -> vr | D15: 507 | E15: =IF(VLOOKUP($D15,invullijst!$A$10:$M$177,2,FALSE)="","",VLOOKUP($D15,invullijst!$A$10:$M$177,2,FALSE)) -> Michael Blaauwbroek | G15: =IF(VLOOKUP($D15,invullijst!$A$10:$M$177,7,FALSE)=0,"",VLOOKUP($D15,invullijst!$A$10:$M$177,7,FALSE)) -> 70 | I15: 4 | J15: =IF($O$3="k",IF(VLOOKUP($L15,invullijst!$A$10:$M$177,11,FALSE)=0," ",VLOOKUP($L15,invullijst!$A$10:$M$177,11,FALSE)),"") ->  | K15: =IF(VLOOKUP($L15,invullijst!$A$10:$M$218,4,FALSE)="","",VLOOKUP($L15,invullijst!$A$10:$M$218,4,FALSE)) -> 0 | M15: =IF(VLOOKUP($L15,invullijst!$A$10:$M$177,2,FALSE)="","",VLOOKUP($L15,invullijst!$A$10:$M$177,2,FALSE)) -> 0 | O15: =IF(VLOOKUP($L15,invullijst!$A$10:$M$177,7,FALSE)=0,"",VLOOKUP($L15,invullijst!$A$10:$M$177,7,FALSE)) -> 
A16: Totaal B1 korps | G16: =SUM(G12:G15) -> 294 | I16: Totaal B1 korps | O16: =SUM(O12:O15) -> 64
A18: 1 | B18: =IF($G$3="k",IF(VLOOKUP($D18,invullijst!$A$10:$M$177,11,FALSE)=0," ",VLOOKUP($D18,invullijst!$A$10:$M$177,11,FALSE)),"") ->  | C18: =IF(VLOOKUP(D18,invullijst!A$10:F$218,4,FALSE)="","",VLOOKUP(D18,invullijst!A$10:D$218,4,FALSE)) -> 0 | E18: =IF(VLOOKUP($D18,invullijst!$A$10:$M$177,2,FALSE)="","",VLOOKUP($D18,invullijst!$A$10:$M$177,2,FALSE)) -> 0 | G18: =IF(VLOOKUP($D18,invullijst!$A$10:$M$177,7,FALSE)=0,"",VLOOKUP($D18,invullijst!$A$10:$M$177,7,FALSE)) ->  | I18: 1 | J18: =IF($O$3="k",IF(VLOOKUP($L18,invullijst!$A$10:$M$177,11,FALSE)=0," ",VLOOKUP($L18,invullijst!$A$10:$M$177,11,FALSE)),"") ->  | K18: =IF(VLOOKUP($L18,invullijst!$A$10:$M$218,4,FALSE)="","",VLOOKUP($L18,invullijst!$A$10:$M$218,4,FALSE)) -> 0 | M18: =IF(VLOOKUP($L18,invullijst!$A$10:$M$177,2,FALSE)="","",VLOOKUP($L18,invullijst!$A$10:$M$177,2,FALSE)) -> 0 | O18: =IF(VLOOKUP($L18,invullijst!$A$10:$M$177,7,FALSE)=0,"",VLOOKUP($L18,invullijst!$A$10:$M$177,7,FALSE)) -> 
A19: 2 | B19: =IF($G$3="k",IF(VLOOKUP($D19,invullijst!$A$10:$M$177,11,FALSE)=0," ",VLOOKUP($D19,invullijst!$A$10:$M$177,11,FALSE)),"") ->  | C19: =IF(VLOOKUP(D19,invullijst!A$10:F$218,4,FALSE)="","",VLOOKUP(D19,invullijst!A$10:D$218,4,FALSE)) -> 0 | E19: =IF(VLOOKUP($D19,invullijst!$A$10:$M$177,2,FALSE)="","",VLOOKUP($D19,invullijst!$A$10:$M$177,2,FALSE)) -> 0 | G19: =IF(VLOOKUP($D19,invullijst!$A$10:$M$177,7,FALSE)=0,"",VLOOKUP($D19,invullijst!$A$10:$M$177,7,FALSE)) ->  | I19: 2 | J19: =IF($O$3="k",IF(VLOOKUP($L19,invullijst!$A$10:$M$177,11,FALSE)=0," ",VLOOKUP($L19,invullijst!$A$10:$M$177,11,FALSE)),"") ->  | K19: =IF(VLOOKUP($L19,invullijst!$A$10:$M$218,4,FALSE)="","",VLOOKUP($L19,invullijst!$A$10:$M$218,4,FALSE)) -> 0 | M19: =IF(VLOOKUP($L19,invullijst!$A$10:$M$177,2,FALSE)="","",VLOOKUP($L19,invullijst!$A$10:$M$177,2,FALSE)) -> 0 | O19: =IF(VLOOKUP($L19,invullijst!$A$10:$M$177,7,FALSE)=0,"",VLOOKUP($L19,invullijst!$A$10:$M$177,7,FALSE)) -> 
A20: 3 | B20: =IF($G$3="k",IF(VLOOKUP($D20,invullijst!$A$10:$M$177,11,FALSE)=0," ",VLOOKUP($D20,invullijst!$A$10:$M$177,11,FALSE)),"") ->  | C20: =IF(VLOOKUP(D20,invullijst!A$10:F$218,4,FALSE)="","",VLOOKUP(D20,invullijst!A$10:D$218,4,FALSE)) -> 0 | E20: =IF(VLOOKUP($D20,invullijst!$A$10:$M$177,2,FALSE)="","",VLOOKUP($D20,invullijst!$A$10:$M$177,2,FALSE)) -> 0 | G20: =IF(VLOOKUP($D20,invullijst!$A$10:$M$177,7,FALSE)=0,"",VLOOKUP($D20,invullijst!$A$10:$M$177,7,FALSE)) ->  | I20: 3 | J20: =IF($O$3="k",IF(VLOOKUP($L20,invullijst!$A$10:$M$177,11,FALSE)=0," ",VLOOKUP($L20,invullijst!$A$10:$M$177,11,FALSE)),"") ->  | K20: =IF(VLOOKUP($L20,invullijst!$A$10:$M$218,4,FALSE)="","",VLOOKUP($L20,invullijst!$A$10:$M$218,4,FALSE)) -> 0 | M20: =IF(VLOOKUP($L20,invullijst!$A$10:$M$177,2,FALSE)="","",VLOOKUP($L20,invullijst!$A$10:$M$177,2,FALSE)) -> 0 | O20: =IF(VLOOKUP($L20,invullijst!$A$10:$M$177,7,FALSE)=0,"",VLOOKUP($L20,invullijst!$A$10:$M$177,7,FALSE)) -> 
A21: 4 | B21: =IF($G$3="k",IF(VLOOKUP($D21,invullijst!$A$10:$M$177,11,FALSE)=0," ",VLOOKUP($D21,invullijst!$A$10:$M$177,11,FALSE)),"") ->  | C21: =IF(VLOOKUP(D21,invullijst!A$10:F$218,4,FALSE)="","",VLOOKUP(D21,invullijst!A$10:D$218,4,FALSE)) -> 0 | E21: Rowan Dobbelsteen (Inhalen) | G21: 80 | I21: 4 | J21: =IF($O$3="k",IF(VLOOKUP($L21,invullijst!$A$10:$M$177,11,FALSE)=0," ",VLOOKUP($L21,invullijst!$A$10:$M$177,11,FALSE)),"") ->  | K21: =IF(VLOOKUP($L21,invullijst!$A$10:$M$218,4,FALSE)="","",VLOOKUP($L21,invullijst!$A$10:$M$218,4,FALSE)) -> 0 | M21: =IF(VLOOKUP($L21,invullijst!$A$10:$M$177,2,FALSE)="","",VLOOKUP($L21,invullijst!$A$10:$M$177,2,FALSE)) -> 0 | O21: =IF(VLOOKUP($L21,invullijst!$A$10:$M$177,7,FALSE)=0,"",VLOOKUP($L21,invullijst!$A$10:$M$177,7,FALSE)) -> 
A22: DIVERSE / INHAAL | I22: DIVERSE / INHAAL
A24: OPGELEGD (Jeugd <16 en 65+)
A25: 1 | B25: =IF($G$3="k",IF(VLOOKUP($D25,invullijst!$A$10:$M$177,11,FALSE)=0," ",VLOOKUP($D25,invullijst!$A$10:$M$177,11,FALSE)),"") ->  | C25: =IF(VLOOKUP(D25,invullijst!A$10:F$218,4,FALSE)="","",VLOOKUP(D25,invullijst!A$10:D$218,4,FALSE)) -> 65+ | D25: 511 | E25: =IF(VLOOKUP($D25,invullijst!$A$10:$M$177,2,FALSE)="","",VLOOKUP($D25,invullijst!$A$10:$M$177,2,FALSE)) -> Ton Stans | G25: =IF(VLOOKUP($D25,invullijst!$A$10:$M$177,7,FALSE)=0,"",VLOOKUP($D25,invullijst!$A$10:$M$177,7,FALSE)) -> 83 | I25: 1 | J25: =IF($O$3="k",IF(VLOOKUP($L25,invullijst!$A$10:$M$177,11,FALSE)=0," ",VLOOKUP($L25,invullijst!$A$10:$M$177,11,FALSE)),"") ->  | K25: =IF(VLOOKUP($L25,invullijst!$A$10:$M$218,4,FALSE)="","",VLOOKUP($L25,invullijst!$A$10:$M$218,4,FALSE)) -> 65+ | L25: 111 | M25: =IF(VLOOKUP($L25,invullijst!$A$10:$M$177,2,FALSE)="","",VLOOKUP($L25,invullijst!$A$10:$M$177,2,FALSE)) -> Frans van Buul | O25: =IF(VLOOKUP($L25,invullijst!$A$10:$M$177,7,FALSE)=0,"",VLOOKUP($L25,invullijst!$A$10:$M$177,7,FALSE)) -> 83
A26: 2 | B26: =IF($G$3="k",IF(VLOOKUP($D26,invullijst!$A$10:$M$177,11,FALSE)=0," ",VLOOKUP($D26,invullijst!$A$10:$M$177,11,FALSE)),"") ->  | C26: =IF(VLOOKUP(D26,invullijst!A$10:F$218,4,FALSE)="","",VLOOKUP(D26,invullijst!A$10:D$218,4,FALSE)) -> 65+ | D26: 515 | E26: =IF(VLOOKUP($D26,invullijst!$A$10:$M$177,2,FALSE)="","",VLOOKUP($D26,invullijst!$A$10:$M$177,2,FALSE)) -> Ilona Bergakker disp | G26: =IF(VLOOKUP($D26,invullijst!$A$10:$M$177,7,FALSE)=0,"",VLOOKUP($D26,invullijst!$A$10:$M$177,7,FALSE)) -> 93 | I26: 2 | J26: =IF($O$3="k",IF(VLOOKUP($L26,invullijst!$A$10:$M$177,11,FALSE)=0," ",VLOOKUP($L26,invullijst!$A$10:$M$177,11,FALSE)),"") ->  | K26: =IF(VLOOKUP($L26,invullijst!$A$10:$M$218,4,FALSE)="","",VLOOKUP($L26,invullijst!$A$10:$M$218,4,FALSE)) -> 65+ | L26: 113 | M26: =IF(VLOOKUP($L26,invullijst!$A$10:$M$177,2,FALSE)="","",VLOOKUP($L26,invullijst!$A$10:$M$177,2,FALSE)) -> Kees Coppens | O26: =IF(VLOOKUP($L26,invullijst!$A$10:$M$177,7,FALSE)=0,"",VLOOKUP($L26,invullijst!$A$10:$M$177,7,FALSE)) -> 84
A27: 3 | B27: =IF($G$3="k",IF(VLOOKUP($D27,invullijst!$A$10:$M$177,11,FALSE)=0," ",VLOOKUP($D27,invullijst!$A$10:$M$177,11,FALSE)),"") ->  | C27: =IF(VLOOKUP(D27,invullijst!A$10:F$218,4,FALSE)="","",VLOOKUP(D27,invullijst!A$10:D$218,4,FALSE)) -> 65+ | D27: 509 | E27: =IF(VLOOKUP($D27,invullijst!$A$10:$M$177,2,FALSE)="","",VLOOKUP($D27,invullijst!$A$10:$M$177,2,FALSE)) -> Adwan de Pinth | G27: =IF(VLOOKUP($D27,invullijst!$A$10:$M$177,7,FALSE)=0,"",VLOOKUP($D27,invullijst!$A$10:$M$177,7,FALSE)) -> 96 | I27: 3 | J27: =IF($O$3="k",IF(VLOOKUP($L27,invullijst!$A$10:$M$177,11,FALSE)=0," ",VLOOKUP($L27,invullijst!$A$10:$M$177,11,FALSE)),"") ->  | K27: =IF(VLOOKUP($L27,invullijst!$A$10:$M$218,4,FALSE)="","",VLOOKUP($L27,invullijst!$A$10:$M$218,4,FALSE)) -> J | L27: 109 | M27: =IF(VLOOKUP($L27,invullijst!$A$10:$M$177,2,FALSE)="","",VLOOKUP($L27,invullijst!$A$10:$M$177,2,FALSE)) -> Gijs Pullens | O27: =IF(VLOOKUP($L27,invullijst!$A$10:$M$177,7,FALSE)=0,"",VLOOKUP($L27,invullijst!$A$10:$M$177,7,FALSE)) -> 83
A28: Totaal korps opgelegd A1 | G28: =SUM(G25:G27) -> 272 | I28: Totaal korps opgelegd A1 | O28: =SUM(O25:O27) -> 250
A30: 1 | B30: =IF($G$3="k",IF(VLOOKUP($D30,invullijst!$A$10:$M$177,11,FALSE)=0," ",VLOOKUP($D30,invullijst!$A$10:$M$177,11,FALSE)),"") ->  | C30: =IF(VLOOKUP(D30,invullijst!A$10:F$218,4,FALSE)="","",VLOOKUP(D30,invullijst!A$10:D$218,4,FALSE)) -> 65+ | D30: 514 | E30: =IF(VLOOKUP($D30,invullijst!$A$10:$M$177,2,FALSE)="","",VLOOKUP($D30,invullijst!$A$10:$M$177,2,FALSE)) -> Toon Ophorst | G30: =IF(VLOOKUP($D30,invullijst!$A$10:$M$177,7,FALSE)=0,"",VLOOKUP($D30,invullijst!$A$10:$M$177,7,FALSE)) -> 67 | I30: 1 | J30: =IF($O$3="k",IF(VLOOKUP($L30,invullijst!$A$10:$M$177,11,FALSE)=0," ",VLOOKUP($L30,invullijst!$A$10:$M$177,11,FALSE)),"") ->  | K30: =IF(VLOOKUP($L30,invullijst!$A$10:$M$218,4,FALSE)="","",VLOOKUP($L30,invullijst!$A$10:$M$218,4,FALSE)) -> 0 | M30: =IF(VLOOKUP($L30,invullijst!$A$10:$M$177,2,FALSE)="","",VLOOKUP($L30,invullijst!$A$10:$M$177,2,FALSE)) -> 0 | O30: =IF(VLOOKUP($L30,invullijst!$A$10:$M$177,7,FALSE)=0,"",VLOOKUP($L30,invullijst!$A$10:$M$177,7,FALSE)) -> 
A31: 2 | B31: =IF($G$3="k",IF(VLOOKUP($D31,invullijst!$A$10:$M$177,11,FALSE)=0," ",VLOOKUP($D31,invullijst!$A$10:$M$177,11,FALSE)),"") ->  | C31: =IF(VLOOKUP(D31,invullijst!A$10:F$218,4,FALSE)="","",VLOOKUP(D31,invullijst!A$10:D$218,4,FALSE)) -> 65+ | D31: 505 | E31: =IF(VLOOKUP($D31,invullijst!$A$10:$M$177,2,FALSE)="","",VLOOKUP($D31,invullijst!$A$10:$M$177,2,FALSE)) -> Leo Wagemakers | G31: =IF(VLOOKUP($D31,invullijst!$A$10:$M$177,7,FALSE)=0,"",VLOOKUP($D31,invullijst!$A$10:$M$177,7,FALSE)) -> 69 | I31: 2 | J31: =IF($O$3="k",IF(VLOOKUP($L31,invullijst!$A$10:$M$177,11,FALSE)=0," ",VLOOKUP($L31,invullijst!$A$10:$M$177,11,FALSE)),"") ->  | K31: =IF(VLOOKUP($L31,invullijst!$A$10:$M$218,4,FALSE)="","",VLOOKUP($L31,invullijst!$A$10:$M$218,4,FALSE)) -> 0 | M31: =IF(VLOOKUP($L31,invullijst!$A$10:$M$177,2,FALSE)="","",VLOOKUP($L31,invullijst!$A$10:$M$177,2,FALSE)) -> 0 | O31: =IF(VLOOKUP($L31,invullijst!$A$10:$M$177,7,FALSE)=0,"",VLOOKUP($L31,invullijst!$A$10:$M$177,7,FALSE)) -> 
A32: 3 | B32: =IF($G$3="k",IF(VLOOKUP($D32,invullijst!$A$10:$M$177,11,FALSE)=0," ",VLOOKUP($D32,invullijst!$A$10:$M$177,11,FALSE)),"") ->  | C32: =IF(VLOOKUP(D32,invullijst!A$10:F$218,4,FALSE)="","",VLOOKUP(D32,invullijst!A$10:D$218,4,FALSE)) -> 65+ | D32: 516 | E32: =IF(VLOOKUP($D32,invullijst!$A$10:$M$177,2,FALSE)="","",VLOOKUP($D32,invullijst!$A$10:$M$177,2,FALSE)) -> Henry Bergakker disp | G32: =IF(VLOOKUP($D32,invullijst!$A$10:$M$177,7,FALSE)=0,"",VLOOKUP($D32,invullijst!$A$10:$M$177,7,FALSE)) -> 88 | I32: 3 | J32: =IF($O$3="k",IF(VLOOKUP($L32,invullijst!$A$10:$M$177,11,FALSE)=0," ",VLOOKUP($L32,invullijst!$A$10:$M$177,11,FALSE)),"") ->  | K32: =IF(VLOOKUP($L32,invullijst!$A$10:$M$218,4,FALSE)="","",VLOOKUP($L32,invullijst!$A$10:$M$218,4,FALSE)) -> 0 | M32: =IF(VLOOKUP($L32,invullijst!$A$10:$M$177,2,FALSE)="","",VLOOKUP($L32,invullijst!$A$10:$M$177,2,FALSE)) -> 0 | O32: =IF(VLOOKUP($L32,invullijst!$A$10:$M$177,7,FALSE)=0,"",VLOOKUP($L32,invullijst!$A$10:$M$177,7,FALSE)) -> 
A33: Totaal korps opgelegd A2 | G33: =SUM(G30:G32) -> 224 | I33: Totaal korps opgelegd A2 | O33: =SUM(O30:O32) -> 0
A35: 1 | B35: =IF($G$3="k",IF(VLOOKUP($D35,invullijst!$A$10:$M$177,11,FALSE)=0," ",VLOOKUP($D35,invullijst!$A$10:$M$177,11,FALSE)),"") ->  | C35: =IF(VLOOKUP(D35,invullijst!A$10:F$218,4,FALSE)="","",VLOOKUP(D35,invullijst!A$10:D$218,4,FALSE)) -> 0 | E35: =IF(VLOOKUP($D35,invullijst!$A$10:$M$177,2,FALSE)="","",VLOOKUP($D35,invullijst!$A$10:$M$177,2,FALSE)) -> 0 | G35: =IF(VLOOKUP($D35,invullijst!$A$10:$M$177,7,FALSE)=0,"",VLOOKUP($D35,invullijst!$A$10:$M$177,7,FALSE)) ->  | I35: 1 | J35: =IF($O$3="k",IF(VLOOKUP($L35,invullijst!$A$10:$M$177,11,FALSE)=0," ",VLOOKUP($L35,invullijst!$A$10:$M$177,11,FALSE)),"") ->  | K35: =IF(VLOOKUP($L35,invullijst!$A$10:$M$218,4,FALSE)="","",VLOOKUP($L35,invullijst!$A$10:$M$218,4,FALSE)) -> 0 | M35: =IF(VLOOKUP($L35,invullijst!$A$10:$M$177,2,FALSE)="","",VLOOKUP($L35,invullijst!$A$10:$M$177,2,FALSE)) -> 0 | O35: =IF(VLOOKUP($L35,invullijst!$A$10:$M$177,7,FALSE)=0,"",VLOOKUP($L35,invullijst!$A$10:$M$177,7,FALSE)) -> 
A36: 2 | B36: =IF($G$3="k",IF(VLOOKUP($D36,invullijst!$A$10:$M$177,11,FALSE)=0," ",VLOOKUP($D36,invullijst!$A$10:$M$177,11,FALSE)),"") ->  | C36: =IF(VLOOKUP(D36,invullijst!A$10:F$218,4,FALSE)="","",VLOOKUP(D36,invullijst!A$10:D$218,4,FALSE)) -> 0 | E36: =IF(VLOOKUP($D36,invullijst!$A$10:$M$177,2,FALSE)="","",VLOOKUP($D36,invullijst!$A$10:$M$177,2,FALSE)) -> 0 | G36: =IF(VLOOKUP($D36,invullijst!$A$10:$M$177,7,FALSE)=0,"",VLOOKUP($D36,invullijst!$A$10:$M$177,7,FALSE)) ->  | I36: 2 | J36: =IF($O$3="k",IF(VLOOKUP($L36,invullijst!$A$10:$M$177,11,FALSE)=0," ",VLOOKUP($L36,invullijst!$A$10:$M$177,11,FALSE)),"") ->  | K36: =IF(VLOOKUP($L36,invullijst!$A$10:$M$218,4,FALSE)="","",VLOOKUP($L36,invullijst!$A$10:$M$218,4,FALSE)) -> 0 | M36: =IF(VLOOKUP($L36,invullijst!$A$10:$M$177,2,FALSE)="","",VLOOKUP($L36,invullijst!$A$10:$M$177,2,FALSE)) -> 0 | O36: =IF(VLOOKUP($L36,invullijst!$A$10:$M$177,7,FALSE)=0,"",VLOOKUP($L36,invullijst!$A$10:$M$177,7,FALSE)) -> 
A37: 3 | B37: =IF($G$3="k",IF(VLOOKUP($D37,invullijst!$A$10:$M$177,11,FALSE)=0," ",VLOOKUP($D37,invullijst!$A$10:$M$177,11,FALSE)),"") ->  | C37: =IF(VLOOKUP(D37,invullijst!A$10:F$218,4,FALSE)="","",VLOOKUP(D37,invullijst!A$10:D$218,4,FALSE)) -> 0 | E37: =IF(VLOOKUP($D37,invullijst!$A$10:$M$177,2,FALSE)="","",VLOOKUP($D37,invullijst!$A$10:$M$177,2,FALSE)) -> 0 | G37: =IF(VLOOKUP($D37,invullijst!$A$10:$M$177,7,FALSE)=0,"",VLOOKUP($D37,invullijst!$A$10:$M$177,7,FALSE)) ->  | I37: 3 | J37: =IF($O$3="k",IF(VLOOKUP($L37,invullijst!$A$10:$M$177,11,FALSE)=0," ",VLOOKUP($L37,invullijst!$A$10:$M$177,11,FALSE)),"") ->  | K37: =IF(VLOOKUP($L37,invullijst!$A$10:$M$218,4,FALSE)="","",VLOOKUP($L37,invullijst!$A$10:$M$218,4,FALSE)) -> 0 | M37: =IF(VLOOKUP($L37,invullijst!$A$10:$M$177,2,FALSE)="","",VLOOKUP($L37,invullijst!$A$10:$M$177,2,FALSE)) -> 0 | O37: =IF(VLOOKUP($L37,invullijst!$A$10:$M$177,7,FALSE)=0,"",VLOOKUP($L37,invullijst!$A$10:$M$177,7,FALSE)) -> 
A38: Totaal korps opgelegd A3 | G38: =SUM(G35:G37) -> 0 | I38: Totaal korps opgelegd A3 | O38: =SUM(O35:O37) -> 0

Sheet wedstrijd 3A
A1: =invullijst!F1 -> Organisatie | F1: =invullijst!H2 -> 2023 - 2024 | I1: =invullijst!F3 -> St. Crispinus & Crispinianus Besoijen
A2: Datum: | M2: 2024-02-18
A3: 1 | B3: =IF(VLOOKUP(A3,invullijst!A1:F5,2,FALSE)="","",VLOOKUP(A3,invullijst!A1:F5,2,FALSE)) -> Sint Ambrosius Baardwijk | I3: 2 | J3: =IF(VLOOKUP(I3,invullijst!A1:C5,2,FALSE)="","",VLOOKUP(I3,invullijst!A1:C5,2,FALSE)) -> St. Crispinus & Crispinianus Besoijen
A5: vrijehand
A6: 1 | B6: =IF($G$3="k",IF(VLOOKUP($D6,invullijst!$A$10:$M$177,11,FALSE)=0," ",VLOOKUP($D6,invullijst!$A$10:$M$177,11,FALSE)),"") ->  | C6: =IF(VLOOKUP(D6,invullijst!A$10:F$218,4,FALSE)="","",VLOOKUP(D6,invullijst!A$10:D$218,4,FALSE)) -> vr | D6: 102 | E6: =IF(VLOOKUP($D6,invullijst!$A$10:$M$177,2,FALSE)="","",VLOOKUP($D6,invullijst!$A$10:$M$177,2,FALSE)) -> John de Jong | G6: =IF(VLOOKUP($D6,invullijst!$A$10:$M$177,8,FALSE)=0,"",VLOOKUP($D6,invullijst!$A$10:$M$177,8,FALSE)) -> 61 | I6: 1 | J6: =IF($O$3="k",IF(VLOOKUP($L6,invullijst!$A$10:$M$177,11,FALSE)=0," ",VLOOKUP($L6,invullijst!$A$10:$M$177,11,FALSE)),"") ->  | K6: =IF(VLOOKUP($L6,invullijst!$A$10:$M$218,4,FALSE)="","",VLOOKUP($L6,invullijst!$A$10:$M$218,4,FALSE)) -> vr | L6: 201 | M6: =IF(VLOOKUP($L6,invullijst!$A$10:$M$177,2,FALSE)="","",VLOOKUP($L6,invullijst!$A$10:$M$177,2,FALSE)) -> Sander Oome | O6: =IF(VLOOKUP($L6,invullijst!$A$10:$M$177,8,FALSE)=0,"",VLOOKUP($L6,invullijst!$A$10:$M$177,8,FALSE)) -> 92
A7: 2 | B7: =IF($G$3="k",IF(VLOOKUP($D7,invullijst!$A$10:$M$177,11,FALSE)=0," ",VLOOKUP($D7,invullijst!$A$10:$M$177,11,FALSE)),"") ->  | C7: =IF(VLOOKUP(D7,invullijst!A$10:F$218,4,FALSE)="","",VLOOKUP(D7,invullijst!A$10:D$218,4,FALSE)) -> vr | D7: 105 | E7: =IF(VLOOKUP($D7,invullijst!$A$10:$M$177,2,FALSE)="","",VLOOKUP($D7,invullijst!$A$10:$M$177,2,FALSE)) -> René Klijn | G7: =IF(VLOOKUP($D7,invullijst!$A$10:$M$177,8,FALSE)=0,"",VLOOKUP($D7,invullijst!$A$10:$M$177,8,FALSE)) -> 81 | I7: 2 | J7: =IF($O$3="k",IF(VLOOKUP($L7,invullijst!$A$10:$M$177,11,FALSE)=0," ",VLOOKUP($L7,invullijst!$A$10:$M$177,11,FALSE)),"") ->  | K7: =IF(VLOOKUP($L7,invullijst!$A$10:$M$218,4,FALSE)="","",VLOOKUP($L7,invullijst!$A$10:$M$218,4,FALSE)) -> vr | L7: 206 | M7: =IF(VLOOKUP($L7,invullijst!$A$10:$M$177,2,FALSE)="","",VLOOKUP($L7,invullijst!$A$10:$M$177,2,FALSE)) -> Kees van Hulten | O7: =IF(VLOOKUP($L7,invullijst!$A$10:$M$177,8,FALSE)=0,"",VLOOKUP($L7,invullijst!$A$10:$M$177,8,FALSE)) -> 78
A8: 3 | B8: =IF($G$3="k",IF(VLOOKUP($D8,invullijst!$A$10:$M$177,11,FALSE)=0," ",VLOOKUP($D8,invullijst!$A$10:$M$177,11,FALSE)),"") ->  | C8: =IF(VLOOKUP(D8,invullijst!A$10:F$218,4,FALSE)="","",VLOOKUP(D8,invullijst!A$10:D$218,4,FALSE)) -> vr | D8: 106 | E8: =IF(VLOOKUP($D8,invullijst!$A$10:$M$177,2,FALSE)="","",VLOOKUP($D8,invullijst!$A$10:$M$177,2,FALSE)) -> René Pullens | G8: =IF(VLOOKUP($D8,invullijst!$A$10:$M$177,8,FALSE)=0,"",VLOOKUP($D8,invullijst!$A$10:$M$177,8,FALSE)) -> 84 | I8: 3 | J8: =IF($O$3="k",IF(VLOOKUP($L8,invullijst!$A$10:$M$177,11,FALSE)=0," ",VLOOKUP($L8,invullijst!$A$10:$M$177,11,FALSE)),"") ->  | K8: =IF(VLOOKUP($L8,invullijst!$A$10:$M$218,4,FALSE)="","",VLOOKUP($L8,invullijst!$A$10:$M$218,4,FALSE)) -> vr | L8: 205 | M8: =IF(VLOOKUP($L8,invullijst!$A$10:$M$177,2,FALSE)="","",VLOOKUP($L8,invullijst!$A$10:$M$177,2,FALSE)) -> Jos v/d Snepscheut | O8: =IF(VLOOKUP($L8,invullijst!$A$10:$M$177,8,FALSE)=0,"",VLOOKUP($L8,invullijst!$A$10:$M$177,8,FALSE)) -> 79
A9: 4 | B9: =IF($G$3="k",IF(VLOOKUP($D9,invullijst!$A$10:$M$177,11,FALSE)=0," ",VLOOKUP($D9,invullijst!$A$10:$M$177,11,FALSE)),"") ->  | C9: =IF(VLOOKUP(D9,invullijst!A$10:F$218,4,FALSE)="","",VLOOKUP(D9,invullijst!A$10:D$218,4,FALSE)) -> vr | D9: 108 | E9: =IF(VLOOKUP($D9,invullijst!$A$10:$M$177,2,FALSE)="","",VLOOKUP($D9,invullijst!$A$10:$M$177,2,FALSE)) -> Bram Pullens | G9: =IF(VLOOKUP($D9,invullijst!$A$10:$M$177,8,FALSE)=0,"",VLOOKUP($D9,invullijst!$A$10:$M$177,8,FALSE)) -> 87 | I9: 4 | J9: =IF($O$3="k",IF(VLOOKUP($L9,invullijst!$A$10:$M$177,11,FALSE)=0," ",VLOOKUP($L9,invullijst!$A$10:$M$177,11,FALSE)),"") ->  | K9: =IF(VLOOKUP($L9,invullijst!$A$10:$M$218,4,FALSE)="","",VLOOKUP($L9,invullijst!$A$10:$M$218,4,FALSE)) -> vr | L9: 203 | M9: =IF(VLOOKUP($L9,invullijst!$A$10:$M$177,2,FALSE)="","",VLOOKUP($L9,invullijst!$A$10:$M$177,2,FALSE)) -> Frank van den Houdt | O9: =IF(VLOOKUP($L9,invullijst!$A$10:$M$177,8,FALSE)=0,"",VLOOKUP($L9,invullijst!$A$10:$M$177,8,FALSE)) -> 81
A10: Totaal A korps | G10: =SUM(G6:G9) -> 313 | I10: Totaal A korps | O10: =SUM(O6:O9) -> 330
A12: 1 | B12: =IF($G$3="k",IF(VLOOKUP($D12,invullijst!$A$10:$M$177,11,FALSE)=0," ",VLOOKUP($D12,invullijst!$A$10:$M$177,11,FALSE)),"") ->  | C12: =IF(VLOOKUP(D12,invullijst!A$10:F$218,4,FALSE)="","",VLOOKUP(D12,invullijst!A$10:D$218,4,FALSE)) -> vr | D12: 103 | E12: =IF(VLOOKUP($D12,invullijst!$A$10:$M$177,2,FALSE)="","",VLOOKUP($D12,invullijst!$A$10:$M$177,2,FALSE)) -> Norbert van Buul | G12: =IF(VLOOKUP($D12,invullijst!$A$10:$M$177,8,FALSE)=0,"",VLOOKUP($D12,invullijst!$A$10:$M$177,8,FALSE)) -> 53 | I12: 1 | J12: =IF($O$3="k",IF(VLOOKUP($L12,invullijst!$A$10:$M$177,11,FALSE)=0," ",VLOOKUP($L12,invullijst!$A$10:$M$177,11,FALSE)),"") ->  | K12: =IF(VLOOKUP($L12,invullijst!$A$10:$M$218,4,FALSE)="","",VLOOKUP($L12,invullijst!$A$10:$M$218,4,FALSE)) -> vr | L12: 209 | M12: =IF(VLOOKUP($L12,invullijst!$A$10:$M$177,2,FALSE)="","",VLOOKUP($L12,invullijst!$A$10:$M$177,2,FALSE)) -> René van Kuijk | O12: =IF(VLOOKUP($L12,invullijst!$A$10:$M$177,8,FALSE)=0,"",VLOOKUP($L12,invullijst!$A$10:$M$177,8,FALSE)) -> 87
A13: 2 | B13: =IF($G$3="k",IF(VLOOKUP($D13,invullijst!$A$10:$M$177,11,FALSE)=0," ",VLOOKUP($D13,invullijst!$A$10:$M$177,11,FALSE)),"") ->  | C13: =IF(VLOOKUP(D13,invullijst!A$10:F$218,4,FALSE)="","",VLOOKUP(D13,invullijst!A$10:D$218,4,FALSE)) -> 0 | E13: =IF(VLOOKUP($D13,invullijst!$A$10:$M$177,2,FALSE)="","",VLOOKUP($D13,invullijst!$A$10:$M$177,2,FALSE)) -> 0 | G13: =IF(VLOOKUP($D13,invullijst!$A$10:$M$177,8,FALSE)=0,"",VLOOKUP($D13,invullijst!$A$10:$M$177,8,FALSE)) ->  | I13: 2 | J13: =IF($O$3="k",IF(VLOOKUP($L13,invullijst!$A$10:$M$177,11,FALSE)=0," ",VLOOKUP($L13,invullijst!$A$10:$M$177,11,FALSE)),"") ->  | K13: =IF(VLOOKUP($L13,invullijst!$A$10:$M$218,4,FALSE)="","",VLOOKUP($L13,invullijst!$A$10:$M$218,4,FALSE)) -> vr | L13: 215 | M13: =IF(VLOOKUP($L13,invullijst!$A$10:$M$177,2,FALSE)="","",VLOOKUP($L13,invullijst!$A$10:$M$177,2,FALSE)) -> Pieter Laghuwitz | O13: =IF(VLOOKUP($L13,invullijst!$A$10:$M$177,8,FALSE)=0,"",VLOOKUP($L13,invullijst!$A$10:$M$177,8,FALSE)) -> 86
A14: 3 | B14: =IF($G$3="k",IF(VLOOKUP($D14,invullijst!$A$10:$M$177,11,FALSE)=0," ",VLOOKUP($D14,invullijst!$A$10:$M$177,11,FALSE)),"") ->  | C14: =IF(VLOOKUP(D14,invullijst!A$10:F$218,4,FALSE)="","",VLOOKUP(D14,invullijst!A$10:D$218,4,FALSE)) -> 0 | E14: =IF(VLOOKUP($D14,invullijst!$A$10:$M$177,2,FALSE)="","",VLOOKUP($D14,invullijst!$A$10:$M$177,2,FALSE)) -> 0 | G14: =IF(VLOOKUP($D14,invullijst!$A$10:$M$177,8,FALSE)=0,"",VLOOKUP($D14,invullijst!$A$10:$M$177,8,FALSE)) ->  | I14: 3 | J14: =IF($O$3="k",IF(VLOOKUP($L14,invullijst!$A$10:$M$177,11,FALSE)=0," ",VLOOKUP($L14,invullijst!$A$10:$M$177,11,FALSE)),"") ->  | K14: =IF(VLOOKUP($L14,invullijst!$A$10:$M$218,4,FALSE)="","",VLOOKUP($L14,invullijst!$A$10:$M$218,4,FALSE)) -> vr | L14: 216 | M14: =IF(VLOOKUP($L14,invullijst!$A$10:$M$177,2,FALSE)="","",VLOOKUP($L14,invullijst!$A$10:$M$177,2,FALSE)) -> Hans Laghuwitz | O14: =IF(VLOOKUP($L14,invullijst!$A$10:$M$177,8,FALSE)=0,"",VLOOKUP($L14,invullijst!$A$10:$M$177,8,FALSE)) -> 82
A15: 4 | B15: =IF($G$3="k",IF(VLOOKUP($D15,invullijst!$A$10:$M$177,11,FALSE)=0," ",VLOOKUP($D15,invullijst!$A$10:$M$177,11,FALSE)),"") ->  | C15: =IF(VLOOKUP(D15,invullijst!A$10:F$218,4,FALSE)="","",VLOOKUP(D15,invullijst!A$10:D$218,4,FALSE)) -> 0 | E15: =IF(VLOOKUP($D15,invullijst!$A$10:$M$177,2,FALSE)="","",VLOOKUP($D15,invullijst!$A$10:$M$177,2,FALSE)) -> 0 | G15: =IF(VLOOKUP($D15,invullijst!$A$10:$M$177,8,FALSE)=0,"",VLOOKUP($D15,invullijst!$A$10:$M$177,8,FALSE)) ->  | I15: 4 | J15: =IF($O$3="k",IF(VLOOKUP($L15,invullijst!$A$10:$M$177,11,FALSE)=0," ",VLOOKUP($L15,invullijst!$A$10:$M$177,11,FALSE)),"") ->  | K15: =IF(VLOOKUP($L15,invullijst!$A$10:$M$218,4,FALSE)="","",VLOOKUP($L15,invullijst!$A$10:$M$218,4,FALSE)) -> vr | L15: 204 | M15: =IF(VLOOKUP($L15,invullijst!$A$10:$M$177,2,FALSE)="","",VLOOKUP($L15,invullijst!$A$10:$M$177,2,FALSE)) -> Harry de Louw | O15: =IF(VLOOKUP($L15,invullijst!$A$10:$M$177,8,FALSE)=0,"",VLOOKUP($L15,invullijst!$A$10:$M$177,8,FALSE)) -> 85
A16: Totaal B1 korps | G16: =SUM(G12:G15) -> 53 | I16: Totaal B1 korps | O16: =SUM(O12:O15) -> 340
A18: 1 | B18: =IF($G$3="k",IF(VLOOKUP($D18,invullijst!$A$10:$M$177,11,FALSE)=0," ",VLOOKUP($D18,invullijst!$A$10:$M$177,11,FALSE)),"") ->  | C18: =IF(VLOOKUP(D18,invullijst!A$10:F$218,4,FALSE)="","",VLOOKUP(D18,invullijst!A$10:D$218,4,FALSE)) -> 0 | E18: =IF(VLOOKUP($D18,invullijst!$A$10:$M$177,2,FALSE)="","",VLOOKUP($D18,invullijst!$A$10:$M$177,2,FALSE)) -> 0 | G18: =IF(VLOOKUP($D18,invullijst!$A$10:$M$177,8,FALSE)=0,"",VLOOKUP($D18,invullijst!$A$10:$M$177,8,FALSE)) ->  | I18: 1 | J18: =IF($O$3="k",IF(VLOOKUP($L18,invullijst!$A$10:$M$177,11,FALSE)=0," ",VLOOKUP($L18,invullijst!$A$10:$M$177,11,FALSE)),"") ->  | K18: =IF(VLOOKUP($L18,invullijst!$A$10:$M$218,4,FALSE)="","",VLOOKUP($L18,invullijst!$A$10:$M$218,4,FALSE)) -> vr | L18: 210 | M18: =IF(VLOOKUP($L18,invullijst!$A$10:$M$177,2,FALSE)="","",VLOOKUP($L18,invullijst!$A$10:$M$177,2,FALSE)) -> Nick de Vaan | O18: =IF(VLOOKUP($L18,invullijst!$A$10:$M$177,8,FALSE)=0,"",VLOOKUP($L18,invullijst!$A$10:$M$177,8,FALSE)) -> 74
A19: 2 | B19: =IF($G$3="k",IF(VLOOKUP($D19,invullijst!$A$10:$M$177,11,FALSE)=0," ",VLOOKUP($D19,invullijst!$A$10:$M$177,11,FALSE)),"") ->  | C19: =IF(VLOOKUP(D19,invullijst!A$10:F$218,4,FALSE)="","",VLOOKUP(D19,invullijst!A$10:D$218,4,FALSE)) -> 0 | E19: =IF(VLOOKUP($D19,invullijst!$A$10:$M$177,2,FALSE)="","",VLOOKUP($D19,invullijst!$A$10:$M$177,2,FALSE)) -> 0 | G19: =IF(VLOOKUP($D19,invullijst!$A$10:$M$177,8,FALSE)=0,"",VLOOKUP($D19,invullijst!$A$10:$M$177,8,FALSE)) ->  | I19: 2 | J19: =IF($O$3="k",IF(VLOOKUP($L19,invullijst!$A$10:$M$177,11,FALSE)=0," ",VLOOKUP($L19,invullijst!$A$10:$M$177,11,FALSE)),"") ->  | K19: =IF(VLOOKUP($L19,invullijst!$A$10:$M$218,4,FALSE)="","",VLOOKUP($L19,invullijst!$A$10:$M$218,4,FALSE)) -> vr | L19: 202 | M19: =IF(VLOOKUP($L19,invullijst!$A$10:$M$177,2,FALSE)="","",VLOOKUP($L19,invullijst!$A$10:$M$177,2,FALSE)) -> Arco van Kuijk | O19: =IF(VLOOKUP($L19,invullijst!$A$10:$M$177,8,FALSE)=0,"",VLOOKUP($L19,invullijst!$A$10:$M$177,8,FALSE)) -> 69
A20: 3 | B20: =IF($G$3="k",IF(VLOOKUP($D20,invullijst!$A$10:$M$177,11,FALSE)=0," ",VLOOKUP($D20,invullijst!$A$10:$M$177,11,FALSE)),"") ->  | C20: =IF(VLOOKUP(D20,invullijst!A$10:F$218,4,FALSE)="","",VLOOKUP(D20,invullijst!A$10:D$218,4,FALSE)) -> 0 | E20: =IF(VLOOKUP($D20,invullijst!$A$10:$M$177,2,FALSE)="","",VLOOKUP($D20,invullijst!$A$10:$M$177,2,FALSE)) -> 0 | G20: =IF(VLOOKUP($D20,invullijst!$A$10:$M$177,8,FALSE)=0,"",VLOOKUP($D20,invullijst!$A$10:$M$177,8,FALSE)) ->  | I20: 3 | J20: =IF($O$3="k",IF(VLOOKUP($L20,invullijst!$A$10:$M$177,11,FALSE)=0," ",VLOOKUP($L20,invullijst!$A$10:$M$177,11,FALSE)),"") ->  | K20: =IF(VLOOKUP($L20,invullijst!$A$10:$M$218,4,FALSE)="","",VLOOKUP($L20,invullijst!$A$10:$M$218,4,FALSE)) -> vr | L20: 217 | M20: =IF(VLOOKUP($L20,invullijst!$A$10:$M$177,2,FALSE)="","",VLOOKUP($L20,invullijst!$A$10:$M$177,2,FALSE)) -> Jānis Jākobsons | O20: =IF(VLOOKUP($L20,invullijst!$A$10:$M$177,8,FALSE)=0,"",VLOOKUP($L20,invullijst!$A$10:$M$177,8,FALSE)) -> 81
A21: 4 | B21: =IF($G$3="k",IF(VLOOKUP($D21,invullijst!$A$10:$M$177,11,FALSE)=0," ",VLOOKUP($D21,invullijst!$A$10:$M$177,11,FALSE)),"") ->  | C21: =IF(VLOOKUP(D21,invullijst!A$10:F$218,4,FALSE)="","",VLOOKUP(D21,invullijst!A$10:D$218,4,FALSE)) -> 0 | E21: =IF(VLOOKUP($D21,invullijst!$A$10:$M$177,2,FALSE)="","",VLOOKUP($D21,invullijst!$A$10:$M$177,2,FALSE)) -> 0 | G21: =IF(VLOOKUP($D21,invullijst!$A$10:$M$177,8,FALSE)=0,"",VLOOKUP($D21,invullijst!$A$10:$M$177,8,FALSE)) ->  | I21: 4 | J21: =IF($O$3="k",IF(VLOOKUP($L21,invullijst!$A$10:$M$177,11,FALSE)=0," ",VLOOKUP($L21,invullijst!$A$10:$M$177,11,FALSE)),"") ->  | K21: =IF(VLOOKUP($L21,invullijst!$A$10:$M$218,4,FALSE)="","",VLOOKUP($L21,invullijst!$A$10:$M$218,4,FALSE)) -> 0 | M21: =IF(VLOOKUP($L21,invullijst!$A$10:$M$177,2,FALSE)="","",VLOOKUP($L21,invullijst!$A$10:$M$177,2,FALSE)) -> 0 | O21: =IF(VLOOKUP($L21,invullijst!$A$10:$M$177,8,FALSE)=0,"",VLOOKUP($L21,invullijst!$A$10:$M$177,8,FALSE)) -> 
A22: DIVERSEN / INHAAL | I22: DIVERSEN / INHAAL
A24: OPGELEGD (Jeugd <16 en 65+)
A25: 1 | B25: =IF($G$3="k",IF(VLOOKUP($D25,invullijst!$A$10:$M$177,11,FALSE)=0," ",VLOOKUP($D25,invullijst!$A$10:$M$177,11,FALSE)),"") ->  | C25: =IF(VLOOKUP(D25,invullijst!A$10:F$218,4,FALSE)="","",VLOOKUP(D25,invullijst!A$10:D$218,4,FALSE)) -> 65+ | D25: 111 | E25: =IF(VLOOKUP($D25,invullijst!$A$10:$M$177,2,FALSE)="","",VLOOKUP($D25,invullijst!$A$10:$M$177,2,FALSE)) -> Frans van Buul | G25: =IF(VLOOKUP($D25,invullijst!$A$10:$M$177,8,FALSE)=0,"",VLOOKUP($D25,invullijst!$A$10:$M$177,8,FALSE)) -> 81 | I25: 1 | J25: =IF($O$3="k",IF(VLOOKUP($L25,invullijst!$A$10:$M$177,11,FALSE)=0," ",VLOOKUP($L25,invullijst!$A$10:$M$177,11,FALSE)),"") ->  | K25: =IF(VLOOKUP($L25,invullijst!$A$10:$M$218,4,FALSE)="","",VLOOKUP($L25,invullijst!$A$10:$M$218,4,FALSE)) -> 65+ | L25: 211 | M25: =IF(VLOOKUP($L25,invullijst!$A$10:$M$177,2,FALSE)="","",VLOOKUP($L25,invullijst!$A$10:$M$177,2,FALSE)) -> Ad van den houdt | O25: =IF(VLOOKUP($L25,invullijst!$A$10:$M$177,8,FALSE)=0,"",VLOOKUP($L25,invullijst!$A$10:$M$177,8,FALSE)) -> 92
A26: 2 | B26: =IF($G$3="k",IF(VLOOKUP($D26,invullijst!$A$10:$M$177,11,FALSE)=0," ",VLOOKUP($D26,invullijst!$A$10:$M$177,11,FALSE)),"") ->  | C26: =IF(VLOOKUP(D26,invullijst!A$10:F$218,4,FALSE)="","",VLOOKUP(D26,invullijst!A$10:D$218,4,FALSE)) -> J | D26: 109 | E26: =IF(VLOOKUP($D26,invullijst!$A$10:$M$177,2,FALSE)="","",VLOOKUP($D26,invullijst!$A$10:$M$177,2,FALSE)) -> Gijs Pullens | G26: =IF(VLOOKUP($D26,invullijst!$A$10:$M$177,8,FALSE)=0,"",VLOOKUP($D26,invullijst!$A$10:$M$177,8,FALSE)) -> 92 | I26: 2 | J26: =IF($O$3="k",IF(VLOOKUP($L26,invullijst!$A$10:$M$177,11,FALSE)=0," ",VLOOKUP($L26,invullijst!$A$10:$M$177,11,FALSE)),"") ->  | K26: =IF(VLOOKUP($L26,invullijst!$A$10:$M$218,4,FALSE)="","",VLOOKUP($L26,invullijst!$A$10:$M$218,4,FALSE)) -> 65+ | L26: 212 | M26: =IF(VLOOKUP($L26,invullijst!$A$10:$M$177,2,FALSE)="","",VLOOKUP($L26,invullijst!$A$10:$M$177,2,FALSE)) -> René Duquesnoy | O26: 92
A27: 3 | B27: =IF($G$3="k",IF(VLOOKUP($D27,invullijst!$A$10:$M$177,11,FALSE)=0," ",VLOOKUP($D27,invullijst!$A$10:$M$177,11,FALSE)),"") ->  | C27: =IF(VLOOKUP(D27,invullijst!A$10:F$218,4,FALSE)="","",VLOOKUP(D27,invullijst!A$10:D$218,4,FALSE)) -> 65+ | D27: 113 | E27: =IF(VLOOKUP($D27,invullijst!$A$10:$M$177,2,FALSE)="","",VLOOKUP($D27,invullijst!$A$10:$M$177,2,FALSE)) -> Kees Coppens | G27: =IF(VLOOKUP($D27,invullijst!$A$10:$M$177,8,FALSE)=0,"",VLOOKUP($D27,invullijst!$A$10:$M$177,8,FALSE)) -> 88 | I27: 3 | J27: =IF($O$3="k",IF(VLOOKUP($L27,invullijst!$A$10:$M$177,11,FALSE)=0," ",VLOOKUP($L27,invullijst!$A$10:$M$177,11,FALSE)),"") ->  | K27: =IF(VLOOKUP($L27,invullijst!$A$10:$M$218,4,FALSE)="","",VLOOKUP($L27,invullijst!$A$10:$M$218,4,FALSE)) -> 65+ | L27: 214 | M27: =IF(VLOOKUP($L27,invullijst!$A$10:$M$177,2,FALSE)="","",VLOOKUP($L27,invullijst!$A$10:$M$177,2,FALSE)) -> André de Vaan | O27: =IF(VLOOKUP($L27,invullijst!$A$10:$M$177,8,FALSE)=0,"",VLOOKUP($L27,invullijst!$A$10:$M$177,8,FALSE)) -> 91
A28: Totaal korps opgelegd A1 | G28: =SUM(G25:G27) -> 261 | I28: Totaal korps opgelegd A1 | O28: =SUM(O25:O27) -> 275
A30: 1 | B30: =IF($G$3="k",IF(VLOOKUP($D30,invullijst!$A$10:$M$177,11,FALSE)=0," ",VLOOKUP($D30,invullijst!$A$10:$M$177,11,FALSE)),"") ->  | C30: =IF(VLOOKUP(D30,invullijst!A$10:F$218,4,FALSE)="","",VLOOKUP(D30,invullijst!A$10:D$218,4,FALSE)) -> 0 | E30: =IF(VLOOKUP($D30,invullijst!$A$10:$M$177,2,FALSE)="","",VLOOKUP($D30,invullijst!$A$10:$M$177,2,FALSE)) -> 0 | G30: =IF(VLOOKUP($D30,invullijst!$A$10:$M$177,8,FALSE)=0,"",VLOOKUP($D30,invullijst!$A$10:$M$177,8,FALSE)) ->  | I30: 1 | J30: =IF($O$3="k",IF(VLOOKUP($L30,invullijst!$A$10:$M$177,11,FALSE)=0," ",VLOOKUP($L30,invullijst!$A$10:$M$177,11,FALSE)),"") ->  | K30: =IF(VLOOKUP($L30,invullijst!$A$10:$M$218,4,FALSE)="","",VLOOKUP($L30,invullijst!$A$10:$M$218,4,FALSE)) -> 0 | M30: =IF(VLOOKUP($L30,invullijst!$A$10:$M$177,2,FALSE)="","",VLOOKUP($L30,invullijst!$A$10:$M$177,2,FALSE)) -> 0 | O30: =IF(VLOOKUP($L30,invullijst!$A$10:$M$177,8,FALSE)=0,"",VLOOKUP($L30,invullijst!$A$10:$M$177,8,FALSE)) -> 
A31: 2 | B31: =IF($G$3="k",IF(VLOOKUP($D31,invullijst!$A$10:$M$177,11,FALSE)=0," ",VLOOKUP($D31,invullijst!$A$10:$M$177,11,FALSE)),"") ->  | C31: =IF(VLOOKUP(D31,invullijst!A$10:F$218,4,FALSE)="","",VLOOKUP(D31,invullijst!A$10:D$218,4,FALSE)) -> 0 | E31: =IF(VLOOKUP($D31,invullijst!$A$10:$M$177,2,FALSE)="","",VLOOKUP($D31,invullijst!$A$10:$M$177,2,FALSE)) -> 0 | G31: =IF(VLOOKUP($D31,invullijst!$A$10:$M$177,8,FALSE)=0,"",VLOOKUP($D31,invullijst!$A$10:$M$177,8,FALSE)) ->  | I31: 2 | J31: =IF($O$3="k",IF(VLOOKUP($L31,invullijst!$A$10:$M$177,11,FALSE)=0," ",VLOOKUP($L31,invullijst!$A$10:$M$177,11,FALSE)),"") ->  | K31: =IF(VLOOKUP($L31,invullijst!$A$10:$M$218,4,FALSE)="","",VLOOKUP($L31,invullijst!$A$10:$M$218,4,FALSE)) -> 0 | M31: =IF(VLOOKUP($L31,invullijst!$A$10:$M$177,2,FALSE)="","",VLOOKUP($L31,invullijst!$A$10:$M$177,2,FALSE)) -> 0 | O31: =IF(VLOOKUP($L31,invullijst!$A$10:$M$177,8,FALSE)=0,"",VLOOKUP($L31,invullijst!$A$10:$M$177,8,FALSE)) -> 
A32: 3 | B32: =IF($G$3="k",IF(VLOOKUP($D32,invullijst!$A$10:$M$177,11,FALSE)=0," ",VLOOKUP($D32,invullijst!$A$10:$M$177,11,FALSE)),"") ->  | C32: =IF(VLOOKUP(D32,invullijst!A$10:F$218,4,FALSE)="","",VLOOKUP(D32,invullijst!A$10:D$218,4,FALSE)) -> 0 | E32: =IF(VLOOKUP($D32,invullijst!$A$10:$M$177,2,FALSE)="","",VLOOKUP($D32,invullijst!$A$10:$M$177,2,FALSE)) -> 0 | G32: =IF(VLOOKUP($D32,invullijst!$A$10:$M$177,8,FALSE)=0,"",VLOOKUP($D32,invullijst!$A$10:$M$177,8,FALSE)) ->  | I32: 3 | J32: =IF($O$3="k",IF(VLOOKUP($L32,invullijst!$A$10:$M$177,11,FALSE)=0," ",VLOOKUP($L32,invullijst!$A$10:$M$177,11,FALSE)),"") ->  | K32: =IF(VLOOKUP($L32,invullijst!$A$10:$M$218,4,FALSE)="","",VLOOKUP($L32,invullijst!$A$10:$M$218,4,FALSE)) -> 0 | M32: =IF(VLOOKUP($L32,invullijst!$A$10:$M$177,2,FALSE)="","",VLOOKUP($L32,invullijst!$A$10:$M$177,2,FALSE)) -> 0 | O32: =IF(VLOOKUP($L32,invullijst!$A$10:$M$177,8,FALSE)=0,"",VLOOKUP($L32,invullijst!$A$10:$M$177,8,FALSE)) -> 
A33: Totaal korps opgelegd A2 | G33: 0 | I33: Totaal korps opgelegd A2 | O33: =SUM(O30:O32) -> 0
A35: 1 | B35: =IF($G$3="k",IF(VLOOKUP($D35,invullijst!$A$10:$M$177,11,FALSE)=0," ",VLOOKUP($D35,invullijst!$A$10:$M$177,11,FALSE)),"") ->  | C35: =IF(VLOOKUP(D35,invullijst!A$10:F$218,4,FALSE)="","",VLOOKUP(D35,invullijst!A$10:D$218,4,FALSE)) -> 0 | E35: =IF(VLOOKUP($D35,invullijst!$A$10:$M$177,2,FALSE)="","",VLOOKUP($D35,invullijst!$A$10:$M$177,2,FALSE)) -> 0 | G35: =IF(VLOOKUP($D35,invullijst!$A$10:$M$177,8,FALSE)=0,"",VLOOKUP($D35,invullijst!$A$10:$M$177,8,FALSE)) ->  | I35: 1 | J35: =IF($O$3="k",IF(VLOOKUP($L35,invullijst!$A$10:$M$177,11,FALSE)=0," ",VLOOKUP($L35,invullijst!$A$10:$M$177,11,FALSE)),"") ->  | K35: =IF(VLOOKUP($L35,invullijst!$A$10:$M$218,4,FALSE)="","",VLOOKUP($L35,invullijst!$A$10:$M$218,4,FALSE)) -> 0 | M35: Arco van Kuijk (bij) | O35: 68
A36: 2 | B36: =IF($G$3="k",IF(VLOOKUP($D36,invullijst!$A$10:$M$177,11,FALSE)=0," ",VLOOKUP($D36,invullijst!$A$10:$M$177,11,FALSE)),"") ->  | C36: =IF(VLOOKUP(D36,invullijst!A$10:F$218,4,FALSE)="","",VLOOKUP(D36,invullijst!A$10:D$218,4,FALSE)) -> 0 | E36: =IF(VLOOKUP($D36,invullijst!$A$10:$M$177,2,FALSE)="","",VLOOKUP($D36,invullijst!$A$10:$M$177,2,FALSE)) -> 0 | G36: =IF(VLOOKUP($D36,invullijst!$A$10:$M$177,8,FALSE)=0,"",VLOOKUP($D36,invullijst!$A$10:$M$177,8,FALSE)) ->  | I36: 2 | J36: =IF($O$3="k",IF(VLOOKUP($L36,invullijst!$A$10:$M$177,11,FALSE)=0," ",VLOOKUP($L36,invullijst!$A$10:$M$177,11,FALSE)),"") ->  | K36: =IF(VLOOKUP($L36,invullijst!$A$10:$M$218,4,FALSE)="","",VLOOKUP($L36,invullijst!$A$10:$M$218,4,FALSE)) -> 0 | M36: =IF(VLOOKUP($L36,invullijst!$A$10:$M$177,2,FALSE)="","",VLOOKUP($L36,invullijst!$A$10:$M$177,2,FALSE)) -> 0 | O36: =IF(VLOOKUP($L36,invullijst!$A$10:$M$177,8,FALSE)=0,"",VLOOKUP($L36,invullijst!$A$10:$M$177,8,FALSE)) -> 
A37: 3 | B37: =IF($G$3="k",IF(VLOOKUP($D37,invullijst!$A$10:$M$177,11,FALSE)=0," ",VLOOKUP($D37,invullijst!$A$10:$M$177,11,FALSE)),"") ->  | C37: =IF(VLOOKUP(D37,invullijst!A$10:F$218,4,FALSE)="","",VLOOKUP(D37,invullijst!A$10:D$218,4,FALSE)) -> 0 | E37: =IF(VLOOKUP($D37,invullijst!$A$10:$M$177,2,FALSE)="","",VLOOKUP($D37,invullijst!$A$10:$M$177,2,FALSE)) -> 0 | G37: =IF(VLOOKUP($D37,invullijst!$A$10:$M$177,8,FALSE)=0,"",VLOOKUP($D37,invullijst!$A$10:$M$177,8,FALSE)) ->  | I37: 3 | J37: =IF($O$3="k",IF(VLOOKUP($L37,invullijst!$A$10:$M$177,11,FALSE)=0," ",VLOOKUP($L37,invullijst!$A$10:$M$177,11,FALSE)),"") ->  | K37: =IF(VLOOKUP($L37,invullijst!$A$10:$M$218,4,FALSE)="","",VLOOKUP($L37,invullijst!$A$10:$M$218,4,FALSE)) -> 0 | M37: =IF(VLOOKUP($L37,invullijst!$A$10:$M$177,2,FALSE)="","",VLOOKUP($L37,invullijst!$A$10:$M$177,2,FALSE)) -> 0 | O37: =IF(VLOOKUP($L37,invullijst!$A$10:$M$177,8,FALSE)=0,"",VLOOKUP($L37,invullijst!$A$10:$M$177,8,FALSE)) -> 
A38: Totaal korps opgelegd A3 | G38: =SUM(G35:G37) -> 0 | I38: Totaal korps opgelegd A3 | O38: =SUM(O35:O37) -> 68

Sheet wedstrijd 3B
A1: =invullijst!F1 -> Organisatie | F1: =invullijst!H2 -> 2023 - 2024 | I1: =invullijst!F3 -> St. Crispinus & Crispinianus Besoijen
A2: Datum: | M2: 2024-02-18
A3: 3 | B3: =IF(VLOOKUP(A3,invullijst!A1:F5,2,FALSE)="","",VLOOKUP(A3,invullijst!A1:F5,2,FALSE)) -> O.L.V. Schuts Elshout | I3: 5 | J3: =IF(VLOOKUP(I3,invullijst!A1:C5,2,FALSE)="","",VLOOKUP(I3,invullijst!A1:C5,2,FALSE)) -> Sint Jan Baptist Kaatsheuvel
A5: vrijehand
A6: 1 | B6: =IF($G$3="k",IF(VLOOKUP($D6,invullijst!$A$10:$M$177,11,FALSE)=0," ",VLOOKUP($D6,invullijst!$A$10:$M$177,11,FALSE)),"") ->  | C6: =IF(VLOOKUP(D6,invullijst!A$10:F$218,4,FALSE)="","",VLOOKUP(D6,invullijst!A$10:D$218,4,FALSE)) -> vr | D6: 302 | E6: =IF(VLOOKUP($D6,invullijst!$A$10:$M$177,2,FALSE)="","",VLOOKUP($D6,invullijst!$A$10:$M$177,2,FALSE)) -> Freek de Jong | G6: =IF(VLOOKUP($D6,invullijst!$A$10:$M$177,8,FALSE)=0,"",VLOOKUP($D6,invullijst!$A$10:$M$177,8,FALSE)) -> 90 | I6: 1 | J6: =IF($O$3="k",IF(VLOOKUP($L6,invullijst!$A$10:$M$177,11,FALSE)=0," ",VLOOKUP($L6,invullijst!$A$10:$M$177,11,FALSE)),"") ->  | K6: =IF(VLOOKUP($L6,invullijst!$A$10:$M$218,4,FALSE)="","",VLOOKUP($L6,invullijst!$A$10:$M$218,4,FALSE)) -> vr | L6: 504 | M6: =IF(VLOOKUP($L6,invullijst!$A$10:$M$177,2,FALSE)="","",VLOOKUP($L6,invullijst!$A$10:$M$177,2,FALSE)) -> Koen v/d Ven | O6: =IF(VLOOKUP($L6,invullijst!$A$10:$M$177,8,FALSE)=0,"",VLOOKUP($L6,invullijst!$A$10:$M$177,8,FALSE)) -> 87
A7: 2 | B7: =IF($G$3="k",IF(VLOOKUP($D7,invullijst!$A$10:$M$177,11,FALSE)=0," ",VLOOKUP($D7,invullijst!$A$10:$M$177,11,FALSE)),"") ->  | C7: =IF(VLOOKUP(D7,invullijst!A$10:F$218,4,FALSE)="","",VLOOKUP(D7,invullijst!A$10:D$218,4,FALSE)) -> vr | D7: 305 | E7: =IF(VLOOKUP($D7,invullijst!$A$10:$M$177,2,FALSE)="","",VLOOKUP($D7,invullijst!$A$10:$M$177,2,FALSE)) -> Johan Klerx | G7: =IF(VLOOKUP($D7,invullijst!$A$10:$M$177,8,FALSE)=0,"",VLOOKUP($D7,invullijst!$A$10:$M$177,8,FALSE)) -> 89 | I7: 2 | J7: =IF($O$3="k",IF(VLOOKUP($L7,invullijst!$A$10:$M$177,11,FALSE)=0," ",VLOOKUP($L7,invullijst!$A$10:$M$177,11,FALSE)),"") ->  | K7: =IF(VLOOKUP($L7,invullijst!$A$10:$M$218,4,FALSE)="","",VLOOKUP($L7,invullijst!$A$10:$M$218,4,FALSE)) -> vr | L7: 501 | M7: =IF(VLOOKUP($L7,invullijst!$A$10:$M$177,2,FALSE)="","",VLOOKUP($L7,invullijst!$A$10:$M$177,2,FALSE)) -> Annette Vos | O7: =IF(VLOOKUP($L7,invullijst!$A$10:$M$177,8,FALSE)=0,"",VLOOKUP($L7,invullijst!$A$10:$M$177,8,FALSE)) -> 83
A8: 3 | B8: =IF($G$3="k",IF(VLOOKUP($D8,invullijst!$A$10:$M$177,11,FALSE)=0," ",VLOOKUP($D8,invullijst!$A$10:$M$177,11,FALSE)),"") ->  | C8: =IF(VLOOKUP(D8,invullijst!A$10:F$218,4,FALSE)="","",VLOOKUP(D8,invullijst!A$10:D$218,4,FALSE)) -> vr | D8: 306 | E8: =IF(VLOOKUP($D8,invullijst!$A$10:$M$177,2,FALSE)="","",VLOOKUP($D8,invullijst!$A$10:$M$177,2,FALSE)) -> Ron Groot | G8: =IF(VLOOKUP($D8,invullijst!$A$10:$M$177,8,FALSE)=0,"",VLOOKUP($D8,invullijst!$A$10:$M$177,8,FALSE)) -> 91 | I8: 3 | J8: =IF($O$3="k",IF(VLOOKUP($L8,invullijst!$A$10:$M$177,11,FALSE)=0," ",VLOOKUP($L8,invullijst!$A$10:$M$177,11,FALSE)),"") ->  | K8: =IF(VLOOKUP($L8,invullijst!$A$10:$M$218,4,FALSE)="","",VLOOKUP($L8,invullijst!$A$10:$M$218,4,FALSE)) -> vr | L8: 507 | M8: =IF(VLOOKUP($L8,invullijst!$A$10:$M$177,2,FALSE)="","",VLOOKUP($L8,invullijst!$A$10:$M$177,2,FALSE)) -> Michael Blaauwbroek | O8: =IF(VLOOKUP($L8,invullijst!$A$10:$M$177,8,FALSE)=0,"",VLOOKUP($L8,invullijst!$A$10:$M$177,8,FALSE)) -> 77
A9: 4 | B9: =IF($G$3="k",IF(VLOOKUP($D9,invullijst!$A$10:$M$177,11,FALSE)=0," ",VLOOKUP($D9,invullijst!$A$10:$M$177,11,FALSE)),"") ->  | C9: =IF(VLOOKUP(D9,invullijst!A$10:F$218,4,FALSE)="","",VLOOKUP(D9,invullijst!A$10:D$218,4,FALSE)) -> vr | D9: 304 | E9: =IF(VLOOKUP($D9,invullijst!$A$10:$M$177,2,FALSE)="","",VLOOKUP($D9,invullijst!$A$10:$M$177,2,FALSE)) -> Henk Bruurmijn | G9: =IF(VLOOKUP($D9,invullijst!$A$10:$M$177,8,FALSE)=0,"",VLOOKUP($D9,invullijst!$A$10:$M$177,8,FALSE)) -> 78 | I9: 4 | J9: =IF($O$3="k",IF(VLOOKUP($L9,invullijst!$A$10:$M$177,11,FALSE)=0," ",VLOOKUP($L9,invullijst!$A$10:$M$177,11,FALSE)),"") ->  | K9: =IF(VLOOKUP($L9,invullijst!$A$10:$M$218,4,FALSE)="","",VLOOKUP($L9,invullijst!$A$10:$M$218,4,FALSE)) -> vr | L9: 506 | M9: =IF(VLOOKUP($L9,invullijst!$A$10:$M$177,2,FALSE)="","",VLOOKUP($L9,invullijst!$A$10:$M$177,2,FALSE)) -> Maikel Monden | O9: =IF(VLOOKUP($L9,invullijst!$A$10:$M$177,8,FALSE)=0,"",VLOOKUP($L9,invullijst!$A$10:$M$177,8,FALSE)) -> 80
A10: Totaal A korps | G10: =SUM(G6:G9) -> 348 | I10: Totaal A korps | O10: =SUM(O6:O9) -> 327
A12: 1 | B12: =IF($G$3="k",IF(VLOOKUP($D12,invullijst!$A$10:$M$177,11,FALSE)=0," ",VLOOKUP($D12,invullijst!$A$10:$M$177,11,FALSE)),"") ->  | C12: =IF(VLOOKUP(D12,invullijst!A$10:F$218,4,FALSE)="","",VLOOKUP(D12,invullijst!A$10:D$218,4,FALSE)) -> vr | D12: 311 | E12: =IF(VLOOKUP($D12,invullijst!$A$10:$M$177,2,FALSE)="","",VLOOKUP($D12,invullijst!$A$10:$M$177,2,FALSE)) -> Ton Kolmans | G12: =IF(VLOOKUP($D12,invullijst!$A$10:$M$177,8,FALSE)=0,"",VLOOKUP($D12,invullijst!$A$10:$M$177,8,FALSE)) -> 80 | I12: 1 | J12: =IF($O$3="k",IF(VLOOKUP($L12,invullijst!$A$10:$M$177,11,FALSE)=0," ",VLOOKUP($L12,invullijst!$A$10:$M$177,11,FALSE)),"") ->  | K12: =IF(VLOOKUP($L12,invullijst!$A$10:$M$218,4,FALSE)="","",VLOOKUP($L12,invullijst!$A$10:$M$218,4,FALSE)) -> vr | L12: 512 | M12: =IF(VLOOKUP($L12,invullijst!$A$10:$M$177,2,FALSE)="","",VLOOKUP($L12,invullijst!$A$10:$M$177,2,FALSE)) -> Hans Bergakker | O12: =IF(VLOOKUP($L12,invullijst!$A$10:$M$177,8,FALSE)=0,"",VLOOKUP($L12,invullijst!$A$10:$M$177,8,FALSE)) -> 71
A13: 2 | B13: =IF($G$3="k",IF(VLOOKUP($D13,invullijst!$A$10:$M$177,11,FALSE)=0," ",VLOOKUP($D13,invullijst!$A$10:$M$177,11,FALSE)),"") ->  | C13: =IF(VLOOKUP(D13,invullijst!A$10:F$218,4,FALSE)="","",VLOOKUP(D13,invullijst!A$10:D$218,4,FALSE)) -> 0 | E13: =IF(VLOOKUP($D13,invullijst!$A$10:$M$177,2,FALSE)="","",VLOOKUP($D13,invullijst!$A$10:$M$177,2,FALSE)) -> 0 | G13: =IF(VLOOKUP($D13,invullijst!$A$10:$M$177,8,FALSE)=0,"",VLOOKUP($D13,invullijst!$A$10:$M$177,8,FALSE)) ->  | I13: 2 | J13: =IF($O$3="k",IF(VLOOKUP($L13,invullijst!$A$10:$M$177,11,FALSE)=0," ",VLOOKUP($L13,invullijst!$A$10:$M$177,11,FALSE)),"") ->  | K13: =IF(VLOOKUP($L13,invullijst!$A$10:$M$218,4,FALSE)="","",VLOOKUP($L13,invullijst!$A$10:$M$218,4,FALSE)) -> vr | L13: 508 | M13: =IF(VLOOKUP($L13,invullijst!$A$10:$M$177,2,FALSE)="","",VLOOKUP($L13,invullijst!$A$10:$M$177,2,FALSE)) -> Rowan Dobbelsteen | O13: =IF(VLOOKUP($L13,invullijst!$A$10:$M$177,8,FALSE)=0,"",VLOOKUP($L13,invullijst!$A$10:$M$177,8,FALSE)) -> 83
A14: 3 | B14: =IF($G$3="k",IF(VLOOKUP($D14,invullijst!$A$10:$M$177,11,FALSE)=0," ",VLOOKUP($D14,invullijst!$A$10:$M$177,11,FALSE)),"") ->  | C14: =IF(VLOOKUP(D14,invullijst!A$10:F$218,4,FALSE)="","",VLOOKUP(D14,invullijst!A$10:D$218,4,FALSE)) -> 0 | E14: =IF(VLOOKUP($D14,invullijst!$A$10:$M$177,2,FALSE)="","",VLOOKUP($D14,invullijst!$A$10:$M$177,2,FALSE)) -> 0 | G14: =IF(VLOOKUP($D14,invullijst!$A$10:$M$177,8,FALSE)=0,"",VLOOKUP($D14,invullijst!$A$10:$M$177,8,FALSE)) ->  | I14: 3 | J14: =IF($O$3="k",IF(VLOOKUP($L14,invullijst!$A$10:$M$177,11,FALSE)=0," ",VLOOKUP($L14,invullijst!$A$10:$M$177,11,FALSE)),"") ->  | K14: =IF(VLOOKUP($L14,invullijst!$A$10:$M$218,4,FALSE)="","",VLOOKUP($L14,invullijst!$A$10:$M$218,4,FALSE)) -> vr | L14: 502 | M14: =IF(VLOOKUP($L14,invullijst!$A$10:$M$177,2,FALSE)="","",VLOOKUP($L14,invullijst!$A$10:$M$177,2,FALSE)) -> Diny Vos | O14: =IF(VLOOKUP($L14,invullijst!$A$10:$M$177,8,FALSE)=0,"",VLOOKUP($L14,invullijst!$A$10:$M$177,8,FALSE)) -> 81
A15: 4 | B15: =IF($G$3="k",IF(VLOOKUP($D15,invullijst!$A$10:$M$177,11,FALSE)=0," ",VLOOKUP($D15,invullijst!$A$10:$M$177,11,FALSE)),"") ->  | C15: =IF(VLOOKUP(D15,invullijst!A$10:F$218,4,FALSE)="","",VLOOKUP(D15,invullijst!A$10:D$218,4,FALSE)) -> 0 | E15: =IF(VLOOKUP($D15,invullijst!$A$10:$M$177,2,FALSE)="","",VLOOKUP($D15,invullijst!$A$10:$M$177,2,FALSE)) -> 0 | G15: =IF(VLOOKUP($D15,invullijst!$A$10:$M$177,8,FALSE)=0,"",VLOOKUP($D15,invullijst!$A$10:$M$177,8,FALSE)) ->  | I15: 4 | J15: =IF($O$3="k",IF(VLOOKUP($L15,invullijst!$A$10:$M$177,11,FALSE)=0," ",VLOOKUP($L15,invullijst!$A$10:$M$177,11,FALSE)),"") ->  | K15: =IF(VLOOKUP($L15,invullijst!$A$10:$M$218,4,FALSE)="","",VLOOKUP($L15,invullijst!$A$10:$M$218,4,FALSE)) -> 0 | M15: =IF(VLOOKUP($L15,invullijst!$A$10:$M$177,2,FALSE)="","",VLOOKUP($L15,invullijst!$A$10:$M$177,2,FALSE)) -> 0 | O15: =IF(VLOOKUP($L15,invullijst!$A$10:$M$177,8,FALSE)=0,"",VLOOKUP($L15,invullijst!$A$10:$M$177,8,FALSE)) -> 
A16: Totaal B1 korps | G16: =SUM(G12:G15) -> 80 | I16: Totaal B1 korps | O16: =SUM(O12:O15) -> 235
A18: 1 | B18: =IF($G$3="k",IF(VLOOKUP($D18,invullijst!$A$10:$M$177,11,FALSE)=0," ",VLOOKUP($D18,invullijst!$A$10:$M$177,11,FALSE)),"") ->  | C18: =IF(VLOOKUP(D18,invullijst!A$10:F$218,4,FALSE)="","",VLOOKUP(D18,invullijst!A$10:D$218,4,FALSE)) -> 0 | E18: =IF(VLOOKUP($D18,invullijst!$A$10:$M$177,2,FALSE)="","",VLOOKUP($D18,invullijst!$A$10:$M$177,2,FALSE)) -> 0 | G18: =IF(VLOOKUP($D18,invullijst!$A$10:$M$177,8,FALSE)=0,"",VLOOKUP($D18,invullijst!$A$10:$M$177,8,FALSE)) ->  | I18: 1 | J18: =IF($O$3="k",IF(VLOOKUP($L18,invullijst!$A$10:$M$177,11,FALSE)=0," ",VLOOKUP($L18,invullijst!$A$10:$M$177,11,FALSE)),"") ->  | K18: =IF(VLOOKUP($L18,invullijst!$A$10:$M$218,4,FALSE)="","",VLOOKUP($L18,invullijst!$A$10:$M$218,4,FALSE)) -> 0 | M18: =IF(VLOOKUP($L18,invullijst!$A$10:$M$177,2,FALSE)="","",VLOOKUP($L18,invullijst!$A$10:$M$177,2,FALSE)) -> 0 | O18: =IF(VLOOKUP($L18,invullijst!$A$10:$M$177,8,FALSE)=0,"",VLOOKUP($L18,invullijst!$A$10:$M$177,8,FALSE)) -> 
A19: 2 | B19: =IF($G$3="k",IF(VLOOKUP($D19,invullijst!$A$10:$M$177,11,FALSE)=0," ",VLOOKUP($D19,invullijst!$A$10:$M$177,11,FALSE)),"") ->  | C19: =IF(VLOOKUP(D19,invullijst!A$10:F$218,4,FALSE)="","",VLOOKUP(D19,invullijst!A$10:D$218,4,FALSE)) -> 0 | E19: =IF(VLOOKUP($D19,invullijst!$A$10:$M$177,2,FALSE)="","",VLOOKUP($D19,invullijst!$A$10:$M$177,2,FALSE)) -> 0 | G19: =IF(VLOOKUP($D19,invullijst!$A$10:$M$177,8,FALSE)=0,"",VLOOKUP($D19,invullijst!$A$10:$M$177,8,FALSE)) ->  | I19: 2 | J19: =IF($O$3="k",IF(VLOOKUP($L19,invullijst!$A$10:$M$177,11,FALSE)=0," ",VLOOKUP($L19,invullijst!$A$10:$M$177,11,FALSE)),"") ->  | K19: =IF(VLOOKUP($L19,invullijst!$A$10:$M$218,4,FALSE)="","",VLOOKUP($L19,invullijst!$A$10:$M$218,4,FALSE)) -> 0 | M19: =IF(VLOOKUP($L19,invullijst!$A$10:$M$177,2,FALSE)="","",VLOOKUP($L19,invullijst!$A$10:$M$177,2,FALSE)) -> 0 | O19: =IF(VLOOKUP($L19,invullijst!$A$10:$M$177,8,FALSE)=0,"",VLOOKUP($L19,invullijst!$A$10:$M$177,8,FALSE)) -> 
A20: 3 | B20: =IF($G$3="k",IF(VLOOKUP($D20,invullijst!$A$10:$M$177,11,FALSE)=0," ",VLOOKUP($D20,invullijst!$A$10:$M$177,11,FALSE)),"") ->  | C20: =IF(VLOOKUP(D20,invullijst!A$10:F$218,4,FALSE)="","",VLOOKUP(D20,invullijst!A$10:D$218,4,FALSE)) -> 0 | E20: =IF(VLOOKUP($D20,invullijst!$A$10:$M$177,2,FALSE)="","",VLOOKUP($D20,invullijst!$A$10:$M$177,2,FALSE)) -> 0 | G20: =IF(VLOOKUP($D20,invullijst!$A$10:$M$177,8,FALSE)=0,"",VLOOKUP($D20,invullijst!$A$10:$M$177,8,FALSE)) ->  | I20: 3 | J20: =IF($O$3="k",IF(VLOOKUP($L20,invullijst!$A$10:$M$177,11,FALSE)=0," ",VLOOKUP($L20,invullijst!$A$10:$M$177,11,FALSE)),"") ->  | K20: =IF(VLOOKUP($L20,invullijst!$A$10:$M$218,4,FALSE)="","",VLOOKUP($L20,invullijst!$A$10:$M$218,4,FALSE)) -> 0 | M20: =IF(VLOOKUP($L20,invullijst!$A$10:$M$177,2,FALSE)="","",VLOOKUP($L20,invullijst!$A$10:$M$177,2,FALSE)) -> 0 | O20: =IF(VLOOKUP($L20,invullijst!$A$10:$M$177,8,FALSE)=0,"",VLOOKUP($L20,invullijst!$A$10:$M$177,8,FALSE)) -> 
A21: 4 | B21: =IF($G$3="k",IF(VLOOKUP($D21,invullijst!$A$10:$M$177,11,FALSE)=0," ",VLOOKUP($D21,invullijst!$A$10:$M$177,11,FALSE)),"") ->  | C21: =IF(VLOOKUP(D21,invullijst!A$10:F$218,4,FALSE)="","",VLOOKUP(D21,invullijst!A$10:D$218,4,FALSE)) -> 0 | E21: =IF(VLOOKUP($D21,invullijst!$A$10:$M$177,2,FALSE)="","",VLOOKUP($D21,invullijst!$A$10:$M$177,2,FALSE)) -> 0 | G21: =IF(VLOOKUP($D21,invullijst!$A$10:$M$177,8,FALSE)=0,"",VLOOKUP($D21,invullijst!$A$10:$M$177,8,FALSE)) ->  | I21: 4 | J21: =IF($O$3="k",IF(VLOOKUP($L21,invullijst!$A$10:$M$177,11,FALSE)=0," ",VLOOKUP($L21,invullijst!$A$10:$M$177,11,FALSE)),"") ->  | K21: =IF(VLOOKUP($L21,invullijst!$A$10:$M$218,4,FALSE)="","",VLOOKUP($L21,invullijst!$A$10:$M$218,4,FALSE)) -> 0 | M21: =IF(VLOOKUP($L21,invullijst!$A$10:$M$177,2,FALSE)="","",VLOOKUP($L21,invullijst!$A$10:$M$177,2,FALSE)) -> 0 | O21: =IF(VLOOKUP($L21,invullijst!$A$10:$M$177,8,FALSE)=0,"",VLOOKUP($L21,invullijst!$A$10:$M$177,8,FALSE)) -> 
A22: DIVERSEN / INHAAL | I22: DIVERSEN / INHAAL
A24: OPGELEGD (Jeugd <16 en 65+)
A25: 1 | B25: =IF($G$3="k",IF(VLOOKUP($D25,invullijst!$A$10:$M$177,11,FALSE)=0," ",VLOOKUP($D25,invullijst!$A$10:$M$177,11,FALSE)),"") ->  | C25: =IF(VLOOKUP(D25,invullijst!A$10:F$218,4,FALSE)="","",VLOOKUP(D25,invullijst!A$10:D$218,4,FALSE)) -> 65+ | D25: 307 | E25: =IF(VLOOKUP($D25,invullijst!$A$10:$M$177,2,FALSE)="","",VLOOKUP($D25,invullijst!$A$10:$M$177,2,FALSE)) -> Bert van Engelen | G25: =IF(VLOOKUP($D25,invullijst!$A$10:$M$177,8,FALSE)=0,"",VLOOKUP($D25,invullijst!$A$10:$M$177,8,FALSE)) -> 93 | I25: 1 | J25: =IF($O$3="k",IF(VLOOKUP($L25,invullijst!$A$10:$M$177,11,FALSE)=0," ",VLOOKUP($L25,invullijst!$A$10:$M$177,11,FALSE)),"") ->  | K25: =IF(VLOOKUP($L25,invullijst!$A$10:$M$218,4,FALSE)="","",VLOOKUP($L25,invullijst!$A$10:$M$218,4,FALSE)) -> 65+ | L25: 515 | M25: =IF(VLOOKUP($L25,invullijst!$A$10:$M$177,2,FALSE)="","",VLOOKUP($L25,invullijst!$A$10:$M$177,2,FALSE)) -> Ilona Bergakker disp | O25: =IF(VLOOKUP($L25,invullijst!$A$10:$M$177,8,FALSE)=0,"",VLOOKUP($L25,invullijst!$A$10:$M$177,8,FALSE)) -> 89
A26: 2 | B26: =IF($G$3="k",IF(VLOOKUP($D26,invullijst!$A$10:$M$177,11,FALSE)=0," ",VLOOKUP($D26,invullijst!$A$10:$M$177,11,FALSE)),"") ->  | C26: =IF(VLOOKUP(D26,invullijst!A$10:F$218,4,FALSE)="","",VLOOKUP(D26,invullijst!A$10:D$218,4,FALSE)) -> 65+ | D26: 310 | E26: =IF(VLOOKUP($D26,invullijst!$A$10:$M$177,2,FALSE)="","",VLOOKUP($D26,invullijst!$A$10:$M$177,2,FALSE)) -> Tini Boom | G26: =IF(VLOOKUP($D26,invullijst!$A$10:$M$177,8,FALSE)=0,"",VLOOKUP($D26,invullijst!$A$10:$M$177,8,FALSE)) -> 93 | I26: 2 | J26: =IF($O$3="k",IF(VLOOKUP($L26,invullijst!$A$10:$M$177,11,FALSE)=0," ",VLOOKUP($L26,invullijst!$A$10:$M$177,11,FALSE)),"") ->  | K26: =IF(VLOOKUP($L26,invullijst!$A$10:$M$218,4,FALSE)="","",VLOOKUP($L26,invullijst!$A$10:$M$218,4,FALSE)) -> 65+ | L26: 511 | M26: =IF(VLOOKUP($L26,invullijst!$A$10:$M$177,2,FALSE)="","",VLOOKUP($L26,invullijst!$A$10:$M$177,2,FALSE)) -> Ton Stans | O26: =IF(VLOOKUP($L26,invullijst!$A$10:$M$177,8,FALSE)=0,"",VLOOKUP($L26,invullijst!$A$10:$M$177,8,FALSE)) -> 82
A27: 3 | B27: =IF($G$3="k",IF(VLOOKUP($D27,invullijst!$A$10:$M$177,11,FALSE)=0," ",VLOOKUP($D27,invullijst!$A$10:$M$177,11,FALSE)),"") ->  | C27: =IF(VLOOKUP(D27,invullijst!A$10:F$218,4,FALSE)="","",VLOOKUP(D27,invullijst!A$10:D$218,4,FALSE)) -> J | D27: 312 | E27: =IF(VLOOKUP($D27,invullijst!$A$10:$M$177,2,FALSE)="","",VLOOKUP($D27,invullijst!$A$10:$M$177,2,FALSE)) -> Floor de Jong | G27: =IF(VLOOKUP($D27,invullijst!$A$10:$M$177,8,FALSE)=0,"",VLOOKUP($D27,invullijst!$A$10:$M$177,8,FALSE)) -> 91 | I27: 3 | J27: =IF($O$3="k",IF(VLOOKUP($L27,invullijst!$A$10:$M$177,11,FALSE)=0," ",VLOOKUP($L27,invullijst!$A$10:$M$177,11,FALSE)),"") ->  | K27: =IF(VLOOKUP($L27,invullijst!$A$10:$M$218,4,FALSE)="","",VLOOKUP($L27,invullijst!$A$10:$M$218,4,FALSE)) -> 65+ | L27: 509 | M27: =IF(VLOOKUP($L27,invullijst!$A$10:$M$177,2,FALSE)="","",VLOOKUP($L27,invullijst!$A$10:$M$177,2,FALSE)) -> Adwan de Pinth | O27: =IF(VLOOKUP($L27,invullijst!$A$10:$M$177,8,FALSE)=0,"",VLOOKUP($L27,invullijst!$A$10:$M$177,8,FALSE)) -> 95
A28: Totaal korps opgelegd A1 | G28: =SUM(G25:G27) -> 277 | I28: Totaal korps opgelegd A1 | O28: =SUM(O25:O27) -> 266
A30: 1 | B30: =IF($G$3="k",IF(VLOOKUP($D30,invullijst!$A$10:$M$177,11,FALSE)=0," ",VLOOKUP($D30,invullijst!$A$10:$M$177,11,FALSE)),"") ->  | C30: =IF(VLOOKUP(D30,invullijst!A$10:F$218,4,FALSE)="","",VLOOKUP(D30,invullijst!A$10:D$218,4,FALSE)) -> 65+ | D30: 309 | E30: =IF(VLOOKUP($D30,invullijst!$A$10:$M$177,2,FALSE)="","",VLOOKUP($D30,invullijst!$A$10:$M$177,2,FALSE)) -> René de Jong | G30: =IF(VLOOKUP($D30,invullijst!$A$10:$M$177,8,FALSE)=0,"",VLOOKUP($D30,invullijst!$A$10:$M$177,8,FALSE)) -> 94 | I30: 1 | J30: =IF($O$3="k",IF(VLOOKUP($L30,invullijst!$A$10:$M$177,11,FALSE)=0," ",VLOOKUP($L30,invullijst!$A$10:$M$177,11,FALSE)),"") ->  | K30: =IF(VLOOKUP($L30,invullijst!$A$10:$M$218,4,FALSE)="","",VLOOKUP($L30,invullijst!$A$10:$M$218,4,FALSE)) -> 65+ | L30: 516 | M30: =IF(VLOOKUP($L30,invullijst!$A$10:$M$177,2,FALSE)="","",VLOOKUP($L30,invullijst!$A$10:$M$177,2,FALSE)) -> Henry Bergakker disp | O30: =IF(VLOOKUP($L30,invullijst!$A$10:$M$177,8,FALSE)=0,"",VLOOKUP($L30,invullijst!$A$10:$M$177,8,FALSE)) -> 88
A31: 2 | B31: =IF($G$3="k",IF(VLOOKUP($D31,invullijst!$A$10:$M$177,11,FALSE)=0," ",VLOOKUP($D31,invullijst!$A$10:$M$177,11,FALSE)),"") ->  | C31: =IF(VLOOKUP(D31,invullijst!A$10:F$218,4,FALSE)="","",VLOOKUP(D31,invullijst!A$10:D$218,4,FALSE)) -> 65+ | D31: 301 | E31: =IF(VLOOKUP($D31,invullijst!$A$10:$M$177,2,FALSE)="","",VLOOKUP($D31,invullijst!$A$10:$M$177,2,FALSE)) -> Arjen van Assem disp | G31: =IF(VLOOKUP($D31,invullijst!$A$10:$M$177,8,FALSE)=0,"",VLOOKUP($D31,invullijst!$A$10:$M$177,8,FALSE)) -> 93 | I31: 2 | J31: =IF($O$3="k",IF(VLOOKUP($L31,invullijst!$A$10:$M$177,11,FALSE)=0," ",VLOOKUP($L31,invullijst!$A$10:$M$177,11,FALSE)),"") ->  | K31: =IF(VLOOKUP($L31,invullijst!$A$10:$M$218,4,FALSE)="","",VLOOKUP($L31,invullijst!$A$10:$M$218,4,FALSE)) -> 65+ | L31: 514 | M31: =IF(VLOOKUP($L31,invullijst!$A$10:$M$177,2,FALSE)="","",VLOOKUP($L31,invullijst!$A$10:$M$177,2,FALSE)) -> Toon Ophorst | O31: =IF(VLOOKUP($L31,invullijst!$A$10:$M$177,8,FALSE)=0,"",VLOOKUP($L31,invullijst!$A$10:$M$177,8,FALSE)) -> 75
A32: 3 | B32: =IF($G$3="k",IF(VLOOKUP($D32,invullijst!$A$10:$M$177,11,FALSE)=0," ",VLOOKUP($D32,invullijst!$A$10:$M$177,11,FALSE)),"") ->  | C32: =IF(VLOOKUP(D32,invullijst!A$10:F$218,4,FALSE)="","",VLOOKUP(D32,invullijst!A$10:D$218,4,FALSE)) -> 0 | E32: =IF(VLOOKUP($D32,invullijst!$A$10:$M$177,2,FALSE)="","",VLOOKUP($D32,invullijst!$A$10:$M$177,2,FALSE)) -> 0 | G32: =IF(VLOOKUP($D32,invullijst!$A$10:$M$177,8,FALSE)=0,"",VLOOKUP($D32,invullijst!$A$10:$M$177,8,FALSE)) ->  | I32: 3 | J32: =IF($O$3="k",IF(VLOOKUP($L32,invullijst!$A$10:$M$177,11,FALSE)=0," ",VLOOKUP($L32,invullijst!$A$10:$M$177,11,FALSE)),"") ->  | K32: =IF(VLOOKUP($L32,invullijst!$A$10:$M$218,4,FALSE)="","",VLOOKUP($L32,invullijst!$A$10:$M$218,4,FALSE)) -> 65+ | L32: 505 | M32: =IF(VLOOKUP($L32,invullijst!$A$10:$M$177,2,FALSE)="","",VLOOKUP($L32,invullijst!$A$10:$M$177,2,FALSE)) -> Leo Wagemakers | O32: =IF(VLOOKUP($L32,invullijst!$A$10:$M$177,8,FALSE)=0,"",VLOOKUP($L32,invullijst!$A$10:$M$177,8,FALSE)) -> 58
A33: Totaal korps opgelegd A2 | G33: =SUM(G30:G32) -> 187 | I33: Totaal korps opgelegd A2 | O33: =SUM(O30:O32) -> 221
A35: 1 | B35: =IF($G$3="k",IF(VLOOKUP($D35,invullijst!$A$10:$M$177,11,FALSE)=0," ",VLOOKUP($D35,invullijst!$A$10:$M$177,11,FALSE)),"") ->  | C35: =IF(VLOOKUP(D35,invullijst!A$10:F$218,4,FALSE)="","",VLOOKUP(D35,invullijst!A$10:D$218,4,FALSE)) -> 0 | E35: =IF(VLOOKUP($D35,invullijst!$A$10:$M$177,2,FALSE)="","",VLOOKUP($D35,invullijst!$A$10:$M$177,2,FALSE)) -> 0 | G35: =IF(VLOOKUP($D35,invullijst!$A$10:$M$177,8,FALSE)=0,"",VLOOKUP($D35,invullijst!$A$10:$M$177,8,FALSE)) ->  | I35: 1 | J35: =IF($O$3="k",IF(VLOOKUP($L35,invullijst!$A$10:$M$177,11,FALSE)=0," ",VLOOKUP($L35,invullijst!$A$10:$M$177,11,FALSE)),"") ->  | K35: =IF(VLOOKUP($L35,invullijst!$A$10:$M$218,4,FALSE)="","",VLOOKUP($L35,invullijst!$A$10:$M$218,4,FALSE)) -> 0 | M35: =IF(VLOOKUP($L35,invullijst!$A$10:$M$177,2,FALSE)="","",VLOOKUP($L35,invullijst!$A$10:$M$177,2,FALSE)) -> 0 | O35: =IF(VLOOKUP($L35,invullijst!$A$10:$M$177,8,FALSE)=0,"",VLOOKUP($L35,invullijst!$A$10:$M$177,8,FALSE)) -> 
A36: 2 | B36: =IF($G$3="k",IF(VLOOKUP($D36,invullijst!$A$10:$M$177,11,FALSE)=0," ",VLOOKUP($D36,invullijst!$A$10:$M$177,11,FALSE)),"") ->  | C36: =IF(VLOOKUP(D36,invullijst!A$10:F$218,4,FALSE)="","",VLOOKUP(D36,invullijst!A$10:D$218,4,FALSE)) -> 0 | E36: =IF(VLOOKUP($D36,invullijst!$A$10:$M$177,2,FALSE)="","",VLOOKUP($D36,invullijst!$A$10:$M$177,2,FALSE)) -> 0 | G36: =IF(VLOOKUP($D36,invullijst!$A$10:$M$177,8,FALSE)=0,"",VLOOKUP($D36,invullijst!$A$10:$M$177,8,FALSE)) ->  | I36: 2 | J36: =IF($O$3="k",IF(VLOOKUP($L36,invullijst!$A$10:$M$177,11,FALSE)=0," ",VLOOKUP($L36,invullijst!$A$10:$M$177,11,FALSE)),"") ->  | K36: =IF(VLOOKUP($L36,invullijst!$A$10:$M$218,4,FALSE)="","",VLOOKUP($L36,invullijst!$A$10:$M$218,4,FALSE)) -> 0 | M36: =IF(VLOOKUP($L36,invullijst!$A$10:$M$177,2,FALSE)="","",VLOOKUP($L36,invullijst!$A$10:$M$177,2,FALSE)) -> 0 | O36: =IF(VLOOKUP($L36,invullijst!$A$10:$M$177,8,FALSE)=0,"",VLOOKUP($L36,invullijst!$A$10:$M$177,8,FALSE)) -> 
A37: 3 | B37: =IF($G$3="k",IF(VLOOKUP($D37,invullijst!$A$10:$M$177,11,FALSE)=0," ",VLOOKUP($D37,invullijst!$A$10:$M$177,11,FALSE)),"") ->  | C37: =IF(VLOOKUP(D37,invullijst!A$10:F$218,4,FALSE)="","",VLOOKUP(D37,invullijst!A$10:D$218,4,FALSE)) -> 0 | E37: =IF(VLOOKUP($D37,invullijst!$A$10:$M$177,2,FALSE)="","",VLOOKUP($D37,invullijst!$A$10:$M$177,2,FALSE)) -> 0 | G37: =IF(VLOOKUP($D37,invullijst!$A$10:$M$177,8,FALSE)=0,"",VLOOKUP($D37,invullijst!$A$10:$M$177,8,FALSE)) ->  | I37: 3 | J37: =IF($O$3="k",IF(VLOOKUP($L37,invullijst!$A$10:$M$177,11,FALSE)=0," ",VLOOKUP($L37,invullijst!$A$10:$M$177,11,FALSE)),"") ->  | K37: =IF(VLOOKUP($L37,invullijst!$A$10:$M$218,4,FALSE)="","",VLOOKUP($L37,invullijst!$A$10:$M$218,4,FALSE)) -> 0 | M37: =IF(VLOOKUP($L37,invullijst!$A$10:$M$177,2,FALSE)="","",VLOOKUP($L37,invullijst!$A$10:$M$177,2,FALSE)) -> 0 | O37: =IF(VLOOKUP($L37,invullijst!$A$10:$M$177,8,FALSE)=0,"",VLOOKUP($L37,invullijst!$A$10:$M$177,8,FALSE)) -> 
A38: Totaal korps opgelegd A3 | G38: =SUM(G35:G37) -> 0 | I38: Totaal korps opgelegd A3 | O38: =SUM(O35:O37) -> 0

Sheet wedstrijd 4A
A1: =invullijst!F1 -> Organisatie | F1: =invullijst!H2 -> 2023 - 2024 | I1: =invullijst!F3 -> St. Crispinus & Crispinianus Besoijen
A2: Datum: | M2: 2024-03-03
A3: 3 | B3: =IF(VLOOKUP(A3,invullijst!A1:F5,2,FALSE)="","",VLOOKUP(A3,invullijst!A1:F5,2,FALSE)) -> O.L.V. Schuts Elshout | I3: 2 | J3: =IF(VLOOKUP(I3,invullijst!A1:C5,2,FALSE)="","",VLOOKUP(I3,invullijst!A1:C5,2,FALSE)) -> St. Crispinus & Crispinianus Besoijen
A5: vrijehand
A6: 1 | B6: =IF($G$3="k",IF(VLOOKUP($D6,invullijst!$A$10:$M$177,11,FALSE)=0," ",VLOOKUP($D6,invullijst!$A$10:$M$177,11,FALSE)),"") ->  | C6: =IF(VLOOKUP(D6,invullijst!A$10:F$218,4,FALSE)="","",VLOOKUP(D6,invullijst!A$10:D$218,4,FALSE)) -> vr | D6: 302 | E6: =IF(VLOOKUP($D6,invullijst!$A$10:$M$177,2,FALSE)="","",VLOOKUP($D6,invullijst!$A$10:$M$177,2,FALSE)) -> Freek de Jong | G6: =IF(VLOOKUP($D6,invullijst!$A$10:$M$177,9,FALSE)=0,"",VLOOKUP($D6,invullijst!$A$10:$M$177,9,FALSE)) -> 88 | I6: 1 | J6: =IF($O$3="k",IF(VLOOKUP($L6,invullijst!$A$10:$M$177,11,FALSE)=0," ",VLOOKUP($L6,invullijst!$A$10:$M$177,11,FALSE)),"") ->  | K6: =IF(VLOOKUP($L6,invullijst!$A$10:$M$218,4,FALSE)="","",VLOOKUP($L6,invullijst!$A$10:$M$218,4,FALSE)) -> vr | L6: 201 | M6: =IF(VLOOKUP($L6,invullijst!$A$10:$M$177,2,FALSE)="","",VLOOKUP($L6,invullijst!$A$10:$M$177,2,FALSE)) -> Sander Oome | O6: =IF(VLOOKUP($L6,invullijst!$A$10:$M$177,9,FALSE)=0,"",VLOOKUP($L6,invullijst!$A$10:$M$177,9,FALSE)) -> 92
A7: 2 | B7: =IF($G$3="k",IF(VLOOKUP($D7,invullijst!$A$10:$M$177,11,FALSE)=0," ",VLOOKUP($D7,invullijst!$A$10:$M$177,11,FALSE)),"") ->  | C7: =IF(VLOOKUP(D7,invullijst!A$10:F$218,4,FALSE)="","",VLOOKUP(D7,invullijst!A$10:D$218,4,FALSE)) -> vr | D7: 311 | E7: =IF(VLOOKUP($D7,invullijst!$A$10:$M$177,2,FALSE)="","",VLOOKUP($D7,invullijst!$A$10:$M$177,2,FALSE)) -> Ton Kolmans | G7: =IF(VLOOKUP($D7,invullijst!$A$10:$M$177,9,FALSE)=0,"",VLOOKUP($D7,invullijst!$A$10:$M$177,9,FALSE)) -> 86 | I7: 2 | J7: =IF($O$3="k",IF(VLOOKUP($L7,invullijst!$A$10:$M$177,11,FALSE)=0," ",VLOOKUP($L7,invullijst!$A$10:$M$177,11,FALSE)),"") ->  | K7: =IF(VLOOKUP($L7,invullijst!$A$10:$M$218,4,FALSE)="","",VLOOKUP($L7,invullijst!$A$10:$M$218,4,FALSE)) -> vr | L7: 203 | M7: =IF(VLOOKUP($L7,invullijst!$A$10:$M$177,2,FALSE)="","",VLOOKUP($L7,invullijst!$A$10:$M$177,2,FALSE)) -> Frank van den Houdt | O7: =IF(VLOOKUP($L7,invullijst!$A$10:$M$177,9,FALSE)=0,"",VLOOKUP($L7,invullijst!$A$10:$M$177,9,FALSE)) -> 85
A8: 3 | B8: =IF($G$3="k",IF(VLOOKUP($D8,invullijst!$A$10:$M$177,11,FALSE)=0," ",VLOOKUP($D8,invullijst!$A$10:$M$177,11,FALSE)),"") ->  | C8: =IF(VLOOKUP(D8,invullijst!A$10:F$218,4,FALSE)="","",VLOOKUP(D8,invullijst!A$10:D$218,4,FALSE)) -> vr | D8: 306 | E8: =IF(VLOOKUP($D8,invullijst!$A$10:$M$177,2,FALSE)="","",VLOOKUP($D8,invullijst!$A$10:$M$177,2,FALSE)) -> Ron Groot | G8: =IF(VLOOKUP($D8,invullijst!$A$10:$M$177,9,FALSE)=0,"",VLOOKUP($D8,invullijst!$A$10:$M$177,9,FALSE)) -> 84 | I8: 3 | J8: =IF($O$3="k",IF(VLOOKUP($L8,invullijst!$A$10:$M$177,11,FALSE)=0," ",VLOOKUP($L8,invullijst!$A$10:$M$177,11,FALSE)),"") ->  | K8: =IF(VLOOKUP($L8,invullijst!$A$10:$M$218,4,FALSE)="","",VLOOKUP($L8,invullijst!$A$10:$M$218,4,FALSE)) -> vr | L8: 215 | M8: =IF(VLOOKUP($L8,invullijst!$A$10:$M$177,2,FALSE)="","",VLOOKUP($L8,invullijst!$A$10:$M$177,2,FALSE)) -> Pieter Laghuwitz | O8: =IF(VLOOKUP($L8,invullijst!$A$10:$M$177,9,FALSE)=0,"",VLOOKUP($L8,invullijst!$A$10:$M$177,9,FALSE)) -> 83
A9: 4 | B9: =IF($G$3="k",IF(VLOOKUP($D9,invullijst!$A$10:$M$177,11,FALSE)=0," ",VLOOKUP($D9,invullijst!$A$10:$M$177,11,FALSE)),"") ->  | C9: =IF(VLOOKUP(D9,invullijst!A$10:F$218,4,FALSE)="","",VLOOKUP(D9,invullijst!A$10:D$218,4,FALSE)) -> vr | D9: 305 | E9: =IF(VLOOKUP($D9,invullijst!$A$10:$M$177,2,FALSE)="","",VLOOKUP($D9,invullijst!$A$10:$M$177,2,FALSE)) -> Johan Klerx | G9: =IF(VLOOKUP($D9,invullijst!$A$10:$M$177,9,FALSE)=0,"",VLOOKUP($D9,invullijst!$A$10:$M$177,9,FALSE)) -> 84 | I9: 4 | J9: =IF($O$3="k",IF(VLOOKUP($L9,invullijst!$A$10:$M$177,11,FALSE)=0," ",VLOOKUP($L9,invullijst!$A$10:$M$177,11,FALSE)),"") ->  | K9: =IF(VLOOKUP($L9,invullijst!$A$10:$M$218,4,FALSE)="","",VLOOKUP($L9,invullijst!$A$10:$M$218,4,FALSE)) -> vr | L9: 209 | M9: =IF(VLOOKUP($L9,invullijst!$A$10:$M$177,2,FALSE)="","",VLOOKUP($L9,invullijst!$A$10:$M$177,2,FALSE)) -> René van Kuijk | O9: =IF(VLOOKUP($L9,invullijst!$A$10:$M$177,9,FALSE)=0,"",VLOOKUP($L9,invullijst!$A$10:$M$177,9,FALSE)) -> 82
A10: Totaal A korps | G10: =SUM(G6:G9) -> 342 | I10: Totaal A korps | O10: =SUM(O6:O9) -> 342
A12: 1 | B12: =IF($G$3="k",IF(VLOOKUP($D12,invullijst!$A$10:$M$177,11,FALSE)=0," ",VLOOKUP($D12,invullijst!$A$10:$M$177,11,FALSE)),"") ->  | C12: =IF(VLOOKUP(D12,invullijst!A$10:F$218,4,FALSE)="","",VLOOKUP(D12,invullijst!A$10:D$218,4,FALSE)) -> vr | D12: 304 | E12: =IF(VLOOKUP($D12,invullijst!$A$10:$M$177,2,FALSE)="","",VLOOKUP($D12,invullijst!$A$10:$M$177,2,FALSE)) -> Henk Bruurmijn | G12: =IF(VLOOKUP($D12,invullijst!$A$10:$M$177,9,FALSE)=0,"",VLOOKUP($D12,invullijst!$A$10:$M$177,9,FALSE)) -> 68 | I12: 1 | J12: =IF($O$3="k",IF(VLOOKUP($L12,invullijst!$A$10:$M$177,11,FALSE)=0," ",VLOOKUP($L12,invullijst!$A$10:$M$177,11,FALSE)),"") ->  | K12: =IF(VLOOKUP($L12,invullijst!$A$10:$M$218,4,FALSE)="","",VLOOKUP($L12,invullijst!$A$10:$M$218,4,FALSE)) -> vr | L12: 205 | M12: =IF(VLOOKUP($L12,invullijst!$A$10:$M$177,2,FALSE)="","",VLOOKUP($L12,invullijst!$A$10:$M$177,2,FALSE)) -> Jos v/d Snepscheut | O12: =IF(VLOOKUP($L12,invullijst!$A$10:$M$177,9,FALSE)=0,"",VLOOKUP($L12,invullijst!$A$10:$M$177,9,FALSE)) -> 82
A13: 2 | B13: =IF($G$3="k",IF(VLOOKUP($D13,invullijst!$A$10:$M$177,11,FALSE)=0," ",VLOOKUP($D13,invullijst!$A$10:$M$177,11,FALSE)),"") ->  | C13: =IF(VLOOKUP(D13,invullijst!A$10:F$218,4,FALSE)="","",VLOOKUP(D13,invullijst!A$10:D$218,4,FALSE)) -> 0 | E13: =IF(VLOOKUP($D13,invullijst!$A$10:$M$177,2,FALSE)="","",VLOOKUP($D13,invullijst!$A$10:$M$177,2,FALSE)) -> 0 | G13: =IF(VLOOKUP($D13,invullijst!$A$10:$M$177,9,FALSE)=0,"",VLOOKUP($D13,invullijst!$A$10:$M$177,9,FALSE)) ->  | I13: 2 | J13: =IF($O$3="k",IF(VLOOKUP($L13,invullijst!$A$10:$M$177,11,FALSE)=0," ",VLOOKUP($L13,invullijst!$A$10:$M$177,11,FALSE)),"") ->  | K13: =IF(VLOOKUP($L13,invullijst!$A$10:$M$218,4,FALSE)="","",VLOOKUP($L13,invullijst!$A$10:$M$218,4,FALSE)) -> vr | L13: 208 | M13: =IF(VLOOKUP($L13,invullijst!$A$10:$M$177,2,FALSE)="","",VLOOKUP($L13,invullijst!$A$10:$M$177,2,FALSE)) -> Erin van Hulten | O13: =IF(VLOOKUP($L13,invullijst!$A$10:$M$177,9,FALSE)=0,"",VLOOKUP($L13,invullijst!$A$10:$M$177,9,FALSE)) -> 81
A14: 3 | B14: =IF($G$3="k",IF(VLOOKUP($D14,invullijst!$A$10:$M$177,11,FALSE)=0," ",VLOOKUP($D14,invullijst!$A$10:$M$177,11,FALSE)),"") ->  | C14: =IF(VLOOKUP(D14,invullijst!A$10:F$218,4,FALSE)="","",VLOOKUP(D14,invullijst!A$10:D$218,4,FALSE)) -> 0 | E14: =IF(VLOOKUP($D14,invullijst!$A$10:$M$177,2,FALSE)="","",VLOOKUP($D14,invullijst!$A$10:$M$177,2,FALSE)) -> 0 | G14: =IF(VLOOKUP($D14,invullijst!$A$10:$M$177,9,FALSE)=0,"",VLOOKUP($D14,invullijst!$A$10:$M$177,9,FALSE)) ->  | I14: 3 | J14: =IF($O$3="k",IF(VLOOKUP($L14,invullijst!$A$10:$M$177,11,FALSE)=0," ",VLOOKUP($L14,invullijst!$A$10:$M$177,11,FALSE)),"") ->  | K14: =IF(VLOOKUP($L14,invullijst!$A$10:$M$218,4,FALSE)="","",VLOOKUP($L14,invullijst!$A$10:$M$218,4,FALSE)) -> vr | L14: 204 | M14: =IF(VLOOKUP($L14,invullijst!$A$10:$M$177,2,FALSE)="","",VLOOKUP($L14,invullijst!$A$10:$M$177,2,FALSE)) -> Harry de Louw | O14: =IF(VLOOKUP($L14,invullijst!$A$10:$M$177,9,FALSE)=0,"",VLOOKUP($L14,invullijst!$A$10:$M$177,9,FALSE)) -> 80
A15: 4 | B15: =IF($G$3="k",IF(VLOOKUP($D15,invullijst!$A$10:$M$177,11,FALSE)=0," ",VLOOKUP($D15,invullijst!$A$10:$M$177,11,FALSE)),"") ->  | C15: =IF(VLOOKUP(D15,invullijst!A$10:F$218,4,FALSE)="","",VLOOKUP(D15,invullijst!A$10:D$218,4,FALSE)) -> 0 | E15: =IF(VLOOKUP($D15,invullijst!$A$10:$M$177,2,FALSE)="","",VLOOKUP($D15,invullijst!$A$10:$M$177,2,FALSE)) -> 0 | G15: =IF(VLOOKUP($D15,invullijst!$A$10:$M$177,9,FALSE)=0,"",VLOOKUP($D15,invullijst!$A$10:$M$177,9,FALSE)) ->  | I15: 4 | J15: =IF($O$3="k",IF(VLOOKUP($L15,invullijst!$A$10:$M$177,11,FALSE)=0," ",VLOOKUP($L15,invullijst!$A$10:$M$177,11,FALSE)),"") ->  | K15: =IF(VLOOKUP($L15,invullijst!$A$10:$M$218,4,FALSE)="","",VLOOKUP($L15,invullijst!$A$10:$M$218,4,FALSE)) -> vr | L15: 213 | M15: =IF(VLOOKUP($L15,invullijst!$A$10:$M$177,2,FALSE)="","",VLOOKUP($L15,invullijst!$A$10:$M$177,2,FALSE)) -> Roland van Delft | O15: =IF(VLOOKUP($L15,invullijst!$A$10:$M$177,9,FALSE)=0,"",VLOOKUP($L15,invullijst!$A$10:$M$177,9,FALSE)) -> 77
A16: Totaal B1 korps | G16: =SUM(G12:G15) -> 68 | I16: Totaal B1 korps | O16: =SUM(O12:O15) -> 320
A18: 1 | B18: =IF($G$3="k",IF(VLOOKUP($D18,invullijst!$A$10:$M$177,11,FALSE)=0," ",VLOOKUP($D18,invullijst!$A$10:$M$177,11,FALSE)),"") ->  | I18: 1 | J18: =IF($O$3="k",IF(VLOOKUP($L18,invullijst!$A$10:$M$177,11,FALSE)=0," ",VLOOKUP($L18,invullijst!$A$10:$M$177,11,FALSE)),"") ->  | K18: =IF(VLOOKUP($L18,invullijst!$A$10:$M$218,4,FALSE)="","",VLOOKUP($L18,invullijst!$A$10:$M$218,4,FALSE)) -> vr | L18: 202 | M18: =IF(VLOOKUP($L18,invullijst!$A$10:$M$177,2,FALSE)="","",VLOOKUP($L18,invullijst!$A$10:$M$177,2,FALSE)) -> Arco van Kuijk | O18: =IF(VLOOKUP($L18,invullijst!$A$10:$M$177,9,FALSE)=0,"",VLOOKUP($L18,invullijst!$A$10:$M$177,9,FALSE)) -> 60
A19: 2 | B19: =IF($G$3="k",IF(VLOOKUP($D19,invullijst!$A$10:$M$177,11,FALSE)=0," ",VLOOKUP($D19,invullijst!$A$10:$M$177,11,FALSE)),"") ->  | E19: Ron groot (inhaal) | G19: 86 | I19: 2 | J19: =IF($O$3="k",IF(VLOOKUP($L19,invullijst!$A$10:$M$177,11,FALSE)=0," ",VLOOKUP($L19,invullijst!$A$10:$M$177,11,FALSE)),"") ->  | K19: =IF(VLOOKUP($L19,invullijst!$A$10:$M$218,4,FALSE)="","",VLOOKUP($L19,invullijst!$A$10:$M$218,4,FALSE)) -> vr | L19: 210 | M19: =IF(VLOOKUP($L19,invullijst!$A$10:$M$177,2,FALSE)="","",VLOOKUP($L19,invullijst!$A$10:$M$177,2,FALSE)) -> Nick de Vaan | O19: =IF(VLOOKUP($L19,invullijst!$A$10:$M$177,9,FALSE)=0,"",VLOOKUP($L19,invullijst!$A$10:$M$177,9,FALSE)) -> 75
A20: 3 | B20: =IF($G$3="k",IF(VLOOKUP($D20,invullijst!$A$10:$M$177,11,FALSE)=0," ",VLOOKUP($D20,invullijst!$A$10:$M$177,11,FALSE)),"") ->  | I20: 3 | J20: =IF($O$3="k",IF(VLOOKUP($L20,invullijst!$A$10:$M$177,11,FALSE)=0," ",VLOOKUP($L20,invullijst!$A$10:$M$177,11,FALSE)),"") ->  | K20: =IF(VLOOKUP($L20,invullijst!$A$10:$M$218,4,FALSE)="","",VLOOKUP($L20,invullijst!$A$10:$M$218,4,FALSE)) -> vr | L20: 217 | M20: =IF(VLOOKUP($L20,invullijst!$A$10:$M$177,2,FALSE)="","",VLOOKUP($L20,invullijst!$A$10:$M$177,2,FALSE)) -> Jānis Jākobsons | O20: =IF(VLOOKUP($L20,invullijst!$A$10:$M$177,9,FALSE)=0,"",VLOOKUP($L20,invullijst!$A$10:$M$177,9,FALSE)) -> 79
A21: 4 | B21: =IF($G$3="k",IF(VLOOKUP($D21,invullijst!$A$10:$M$177,11,FALSE)=0," ",VLOOKUP($D21,invullijst!$A$10:$M$177,11,FALSE)),"") ->  | I21: 4 | J21: =IF($O$3="k",IF(VLOOKUP($L21,invullijst!$A$10:$M$177,11,FALSE)=0," ",VLOOKUP($L21,invullijst!$A$10:$M$177,11,FALSE)),"") ->  | K21: =IF(VLOOKUP($L21,invullijst!$A$10:$M$218,4,FALSE)="","",VLOOKUP($L21,invullijst!$A$10:$M$218,4,FALSE)) -> 0 | M21: =IF(VLOOKUP($L21,invullijst!$A$10:$M$177,2,FALSE)="","",VLOOKUP($L21,invullijst!$A$10:$M$177,2,FALSE)) -> 0 | O21: =IF(VLOOKUP($L21,invullijst!$A$10:$M$177,9,FALSE)=0,"",VLOOKUP($L21,invullijst!$A$10:$M$177,9,FALSE)) -> 
A22: DIVERSEN / INHAAL | I22: DIVERSEN / INHAAL
A24: OPGELEGD (Jeugd <16 en 65+)
A25: 1 | B25: =IF($G$3="k",IF(VLOOKUP($D25,invullijst!$A$10:$M$177,11,FALSE)=0," ",VLOOKUP($D25,invullijst!$A$10:$M$177,11,FALSE)),"") ->  | C25: =IF(VLOOKUP(D25,invullijst!A$10:F$218,4,FALSE)="","",VLOOKUP(D25,invullijst!A$10:D$218,4,FALSE)) -> 65+ | D25: 310 | E25: =IF(VLOOKUP($D25,invullijst!$A$10:$M$177,2,FALSE)="","",VLOOKUP($D25,invullijst!$A$10:$M$177,2,FALSE)) -> Tini Boom | G25: =IF(VLOOKUP($D25,invullijst!$A$10:$M$177,9,FALSE)=0,"",VLOOKUP($D25,invullijst!$A$10:$M$177,9,FALSE)) -> 94 | I25: 1 | J25: =IF($O$3="k",IF(VLOOKUP($L25,invullijst!$A$10:$M$177,11,FALSE)=0," ",VLOOKUP($L25,invullijst!$A$10:$M$177,11,FALSE)),"") ->  | K25: =IF(VLOOKUP($L25,invullijst!$A$10:$M$218,4,FALSE)="","",VLOOKUP($L25,invullijst!$A$10:$M$218,4,FALSE)) -> 65+ | L25: 212 | M25: =IF(VLOOKUP($L25,invullijst!$A$10:$M$177,2,FALSE)="","",VLOOKUP($L25,invullijst!$A$10:$M$177,2,FALSE)) -> René Duquesnoy | O25: =IF(VLOOKUP($L25,invullijst!$A$10:$M$177,9,FALSE)=0,"",VLOOKUP($L25,invullijst!$A$10:$M$177,9,FALSE)) -> 87
A26: 2 | B26: =IF($G$3="k",IF(VLOOKUP($D26,invullijst!$A$10:$M$177,11,FALSE)=0," ",VLOOKUP($D26,invullijst!$A$10:$M$177,11,FALSE)),"") ->  | C26: =IF(VLOOKUP(D26,invullijst!A$10:F$218,4,FALSE)="","",VLOOKUP(D26,invullijst!A$10:D$218,4,FALSE)) -> 65+ | D26: 307 | E26: =IF(VLOOKUP($D26,invullijst!$A$10:$M$177,2,FALSE)="","",VLOOKUP($D26,invullijst!$A$10:$M$177,2,FALSE)) -> Bert van Engelen | G26: =IF(VLOOKUP($D26,invullijst!$A$10:$M$177,9,FALSE)=0,"",VLOOKUP($D26,invullijst!$A$10:$M$177,9,FALSE)) -> 93 | I26: 2 | J26: =IF($O$3="k",IF(VLOOKUP($L26,invullijst!$A$10:$M$177,11,FALSE)=0," ",VLOOKUP($L26,invullijst!$A$10:$M$177,11,FALSE)),"") ->  | K26: =IF(VLOOKUP($L26,invullijst!$A$10:$M$218,4,FALSE)="","",VLOOKUP($L26,invullijst!$A$10:$M$218,4,FALSE)) -> 65+ | L26: 211 | M26: =IF(VLOOKUP($L26,invullijst!$A$10:$M$177,2,FALSE)="","",VLOOKUP($L26,invullijst!$A$10:$M$177,2,FALSE)) -> Ad van den houdt | O26: =IF(VLOOKUP($L26,invullijst!$A$10:$M$177,9,FALSE)=0,"",VLOOKUP($L26,invullijst!$A$10:$M$177,9,FALSE)) -> 90
A27: 3 | B27: =IF($G$3="k",IF(VLOOKUP($D27,invullijst!$A$10:$M$177,11,FALSE)=0," ",VLOOKUP($D27,invullijst!$A$10:$M$177,11,FALSE)),"") ->  | C27: =IF(VLOOKUP(D27,invullijst!A$10:F$218,4,FALSE)="","",VLOOKUP(D27,invullijst!A$10:D$218,4,FALSE)) -> J | D27: 312 | E27: =IF(VLOOKUP($D27,invullijst!$A$10:$M$177,2,FALSE)="","",VLOOKUP($D27,invullijst!$A$10:$M$177,2,FALSE)) -> Floor de Jong | G27: =IF(VLOOKUP($D27,invullijst!$A$10:$M$177,9,FALSE)=0,"",VLOOKUP($D27,invullijst!$A$10:$M$177,9,FALSE)) -> 90 | I27: 3 | J27: =IF($O$3="k",IF(VLOOKUP($L27,invullijst!$A$10:$M$177,11,FALSE)=0," ",VLOOKUP($L27,invullijst!$A$10:$M$177,11,FALSE)),"") ->  | K27: =IF(VLOOKUP($L27,invullijst!$A$10:$M$218,4,FALSE)="","",VLOOKUP($L27,invullijst!$A$10:$M$218,4,FALSE)) -> 65+ | L27: 214 | M27: =IF(VLOOKUP($L27,invullijst!$A$10:$M$177,2,FALSE)="","",VLOOKUP($L27,invullijst!$A$10:$M$177,2,FALSE)) -> André de Vaan | O27: =IF(VLOOKUP($L27,invullijst!$A$10:$M$177,9,FALSE)=0,"",VLOOKUP($L27,invullijst!$A$10:$M$177,9,FALSE)) -> 96
A28: Totaal korps opgelegd A1 | G28: =SUM(G25:G27) -> 277 | I28: Totaal korps opgelegd A1 | O28: =SUM(O25:O27) -> 273
A30: 1 | B30: =IF($G$3="k",IF(VLOOKUP($D30,invullijst!$A$10:$M$177,11,FALSE)=0," ",VLOOKUP($D30,invullijst!$A$10:$M$177,11,FALSE)),"") ->  | C30: =IF(VLOOKUP(D30,invullijst!A$10:F$218,4,FALSE)="","",VLOOKUP(D30,invullijst!A$10:D$218,4,FALSE)) -> 65+ | D30: 309 | E30: =IF(VLOOKUP($D30,invullijst!$A$10:$M$177,2,FALSE)="","",VLOOKUP($D30,invullijst!$A$10:$M$177,2,FALSE)) -> René de Jong | G30: =IF(VLOOKUP($D30,invullijst!$A$10:$M$177,9,FALSE)=0,"",VLOOKUP($D30,invullijst!$A$10:$M$177,9,FALSE)) -> 93 | I30: 1 | J30: =IF($O$3="k",IF(VLOOKUP($L30,invullijst!$A$10:$M$177,11,FALSE)=0," ",VLOOKUP($L30,invullijst!$A$10:$M$177,11,FALSE)),"") ->  | K30: =IF(VLOOKUP($L30,invullijst!$A$10:$M$218,4,FALSE)="","",VLOOKUP($L30,invullijst!$A$10:$M$218,4,FALSE)) -> 0 | M30: =IF(VLOOKUP($L30,invullijst!$A$10:$M$177,2,FALSE)="","",VLOOKUP($L30,invullijst!$A$10:$M$177,2,FALSE)) -> 0 | O30: =IF(VLOOKUP($L30,invullijst!$A$10:$M$177,9,FALSE)=0,"",VLOOKUP($L30,invullijst!$A$10:$M$177,9,FALSE)) -> 
A31: 2 | B31: =IF($G$3="k",IF(VLOOKUP($D31,invullijst!$A$10:$M$177,11,FALSE)=0," ",VLOOKUP($D31,invullijst!$A$10:$M$177,11,FALSE)),"") ->  | C31: =IF(VLOOKUP(D31,invullijst!A$10:F$218,4,FALSE)="","",VLOOKUP(D31,invullijst!A$10:D$218,4,FALSE)) -> 65+ | D31: 301 | E31: =IF(VLOOKUP($D31,invullijst!$A$10:$M$177,2,FALSE)="","",VLOOKUP($D31,invullijst!$A$10:$M$177,2,FALSE)) -> Arjen van Assem disp | G31: =IF(VLOOKUP($D31,invullijst!$A$10:$M$177,9,FALSE)=0,"",VLOOKUP($D31,invullijst!$A$10:$M$177,9,FALSE)) -> 89 | I31: 2 | J31: =IF($O$3="k",IF(VLOOKUP($L31,invullijst!$A$10:$M$177,11,FALSE)=0," ",VLOOKUP($L31,invullijst!$A$10:$M$177,11,FALSE)),"") ->  | K31: =IF(VLOOKUP($L31,invullijst!$A$10:$M$218,4,FALSE)="","",VLOOKUP($L31,invullijst!$A$10:$M$218,4,FALSE)) -> 0 | M31: =IF(VLOOKUP($L31,invullijst!$A$10:$M$177,2,FALSE)="","",VLOOKUP($L31,invullijst!$A$10:$M$177,2,FALSE)) -> 0 | O31: =IF(VLOOKUP($L31,invullijst!$A$10:$M$177,9,FALSE)=0,"",VLOOKUP($L31,invullijst!$A$10:$M$177,9,FALSE)) -> 
A32: 3 | B32: =IF($G$3="k",IF(VLOOKUP($D32,invullijst!$A$10:$M$177,11,FALSE)=0," ",VLOOKUP($D32,invullijst!$A$10:$M$177,11,FALSE)),"") ->  | C32: =IF(VLOOKUP(D32,invullijst!A$10:F$218,4,FALSE)="","",VLOOKUP(D32,invullijst!A$10:D$218,4,FALSE)) -> 0 | E32: =IF(VLOOKUP($D32,invullijst!$A$10:$M$177,2,FALSE)="","",VLOOKUP($D32,invullijst!$A$10:$M$177,2,FALSE)) -> 0 | G32: =IF(VLOOKUP($D32,invullijst!$A$10:$M$177,9,FALSE)=0,"",VLOOKUP($D32,invullijst!$A$10:$M$177,9,FALSE)) ->  | I32: 3 | J32: =IF($O$3="k",IF(VLOOKUP($L32,invullijst!$A$10:$M$177,11,FALSE)=0," ",VLOOKUP($L32,invullijst!$A$10:$M$177,11,FALSE)),"") ->  | K32: =IF(VLOOKUP($L32,invullijst!$A$10:$M$218,4,FALSE)="","",VLOOKUP($L32,invullijst!$A$10:$M$218,4,FALSE)) -> 0 | M32: =IF(VLOOKUP($L32,invullijst!$A$10:$M$177,2,FALSE)="","",VLOOKUP($L32,invullijst!$A$10:$M$177,2,FALSE)) -> 0 | O32: =IF(VLOOKUP($L32,invullijst!$A$10:$M$177,9,FALSE)=0,"",VLOOKUP($L32,invullijst!$A$10:$M$177,9,FALSE)) -> 
A33: Totaal korps opgelegd A2 | G33: =SUM(G30:G32) -> 182 | I33: Totaal korps opgelegd A2 | O33: =SUM(O30:O32) -> 0
A35: 1 | B35: =IF($G$3="k",IF(VLOOKUP($D35,invullijst!$A$10:$M$177,11,FALSE)=0," ",VLOOKUP($D35,invullijst!$A$10:$M$177,11,FALSE)),"") ->  | C35: =IF(VLOOKUP(D35,invullijst!A$10:F$218,4,FALSE)="","",VLOOKUP(D35,invullijst!A$10:D$218,4,FALSE)) -> 0 | E35: =IF(VLOOKUP($D35,invullijst!$A$10:$M$177,2,FALSE)="","",VLOOKUP($D35,invullijst!$A$10:$M$177,2,FALSE)) -> 0 | G35: =IF(VLOOKUP($D35,invullijst!$A$10:$M$177,9,FALSE)=0,"",VLOOKUP($D35,invullijst!$A$10:$M$177,9,FALSE)) ->  | I35: 1 | J35: =IF($O$3="k",IF(VLOOKUP($L35,invullijst!$A$10:$M$177,11,FALSE)=0," ",VLOOKUP($L35,invullijst!$A$10:$M$177,11,FALSE)),"") ->  | K35: =IF(VLOOKUP($L35,invullijst!$A$10:$M$218,4,FALSE)="","",VLOOKUP($L35,invullijst!$A$10:$M$218,4,FALSE)) -> 0 | M35: =IF(VLOOKUP($L35,invullijst!$A$10:$M$177,2,FALSE)="","",VLOOKUP($L35,invullijst!$A$10:$M$177,2,FALSE)) -> 0 | O35: =IF(VLOOKUP($L35,invullijst!$A$10:$M$177,9,FALSE)=0,"",VLOOKUP($L35,invullijst!$A$10:$M$177,9,FALSE)) -> 
A36: 2 | B36: =IF($G$3="k",IF(VLOOKUP($D36,invullijst!$A$10:$M$177,11,FALSE)=0," ",VLOOKUP($D36,invullijst!$A$10:$M$177,11,FALSE)),"") ->  | C36: =IF(VLOOKUP(D36,invullijst!A$10:F$218,4,FALSE)="","",VLOOKUP(D36,invullijst!A$10:D$218,4,FALSE)) -> 0 | E36: =IF(VLOOKUP($D36,invullijst!$A$10:$M$177,2,FALSE)="","",VLOOKUP($D36,invullijst!$A$10:$M$177,2,FALSE)) -> 0 | G36: =IF(VLOOKUP($D36,invullijst!$A$10:$M$177,9,FALSE)=0,"",VLOOKUP($D36,invullijst!$A$10:$M$177,9,FALSE)) ->  | I36: 2 | J36: =IF($O$3="k",IF(VLOOKUP($L36,invullijst!$A$10:$M$177,11,FALSE)=0," ",VLOOKUP($L36,invullijst!$A$10:$M$177,11,FALSE)),"") ->  | K36: =IF(VLOOKUP($L36,invullijst!$A$10:$M$218,4,FALSE)="","",VLOOKUP($L36,invullijst!$A$10:$M$218,4,FALSE)) -> 0 | M36: =IF(VLOOKUP($L36,invullijst!$A$10:$M$177,2,FALSE)="","",VLOOKUP($L36,invullijst!$A$10:$M$177,2,FALSE)) -> 0 | O36: =IF(VLOOKUP($L36,invullijst!$A$10:$M$177,9,FALSE)=0,"",VLOOKUP($L36,invullijst!$A$10:$M$177,9,FALSE)) -> 
A37: 3 | B37: =IF($G$3="k",IF(VLOOKUP($D37,invullijst!$A$10:$M$177,11,FALSE)=0," ",VLOOKUP($D37,invullijst!$A$10:$M$177,11,FALSE)),"") ->  | C37: =IF(VLOOKUP(D37,invullijst!A$10:F$218,4,FALSE)="","",VLOOKUP(D37,invullijst!A$10:D$218,4,FALSE)) -> 0 | E37: =IF(VLOOKUP($D37,invullijst!$A$10:$M$177,2,FALSE)="","",VLOOKUP($D37,invullijst!$A$10:$M$177,2,FALSE)) -> 0 | G37: =IF(VLOOKUP($D37,invullijst!$A$10:$M$177,9,FALSE)=0,"",VLOOKUP($D37,invullijst!$A$10:$M$177,9,FALSE)) ->  | I37: 3 | J37: =IF($O$3="k",IF(VLOOKUP($L37,invullijst!$A$10:$M$177,11,FALSE)=0," ",VLOOKUP($L37,invullijst!$A$10:$M$177,11,FALSE)),"") ->  | K37: =IF(VLOOKUP($L37,invullijst!$A$10:$M$218,4,FALSE)="","",VLOOKUP($L37,invullijst!$A$10:$M$218,4,FALSE)) -> 0 | M37: =IF(VLOOKUP($L37,invullijst!$A$10:$M$177,2,FALSE)="","",VLOOKUP($L37,invullijst!$A$10:$M$177,2,FALSE)) -> 0 | O37: =IF(VLOOKUP($L37,invullijst!$A$10:$M$177,9,FALSE)=0,"",VLOOKUP($L37,invullijst!$A$10:$M$177,9,FALSE)) -> 
A38: Totaal korps opgelegd A3 | G38: =SUM(G35:G37) -> 0 | I38: Totaal korps opgelegd A3 | O38: =SUM(O35:O37) -> 0

Sheet wedstrijd 4B
A1: =invullijst!F1 -> Organisatie | F1: =invullijst!H2 -> 2023 - 2024 | I1: =invullijst!F3 -> St. Crispinus & Crispinianus Besoijen
A2: Datum: | M2: 2024-03-03
A3: 1 | B3: =IF(VLOOKUP(A3,invullijst!A1:F5,2,FALSE)="","",VLOOKUP(A3,invullijst!A1:F5,2,FALSE)) -> Sint Ambrosius Baardwijk | I3: 4 | J3: =IF(VLOOKUP(I3,invullijst!A1:C5,2,FALSE)="","",VLOOKUP(I3,invullijst!A1:C5,2,FALSE)) -> Sint Ambrosius Haarsteeg
A5: vrijehand
A6: 1 | B6: =IF($G$3="k",IF(VLOOKUP($D6,invullijst!$A$10:$M$177,11,FALSE)=0," ",VLOOKUP($D6,invullijst!$A$10:$M$177,11,FALSE)),"") ->  | C6: =IF(VLOOKUP(D6,invullijst!A$10:F$218,4,FALSE)="","",VLOOKUP(D6,invullijst!A$10:D$218,4,FALSE)) -> vr | D6: 102 | E6: =IF(VLOOKUP($D6,invullijst!$A$10:$M$177,2,FALSE)="","",VLOOKUP($D6,invullijst!$A$10:$M$177,2,FALSE)) -> John de Jong | G6: =IF(VLOOKUP($D6,invullijst!$A$10:$M$177,9,FALSE)=0,"",VLOOKUP($D6,invullijst!$A$10:$M$177,9,FALSE)) -> 65 | I6: 1 | J6: =IF($O$3="k",IF(VLOOKUP($L6,invullijst!$A$10:$M$177,11,FALSE)=0," ",VLOOKUP($L6,invullijst!$A$10:$M$177,11,FALSE)),"") ->  | K6: =IF(VLOOKUP($L6,invullijst!$A$10:$M$218,4,FALSE)="","",VLOOKUP($L6,invullijst!$A$10:$M$218,4,FALSE)) -> vr | L6: 405 | M6: =IF(VLOOKUP($L6,invullijst!$A$10:$M$177,2,FALSE)="","",VLOOKUP($L6,invullijst!$A$10:$M$177,2,FALSE)) -> Jan de Vaan | O6: =IF(VLOOKUP($L6,invullijst!$A$10:$M$177,9,FALSE)=0,"",VLOOKUP($L6,invullijst!$A$10:$M$177,9,FALSE)) -> 81
A7: 2 | B7: =IF($G$3="k",IF(VLOOKUP($D7,invullijst!$A$10:$M$177,11,FALSE)=0," ",VLOOKUP($D7,invullijst!$A$10:$M$177,11,FALSE)),"") ->  | C7: =IF(VLOOKUP(D7,invullijst!A$10:F$218,4,FALSE)="","",VLOOKUP(D7,invullijst!A$10:D$218,4,FALSE)) -> vr | D7: 105 | E7: =IF(VLOOKUP($D7,invullijst!$A$10:$M$177,2,FALSE)="","",VLOOKUP($D7,invullijst!$A$10:$M$177,2,FALSE)) -> René Klijn | G7: =IF(VLOOKUP($D7,invullijst!$A$10:$M$177,9,FALSE)=0,"",VLOOKUP($D7,invullijst!$A$10:$M$177,9,FALSE)) -> 83 | I7: 2 | J7: =IF($O$3="k",IF(VLOOKUP($L7,invullijst!$A$10:$M$177,11,FALSE)=0," ",VLOOKUP($L7,invullijst!$A$10:$M$177,11,FALSE)),"") ->  | K7: =IF(VLOOKUP($L7,invullijst!$A$10:$M$218,4,FALSE)="","",VLOOKUP($L7,invullijst!$A$10:$M$218,4,FALSE)) -> vr | L7: 406 | M7: =IF(VLOOKUP($L7,invullijst!$A$10:$M$177,2,FALSE)="","",VLOOKUP($L7,invullijst!$A$10:$M$177,2,FALSE)) -> Jeroen van Oss | O7: =IF(VLOOKUP($L7,invullijst!$A$10:$M$177,9,FALSE)=0,"",VLOOKUP($L7,invullijst!$A$10:$M$177,9,FALSE)) -> 83
A8: 3 | B8: =IF($G$3="k",IF(VLOOKUP($D8,invullijst!$A$10:$M$177,11,FALSE)=0," ",VLOOKUP($D8,invullijst!$A$10:$M$177,11,FALSE)),"") ->  | C8: =IF(VLOOKUP(D8,invullijst!A$10:F$218,4,FALSE)="","",VLOOKUP(D8,invullijst!A$10:D$218,4,FALSE)) -> vr | D8: 106 | E8: =IF(VLOOKUP($D8,invullijst!$A$10:$M$177,2,FALSE)="","",VLOOKUP($D8,invullijst!$A$10:$M$177,2,FALSE)) -> René Pullens | G8: =IF(VLOOKUP($D8,invullijst!$A$10:$M$177,9,FALSE)=0,"",VLOOKUP($D8,invullijst!$A$10:$M$177,9,FALSE)) -> 79 | I8: 3 | J8: =IF($O$3="k",IF(VLOOKUP($L8,invullijst!$A$10:$M$177,11,FALSE)=0," ",VLOOKUP($L8,invullijst!$A$10:$M$177,11,FALSE)),"") ->  | K8: =IF(VLOOKUP($L8,invullijst!$A$10:$M$218,4,FALSE)="","",VLOOKUP($L8,invullijst!$A$10:$M$218,4,FALSE)) -> vr | L8: 408 | M8: =IF(VLOOKUP($L8,invullijst!$A$10:$M$177,2,FALSE)="","",VLOOKUP($L8,invullijst!$A$10:$M$177,2,FALSE)) -> Rudy van Falier | O8: =IF(VLOOKUP($L8,invullijst!$A$10:$M$177,9,FALSE)=0,"",VLOOKUP($L8,invullijst!$A$10:$M$177,9,FALSE)) -> 80
A9: 4 | B9: =IF($G$3="k",IF(VLOOKUP($D9,invullijst!$A$10:$M$177,11,FALSE)=0," ",VLOOKUP($D9,invullijst!$A$10:$M$177,11,FALSE)),"") ->  | C9: =IF(VLOOKUP(D9,invullijst!A$10:F$218,4,FALSE)="","",VLOOKUP(D9,invullijst!A$10:D$218,4,FALSE)) -> vr | D9: 108 | E9: =IF(VLOOKUP($D9,invullijst!$A$10:$M$177,2,FALSE)="","",VLOOKUP($D9,invullijst!$A$10:$M$177,2,FALSE)) -> Bram Pullens | G9: =IF(VLOOKUP($D9,invullijst!$A$10:$M$177,9,FALSE)=0,"",VLOOKUP($D9,invullijst!$A$10:$M$177,9,FALSE)) -> 76 | I9: 4 | J9: =IF($O$3="k",IF(VLOOKUP($L9,invullijst!$A$10:$M$177,11,FALSE)=0," ",VLOOKUP($L9,invullijst!$A$10:$M$177,11,FALSE)),"") ->  | K9: =IF(VLOOKUP($L9,invullijst!$A$10:$M$218,4,FALSE)="","",VLOOKUP($L9,invullijst!$A$10:$M$218,4,FALSE)) -> vr | L9: 410 | M9: =IF(VLOOKUP($L9,invullijst!$A$10:$M$177,2,FALSE)="","",VLOOKUP($L9,invullijst!$A$10:$M$177,2,FALSE)) -> Tonnie Koks | O9: =IF(VLOOKUP($L9,invullijst!$A$10:$M$177,9,FALSE)=0,"",VLOOKUP($L9,invullijst!$A$10:$M$177,9,FALSE)) -> 82
A10: Totaal A korps | G10: =SUM(G6:G9) -> 303 | I10: Totaal A korps | O10: =SUM(O6:O9) -> 326
A12: 1 | B12: =IF($G$3="k",IF(VLOOKUP($D12,invullijst!$A$10:$M$177,11,FALSE)=0," ",VLOOKUP($D12,invullijst!$A$10:$M$177,11,FALSE)),"") ->  | C12: =IF(VLOOKUP(D12,invullijst!A$10:F$218,4,FALSE)="","",VLOOKUP(D12,invullijst!A$10:D$218,4,FALSE)) -> 0 | E12: =IF(VLOOKUP($D12,invullijst!$A$10:$M$177,2,FALSE)="","",VLOOKUP($D12,invullijst!$A$10:$M$177,2,FALSE)) -> 0 | G12: =IF(VLOOKUP($D12,invullijst!$A$10:$M$177,9,FALSE)=0,"",VLOOKUP($D12,invullijst!$A$10:$M$177,9,FALSE)) ->  | I12: 1 | J12: =IF($O$3="k",IF(VLOOKUP($L12,invullijst!$A$10:$M$177,11,FALSE)=0," ",VLOOKUP($L12,invullijst!$A$10:$M$177,11,FALSE)),"") ->  | K12: =IF(VLOOKUP($L12,invullijst!$A$10:$M$218,4,FALSE)="","",VLOOKUP($L12,invullijst!$A$10:$M$218,4,FALSE)) -> vr | L12: 407 | M12: =IF(VLOOKUP($L12,invullijst!$A$10:$M$177,2,FALSE)="","",VLOOKUP($L12,invullijst!$A$10:$M$177,2,FALSE)) -> Justin van Son | O12: =IF(VLOOKUP($L12,invullijst!$A$10:$M$177,9,FALSE)=0,"",VLOOKUP($L12,invullijst!$A$10:$M$177,9,FALSE)) -> 79
A13: 2 | B13: =IF($G$3="k",IF(VLOOKUP($D13,invullijst!$A$10:$M$177,11,FALSE)=0," ",VLOOKUP($D13,invullijst!$A$10:$M$177,11,FALSE)),"") ->  | C13: =IF(VLOOKUP(D13,invullijst!A$10:F$218,4,FALSE)="","",VLOOKUP(D13,invullijst!A$10:D$218,4,FALSE)) -> 0 | E13: =IF(VLOOKUP($D13,invullijst!$A$10:$M$177,2,FALSE)="","",VLOOKUP($D13,invullijst!$A$10:$M$177,2,FALSE)) -> 0 | G13: =IF(VLOOKUP($D13,invullijst!$A$10:$M$177,9,FALSE)=0,"",VLOOKUP($D13,invullijst!$A$10:$M$177,9,FALSE)) ->  | I13: 2 | J13: =IF($O$3="k",IF(VLOOKUP($L13,invullijst!$A$10:$M$177,11,FALSE)=0," ",VLOOKUP($L13,invullijst!$A$10:$M$177,11,FALSE)),"") ->  | K13: =IF(VLOOKUP($L13,invullijst!$A$10:$M$218,4,FALSE)="","",VLOOKUP($L13,invullijst!$A$10:$M$218,4,FALSE)) -> vr | L13: 402 | M13: =IF(VLOOKUP($L13,invullijst!$A$10:$M$177,2,FALSE)="","",VLOOKUP($L13,invullijst!$A$10:$M$177,2,FALSE)) -> Daniëlle v/d Lee | O13: =IF(VLOOKUP($L13,invullijst!$A$10:$M$177,9,FALSE)=0,"",VLOOKUP($L13,invullijst!$A$10:$M$177,9,FALSE)) -> 75
A14: 3 | B14: =IF($G$3="k",IF(VLOOKUP($D14,invullijst!$A$10:$M$177,11,FALSE)=0," ",VLOOKUP($D14,invullijst!$A$10:$M$177,11,FALSE)),"") ->  | C14: =IF(VLOOKUP(D14,invullijst!A$10:F$218,4,FALSE)="","",VLOOKUP(D14,invullijst!A$10:D$218,4,FALSE)) -> 0 | E14: =IF(VLOOKUP($D14,invullijst!$A$10:$M$177,2,FALSE)="","",VLOOKUP($D14,invullijst!$A$10:$M$177,2,FALSE)) -> 0 | G14: =IF(VLOOKUP($D14,invullijst!$A$10:$M$177,9,FALSE)=0,"",VLOOKUP($D14,invullijst!$A$10:$M$177,9,FALSE)) ->  | I14: 3 | J14: =IF($O$3="k",IF(VLOOKUP($L14,invullijst!$A$10:$M$177,11,FALSE)=0," ",VLOOKUP($L14,invullijst!$A$10:$M$177,11,FALSE)),"") ->  | K14: =IF(VLOOKUP($L14,invullijst!$A$10:$M$218,4,FALSE)="","",VLOOKUP($L14,invullijst!$A$10:$M$218,4,FALSE)) -> 0 | M14: =IF(VLOOKUP($L14,invullijst!$A$10:$M$177,2,FALSE)="","",VLOOKUP($L14,invullijst!$A$10:$M$177,2,FALSE)) -> 0 | O14: =IF(VLOOKUP($L14,invullijst!$A$10:$M$177,9,FALSE)=0,"",VLOOKUP($L14,invullijst!$A$10:$M$177,9,FALSE)) -> 
A15: 4 | B15: =IF($G$3="k",IF(VLOOKUP($D15,invullijst!$A$10:$M$177,11,FALSE)=0," ",VLOOKUP($D15,invullijst!$A$10:$M$177,11,FALSE)),"") ->  | C15: =IF(VLOOKUP(D15,invullijst!A$10:F$218,4,FALSE)="","",VLOOKUP(D15,invullijst!A$10:D$218,4,FALSE)) -> 0 | E15: =IF(VLOOKUP($D15,invullijst!$A$10:$M$177,2,FALSE)="","",VLOOKUP($D15,invullijst!$A$10:$M$177,2,FALSE)) -> 0 | G15: =IF(VLOOKUP($D15,invullijst!$A$10:$M$177,9,FALSE)=0,"",VLOOKUP($D15,invullijst!$A$10:$M$177,9,FALSE)) ->  | I15: 4 | J15: =IF($O$3="k",IF(VLOOKUP($L15,invullijst!$A$10:$M$177,11,FALSE)=0," ",VLOOKUP($L15,invullijst!$A$10:$M$177,11,FALSE)),"") ->  | K15: =IF(VLOOKUP($L15,invullijst!$A$10:$M$218,4,FALSE)="","",VLOOKUP($L15,invullijst!$A$10:$M$218,4,FALSE)) -> 0 | M15: =IF(VLOOKUP($L15,invullijst!$A$10:$M$177,2,FALSE)="","",VLOOKUP($L15,invullijst!$A$10:$M$177,2,FALSE)) -> 0 | O15: =IF(VLOOKUP($L15,invullijst!$A$10:$M$177,9,FALSE)=0,"",VLOOKUP($L15,invullijst!$A$10:$M$177,9,FALSE)) -> 
A16: Totaal B1 korps | G16: =SUM(G12:G15) -> 0 | I16: Totaal B1 korps | O16: 154
A18: 1 | B18: =IF($G$3="k",IF(VLOOKUP($D18,invullijst!$A$10:$M$177,11,FALSE)=0," ",VLOOKUP($D18,invullijst!$A$10:$M$177,11,FALSE)),"") ->  | C18: =IF(VLOOKUP(D18,invullijst!A$10:F$218,4,FALSE)="","",VLOOKUP(D18,invullijst!A$10:D$218,4,FALSE)) -> 0 | E18: =IF(VLOOKUP($D18,invullijst!$A$10:$M$177,2,FALSE)="","",VLOOKUP($D18,invullijst!$A$10:$M$177,2,FALSE)) -> 0 | G18: =IF(VLOOKUP($D18,invullijst!$A$10:$M$177,9,FALSE)=0,"",VLOOKUP($D18,invullijst!$A$10:$M$177,9,FALSE)) ->  | I18: 1 | J18: =IF($O$3="k",IF(VLOOKUP($L18,invullijst!$A$10:$M$177,11,FALSE)=0," ",VLOOKUP($L18,invullijst!$A$10:$M$177,11,FALSE)),"") ->  | M18: Justin van Son (inhaal) | O18: 85
A19: 2 | B19: =IF($G$3="k",IF(VLOOKUP($D19,invullijst!$A$10:$M$177,11,FALSE)=0," ",VLOOKUP($D19,invullijst!$A$10:$M$177,11,FALSE)),"") ->  | C19: =IF(VLOOKUP(D19,invullijst!A$10:F$218,4,FALSE)="","",VLOOKUP(D19,invullijst!A$10:D$218,4,FALSE)) -> 0 | E19: =IF(VLOOKUP($D19,invullijst!$A$10:$M$177,2,FALSE)="","",VLOOKUP($D19,invullijst!$A$10:$M$177,2,FALSE)) -> 0 | G19: =IF(VLOOKUP($D19,invullijst!$A$10:$M$177,9,FALSE)=0,"",VLOOKUP($D19,invullijst!$A$10:$M$177,9,FALSE)) ->  | I19: 2 | J19: =IF($O$3="k",IF(VLOOKUP($L19,invullijst!$A$10:$M$177,11,FALSE)=0," ",VLOOKUP($L19,invullijst!$A$10:$M$177,11,FALSE)),"") -> 
A20: 3 | B20: =IF($G$3="k",IF(VLOOKUP($D20,invullijst!$A$10:$M$177,11,FALSE)=0," ",VLOOKUP($D20,invullijst!$A$10:$M$177,11,FALSE)),"") ->  | C20: =IF(VLOOKUP(D20,invullijst!A$10:F$218,4,FALSE)="","",VLOOKUP(D20,invullijst!A$10:D$218,4,FALSE)) -> 0 | E20: =IF(VLOOKUP($D20,invullijst!$A$10:$M$177,2,FALSE)="","",VLOOKUP($D20,invullijst!$A$10:$M$177,2,FALSE)) -> 0 | G20: =IF(VLOOKUP($D20,invullijst!$A$10:$M$177,9,FALSE)=0,"",VLOOKUP($D20,invullijst!$A$10:$M$177,9,FALSE)) ->  | I20: 3 | J20: =IF($O$3="k",IF(VLOOKUP($L20,invullijst!$A$10:$M$177,11,FALSE)=0," ",VLOOKUP($L20,invullijst!$A$10:$M$177,11,FALSE)),"") -> 
A21: 4 | B21: =IF($G$3="k",IF(VLOOKUP($D21,invullijst!$A$10:$M$177,11,FALSE)=0," ",VLOOKUP($D21,invullijst!$A$10:$M$177,11,FALSE)),"") ->  | C21: =IF(VLOOKUP(D21,invullijst!A$10:F$218,4,FALSE)="","",VLOOKUP(D21,invullijst!A$10:D$218,4,FALSE)) -> 0 | E21: =IF(VLOOKUP($D21,invullijst!$A$10:$M$177,2,FALSE)="","",VLOOKUP($D21,invullijst!$A$10:$M$177,2,FALSE)) -> 0 | G21: =IF(VLOOKUP($D21,invullijst!$A$10:$M$177,9,FALSE)=0,"",VLOOKUP($D21,invullijst!$A$10:$M$177,9,FALSE)) ->  | I21: 4 | J21: =IF($O$3="k",IF(VLOOKUP($L21,invullijst!$A$10:$M$177,11,FALSE)=0," ",VLOOKUP($L21,invullijst!$A$10:$M$177,11,FALSE)),"") -> 
A22: DIVERSEN / INHAAL | I22: DIVERSEN / INHAAL
A24: OPGELEGD (Jeugd <16 en 65+)
A25: 1 | B25: =IF($G$3="k",IF(VLOOKUP($D25,invullijst!$A$10:$M$177,11,FALSE)=0," ",VLOOKUP($D25,invullijst!$A$10:$M$177,11,FALSE)),"") ->  | C25: =IF(VLOOKUP(D25,invullijst!A$10:F$218,4,FALSE)="","",VLOOKUP(D25,invullijst!A$10:D$218,4,FALSE)) -> 65+ | D25: 111 | E25: =IF(VLOOKUP($D25,invullijst!$A$10:$M$177,2,FALSE)="","",VLOOKUP($D25,invullijst!$A$10:$M$177,2,FALSE)) -> Frans van Buul | G25: =IF(VLOOKUP($D25,invullijst!$A$10:$M$177,9,FALSE)=0,"",VLOOKUP($D25,invullijst!$A$10:$M$177,9,FALSE)) -> 66 | I25: 1 | J25: =IF($O$3="k",IF(VLOOKUP($L25,invullijst!$A$10:$M$177,11,FALSE)=0," ",VLOOKUP($L25,invullijst!$A$10:$M$177,11,FALSE)),"") ->  | K25: =IF(VLOOKUP($L25,invullijst!$A$10:$M$218,4,FALSE)="","",VLOOKUP($L25,invullijst!$A$10:$M$218,4,FALSE)) -> 65+ | L25: 401 | M25: =IF(VLOOKUP($L25,invullijst!$A$10:$M$177,2,FALSE)="","",VLOOKUP($L25,invullijst!$A$10:$M$177,2,FALSE)) -> Frans van Beurden | O25: =IF(VLOOKUP($L25,invullijst!$A$10:$M$177,9,FALSE)=0,"",VLOOKUP($L25,invullijst!$A$10:$M$177,9,FALSE)) -> 94
A26: 2 | B26: =IF($G$3="k",IF(VLOOKUP($D26,invullijst!$A$10:$M$177,11,FALSE)=0," ",VLOOKUP($D26,invullijst!$A$10:$M$177,11,FALSE)),"") ->  | C26: =IF(VLOOKUP(D26,invullijst!A$10:F$218,4,FALSE)="","",VLOOKUP(D26,invullijst!A$10:D$218,4,FALSE)) -> 65+ | D26: 113 | E26: =IF(VLOOKUP($D26,invullijst!$A$10:$M$177,2,FALSE)="","",VLOOKUP($D26,invullijst!$A$10:$M$177,2,FALSE)) -> Kees Coppens | G26: =IF(VLOOKUP($D26,invullijst!$A$10:$M$177,9,FALSE)=0,"",VLOOKUP($D26,invullijst!$A$10:$M$177,9,FALSE)) -> 68 | I26: 2 | J26: =IF($O$3="k",IF(VLOOKUP($L26,invullijst!$A$10:$M$177,11,FALSE)=0," ",VLOOKUP($L26,invullijst!$A$10:$M$177,11,FALSE)),"") ->  | K26: =IF(VLOOKUP($L26,invullijst!$A$10:$M$218,4,FALSE)="","",VLOOKUP($L26,invullijst!$A$10:$M$218,4,FALSE)) -> 65+ | L26: 404 | M26: =IF(VLOOKUP($L26,invullijst!$A$10:$M$177,2,FALSE)="","",VLOOKUP($L26,invullijst!$A$10:$M$177,2,FALSE)) -> Gerard van Beurden | O26: =IF(VLOOKUP($L26,invullijst!$A$10:$M$177,9,FALSE)=0,"",VLOOKUP($L26,invullijst!$A$10:$M$177,9,FALSE)) -> 98
A27: 3 | B27: =IF($G$3="k",IF(VLOOKUP($D27,invullijst!$A$10:$M$177,11,FALSE)=0," ",VLOOKUP($D27,invullijst!$A$10:$M$177,11,FALSE)),"") ->  | C27: =IF(VLOOKUP(D27,invullijst!A$10:F$218,4,FALSE)="","",VLOOKUP(D27,invullijst!A$10:D$218,4,FALSE)) -> J | D27: 109 | E27: =IF(VLOOKUP($D27,invullijst!$A$10:$M$177,2,FALSE)="","",VLOOKUP($D27,invullijst!$A$10:$M$177,2,FALSE)) -> Gijs Pullens | G27: =IF(VLOOKUP($D27,invullijst!$A$10:$M$177,9,FALSE)=0,"",VLOOKUP($D27,invullijst!$A$10:$M$177,9,FALSE)) -> 83 | I27: 3 | J27: =IF($O$3="k",IF(VLOOKUP($L27,invullijst!$A$10:$M$177,11,FALSE)=0," ",VLOOKUP($L27,invullijst!$A$10:$M$177,11,FALSE)),"") ->  | K27: =IF(VLOOKUP($L27,invullijst!$A$10:$M$218,4,FALSE)="","",VLOOKUP($L27,invullijst!$A$10:$M$218,4,FALSE)) -> 65+ | L27: 413 | M27: =IF(VLOOKUP($L27,invullijst!$A$10:$M$177,2,FALSE)="","",VLOOKUP($L27,invullijst!$A$10:$M$177,2,FALSE)) -> Frans Mommersteeg | O27: =IF(VLOOKUP($L27,invullijst!$A$10:$M$177,9,FALSE)=0,"",VLOOKUP($L27,invullijst!$A$10:$M$177,9,FALSE)) -> 95
A28: Totaal korps opgelegd A1 | G28: =SUM(G25:G27) -> 217 | I28: Totaal korps opgelegd A1 | O28: =SUM(O25:O27) -> 287
A30: 1 | B30: =IF($G$3="k",IF(VLOOKUP($D30,invullijst!$A$10:$M$177,11,FALSE)=0," ",VLOOKUP($D30,invullijst!$A$10:$M$177,11,FALSE)),"") ->  | C30: =IF(VLOOKUP(D30,invullijst!A$10:F$218,4,FALSE)="","",VLOOKUP(D30,invullijst!A$10:D$218,4,FALSE)) -> 65+ | D30: 112 | E30: =IF(VLOOKUP($D30,invullijst!$A$10:$M$177,2,FALSE)="","",VLOOKUP($D30,invullijst!$A$10:$M$177,2,FALSE)) -> Toon van Buul | G30: =IF(VLOOKUP($D30,invullijst!$A$10:$M$177,9,FALSE)=0,"",VLOOKUP($D30,invullijst!$A$10:$M$177,9,FALSE)) -> 65 | I30: 1 | J30: =IF($O$3="k",IF(VLOOKUP($L30,invullijst!$A$10:$M$177,11,FALSE)=0," ",VLOOKUP($L30,invullijst!$A$10:$M$177,11,FALSE)),"") ->  | K30: =IF(VLOOKUP($L30,invullijst!$A$10:$M$218,4,FALSE)="","",VLOOKUP($L30,invullijst!$A$10:$M$218,4,FALSE)) -> 65+ | L30: 403 | M30: =IF(VLOOKUP($L30,invullijst!$A$10:$M$177,2,FALSE)="","",VLOOKUP($L30,invullijst!$A$10:$M$177,2,FALSE)) -> Dorien de Kort | O30: =IF(VLOOKUP($L30,invullijst!$A$10:$M$177,9,FALSE)=0,"",VLOOKUP($L30,invullijst!$A$10:$M$177,9,FALSE)) -> 94
A31: 2 | B31: =IF($G$3="k",IF(VLOOKUP($D31,invullijst!$A$10:$M$177,11,FALSE)=0," ",VLOOKUP($D31,invullijst!$A$10:$M$177,11,FALSE)),"") ->  | C31: =IF(VLOOKUP(D31,invullijst!A$10:F$218,4,FALSE)="","",VLOOKUP(D31,invullijst!A$10:D$218,4,FALSE)) -> 0 | E31: =IF(VLOOKUP($D31,invullijst!$A$10:$M$177,2,FALSE)="","",VLOOKUP($D31,invullijst!$A$10:$M$177,2,FALSE)) -> 0 | G31: =IF(VLOOKUP($D31,invullijst!$A$10:$M$177,9,FALSE)=0,"",VLOOKUP($D31,invullijst!$A$10:$M$177,9,FALSE)) ->  | I31: 2 | J31: =IF($O$3="k",IF(VLOOKUP($L31,invullijst!$A$10:$M$177,11,FALSE)=0," ",VLOOKUP($L31,invullijst!$A$10:$M$177,11,FALSE)),"") ->  | K31: =IF(VLOOKUP($L31,invullijst!$A$10:$M$218,4,FALSE)="","",VLOOKUP($L31,invullijst!$A$10:$M$218,4,FALSE)) -> 65+ | L31: 412 | M31: =IF(VLOOKUP($L31,invullijst!$A$10:$M$177,2,FALSE)="","",VLOOKUP($L31,invullijst!$A$10:$M$177,2,FALSE)) -> Francien v/d Wiel | O31: =IF(VLOOKUP($L31,invullijst!$A$10:$M$177,9,FALSE)=0,"",VLOOKUP($L31,invullijst!$A$10:$M$177,9,FALSE)) -> 92
A32: 3 | B32: =IF($G$3="k",IF(VLOOKUP($D32,invullijst!$A$10:$M$177,11,FALSE)=0," ",VLOOKUP($D32,invullijst!$A$10:$M$177,11,FALSE)),"") ->  | C32: =IF(VLOOKUP(D32,invullijst!A$10:F$218,4,FALSE)="","",VLOOKUP(D32,invullijst!A$10:D$218,4,FALSE)) -> 0 | E32: =IF(VLOOKUP($D32,invullijst!$A$10:$M$177,2,FALSE)="","",VLOOKUP($D32,invullijst!$A$10:$M$177,2,FALSE)) -> 0 | G32: =IF(VLOOKUP($D32,invullijst!$A$10:$M$177,9,FALSE)=0,"",VLOOKUP($D32,invullijst!$A$10:$M$177,9,FALSE)) ->  | I32: 3 | J32: =IF($O$3="k",IF(VLOOKUP($L32,invullijst!$A$10:$M$177,11,FALSE)=0," ",VLOOKUP($L32,invullijst!$A$10:$M$177,11,FALSE)),"") ->  | K32: =IF(VLOOKUP($L32,invullijst!$A$10:$M$218,4,FALSE)="","",VLOOKUP($L32,invullijst!$A$10:$M$218,4,FALSE)) -> 65+ | L32: 415 | M32: =IF(VLOOKUP($L32,invullijst!$A$10:$M$177,2,FALSE)="","",VLOOKUP($L32,invullijst!$A$10:$M$177,2,FALSE)) -> Wim de Gouw | O32: =IF(VLOOKUP($L32,invullijst!$A$10:$M$177,9,FALSE)=0,"",VLOOKUP($L32,invullijst!$A$10:$M$177,9,FALSE)) -> 95
A33: Totaal korps opgelegd A2 | G33: =SUM(G30:G32) -> 65 | I33: Totaal korps opgelegd A2 | O33: =SUM(O30:O32) -> 281
A35: 1 | B35: =IF($G$3="k",IF(VLOOKUP($D35,invullijst!$A$10:$M$177,11,FALSE)=0," ",VLOOKUP($D35,invullijst!$A$10:$M$177,11,FALSE)),"") ->  | C35: =IF(VLOOKUP(D35,invullijst!A$10:F$218,4,FALSE)="","",VLOOKUP(D35,invullijst!A$10:D$218,4,FALSE)) -> 0 | E35: =IF(VLOOKUP($D35,invullijst!$A$10:$M$177,2,FALSE)="","",VLOOKUP($D35,invullijst!$A$10:$M$177,2,FALSE)) -> 0 | G35: =IF(VLOOKUP($D35,invullijst!$A$10:$M$177,9,FALSE)=0,"",VLOOKUP($D35,invullijst!$A$10:$M$177,9,FALSE)) ->  | I35: 1 | J35: =IF($O$3="k",IF(VLOOKUP($L35,invullijst!$A$10:$M$177,11,FALSE)=0," ",VLOOKUP($L35,invullijst!$A$10:$M$177,11,FALSE)),"") ->  | K35: =IF(VLOOKUP($L35,invullijst!$A$10:$M$218,4,FALSE)="","",VLOOKUP($L35,invullijst!$A$10:$M$218,4,FALSE)) -> 0 | M35: =IF(VLOOKUP($L35,invullijst!$A$10:$M$177,2,FALSE)="","",VLOOKUP($L35,invullijst!$A$10:$M$177,2,FALSE)) -> 0 | O35: =IF(VLOOKUP($L35,invullijst!$A$10:$M$177,9,FALSE)=0,"",VLOOKUP($L35,invullijst!$A$10:$M$177,9,FALSE)) -> 
A36: 2 | B36: =IF($G$3="k",IF(VLOOKUP($D36,invullijst!$A$10:$M$177,11,FALSE)=0," ",VLOOKUP($D36,invullijst!$A$10:$M$177,11,FALSE)),"") ->  | C36: =IF(VLOOKUP(D36,invullijst!A$10:F$218,4,FALSE)="","",VLOOKUP(D36,invullijst!A$10:D$218,4,FALSE)) -> 0 | E36: =IF(VLOOKUP($D36,invullijst!$A$10:$M$177,2,FALSE)="","",VLOOKUP($D36,invullijst!$A$10:$M$177,2,FALSE)) -> 0 | G36: =IF(VLOOKUP($D36,invullijst!$A$10:$M$177,9,FALSE)=0,"",VLOOKUP($D36,invullijst!$A$10:$M$177,9,FALSE)) ->  | I36: 2 | J36: =IF($O$3="k",IF(VLOOKUP($L36,invullijst!$A$10:$M$177,11,FALSE)=0," ",VLOOKUP($L36,invullijst!$A$10:$M$177,11,FALSE)),"") ->  | K36: =IF(VLOOKUP($L36,invullijst!$A$10:$M$218,4,FALSE)="","",VLOOKUP($L36,invullijst!$A$10:$M$218,4,FALSE)) -> 0 | M36: =IF(VLOOKUP($L36,invullijst!$A$10:$M$177,2,FALSE)="","",VLOOKUP($L36,invullijst!$A$10:$M$177,2,FALSE)) -> 0 | O36: =IF(VLOOKUP($L36,invullijst!$A$10:$M$177,9,FALSE)=0,"",VLOOKUP($L36,invullijst!$A$10:$M$177,9,FALSE)) -> 
A37: 3 | B37: =IF($G$3="k",IF(VLOOKUP($D37,invullijst!$A$10:$M$177,11,FALSE)=0," ",VLOOKUP($D37,invullijst!$A$10:$M$177,11,FALSE)),"") ->  | C37: =IF(VLOOKUP(D37,invullijst!A$10:F$218,4,FALSE)="","",VLOOKUP(D37,invullijst!A$10:D$218,4,FALSE)) -> 0 | E37: =IF(VLOOKUP($D37,invullijst!$A$10:$M$177,2,FALSE)="","",VLOOKUP($D37,invullijst!$A$10:$M$177,2,FALSE)) -> 0 | G37: =IF(VLOOKUP($D37,invullijst!$A$10:$M$177,9,FALSE)=0,"",VLOOKUP($D37,invullijst!$A$10:$M$177,9,FALSE)) ->  | I37: 3 | J37: =IF($O$3="k",IF(VLOOKUP($L37,invullijst!$A$10:$M$177,11,FALSE)=0," ",VLOOKUP($L37,invullijst!$A$10:$M$177,11,FALSE)),"") ->  | K37: =IF(VLOOKUP($L37,invullijst!$A$10:$M$218,4,FALSE)="","",VLOOKUP($L37,invullijst!$A$10:$M$218,4,FALSE)) -> 0 | M37: =IF(VLOOKUP($L37,invullijst!$A$10:$M$177,2,FALSE)="","",VLOOKUP($L37,invullijst!$A$10:$M$177,2,FALSE)) -> 0 | O37: =IF(VLOOKUP($L37,invullijst!$A$10:$M$177,9,FALSE)=0,"",VLOOKUP($L37,invullijst!$A$10:$M$177,9,FALSE)) -> 
A38: Totaal korps opgelegd A3 | G38: =SUM(G35:G37) -> 0 | I38: Totaal korps opgelegd A3 | O38: =SUM(O35:O37) -> 0

Sheet wedstrijd 5A
A1: =invullijst!F1 -> Organisatie | F1: =invullijst!H2 -> 2023 - 2024 | I1: =invullijst!F3 -> St. Crispinus & Crispinianus Besoijen
A2: Datum: | M2: 2024-03-17
A3: 3 | B3: =IF(VLOOKUP(A3,invullijst!A1:F5,2,FALSE)="","",VLOOKUP(A3,invullijst!A1:F5,2,FALSE)) -> O.L.V. Schuts Elshout | I3: 1 | J3: =IF(VLOOKUP(I3,invullijst!A1:C5,2,FALSE)="","",VLOOKUP(I3,invullijst!A1:C5,2,FALSE)) -> Sint Ambrosius Baardwijk
A5: vrijehand
A6: 1 | B6: =IF($G$3="k",IF(VLOOKUP($D6,invullijst!$A$10:$M$177,11,FALSE)=0," ",VLOOKUP($D6,invullijst!$A$10:$M$177,11,FALSE)),"") ->  | C6: =IF(VLOOKUP(D6,invullijst!A$10:F$218,4,FALSE)="","",VLOOKUP(D6,invullijst!A$10:D$218,4,FALSE)) -> vr | D6: 302 | E6: =IF(VLOOKUP($D6,invullijst!$A$10:$M$177,2,FALSE)="","",VLOOKUP($D6,invullijst!$A$10:$M$177,2,FALSE)) -> Freek de Jong | G6: =IF(VLOOKUP($D6,invullijst!$A$10:$M$177,10,FALSE)=0,"",VLOOKUP($D6,invullijst!$A$10:$M$177,10,FALSE)) -> 90 | I6: 1 | J6: =IF($O$3="k",IF(VLOOKUP($L6,invullijst!$A$10:$M$177,11,FALSE)=0," ",VLOOKUP($L6,invullijst!$A$10:$M$177,11,FALSE)),"") ->  | K6: =IF(VLOOKUP($L6,invullijst!$A$10:$M$218,4,FALSE)="","",VLOOKUP($L6,invullijst!$A$10:$M$218,4,FALSE)) -> vr | L6: 105 | M6: =IF(VLOOKUP($L6,invullijst!$A$10:$M$177,2,FALSE)="","",VLOOKUP($L6,invullijst!$A$10:$M$177,2,FALSE)) -> René Klijn | O6: =IF(VLOOKUP($L6,invullijst!$A$10:$M$177,10,FALSE)=0,"",VLOOKUP($L6,invullijst!$A$10:$M$177,10,FALSE)) -> 84
A7: 2 | B7: =IF($G$3="k",IF(VLOOKUP($D7,invullijst!$A$10:$M$177,11,FALSE)=0," ",VLOOKUP($D7,invullijst!$A$10:$M$177,11,FALSE)),"") ->  | C7: =IF(VLOOKUP(D7,invullijst!A$10:F$218,4,FALSE)="","",VLOOKUP(D7,invullijst!A$10:D$218,4,FALSE)) -> vr | D7: 311 | E7: =IF(VLOOKUP($D7,invullijst!$A$10:$M$177,2,FALSE)="","",VLOOKUP($D7,invullijst!$A$10:$M$177,2,FALSE)) -> Ton Kolmans | G7: =IF(VLOOKUP($D7,invullijst!$A$10:$M$177,10,FALSE)=0,"",VLOOKUP($D7,invullijst!$A$10:$M$177,10,FALSE)) -> 83 | I7: 2 | J7: =IF($O$3="k",IF(VLOOKUP($L7,invullijst!$A$10:$M$177,11,FALSE)=0," ",VLOOKUP($L7,invullijst!$A$10:$M$177,11,FALSE)),"") ->  | K7: =IF(VLOOKUP($L7,invullijst!$A$10:$M$218,4,FALSE)="","",VLOOKUP($L7,invullijst!$A$10:$M$218,4,FALSE)) -> vr | L7: 102 | M7: =IF(VLOOKUP($L7,invullijst!$A$10:$M$177,2,FALSE)="","",VLOOKUP($L7,invullijst!$A$10:$M$177,2,FALSE)) -> John de Jong | O7: =IF(VLOOKUP($L7,invullijst!$A$10:$M$177,10,FALSE)=0,"",VLOOKUP($L7,invullijst!$A$10:$M$177,10,FALSE)) -> 77
A8: 3 | B8: =IF($G$3="k",IF(VLOOKUP($D8,invullijst!$A$10:$M$177,11,FALSE)=0," ",VLOOKUP($D8,invullijst!$A$10:$M$177,11,FALSE)),"") ->  | C8: =IF(VLOOKUP(D8,invullijst!A$10:F$218,4,FALSE)="","",VLOOKUP(D8,invullijst!A$10:D$218,4,FALSE)) -> vr | D8: 305 | E8: =IF(VLOOKUP($D8,invullijst!$A$10:$M$177,2,FALSE)="","",VLOOKUP($D8,invullijst!$A$10:$M$177,2,FALSE)) -> Johan Klerx | G8: =IF(VLOOKUP($D8,invullijst!$A$10:$M$177,10,FALSE)=0,"",VLOOKUP($D8,invullijst!$A$10:$M$177,10,FALSE)) -> 82 | I8: 3 | J8: =IF($O$3="k",IF(VLOOKUP($L8,invullijst!$A$10:$M$177,11,FALSE)=0," ",VLOOKUP($L8,invullijst!$A$10:$M$177,11,FALSE)),"") ->  | K8: =IF(VLOOKUP($L8,invullijst!$A$10:$M$218,4,FALSE)="","",VLOOKUP($L8,invullijst!$A$10:$M$218,4,FALSE)) -> vr | L8: 106 | M8: =IF(VLOOKUP($L8,invullijst!$A$10:$M$177,2,FALSE)="","",VLOOKUP($L8,invullijst!$A$10:$M$177,2,FALSE)) -> René Pullens | O8: =IF(VLOOKUP($L8,invullijst!$A$10:$M$177,10,FALSE)=0,"",VLOOKUP($L8,invullijst!$A$10:$M$177,10,FALSE)) -> 88
A9: 4 | B9: =IF($G$3="k",IF(VLOOKUP($D9,invullijst!$A$10:$M$177,11,FALSE)=0," ",VLOOKUP($D9,invullijst!$A$10:$M$177,11,FALSE)),"") ->  | C9: =IF(VLOOKUP(D9,invullijst!A$10:F$218,4,FALSE)="","",VLOOKUP(D9,invullijst!A$10:D$218,4,FALSE)) -> vr | D9: 306 | E9: =IF(VLOOKUP($D9,invullijst!$A$10:$M$177,2,FALSE)="","",VLOOKUP($D9,invullijst!$A$10:$M$177,2,FALSE)) -> Ron Groot | G9: =IF(VLOOKUP($D9,invullijst!$A$10:$M$177,10,FALSE)=0,"",VLOOKUP($D9,invullijst!$A$10:$M$177,10,FALSE)) -> 85 | I9: 4 | J9: =IF($O$3="k",IF(VLOOKUP($L9,invullijst!$A$10:$M$177,11,FALSE)=0," ",VLOOKUP($L9,invullijst!$A$10:$M$177,11,FALSE)),"") ->  | K9: =IF(VLOOKUP($L9,invullijst!$A$10:$M$218,4,FALSE)="","",VLOOKUP($L9,invullijst!$A$10:$M$218,4,FALSE)) -> vr | L9: 108 | M9: =IF(VLOOKUP($L9,invullijst!$A$10:$M$177,2,FALSE)="","",VLOOKUP($L9,invullijst!$A$10:$M$177,2,FALSE)) -> Bram Pullens | O9: =IF(VLOOKUP($L9,invullijst!$A$10:$M$177,10,FALSE)=0,"",VLOOKUP($L9,invullijst!$A$10:$M$177,10,FALSE)) -> 75
A10: Totaal A korps | G10: =SUM(G6:G9) -> 340 | I10: Totaal A korps | O10: =SUM(O6:O9) -> 324
A12: 1 | B12: =IF($G$3="k",IF(VLOOKUP($D12,invullijst!$A$10:$M$177,11,FALSE)=0," ",VLOOKUP($D12,invullijst!$A$10:$M$177,11,FALSE)),"") ->  | C12: =IF(VLOOKUP(D12,invullijst!A$10:F$218,4,FALSE)="","",VLOOKUP(D12,invullijst!A$10:D$218,4,FALSE)) -> vr | D12: 304 | E12: =IF(VLOOKUP($D12,invullijst!$A$10:$M$177,2,FALSE)="","",VLOOKUP($D12,invullijst!$A$10:$M$177,2,FALSE)) -> Henk Bruurmijn | G12: =IF(VLOOKUP($D12,invullijst!$A$10:$M$177,10,FALSE)=0,"",VLOOKUP($D12,invullijst!$A$10:$M$177,10,FALSE)) -> 68 | I12: 1 | J12: =IF($O$3="k",IF(VLOOKUP($L12,invullijst!$A$10:$M$177,11,FALSE)=0," ",VLOOKUP($L12,invullijst!$A$10:$M$177,11,FALSE)),"") ->  | K12: =IF(VLOOKUP($L12,invullijst!$A$10:$M$218,4,FALSE)="","",VLOOKUP($L12,invullijst!$A$10:$M$218,4,FALSE)) -> 0 | M12: =IF(VLOOKUP($L12,invullijst!$A$10:$M$177,2,FALSE)="","",VLOOKUP($L12,invullijst!$A$10:$M$177,2,FALSE)) -> 0 | O12: =IF(VLOOKUP($L12,invullijst!$A$10:$M$177,10,FALSE)=0,"",VLOOKUP($L12,invullijst!$A$10:$M$177,10,FALSE)) -> 
A13: 2 | B13: =IF($G$3="k",IF(VLOOKUP($D13,invullijst!$A$10:$M$177,11,FALSE)=0," ",VLOOKUP($D13,invullijst!$A$10:$M$177,11,FALSE)),"") ->  | C13: =IF(VLOOKUP(D13,invullijst!A$10:F$218,4,FALSE)="","",VLOOKUP(D13,invullijst!A$10:D$218,4,FALSE)) -> 0 | E13: =IF(VLOOKUP($D13,invullijst!$A$10:$M$177,2,FALSE)="","",VLOOKUP($D13,invullijst!$A$10:$M$177,2,FALSE)) -> 0 | G13: =IF(VLOOKUP($D13,invullijst!$A$10:$M$177,10,FALSE)=0,"",VLOOKUP($D13,invullijst!$A$10:$M$177,10,FALSE)) ->  | I13: 2 | J13: =IF($O$3="k",IF(VLOOKUP($L13,invullijst!$A$10:$M$177,11,FALSE)=0," ",VLOOKUP($L13,invullijst!$A$10:$M$177,11,FALSE)),"") ->  | K13: =IF(VLOOKUP($L13,invullijst!$A$10:$M$218,4,FALSE)="","",VLOOKUP($L13,invullijst!$A$10:$M$218,4,FALSE)) -> 0 | M13: =IF(VLOOKUP($L13,invullijst!$A$10:$M$177,2,FALSE)="","",VLOOKUP($L13,invullijst!$A$10:$M$177,2,FALSE)) -> 0 | O13: =IF(VLOOKUP($L13,invullijst!$A$10:$M$177,10,FALSE)=0,"",VLOOKUP($L13,invullijst!$A$10:$M$177,10,FALSE)) -> 
A14: 3 | B14: =IF($G$3="k",IF(VLOOKUP($D14,invullijst!$A$10:$M$177,11,FALSE)=0," ",VLOOKUP($D14,invullijst!$A$10:$M$177,11,FALSE)),"") ->  | C14: =IF(VLOOKUP(D14,invullijst!A$10:F$218,4,FALSE)="","",VLOOKUP(D14,invullijst!A$10:D$218,4,FALSE)) -> 0 | E14: =IF(VLOOKUP($D14,invullijst!$A$10:$M$177,2,FALSE)="","",VLOOKUP($D14,invullijst!$A$10:$M$177,2,FALSE)) -> 0 | G14: =IF(VLOOKUP($D14,invullijst!$A$10:$M$177,10,FALSE)=0,"",VLOOKUP($D14,invullijst!$A$10:$M$177,10,FALSE)) ->  | I14: 3 | J14: =IF($O$3="k",IF(VLOOKUP($L14,invullijst!$A$10:$M$177,11,FALSE)=0," ",VLOOKUP($L14,invullijst!$A$10:$M$177,11,FALSE)),"") ->  | K14: =IF(VLOOKUP($L14,invullijst!$A$10:$M$218,4,FALSE)="","",VLOOKUP($L14,invullijst!$A$10:$M$218,4,FALSE)) -> 0 | M14: =IF(VLOOKUP($L14,invullijst!$A$10:$M$177,2,FALSE)="","",VLOOKUP($L14,invullijst!$A$10:$M$177,2,FALSE)) -> 0 | O14: =IF(VLOOKUP($L14,invullijst!$A$10:$M$177,10,FALSE)=0,"",VLOOKUP($L14,invullijst!$A$10:$M$177,10,FALSE)) -> 
A15: 4 | B15: =IF($G$3="k",IF(VLOOKUP($D15,invullijst!$A$10:$M$177,11,FALSE)=0," ",VLOOKUP($D15,invullijst!$A$10:$M$177,11,FALSE)),"") ->  | C15: =IF(VLOOKUP(D15,invullijst!A$10:F$218,4,FALSE)="","",VLOOKUP(D15,invullijst!A$10:D$218,4,FALSE)) -> 0 | E15: =IF(VLOOKUP($D15,invullijst!$A$10:$M$177,2,FALSE)="","",VLOOKUP($D15,invullijst!$A$10:$M$177,2,FALSE)) -> 0 | G15: =IF(VLOOKUP($D15,invullijst!$A$10:$M$177,10,FALSE)=0,"",VLOOKUP($D15,invullijst!$A$10:$M$177,10,FALSE)) ->  | I15: 4 | J15: =IF($O$3="k",IF(VLOOKUP($L15,invullijst!$A$10:$M$177,11,FALSE)=0," ",VLOOKUP($L15,invullijst!$A$10:$M$177,11,FALSE)),"") ->  | K15: =IF(VLOOKUP($L15,invullijst!$A$10:$M$218,4,FALSE)="","",VLOOKUP($L15,invullijst!$A$10:$M$218,4,FALSE)) -> 0 | M15: =IF(VLOOKUP($L15,invullijst!$A$10:$M$177,2,FALSE)="","",VLOOKUP($L15,invullijst!$A$10:$M$177,2,FALSE)) -> 0 | O15: =IF(VLOOKUP($L15,invullijst!$A$10:$M$177,10,FALSE)=0,"",VLOOKUP($L15,invullijst!$A$10:$M$177,10,FALSE)) -> 
A16: Totaal B1 korps | G16: =SUM(G12:G15) -> 68 | I16: Totaal B1 korps | O16: =SUM(O12:O15) -> 0
A18: 1 | B18: =IF($G$3="k",IF(VLOOKUP($D18,invullijst!$A$10:$M$177,11,FALSE)=0," ",VLOOKUP($D18,invullijst!$A$10:$M$177,11,FALSE)),"") ->  | C18: =IF(VLOOKUP(D18,invullijst!A$10:F$218,4,FALSE)="","",VLOOKUP(D18,invullijst!A$10:D$218,4,FALSE)) -> 0 | E18: =IF(VLOOKUP($D18,invullijst!$A$10:$M$177,2,FALSE)="","",VLOOKUP($D18,invullijst!$A$10:$M$177,2,FALSE)) -> 0 | G18: =IF(VLOOKUP($D18,invullijst!$A$10:$M$177,10,FALSE)=0,"",VLOOKUP($D18,invullijst!$A$10:$M$177,10,FALSE)) ->  | I18: 1 | J18: =IF($O$3="k",IF(VLOOKUP($L18,invullijst!$A$10:$M$177,11,FALSE)=0," ",VLOOKUP($L18,invullijst!$A$10:$M$177,11,FALSE)),"") ->  | K18: =IF(VLOOKUP($L18,invullijst!$A$10:$M$218,4,FALSE)="","",VLOOKUP($L18,invullijst!$A$10:$M$218,4,FALSE)) -> 0 | M18: =IF(VLOOKUP($L18,invullijst!$A$10:$M$177,2,FALSE)="","",VLOOKUP($L18,invullijst!$A$10:$M$177,2,FALSE)) -> 0 | O18: =IF(VLOOKUP($L18,invullijst!$A$10:$M$177,10,FALSE)=0,"",VLOOKUP($L18,invullijst!$A$10:$M$177,10,FALSE)) -> 
A19: 2 | B19: =IF($G$3="k",IF(VLOOKUP($D19,invullijst!$A$10:$M$177,11,FALSE)=0," ",VLOOKUP($D19,invullijst!$A$10:$M$177,11,FALSE)),"") ->  | C19: =IF(VLOOKUP(D19,invullijst!A$10:F$218,4,FALSE)="","",VLOOKUP(D19,invullijst!A$10:D$218,4,FALSE)) -> 0 | E19: =IF(VLOOKUP($D19,invullijst!$A$10:$M$177,2,FALSE)="","",VLOOKUP($D19,invullijst!$A$10:$M$177,2,FALSE)) -> 0 | G19: =IF(VLOOKUP($D19,invullijst!$A$10:$M$177,10,FALSE)=0,"",VLOOKUP($D19,invullijst!$A$10:$M$177,10,FALSE)) ->  | I19: 2 | J19: =IF($O$3="k",IF(VLOOKUP($L19,invullijst!$A$10:$M$177,11,FALSE)=0," ",VLOOKUP($L19,invullijst!$A$10:$M$177,11,FALSE)),"") ->  | K19: =IF(VLOOKUP($L19,invullijst!$A$10:$M$218,4,FALSE)="","",VLOOKUP($L19,invullijst!$A$10:$M$218,4,FALSE)) -> 0 | M19: =IF(VLOOKUP($L19,invullijst!$A$10:$M$177,2,FALSE)="","",VLOOKUP($L19,invullijst!$A$10:$M$177,2,FALSE)) -> 0 | O19: =IF(VLOOKUP($L19,invullijst!$A$10:$M$177,10,FALSE)=0,"",VLOOKUP($L19,invullijst!$A$10:$M$177,10,FALSE)) -> 
A20: 3 | B20: =IF($G$3="k",IF(VLOOKUP($D20,invullijst!$A$10:$M$177,11,FALSE)=0," ",VLOOKUP($D20,invullijst!$A$10:$M$177,11,FALSE)),"") ->  | C20: =IF(VLOOKUP(D20,invullijst!A$10:F$218,4,FALSE)="","",VLOOKUP(D20,invullijst!A$10:D$218,4,FALSE)) -> 0 | E20: =IF(VLOOKUP($D20,invullijst!$A$10:$M$177,2,FALSE)="","",VLOOKUP($D20,invullijst!$A$10:$M$177,2,FALSE)) -> 0 | G20: =IF(VLOOKUP($D20,invullijst!$A$10:$M$177,10,FALSE)=0,"",VLOOKUP($D20,invullijst!$A$10:$M$177,10,FALSE)) ->  | I20: 3 | J20: =IF($O$3="k",IF(VLOOKUP($L20,invullijst!$A$10:$M$177,11,FALSE)=0," ",VLOOKUP($L20,invullijst!$A$10:$M$177,11,FALSE)),"") ->  | K20: =IF(VLOOKUP($L20,invullijst!$A$10:$M$218,4,FALSE)="","",VLOOKUP($L20,invullijst!$A$10:$M$218,4,FALSE)) -> 0 | M20: =IF(VLOOKUP($L20,invullijst!$A$10:$M$177,2,FALSE)="","",VLOOKUP($L20,invullijst!$A$10:$M$177,2,FALSE)) -> 0 | O20: =IF(VLOOKUP($L20,invullijst!$A$10:$M$177,10,FALSE)=0,"",VLOOKUP($L20,invullijst!$A$10:$M$177,10,FALSE)) -> 
